{"text_format":"1","workbook":"xlsx","n_sheets":12,"sheets":["Concours","Séries","Day 1","Day 2","Day 3","Day 4","Day 5","Day 6","Day 7","Day 8","Day 9","Series Counts"],"not_rendered":{"charts":0,"images":0,"macros":1,"external_links":0,"defined_names":11,"comments":9,"pivot_tables":1},"unopened":[],"bounds":{"document_bytes":16777216,"sheet_cells":100000,"rows_first":2000,"rows_last":500,"rows_between":2000,"halvings":0,"cell_chars":16384,"cell_head_chars":4096},"cells_cut":0,"cells_raw":0,"read":"whole","date_system":"1900"}

{"sheet":"Concours","index":0,"n_rows":1,"n_cols":8,"rows_kept":1,"cut":false,"hidden":false,"merged":[]}
["Concours ID",null,"DateOrdre","DateDate","DateID",null,"JuryNum","JuryID"]

{"sheet":"Séries","index":1,"n_rows":949,"n_cols":26,"rows_kept":949,"cut":false,"hidden":false,"merged":[]}
["SeriID","SeriNum","Qtt","SeriName","Quality","QttQlt","QttQlt/Qtt","SeriRemPrepa","Serie","Jour","Jury","Ordre","JourID","JuryID","Adrs","SeriSummary",{"$f":"SUM(C2:C999)","v":0},{"$f":"'Day 1'!AG1+'Day 2'!AG1+'Day 3'!AG1","v":0},null,null,"ImportKey","SeriID","SeriOrdreSerie","SeriDateID","SeriJuryID","SeriConcoursID"]
[null,null,null,null,null,null,null,null,null,null,null,null,null,null,null,null,null,null,null,null,null,{"$f":"A2","v":0},{"$f":"L2","v":0},{"$f":"M2","v":0},{"$f":"N2","v":0},{"$f":"Concours!$A$2","v":0}]
[null,null,null,null,null,null,null,null,null,null,null,null,null,null,null,null,null,null,null,null,null,0,0,0,0,{"$f":"Concours!$A$2","v":0}]
[null,null,null,null,null,null,null,null,null,null,null,null,null,null,null,null,null,null,null,null,null,0,0,0,0,{"$f":"Concours!$A$2","v":0}]
[null,null,null,null,null,null,null,null,null,null,null,null,null,null,null,null,null,null,null,null,null,0,0,0,0,{"$f":"Concours!$A$2","v":0}]
[null,null,null,null,null,null,null,null,null,null,null,null,null,null,null,null,null,null,null,null,null,0,0,0,0,{"$f":"Concours!$A$2","v":0}]
[null,null,null,null,null,null,null,null,null,null,null,null,null,null,null,null,null,null,null,null,null,0,0,0,0,{"$f":"Concours!$A$2","v":0}]
[null,null,null,null,null,null,null,null,null,null,null,null,null,null,null,null,null,null,null,null,null,0,0,0,0,{"$f":"Concours!$A$2","v":0}]
[null,null,null,null,null,null,null,null,null,null,null,null,null,null,null,null,null,null,null,null,null,0,0,0,0,{"$f":"Concours!$A$2","v":0}]
[null,null,null,null,null,null,null,null,null,null,null,null,null,null,null,null,null,null,null,null,null,0,0,0,0,{"$f":"Concours!$A$2","v":0}]
[null,null,null,null,null,null,null,null,null,null,null,null,null,null,null,null,null,null,null,null,null,0,0,0,0,{"$f":"Concours!$A$2","v":0}]
[null,null,null,null,null,null,null,null,null,null,null,null,null,null,null,null,null,null,null,null,null,0,0,0,0,{"$f":"Concours!$A$2","v":0}]
[null,null,null,null,null,null,null,null,null,null,null,null,null,null,null,null,null,null,null,null,null,0,0,0,0,{"$f":"Concours!$A$2","v":0}]
[null,null,null,null,null,null,null,null,null,null,null,null,null,null,null,null,null,null,null,null,null,0,0,0,0,{"$f":"Concours!$A$2","v":0}]
[null,null,null,null,null,null,null,null,null,null,null,null,null,null,null,null,null,null,null,null,null,0,0,0,0,{"$f":"Concours!$A$2","v":0}]
[null,null,null,null,null,null,null,null,null,null,null,null,null,null,null,null,null,null,null,null,null,0,0,0,0,{"$f":"Concours!$A$2","v":0}]
[null,null,null,null,null,null,null,null,null,null,null,null,null,null,null,null,null,null,null,null,null,0,0,0,0,{"$f":"Concours!$A$2","v":0}]
[null,null,null,null,null,null,null,null,null,null,null,null,null,null,null,null,null,null,null,null,null,0,0,0,0,{"$f":"Concours!$A$2","v":0}]
[null,null,null,null,null,null,null,null,null,null,null,null,null,null,null,null,null,null,null,null,null,0,0,0,0,{"$f":"Concours!$A$2","v":0}]
[null,null,null,null,null,null,null,null,null,null,null,null,null,null,null,null,null,null,null,null,null,0,0,0,0,{"$f":"Concours!$A$2","v":0}]
[null,null,null,null,null,null,null,null,null,null,null,null,null,null,null,null,null,null,null,null,null,0,0,0,0,{"$f":"Concours!$A$2","v":0}]
[null,null,null,null,null,null,null,null,null,null,null,null,null,null,null,null,null,null,null,null,null,0,0,0,0,{"$f":"Concours!$A$2","v":0}]
[null,null,null,null,null,null,null,null,null,null,null,null,null,null,null,null,null,null,null,null,null,0,0,0,0,{"$f":"Concours!$A$2","v":0}]
[null,null,null,null,null,null,null,null,null,null,null,null,null,null,null,null,null,null,null,null,null,0,0,0,0,{"$f":"Concours!$A$2","v":0}]
[null,null,null,null,null,null,null,null,null,null,null,null,null,null,null,null,null,null,null,null,null,0,0,0,0,{"$f":"Concours!$A$2","v":0}]
[null,null,null,null,null,null,null,null,null,null,null,null,null,null,null,null,null,null,null,null,null,0,0,0,0,{"$f":"Concours!$A$2","v":0}]
[null,null,null,null,null,null,null,null,null,null,null,null,null,null,null,null,null,null,null,null,null,0,0,0,0,{"$f":"Concours!$A$2","v":0}]
[null,null,null,null,null,null,null,null,null,null,null,null,null,null,null,null,null,null,null,null,null,0,0,0,0,{"$f":"Concours!$A$2","v":0}]
[null,null,null,null,null,null,null,null,null,null,null,null,null,null,null,null,null,null,null,null,null,0,0,0,0,{"$f":"Concours!$A$2","v":0}]
[null,null,null,null,null,null,null,null,null,null,null,null,null,null,null,null,null,null,null,null,null,0,0,0,0,{"$f":"Concours!$A$2","v":0}]
[null,null,null,null,null,null,null,null,null,null,null,null,null,null,null,null,null,null,null,null,null,0,0,0,0,{"$f":"Concours!$A$2","v":0}]
[null,null,null,null,null,null,null,null,null,null,null,null,null,null,null,null,null,null,null,null,null,0,0,0,0,{"$f":"Concours!$A$2","v":0}]
[null,null,null,null,null,null,null,null,null,null,null,null,null,null,null,null,null,null,null,null,null,0,0,0,0,{"$f":"Concours!$A$2","v":0}]
[null,null,null,null,null,null,null,null,null,null,null,null,null,null,null,null,null,null,null,null,null,0,0,0,0,{"$f":"Concours!$A$2","v":0}]
[null,null,null,null,null,null,null,null,null,null,null,null,null,null,null,null,null,null,null,null,null,0,0,0,0,{"$f":"Concours!$A$2","v":0}]
[null,null,null,null,null,null,null,null,null,null,null,null,null,null,null,null,null,null,null,null,null,0,0,0,0,{"$f":"Concours!$A$2","v":0}]
[null,null,null,null,null,null,null,null,null,null,null,null,null,null,null,null,null,null,null,null,null,0,0,0,0,{"$f":"Concours!$A$2","v":0}]
[null,null,null,null,null,null,null,null,null,null,null,null,null,null,null,null,null,null,null,null,null,0,0,0,0,{"$f":"Concours!$A$2","v":0}]
[null,null,null,null,null,null,null,null,null,null,null,null,null,null,null,null,null,null,null,null,null,0,0,0,0,{"$f":"Concours!$A$2","v":0}]
[null,null,null,null,null,null,null,null,null,null,null,null,null,null,null,null,null,null,null,null,null,0,0,0,0,{"$f":"Concours!$A$2","v":0}]
[null,null,null,null,null,null,null,null,null,null,null,null,null,null,null,null,null,null,null,null,null,0,0,0,0,{"$f":"Concours!$A$2","v":0}]
[null,null,null,null,null,null,null,null,null,null,null,null,null,null,null,null,null,null,null,null,null,0,0,0,0,{"$f":"Concours!$A$2","v":0}]
[null,null,null,null,null,null,null,null,null,null,null,null,null,null,null,null,null,null,null,null,null,0,0,0,0,{"$f":"Concours!$A$2","v":0}]
[null,null,null,null,null,null,null,null,null,null,null,null,null,null,null,null,null,null,null,null,null,0,0,0,0,{"$f":"Concours!$A$2","v":0}]
[null,null,null,null,null,null,null,null,null,null,null,null,null,null,null,null,null,null,null,null,null,0,0,0,0,{"$f":"Concours!$A$2","v":0}]
[null,null,null,null,null,null,null,null,null,null,null,null,null,null,null,null,null,null,null,null,null,0,0,0,0,{"$f":"Concours!$A$2","v":0}]
[null,null,null,null,null,null,null,null,null,null,null,null,null,null,null,null,null,null,null,null,null,0,0,0,0,{"$f":"Concours!$A$2","v":0}]
[null,null,null,null,null,null,null,null,null,null,null,null,null,null,null,null,null,null,null,null,null,0,0,0,0,{"$f":"Concours!$A$2","v":0}]
[null,null,null,null,null,null,null,null,null,null,null,null,null,null,null,null,null,null,null,null,null,0,0,0,0,{"$f":"Concours!$A$2","v":0}]
[null,null,null,null,null,null,null,null,null,null,null,null,null,null,null,null,null,null,null,null,null,0,0,0,0,{"$f":"Concours!$A$2","v":0}]
[null,null,null,null,null,null,null,null,null,null,null,null,null,null,null,null,null,null,null,null,null,0,0,0,0,{"$f":"Concours!$A$2","v":0}]
[null,null,null,null,null,null,null,null,null,null,null,null,null,null,null,null,null,null,null,null,null,0,0,0,0,{"$f":"Concours!$A$2","v":0}]
[null,null,null,null,null,null,null,null,null,null,null,null,null,null,null,null,null,null,null,null,null,0,0,0,0,{"$f":"Concours!$A$2","v":0}]
[null,null,null,null,null,null,null,null,null,null,null,null,null,null,null,null,null,null,null,null,null,0,0,0,0,{"$f":"Concours!$A$2","v":0}]
[null,null,null,null,null,null,null,null,null,null,null,null,null,null,null,null,null,null,null,null,null,0,0,0,0,{"$f":"Concours!$A$2","v":0}]
[null,null,null,null,null,null,null,null,null,null,null,null,null,null,null,null,null,null,null,null,null,0,0,0,0,{"$f":"Concours!$A$2","v":0}]
[null,null,null,null,null,null,null,null,null,null,null,null,null,null,null,null,null,null,null,null,null,0,0,0,0,{"$f":"Concours!$A$2","v":0}]
[null,null,null,null,null,null,null,null,null,null,null,null,null,null,null,null,null,null,null,null,null,0,0,0,0,{"$f":"Concours!$A$2","v":0}]
[null,null,null,null,null,null,null,null,null,null,null,null,null,null,null,null,null,null,null,null,null,0,0,0,0,{"$f":"Concours!$A$2","v":0}]
[null,null,null,null,null,null,null,null,null,null,null,null,null,null,null,null,null,null,null,null,null,0,0,0,0,{"$f":"Concours!$A$2","v":0}]
[null,null,null,null,null,null,null,null,null,null,null,null,null,null,null,null,null,null,null,null,null,0,0,0,0,{"$f":"Concours!$A$2","v":0}]
[null,null,null,null,null,null,null,null,null,null,null,null,null,null,null,null,null,null,null,null,null,0,0,0,0,{"$f":"Concours!$A$2","v":0}]
[null,null,null,null,null,null,null,null,null,null,null,null,null,null,null,null,null,null,null,null,null,0,0,0,0,{"$f":"Concours!$A$2","v":0}]
[null,null,null,null,null,null,null,null,null,null,null,null,null,null,null,null,null,null,null,null,null,0,0,0,0,{"$f":"Concours!$A$2","v":0}]
[null,null,null,null,null,null,null,null,null,null,null,null,null,null,null,null,null,null,null,null,null,0,0,0,0,{"$f":"Concours!$A$2","v":0}]
[null,null,null,null,null,null,null,null,null,null,null,null,null,null,null,null,null,null,null,null,null,{"$f":"A66","v":0},{"$f":"L66","v":0},{"$f":"M66","v":0},{"$f":"N66","v":0},{"$f":"Concours!$A$2","v":0}]
[null,null,null,null,null,null,null,null,null,null,null,null,null,null,null,null,null,null,null,null,null,0,0,0,0,{"$f":"Concours!$A$2","v":0}]
[null,null,null,null,null,null,null,null,null,null,null,null,null,null,null,null,null,null,null,null,null,0,0,0,0,{"$f":"Concours!$A$2","v":0}]
[null,null,null,null,null,null,null,null,null,null,null,null,null,null,null,null,null,null,null,null,null,0,0,0,0,{"$f":"Concours!$A$2","v":0}]
[null,null,null,null,null,null,null,null,null,null,null,null,null,null,null,null,null,null,null,null,null,0,0,0,0,{"$f":"Concours!$A$2","v":0}]
[null,null,null,null,null,null,null,null,null,null,null,null,null,null,null,null,null,null,null,null,null,0,0,0,0,{"$f":"Concours!$A$2","v":0}]
[null,null,null,null,null,null,null,null,null,null,null,null,null,null,null,null,null,null,null,null,null,0,0,0,0,{"$f":"Concours!$A$2","v":0}]
[null,null,null,null,null,null,null,null,null,null,null,null,null,null,null,null,null,null,null,null,null,0,0,0,0,{"$f":"Concours!$A$2","v":0}]
[null,null,null,null,null,null,null,null,null,null,null,null,null,null,null,null,null,null,null,null,null,0,0,0,0,{"$f":"Concours!$A$2","v":0}]
[null,null,null,null,null,null,null,null,null,null,null,null,null,null,null,null,null,null,null,null,null,0,0,0,0,{"$f":"Concours!$A$2","v":0}]
[null,null,null,null,null,null,null,null,null,null,null,null,null,null,null,null,null,null,null,null,null,0,0,0,0,{"$f":"Concours!$A$2","v":0}]
[null,null,null,null,null,null,null,null,null,null,null,null,null,null,null,null,null,null,null,null,null,0,0,0,0,{"$f":"Concours!$A$2","v":0}]
[null,null,null,null,null,null,null,null,null,null,null,null,null,null,null,null,null,null,null,null,null,0,0,0,0,{"$f":"Concours!$A$2","v":0}]
[null,null,null,null,null,null,null,null,null,null,null,null,null,null,null,null,null,null,null,null,null,0,0,0,0,{"$f":"Concours!$A$2","v":0}]
[null,null,null,null,null,null,null,null,null,null,null,null,null,null,null,null,null,null,null,null,null,0,0,0,0,{"$f":"Concours!$A$2","v":0}]
[null,null,null,null,null,null,null,null,null,null,null,null,null,null,null,null,null,null,null,null,null,0,0,0,0,{"$f":"Concours!$A$2","v":0}]
[null,null,null,null,null,null,null,null,null,null,null,null,null,null,null,null,null,null,null,null,null,0,0,0,0,{"$f":"Concours!$A$2","v":0}]
[null,null,null,null,null,null,null,null,null,null,null,null,null,null,null,null,null,null,null,null,null,0,0,0,0,{"$f":"Concours!$A$2","v":0}]
[null,null,null,null,null,null,null,null,null,null,null,null,null,null,null,null,null,null,null,null,null,0,0,0,0,{"$f":"Concours!$A$2","v":0}]
[null,null,null,null,null,null,null,null,null,null,null,null,null,null,null,null,null,null,null,null,null,0,0,0,0,{"$f":"Concours!$A$2","v":0}]
[null,null,null,null,null,null,null,null,null,null,null,null,null,null,null,null,null,null,null,null,null,0,0,0,0,{"$f":"Concours!$A$2","v":0}]
[null,null,null,null,null,null,null,null,null,null,null,null,null,null,null,null,null,null,null,null,null,0,0,0,0,{"$f":"Concours!$A$2","v":0}]
[null,null,null,null,null,null,null,null,null,null,null,null,null,null,null,null,null,null,null,null,null,0,0,0,0,{"$f":"Concours!$A$2","v":0}]
[null,null,null,null,null,null,null,null,null,null,null,null,null,null,null,null,null,null,null,null,null,0,0,0,0,{"$f":"Concours!$A$2","v":0}]
[null,null,null,null,null,null,null,null,null,null,null,null,null,null,null,null,null,null,null,null,null,0,0,0,0,{"$f":"Concours!$A$2","v":0}]
[null,null,null,null,null,null,null,null,null,null,null,null,null,null,null,null,null,null,null,null,null,0,0,0,0,{"$f":"Concours!$A$2","v":0}]
[null,null,null,null,null,null,null,null,null,null,null,null,null,null,null,null,null,null,null,null,null,0,0,0,0,{"$f":"Concours!$A$2","v":0}]
[null,null,null,null,null,null,null,null,null,null,null,null,null,null,null,null,null,null,null,null,null,0,0,0,0,{"$f":"Concours!$A$2","v":0}]
[null,null,null,null,null,null,null,null,null,null,null,null,null,null,null,null,null,null,null,null,null,0,0,0,0,{"$f":"Concours!$A$2","v":0}]
[null,null,null,null,null,null,null,null,null,null,null,null,null,null,null,null,null,null,null,null,null,0,0,0,0,{"$f":"Concours!$A$2","v":0}]
[null,null,null,null,null,null,null,null,null,null,null,null,null,null,null,null,null,null,null,null,null,0,0,0,0,{"$f":"Concours!$A$2","v":0}]
[null,null,null,null,null,null,null,null,null,null,null,null,null,null,null,null,null,null,null,null,null,0,0,0,0,{"$f":"Concours!$A$2","v":0}]
[null,null,null,null,null,null,null,null,null,null,null,null,null,null,null,null,null,null,null,null,null,0,0,0,0,{"$f":"Concours!$A$2","v":0}]
[null,null,null,null,null,null,null,null,null,null,null,null,null,null,null,null,null,null,null,null,null,0,0,0,0,{"$f":"Concours!$A$2","v":0}]
[null,null,null,null,null,null,null,null,null,null,null,null,null,null,null,null,null,null,null,null,null,0,0,0,0,{"$f":"Concours!$A$2","v":0}]
[null,null,null,null,null,null,null,null,null,null,null,null,null,null,null,null,null,null,null,null,null,0,0,0,0,{"$f":"Concours!$A$2","v":0}]
[null,null,null,null,null,null,null,null,null,null,null,null,null,null,null,null,null,null,null,null,null,0,0,0,0,{"$f":"Concours!$A$2","v":0}]
[null,null,null,null,null,null,null,null,null,null,null,null,null,null,null,null,null,null,null,null,null,0,0,0,0,{"$f":"Concours!$A$2","v":0}]
[null,null,null,null,null,null,null,null,null,null,null,null,null,null,null,null,null,null,null,null,null,0,0,0,0,{"$f":"Concours!$A$2","v":0}]
[null,null,null,null,null,null,null,null,null,null,null,null,null,null,null,null,null,null,null,null,null,0,0,0,0,{"$f":"Concours!$A$2","v":0}]
[null,null,null,null,null,null,null,null,null,null,null,null,null,null,null,null,null,null,null,null,null,0,0,0,0,{"$f":"Concours!$A$2","v":0}]
[null,null,null,null,null,null,null,null,null,null,null,null,null,null,null,null,null,null,null,null,null,0,0,0,0,{"$f":"Concours!$A$2","v":0}]
[null,null,null,null,null,null,null,null,null,null,null,null,null,null,null,null,null,null,null,null,null,0,0,0,0,{"$f":"Concours!$A$2","v":0}]
[null,null,null,null,null,null,null,null,null,null,null,null,null,null,null,null,null,null,null,null,null,0,0,0,0,{"$f":"Concours!$A$2","v":0}]
[null,null,null,null,null,null,null,null,null,null,null,null,null,null,null,null,null,null,null,null,null,0,0,0,0,{"$f":"Concours!$A$2","v":0}]
[null,null,null,null,null,null,null,null,null,null,null,null,null,null,null,null,null,null,null,null,null,0,0,0,0,{"$f":"Concours!$A$2","v":0}]
[null,null,null,null,null,null,null,null,null,null,null,null,null,null,null,null,null,null,null,null,null,0,0,0,0,{"$f":"Concours!$A$2","v":0}]
[null,null,null,null,null,null,null,null,null,null,null,null,null,null,null,null,null,null,null,null,null,0,0,0,0,{"$f":"Concours!$A$2","v":0}]
[null,null,null,null,null,null,null,null,null,null,null,null,null,null,null,null,null,null,null,null,null,0,0,0,0,{"$f":"Concours!$A$2","v":0}]
[null,null,null,null,null,null,null,null,null,null,null,null,null,null,null,null,null,null,null,null,null,0,0,0,0,{"$f":"Concours!$A$2","v":0}]
[null,null,null,null,null,null,null,null,null,null,null,null,null,null,null,null,null,null,null,null,null,0,0,0,0,{"$f":"Concours!$A$2","v":0}]
[null,null,null,null,null,null,null,null,null,null,null,null,null,null,null,null,null,null,null,null,null,0,0,0,0,{"$f":"Concours!$A$2","v":0}]
[null,null,null,null,null,null,null,null,null,null,null,null,null,null,null,null,null,null,null,null,null,0,0,0,0,{"$f":"Concours!$A$2","v":0}]
[null,null,null,null,null,null,null,null,null,null,null,null,null,null,null,null,null,null,null,null,null,0,0,0,0,{"$f":"Concours!$A$2","v":0}]
[null,null,null,null,null,null,null,null,null,null,null,null,null,null,null,null,null,null,null,null,null,0,0,0,0,{"$f":"Concours!$A$2","v":0}]
[null,null,null,null,null,null,null,null,null,null,null,null,null,null,null,null,null,null,null,null,null,0,0,0,0,{"$f":"Concours!$A$2","v":0}]
[null,null,null,null,null,null,null,null,null,null,null,null,null,null,null,null,null,null,null,null,null,0,0,0,0,{"$f":"Concours!$A$2","v":0}]
[null,null,null,null,null,null,null,null,null,null,null,null,null,null,null,null,null,null,null,null,null,0,0,0,0,{"$f":"Concours!$A$2","v":0}]
[null,null,null,null,null,null,null,null,null,null,null,null,null,null,null,null,null,null,null,null,null,0,0,0,0,{"$f":"Concours!$A$2","v":0}]
[null,null,null,null,null,null,null,null,null,null,null,null,null,null,null,null,null,null,null,null,null,0,0,0,0,{"$f":"Concours!$A$2","v":0}]
[null,null,null,null,null,null,null,null,null,null,null,null,null,null,null,null,null,null,null,null,null,0,0,0,0,{"$f":"Concours!$A$2","v":0}]
[null,null,null,null,null,null,null,null,null,null,null,null,null,null,null,null,null,null,null,null,null,0,0,0,0,{"$f":"Concours!$A$2","v":0}]
[null,null,null,null,null,null,null,null,null,null,null,null,null,null,null,null,null,null,null,null,null,0,0,0,0,{"$f":"Concours!$A$2","v":0}]
[null,null,null,null,null,null,null,null,null,null,null,null,null,null,null,null,null,null,null,null,null,0,0,0,0,{"$f":"Concours!$A$2","v":0}]
[null,null,null,null,null,null,null,null,null,null,null,null,null,null,null,null,null,null,null,null,null,{"$f":"A130","v":0},{"$f":"L130","v":0},{"$f":"M130","v":0},{"$f":"N130","v":0},{"$f":"Concours!$A$2","v":0}]
[null,null,null,null,null,null,null,null,null,null,null,null,null,null,null,null,null,null,null,null,null,0,0,0,0,{"$f":"Concours!$A$2","v":0}]
[null,null,null,null,null,null,null,null,null,null,null,null,null,null,null,null,null,null,null,null,null,0,0,0,0,{"$f":"Concours!$A$2","v":0}]
[null,null,null,null,null,null,null,null,null,null,null,null,null,null,null,null,null,null,null,null,null,0,0,0,0,{"$f":"Concours!$A$2","v":0}]
[null,null,null,null,null,null,null,null,null,null,null,null,null,null,null,null,null,null,null,null,null,0,0,0,0,{"$f":"Concours!$A$2","v":0}]
[null,null,null,null,null,null,null,null,null,null,null,null,null,null,null,null,null,null,null,null,null,0,0,0,0,{"$f":"Concours!$A$2","v":0}]
[null,null,null,null,null,null,null,null,null,null,null,null,null,null,null,null,null,null,null,null,null,0,0,0,0,{"$f":"Concours!$A$2","v":0}]
[null,null,null,null,null,null,null,null,null,null,null,null,null,null,null,null,null,null,null,null,null,0,0,0,0,{"$f":"Concours!$A$2","v":0}]
[null,null,null,null,null,null,null,null,null,null,null,null,null,null,null,null,null,null,null,null,null,0,0,0,0,{"$f":"Concours!$A$2","v":0}]
[null,null,null,null,null,null,null,null,null,null,null,null,null,null,null,null,null,null,null,null,null,0,0,0,0,{"$f":"Concours!$A$2","v":0}]
[null,null,null,null,null,null,null,null,null,null,null,null,null,null,null,null,null,null,null,null,null,0,0,0,0,{"$f":"Concours!$A$2","v":0}]
[null,null,null,null,null,null,null,null,null,null,null,null,null,null,null,null,null,null,null,null,null,0,0,0,0,{"$f":"Concours!$A$2","v":0}]
[null,null,null,null,null,null,null,null,null,null,null,null,null,null,null,null,null,null,null,null,null,0,0,0,0,{"$f":"Concours!$A$2","v":0}]
[null,null,null,null,null,null,null,null,null,null,null,null,null,null,null,null,null,null,null,null,null,0,0,0,0,{"$f":"Concours!$A$2","v":0}]
[null,null,null,null,null,null,null,null,null,null,null,null,null,null,null,null,null,null,null,null,null,0,0,0,0,{"$f":"Concours!$A$2","v":0}]
[null,null,null,null,null,null,null,null,null,null,null,null,null,null,null,null,null,null,null,null,null,0,0,0,0,{"$f":"Concours!$A$2","v":0}]
[null,null,null,null,null,null,null,null,null,null,null,null,null,null,null,null,null,null,null,null,null,0,0,0,0,{"$f":"Concours!$A$2","v":0}]
[null,null,null,null,null,null,null,null,null,null,null,null,null,null,null,null,null,null,null,null,null,0,0,0,0,{"$f":"Concours!$A$2","v":0}]
[null,null,null,null,null,null,null,null,null,null,null,null,null,null,null,null,null,null,null,null,null,0,0,0,0,{"$f":"Concours!$A$2","v":0}]
[null,null,null,null,null,null,null,null,null,null,null,null,null,null,null,null,null,null,null,null,null,0,0,0,0,{"$f":"Concours!$A$2","v":0}]
[null,null,null,null,null,null,null,null,null,null,null,null,null,null,null,null,null,null,null,null,null,0,0,0,0,{"$f":"Concours!$A$2","v":0}]
[null,null,null,null,null,null,null,null,null,null,null,null,null,null,null,null,null,null,null,null,null,0,0,0,0,{"$f":"Concours!$A$2","v":0}]
[null,null,null,null,null,null,null,null,null,null,null,null,null,null,null,null,null,null,null,null,null,0,0,0,0,{"$f":"Concours!$A$2","v":0}]
[null,null,null,null,null,null,null,null,null,null,null,null,null,null,null,null,null,null,null,null,null,0,0,0,0,{"$f":"Concours!$A$2","v":0}]
[null,null,null,null,null,null,null,null,null,null,null,null,null,null,null,null,null,null,null,null,null,0,0,0,0,{"$f":"Concours!$A$2","v":0}]
[null,null,null,null,null,null,null,null,null,null,null,null,null,null,null,null,null,null,null,null,null,0,0,0,0,{"$f":"Concours!$A$2","v":0}]
[null,null,null,null,null,null,null,null,null,null,null,null,null,null,null,null,null,null,null,null,null,0,0,0,0,{"$f":"Concours!$A$2","v":0}]
[null,null,null,null,null,null,null,null,null,null,null,null,null,null,null,null,null,null,null,null,null,0,0,0,0,{"$f":"Concours!$A$2","v":0}]
[null,null,null,null,null,null,null,null,null,null,null,null,null,null,null,null,null,null,null,null,null,0,0,0,0,{"$f":"Concours!$A$2","v":0}]
[null,null,null,null,null,null,null,null,null,null,null,null,null,null,null,null,null,null,null,null,null,0,0,0,0,{"$f":"Concours!$A$2","v":0}]
[null,null,null,null,null,null,null,null,null,null,null,null,null,null,null,null,null,null,null,null,null,0,0,0,0,{"$f":"Concours!$A$2","v":0}]
[null,null,null,null,null,null,null,null,null,null,null,null,null,null,null,null,null,null,null,null,null,0,0,0,0,{"$f":"Concours!$A$2","v":0}]
[null,null,null,null,null,null,null,null,null,null,null,null,null,null,null,null,null,null,null,null,null,0,0,0,0,{"$f":"Concours!$A$2","v":0}]
[null,null,null,null,null,null,null,null,null,null,null,null,null,null,null,null,null,null,null,null,null,0,0,0,0,{"$f":"Concours!$A$2","v":0}]
[null,null,null,null,null,null,null,null,null,null,null,null,null,null,null,null,null,null,null,null,null,0,0,0,0,{"$f":"Concours!$A$2","v":0}]
[null,null,null,null,null,null,null,null,null,null,null,null,null,null,null,null,null,null,null,null,null,0,0,0,0,{"$f":"Concours!$A$2","v":0}]
[null,null,null,null,null,null,null,null,null,null,null,null,null,null,null,null,null,null,null,null,null,0,0,0,0,{"$f":"Concours!$A$2","v":0}]
[null,null,null,null,null,null,null,null,null,null,null,null,null,null,null,null,null,null,null,null,null,0,0,0,0,{"$f":"Concours!$A$2","v":0}]
[null,null,null,null,null,null,null,null,null,null,null,null,null,null,null,null,null,null,null,null,null,0,0,0,0,{"$f":"Concours!$A$2","v":0}]
[null,null,null,null,null,null,null,null,null,null,null,null,null,null,null,null,null,null,null,null,null,0,0,0,0,{"$f":"Concours!$A$2","v":0}]
[null,null,null,null,null,null,null,null,null,null,null,null,null,null,null,null,null,null,null,null,null,0,0,0,0,{"$f":"Concours!$A$2","v":0}]
[null,null,null,null,null,null,null,null,null,null,null,null,null,null,null,null,null,null,null,null,null,0,0,0,0,{"$f":"Concours!$A$2","v":0}]
[null,null,null,null,null,null,null,null,null,null,null,null,null,null,null,null,null,null,null,null,null,0,0,0,0,{"$f":"Concours!$A$2","v":0}]
[null,null,null,null,null,null,null,null,null,null,null,null,null,null,null,null,null,null,null,null,null,0,0,0,0,{"$f":"Concours!$A$2","v":0}]
[null,null,null,null,null,null,null,null,null,null,null,null,null,null,null,null,null,null,null,null,null,0,0,0,0,{"$f":"Concours!$A$2","v":0}]
[null,null,null,null,null,null,null,null,null,null,null,null,null,null,null,null,null,null,null,null,null,0,0,0,0,{"$f":"Concours!$A$2","v":0}]
[null,null,null,null,null,null,null,null,null,null,null,null,null,null,null,null,null,null,null,null,null,0,0,0,0,{"$f":"Concours!$A$2","v":0}]
[null,null,null,null,null,null,null,null,null,null,null,null,null,null,null,null,null,null,null,null,null,0,0,0,0,{"$f":"Concours!$A$2","v":0}]
[null,null,null,null,null,null,null,null,null,null,null,null,null,null,null,null,null,null,null,null,null,0,0,0,0,{"$f":"Concours!$A$2","v":0}]
[null,null,null,null,null,null,null,null,null,null,null,null,null,null,null,null,null,null,null,null,null,0,0,0,0,{"$f":"Concours!$A$2","v":0}]
[null,null,null,null,null,null,null,null,null,null,null,null,null,null,null,null,null,null,null,null,null,0,0,0,0,{"$f":"Concours!$A$2","v":0}]
[null,null,null,null,null,null,null,null,null,null,null,null,null,null,null,null,null,null,null,null,null,0,0,0,0,{"$f":"Concours!$A$2","v":0}]
[null,null,null,null,null,null,null,null,null,null,null,null,null,null,null,null,null,null,null,null,null,0,0,0,0,{"$f":"Concours!$A$2","v":0}]
[null,null,null,null,null,null,null,null,null,null,null,null,null,null,null,null,null,null,null,null,null,0,0,0,0,{"$f":"Concours!$A$2","v":0}]
[null,null,null,null,null,null,null,null,null,null,null,null,null,null,null,null,null,null,null,null,null,0,0,0,0,{"$f":"Concours!$A$2","v":0}]
[null,null,null,null,null,null,null,null,null,null,null,null,null,null,null,null,null,null,null,null,null,0,0,0,0,{"$f":"Concours!$A$2","v":0}]
[null,null,null,null,null,null,null,null,null,null,null,null,null,null,null,null,null,null,null,null,null,0,0,0,0,{"$f":"Concours!$A$2","v":0}]
[null,null,null,null,null,null,null,null,null,null,null,null,null,null,null,null,null,null,null,null,null,0,0,0,0,{"$f":"Concours!$A$2","v":0}]
[null,null,null,null,null,null,null,null,null,null,null,null,null,null,null,null,null,null,null,null,null,0,0,0,0,{"$f":"Concours!$A$2","v":0}]
[null,null,null,null,null,null,null,null,null,null,null,null,null,null,null,null,null,null,null,null,null,0,0,0,0,{"$f":"Concours!$A$2","v":0}]
[null,null,null,null,null,null,null,null,null,null,null,null,null,null,null,null,null,null,null,null,null,0,0,0,0,{"$f":"Concours!$A$2","v":0}]
[null,null,null,null,null,null,null,null,null,null,null,null,null,null,null,null,null,null,null,null,null,0,0,0,0,{"$f":"Concours!$A$2","v":0}]
[null,null,null,null,null,null,null,null,null,null,null,null,null,null,null,null,null,null,null,null,null,0,0,0,0,{"$f":"Concours!$A$2","v":0}]
[null,null,null,null,null,null,null,null,null,null,null,null,null,null,null,null,null,null,null,null,null,0,0,0,0,{"$f":"Concours!$A$2","v":0}]
[null,null,null,null,null,null,null,null,null,null,null,null,null,null,null,null,null,null,null,null,null,{"$f":"A194","v":0},{"$f":"L194","v":0},{"$f":"M194","v":0},{"$f":"N194","v":0},{"$f":"Concours!$A$2","v":0}]
[null,null,null,null,null,null,null,null,null,null,null,null,null,null,null,null,null,null,null,null,null,0,0,0,0,{"$f":"Concours!$A$2","v":0}]
[null,null,null,null,null,null,null,null,null,null,null,null,null,null,null,null,null,null,null,null,null,0,0,0,0,{"$f":"Concours!$A$2","v":0}]
[null,null,null,null,null,null,null,null,null,null,null,null,null,null,null,null,null,null,null,null,null,0,0,0,0,{"$f":"Concours!$A$2","v":0}]
[null,null,null,null,null,null,null,null,null,null,null,null,null,null,null,null,null,null,null,null,null,0,0,0,0,{"$f":"Concours!$A$2","v":0}]
[null,null,null,null,null,null,null,null,null,null,null,null,null,null,null,null,null,null,null,null,null,0,0,0,0,{"$f":"Concours!$A$2","v":0}]
[null,null,null,null,null,null,null,null,null,null,null,null,null,null,null,null,null,null,null,null,null,0,0,0,0,{"$f":"Concours!$A$2","v":0}]
[null,null,null,null,null,null,null,null,null,null,null,null,null,null,null,null,null,null,null,null,null,0,0,0,0,{"$f":"Concours!$A$2","v":0}]
[null,null,null,null,null,null,null,null,null,null,null,null,null,null,null,null,null,null,null,null,null,0,0,0,0,{"$f":"Concours!$A$2","v":0}]
[null,null,null,null,null,null,null,null,null,null,null,null,null,null,null,null,null,null,null,null,null,0,0,0,0,{"$f":"Concours!$A$2","v":0}]
[null,null,null,null,null,null,null,null,null,null,null,null,null,null,null,null,null,null,null,null,null,0,0,0,0,{"$f":"Concours!$A$2","v":0}]
[null,null,null,null,null,null,null,null,null,null,null,null,null,null,null,null,null,null,null,null,null,0,0,0,0,{"$f":"Concours!$A$2","v":0}]
[null,null,null,null,null,null,null,null,null,null,null,null,null,null,null,null,null,null,null,null,null,0,0,0,0,{"$f":"Concours!$A$2","v":0}]
[null,null,null,null,null,null,null,null,null,null,null,null,null,null,null,null,null,null,null,null,null,0,0,0,0,{"$f":"Concours!$A$2","v":0}]
[null,null,null,null,null,null,null,null,null,null,null,null,null,null,null,null,null,null,null,null,null,0,0,0,0,{"$f":"Concours!$A$2","v":0}]
[null,null,null,null,null,null,null,null,null,null,null,null,null,null,null,null,null,null,null,null,null,0,0,0,0,{"$f":"Concours!$A$2","v":0}]
[null,null,null,null,null,null,null,null,null,null,null,null,null,null,null,null,null,null,null,null,null,0,0,0,0,{"$f":"Concours!$A$2","v":0}]
[null,null,null,null,null,null,null,null,null,null,null,null,null,null,null,null,null,null,null,null,null,0,0,0,0,{"$f":"Concours!$A$2","v":0}]
[null,null,null,null,null,null,null,null,null,null,null,null,null,null,null,null,null,null,null,null,null,0,0,0,0,{"$f":"Concours!$A$2","v":0}]
[null,null,null,null,null,null,null,null,null,null,null,null,null,null,null,null,null,null,null,null,null,0,0,0,0,{"$f":"Concours!$A$2","v":0}]
[null,null,null,null,null,null,null,null,null,null,null,null,null,null,null,null,null,null,null,null,null,0,0,0,0,{"$f":"Concours!$A$2","v":0}]
[null,null,null,null,null,null,null,null,null,null,null,null,null,null,null,null,null,null,null,null,null,0,0,0,0,{"$f":"Concours!$A$2","v":0}]
[null,null,null,null,null,null,null,null,null,null,null,null,null,null,null,null,null,null,null,null,null,0,0,0,0,{"$f":"Concours!$A$2","v":0}]
[null,null,null,null,null,null,null,null,null,null,null,null,null,null,null,null,null,null,null,null,null,0,0,0,0,{"$f":"Concours!$A$2","v":0}]
[null,null,null,null,null,null,null,null,null,null,null,null,null,null,null,null,null,null,null,null,null,0,0,0,0,{"$f":"Concours!$A$2","v":0}]
[null,null,null,null,null,null,null,null,null,null,null,null,null,null,null,null,null,null,null,null,null,0,0,0,0,{"$f":"Concours!$A$2","v":0}]
[null,null,null,null,null,null,null,null,null,null,null,null,null,null,null,null,null,null,null,null,null,0,0,0,0,{"$f":"Concours!$A$2","v":0}]
[null,null,null,null,null,null,null,null,null,null,null,null,null,null,null,null,null,null,null,null,null,0,0,0,0,{"$f":"Concours!$A$2","v":0}]
[null,null,null,null,null,null,null,null,null,null,null,null,null,null,null,null,null,null,null,null,null,0,0,0,0,{"$f":"Concours!$A$2","v":0}]
[null,null,null,null,null,null,null,null,null,null,null,null,null,null,null,null,null,null,null,null,null,0,0,0,0,{"$f":"Concours!$A$2","v":0}]
[null,null,null,null,null,null,null,null,null,null,null,null,null,null,null,null,null,null,null,null,null,0,0,0,0,{"$f":"Concours!$A$2","v":0}]
[null,null,null,null,null,null,null,null,null,null,null,null,null,null,null,null,null,null,null,null,null,0,0,0,0,{"$f":"Concours!$A$2","v":0}]
[null,null,null,null,null,null,null,null,null,null,null,null,null,null,null,null,null,null,null,null,null,0,0,0,0,{"$f":"Concours!$A$2","v":0}]
[null,null,null,null,null,null,null,null,null,null,null,null,null,null,null,null,null,null,null,null,null,0,0,0,0,{"$f":"Concours!$A$2","v":0}]
[null,null,null,null,null,null,null,null,null,null,null,null,null,null,null,null,null,null,null,null,null,0,0,0,0,{"$f":"Concours!$A$2","v":0}]
[null,null,null,null,null,null,null,null,null,null,null,null,null,null,null,null,null,null,null,null,null,0,0,0,0,{"$f":"Concours!$A$2","v":0}]
[null,null,null,null,null,null,null,null,null,null,null,null,null,null,null,null,null,null,null,null,null,0,0,0,0,{"$f":"Concours!$A$2","v":0}]
[null,null,null,null,null,null,null,null,null,null,null,null,null,null,null,null,null,null,null,null,null,0,0,0,0,{"$f":"Concours!$A$2","v":0}]
[null,null,null,null,null,null,null,null,null,null,null,null,null,null,null,null,null,null,null,null,null,0,0,0,0,{"$f":"Concours!$A$2","v":0}]
[null,null,null,null,null,null,null,null,null,null,null,null,null,null,null,null,null,null,null,null,null,0,0,0,0,{"$f":"Concours!$A$2","v":0}]
[null,null,null,null,null,null,null,null,null,null,null,null,null,null,null,null,null,null,null,null,null,0,0,0,0,{"$f":"Concours!$A$2","v":0}]
[null,null,null,null,null,null,null,null,null,null,null,null,null,null,null,null,null,null,null,null,null,0,0,0,0,{"$f":"Concours!$A$2","v":0}]
[null,null,null,null,null,null,null,null,null,null,null,null,null,null,null,null,null,null,null,null,null,0,0,0,0,{"$f":"Concours!$A$2","v":0}]
[null,null,null,null,null,null,null,null,null,null,null,null,null,null,null,null,null,null,null,null,null,0,0,0,0,{"$f":"Concours!$A$2","v":0}]
[null,null,null,null,null,null,null,null,null,null,null,null,null,null,null,null,null,null,null,null,null,0,0,0,0,{"$f":"Concours!$A$2","v":0}]
[null,null,null,null,null,null,null,null,null,null,null,null,null,null,null,null,null,null,null,null,null,0,0,0,0,{"$f":"Concours!$A$2","v":0}]
[null,null,null,null,null,null,null,null,null,null,null,null,null,null,null,null,null,null,null,null,null,0,0,0,0,{"$f":"Concours!$A$2","v":0}]
[null,null,null,null,null,null,null,null,null,null,null,null,null,null,null,null,null,null,null,null,null,0,0,0,0,{"$f":"Concours!$A$2","v":0}]
[null,null,null,null,null,null,null,null,null,null,null,null,null,null,null,null,null,null,null,null,null,0,0,0,0,{"$f":"Concours!$A$2","v":0}]
[null,null,null,null,null,null,null,null,null,null,null,null,null,null,null,null,null,null,null,null,null,0,0,0,0,{"$f":"Concours!$A$2","v":0}]
[null,null,null,null,null,null,null,null,null,null,null,null,null,null,null,null,null,null,null,null,null,0,0,0,0,{"$f":"Concours!$A$2","v":0}]
[null,null,null,null,null,null,null,null,null,null,null,null,null,null,null,null,null,null,null,null,null,0,0,0,0,{"$f":"Concours!$A$2","v":0}]
[null,null,null,null,null,null,null,null,null,null,null,null,null,null,null,null,null,null,null,null,null,0,0,0,0,{"$f":"Concours!$A$2","v":0}]
[null,null,null,null,null,null,null,null,null,null,null,null,null,null,null,null,null,null,null,null,null,0,0,0,0,{"$f":"Concours!$A$2","v":0}]
[null,null,null,null,null,null,null,null,null,null,null,null,null,null,null,null,null,null,null,null,null,0,0,0,0,{"$f":"Concours!$A$2","v":0}]
[null,null,null,null,null,null,null,null,null,null,null,null,null,null,null,null,null,null,null,null,null,0,0,0,0,{"$f":"Concours!$A$2","v":0}]
[null,null,null,null,null,null,null,null,null,null,null,null,null,null,null,null,null,null,null,null,null,0,0,0,0,{"$f":"Concours!$A$2","v":0}]
[null,null,null,null,null,null,null,null,null,null,null,null,null,null,null,null,null,null,null,null,null,0,0,0,0,{"$f":"Concours!$A$2","v":0}]
[null,null,null,null,null,null,null,null,null,null,null,null,null,null,null,null,null,null,null,null,null,0,0,0,0,{"$f":"Concours!$A$2","v":0}]
[null,null,null,null,null,null,null,null,null,null,null,null,null,null,null,null,null,null,null,null,null,0,0,0,0,{"$f":"Concours!$A$2","v":0}]
[null,null,null,null,null,null,null,null,null,null,null,null,null,null,null,null,null,null,null,null,null,0,0,0,0,{"$f":"Concours!$A$2","v":0}]
[null,null,null,null,null,null,null,null,null,null,null,null,null,null,null,null,null,null,null,null,null,0,0,0,0,{"$f":"Concours!$A$2","v":0}]
[null,null,null,null,null,null,null,null,null,null,null,null,null,null,null,null,null,null,null,null,null,0,0,0,0,{"$f":"Concours!$A$2","v":0}]
[null,null,null,null,null,null,null,null,null,null,null,null,null,null,null,null,null,null,null,null,null,0,0,0,0,{"$f":"Concours!$A$2","v":0}]
[null,null,null,null,null,null,null,null,null,null,null,null,null,null,null,null,null,null,null,null,null,{"$f":"A258","v":0},{"$f":"L258","v":0},{"$f":"M258","v":0},{"$f":"N258","v":0},{"$f":"Concours!$A$2","v":0}]
[null,null,null,null,null,null,null,null,null,null,null,null,null,null,null,null,null,null,null,null,null,0,0,0,0,{"$f":"Concours!$A$2","v":0}]
[null,null,null,null,null,null,null,null,null,null,null,null,null,null,null,null,null,null,null,null,null,0,0,0,0,{"$f":"Concours!$A$2","v":0}]
[null,null,null,null,null,null,null,null,null,null,null,null,null,null,null,null,null,null,null,null,null,0,0,0,0,{"$f":"Concours!$A$2","v":0}]
[null,null,null,null,null,null,null,null,null,null,null,null,null,null,null,null,null,null,null,null,null,0,0,0,0,{"$f":"Concours!$A$2","v":0}]
[null,null,null,null,null,null,null,null,null,null,null,null,null,null,null,null,null,null,null,null,null,0,0,0,0,{"$f":"Concours!$A$2","v":0}]
[null,null,null,null,null,null,null,null,null,null,null,null,null,null,null,null,null,null,null,null,null,0,0,0,0,{"$f":"Concours!$A$2","v":0}]
[null,null,null,null,null,null,null,null,null,null,null,null,null,null,null,null,null,null,null,null,null,0,0,0,0,{"$f":"Concours!$A$2","v":0}]
[null,null,null,null,null,null,null,null,null,null,null,null,null,null,null,null,null,null,null,null,null,0,0,0,0,{"$f":"Concours!$A$2","v":0}]
[null,null,null,null,null,null,null,null,null,null,null,null,null,null,null,null,null,null,null,null,null,0,0,0,0,{"$f":"Concours!$A$2","v":0}]
[null,null,null,null,null,null,null,null,null,null,null,null,null,null,null,null,null,null,null,null,null,0,0,0,0,{"$f":"Concours!$A$2","v":0}]
[null,null,null,null,null,null,null,null,null,null,null,null,null,null,null,null,null,null,null,null,null,0,0,0,0,{"$f":"Concours!$A$2","v":0}]
[null,null,null,null,null,null,null,null,null,null,null,null,null,null,null,null,null,null,null,null,null,0,0,0,0,{"$f":"Concours!$A$2","v":0}]
[null,null,null,null,null,null,null,null,null,null,null,null,null,null,null,null,null,null,null,null,null,0,0,0,0,{"$f":"Concours!$A$2","v":0}]
[null,null,null,null,null,null,null,null,null,null,null,null,null,null,null,null,null,null,null,null,null,0,0,0,0,{"$f":"Concours!$A$2","v":0}]
[null,null,null,null,null,null,null,null,null,null,null,null,null,null,null,null,null,null,null,null,null,0,0,0,0,{"$f":"Concours!$A$2","v":0}]
[null,null,null,null,null,null,null,null,null,null,null,null,null,null,null,null,null,null,null,null,null,0,0,0,0,{"$f":"Concours!$A$2","v":0}]
[null,null,null,null,null,null,null,null,null,null,null,null,null,null,null,null,null,null,null,null,null,0,0,0,0,{"$f":"Concours!$A$2","v":0}]
[null,null,null,null,null,null,null,null,null,null,null,null,null,null,null,null,null,null,null,null,null,0,0,0,0,{"$f":"Concours!$A$2","v":0}]
[null,null,null,null,null,null,null,null,null,null,null,null,null,null,null,null,null,null,null,null,null,0,0,0,0,{"$f":"Concours!$A$2","v":0}]
[null,null,null,null,null,null,null,null,null,null,null,null,null,null,null,null,null,null,null,null,null,0,0,0,0,{"$f":"Concours!$A$2","v":0}]
[null,null,null,null,null,null,null,null,null,null,null,null,null,null,null,null,null,null,null,null,null,0,0,0,0,{"$f":"Concours!$A$2","v":0}]
[null,null,null,null,null,null,null,null,null,null,null,null,null,null,null,null,null,null,null,null,null,0,0,0,0,{"$f":"Concours!$A$2","v":0}]
[null,null,null,null,null,null,null,null,null,null,null,null,null,null,null,null,null,null,null,null,null,0,0,0,0,{"$f":"Concours!$A$2","v":0}]
[null,null,null,null,null,null,null,null,null,null,null,null,null,null,null,null,null,null,null,null,null,0,0,0,0,{"$f":"Concours!$A$2","v":0}]
[null,null,null,null,null,null,null,null,null,null,null,null,null,null,null,null,null,null,null,null,null,0,0,0,0,{"$f":"Concours!$A$2","v":0}]
[null,null,null,null,null,null,null,null,null,null,null,null,null,null,null,null,null,null,null,null,null,0,0,0,0,{"$f":"Concours!$A$2","v":0}]
[null,null,null,null,null,null,null,null,null,null,null,null,null,null,null,null,null,null,null,null,null,0,0,0,0,{"$f":"Concours!$A$2","v":0}]
[null,null,null,null,null,null,null,null,null,null,null,null,null,null,null,null,null,null,null,null,null,0,0,0,0,{"$f":"Concours!$A$2","v":0}]
[null,null,null,null,null,null,null,null,null,null,null,null,null,null,null,null,null,null,null,null,null,0,0,0,0,{"$f":"Concours!$A$2","v":0}]
[null,null,null,null,null,null,null,null,null,null,null,null,null,null,null,null,null,null,null,null,null,0,0,0,0,{"$f":"Concours!$A$2","v":0}]
[null,null,null,null,null,null,null,null,null,null,null,null,null,null,null,null,null,null,null,null,null,0,0,0,0,{"$f":"Concours!$A$2","v":0}]
[null,null,null,null,null,null,null,null,null,null,null,null,null,null,null,null,null,null,null,null,null,0,0,0,0,{"$f":"Concours!$A$2","v":0}]
[null,null,null,null,null,null,null,null,null,null,null,null,null,null,null,null,null,null,null,null,null,0,0,0,0,{"$f":"Concours!$A$2","v":0}]
[null,null,null,null,null,null,null,null,null,null,null,null,null,null,null,null,null,null,null,null,null,0,0,0,0,{"$f":"Concours!$A$2","v":0}]
[null,null,null,null,null,null,null,null,null,null,null,null,null,null,null,null,null,null,null,null,null,0,0,0,0,{"$f":"Concours!$A$2","v":0}]
[null,null,null,null,null,null,null,null,null,null,null,null,null,null,null,null,null,null,null,null,null,0,0,0,0,{"$f":"Concours!$A$2","v":0}]
[null,null,null,null,null,null,null,null,null,null,null,null,null,null,null,null,null,null,null,null,null,0,0,0,0,{"$f":"Concours!$A$2","v":0}]
[null,null,null,null,null,null,null,null,null,null,null,null,null,null,null,null,null,null,null,null,null,0,0,0,0,{"$f":"Concours!$A$2","v":0}]
[null,null,null,null,null,null,null,null,null,null,null,null,null,null,null,null,null,null,null,null,null,0,0,0,0,{"$f":"Concours!$A$2","v":0}]
[null,null,null,null,null,null,null,null,null,null,null,null,null,null,null,null,null,null,null,null,null,0,0,0,0,{"$f":"Concours!$A$2","v":0}]
[null,null,null,null,null,null,null,null,null,null,null,null,null,null,null,null,null,null,null,null,null,0,0,0,0,{"$f":"Concours!$A$2","v":0}]
[null,null,null,null,null,null,null,null,null,null,null,null,null,null,null,null,null,null,null,null,null,0,0,0,0,{"$f":"Concours!$A$2","v":0}]
[null,null,null,null,null,null,null,null,null,null,null,null,null,null,null,null,null,null,null,null,null,0,0,0,0,{"$f":"Concours!$A$2","v":0}]
[null,null,null,null,null,null,null,null,null,null,null,null,null,null,null,null,null,null,null,null,null,0,0,0,0,{"$f":"Concours!$A$2","v":0}]
[null,null,null,null,null,null,null,null,null,null,null,null,null,null,null,null,null,null,null,null,null,0,0,0,0,{"$f":"Concours!$A$2","v":0}]
[null,null,null,null,null,null,null,null,null,null,null,null,null,null,null,null,null,null,null,null,null,0,0,0,0,{"$f":"Concours!$A$2","v":0}]
[null,null,null,null,null,null,null,null,null,null,null,null,null,null,null,null,null,null,null,null,null,0,0,0,0,{"$f":"Concours!$A$2","v":0}]
[null,null,null,null,null,null,null,null,null,null,null,null,null,null,null,null,null,null,null,null,null,0,0,0,0,{"$f":"Concours!$A$2","v":0}]
[null,null,null,null,null,null,null,null,null,null,null,null,null,null,null,null,null,null,null,null,null,0,0,0,0,{"$f":"Concours!$A$2","v":0}]
[null,null,null,null,null,null,null,null,null,null,null,null,null,null,null,null,null,null,null,null,null,0,0,0,0,{"$f":"Concours!$A$2","v":0}]
[null,null,null,null,null,null,null,null,null,null,null,null,null,null,null,null,null,null,null,null,null,0,0,0,0,{"$f":"Concours!$A$2","v":0}]
[null,null,null,null,null,null,null,null,null,null,null,null,null,null,null,null,null,null,null,null,null,0,0,0,0,{"$f":"Concours!$A$2","v":0}]
[null,null,null,null,null,null,null,null,null,null,null,null,null,null,null,null,null,null,null,null,null,0,0,0,0,{"$f":"Concours!$A$2","v":0}]
[null,null,null,null,null,null,null,null,null,null,null,null,null,null,null,null,null,null,null,null,null,0,0,0,0,{"$f":"Concours!$A$2","v":0}]
[null,null,null,null,null,null,null,null,null,null,null,null,null,null,null,null,null,null,null,null,null,0,0,0,0,{"$f":"Concours!$A$2","v":0}]
[null,null,null,null,null,null,null,null,null,null,null,null,null,null,null,null,null,null,null,null,null,0,0,0,0,{"$f":"Concours!$A$2","v":0}]
[null,null,null,null,null,null,null,null,null,null,null,null,null,null,null,null,null,null,null,null,null,0,0,0,0,{"$f":"Concours!$A$2","v":0}]
[null,null,null,null,null,null,null,null,null,null,null,null,null,null,null,null,null,null,null,null,null,0,0,0,0,{"$f":"Concours!$A$2","v":0}]
[null,null,null,null,null,null,null,null,null,null,null,null,null,null,null,null,null,null,null,null,null,0,0,0,0,{"$f":"Concours!$A$2","v":0}]
[null,null,null,null,null,null,null,null,null,null,null,null,null,null,null,null,null,null,null,null,null,0,0,0,0,{"$f":"Concours!$A$2","v":0}]
[null,null,null,null,null,null,null,null,null,null,null,null,null,null,null,null,null,null,null,null,null,0,0,0,0,{"$f":"Concours!$A$2","v":0}]
[null,null,null,null,null,null,null,null,null,null,null,null,null,null,null,null,null,null,null,null,null,0,0,0,0,{"$f":"Concours!$A$2","v":0}]
[null,null,null,null,null,null,null,null,null,null,null,null,null,null,null,null,null,null,null,null,null,0,0,0,0,{"$f":"Concours!$A$2","v":0}]
[null,null,null,null,null,null,null,null,null,null,null,null,null,null,null,null,null,null,null,null,null,{"$f":"A322","v":0},{"$f":"L322","v":0},{"$f":"M322","v":0},{"$f":"N322","v":0},{"$f":"Concours!$A$2","v":0}]
[null,null,null,null,null,null,null,null,null,null,null,null,null,null,null,null,null,null,null,null,null,0,0,0,0,{"$f":"Concours!$A$2","v":0}]
[null,null,null,null,null,null,null,null,null,null,null,null,null,null,null,null,null,null,null,null,null,0,0,0,0,{"$f":"Concours!$A$2","v":0}]
[null,null,null,null,null,null,null,null,null,null,null,null,null,null,null,null,null,null,null,null,null,0,0,0,0,{"$f":"Concours!$A$2","v":0}]
[null,null,null,null,null,null,null,null,null,null,null,null,null,null,null,null,null,null,null,null,null,0,0,0,0,{"$f":"Concours!$A$2","v":0}]
[null,null,null,null,null,null,null,null,null,null,null,null,null,null,null,null,null,null,null,null,null,0,0,0,0,{"$f":"Concours!$A$2","v":0}]
[null,null,null,null,null,null,null,null,null,null,null,null,null,null,null,null,null,null,null,null,null,0,0,0,0,{"$f":"Concours!$A$2","v":0}]
[null,null,null,null,null,null,null,null,null,null,null,null,null,null,null,null,null,null,null,null,null,0,0,0,0,{"$f":"Concours!$A$2","v":0}]
[null,null,null,null,null,null,null,null,null,null,null,null,null,null,null,null,null,null,null,null,null,0,0,0,0,{"$f":"Concours!$A$2","v":0}]
[null,null,null,null,null,null,null,null,null,null,null,null,null,null,null,null,null,null,null,null,null,0,0,0,0,{"$f":"Concours!$A$2","v":0}]
[null,null,null,null,null,null,null,null,null,null,null,null,null,null,null,null,null,null,null,null,null,0,0,0,0,{"$f":"Concours!$A$2","v":0}]
[null,null,null,null,null,null,null,null,null,null,null,null,null,null,null,null,null,null,null,null,null,0,0,0,0,{"$f":"Concours!$A$2","v":0}]
[null,null,null,null,null,null,null,null,null,null,null,null,null,null,null,null,null,null,null,null,null,0,0,0,0,{"$f":"Concours!$A$2","v":0}]
[null,null,null,null,null,null,null,null,null,null,null,null,null,null,null,null,null,null,null,null,null,0,0,0,0,{"$f":"Concours!$A$2","v":0}]
[null,null,null,null,null,null,null,null,null,null,null,null,null,null,null,null,null,null,null,null,null,0,0,0,0,{"$f":"Concours!$A$2","v":0}]
[null,null,null,null,null,null,null,null,null,null,null,null,null,null,null,null,null,null,null,null,null,0,0,0,0,{"$f":"Concours!$A$2","v":0}]
[null,null,null,null,null,null,null,null,null,null,null,null,null,null,null,null,null,null,null,null,null,0,0,0,0,{"$f":"Concours!$A$2","v":0}]
[null,null,null,null,null,null,null,null,null,null,null,null,null,null,null,null,null,null,null,null,null,0,0,0,0,{"$f":"Concours!$A$2","v":0}]
[null,null,null,null,null,null,null,null,null,null,null,null,null,null,null,null,null,null,null,null,null,0,0,0,0,{"$f":"Concours!$A$2","v":0}]
[null,null,null,null,null,null,null,null,null,null,null,null,null,null,null,null,null,null,null,null,null,0,0,0,0,{"$f":"Concours!$A$2","v":0}]
[null,null,null,null,null,null,null,null,null,null,null,null,null,null,null,null,null,null,null,null,null,0,0,0,0,{"$f":"Concours!$A$2","v":0}]
[null,null,null,null,null,null,null,null,null,null,null,null,null,null,null,null,null,null,null,null,null,0,0,0,0,{"$f":"Concours!$A$2","v":0}]
[null,null,null,null,null,null,null,null,null,null,null,null,null,null,null,null,null,null,null,null,null,0,0,0,0,{"$f":"Concours!$A$2","v":0}]
[null,null,null,null,null,null,null,null,null,null,null,null,null,null,null,null,null,null,null,null,null,0,0,0,0,{"$f":"Concours!$A$2","v":0}]
[null,null,null,null,null,null,null,null,null,null,null,null,null,null,null,null,null,null,null,null,null,0,0,0,0,{"$f":"Concours!$A$2","v":0}]
[null,null,null,null,null,null,null,null,null,null,null,null,null,null,null,null,null,null,null,null,null,0,0,0,0,{"$f":"Concours!$A$2","v":0}]
[null,null,null,null,null,null,null,null,null,null,null,null,null,null,null,null,null,null,null,null,null,0,0,0,0,{"$f":"Concours!$A$2","v":0}]
[null,null,null,null,null,null,null,null,null,null,null,null,null,null,null,null,null,null,null,null,null,0,0,0,0,{"$f":"Concours!$A$2","v":0}]
[null,null,null,null,null,null,null,null,null,null,null,null,null,null,null,null,null,null,null,null,null,0,0,0,0,{"$f":"Concours!$A$2","v":0}]
[null,null,null,null,null,null,null,null,null,null,null,null,null,null,null,null,null,null,null,null,null,0,0,0,0,{"$f":"Concours!$A$2","v":0}]
[null,null,null,null,null,null,null,null,null,null,null,null,null,null,null,null,null,null,null,null,null,0,0,0,0,{"$f":"Concours!$A$2","v":0}]
[null,null,null,null,null,null,null,null,null,null,null,null,null,null,null,null,null,null,null,null,null,0,0,0,0,{"$f":"Concours!$A$2","v":0}]
[null,null,null,null,null,null,null,null,null,null,null,null,null,null,null,null,null,null,null,null,null,0,0,0,0,{"$f":"Concours!$A$2","v":0}]
[null,null,null,null,null,null,null,null,null,null,null,null,null,null,null,null,null,null,null,null,null,0,0,0,0,{"$f":"Concours!$A$2","v":0}]
[null,null,null,null,null,null,null,null,null,null,null,null,null,null,null,null,null,null,null,null,null,0,0,0,0,{"$f":"Concours!$A$2","v":0}]
[null,null,null,null,null,null,null,null,null,null,null,null,null,null,null,null,null,null,null,null,null,0,0,0,0,{"$f":"Concours!$A$2","v":0}]
[null,null,null,null,null,null,null,null,null,null,null,null,null,null,null,null,null,null,null,null,null,0,0,0,0,{"$f":"Concours!$A$2","v":0}]
[null,null,null,null,null,null,null,null,null,null,null,null,null,null,null,null,null,null,null,null,null,0,0,0,0,{"$f":"Concours!$A$2","v":0}]
[null,null,null,null,null,null,null,null,null,null,null,null,null,null,null,null,null,null,null,null,null,0,0,0,0,{"$f":"Concours!$A$2","v":0}]
[null,null,null,null,null,null,null,null,null,null,null,null,null,null,null,null,null,null,null,null,null,0,0,0,0,{"$f":"Concours!$A$2","v":0}]
[null,null,null,null,null,null,null,null,null,null,null,null,null,null,null,null,null,null,null,null,null,0,0,0,0,{"$f":"Concours!$A$2","v":0}]
[null,null,null,null,null,null,null,null,null,null,null,null,null,null,null,null,null,null,null,null,null,0,0,0,0,{"$f":"Concours!$A$2","v":0}]
[null,null,null,null,null,null,null,null,null,null,null,null,null,null,null,null,null,null,null,null,null,0,0,0,0,{"$f":"Concours!$A$2","v":0}]
[null,null,null,null,null,null,null,null,null,null,null,null,null,null,null,null,null,null,null,null,null,0,0,0,0,{"$f":"Concours!$A$2","v":0}]
[null,null,null,null,null,null,null,null,null,null,null,null,null,null,null,null,null,null,null,null,null,0,0,0,0,{"$f":"Concours!$A$2","v":0}]
[null,null,null,null,null,null,null,null,null,null,null,null,null,null,null,null,null,null,null,null,null,0,0,0,0,{"$f":"Concours!$A$2","v":0}]
[null,null,null,null,null,null,null,null,null,null,null,null,null,null,null,null,null,null,null,null,null,0,0,0,0,{"$f":"Concours!$A$2","v":0}]
[null,null,null,null,null,null,null,null,null,null,null,null,null,null,null,null,null,null,null,null,null,0,0,0,0,{"$f":"Concours!$A$2","v":0}]
[null,null,null,null,null,null,null,null,null,null,null,null,null,null,null,null,null,null,null,null,null,0,0,0,0,{"$f":"Concours!$A$2","v":0}]
[null,null,null,null,null,null,null,null,null,null,null,null,null,null,null,null,null,null,null,null,null,0,0,0,0,{"$f":"Concours!$A$2","v":0}]
[null,null,null,null,null,null,null,null,null,null,null,null,null,null,null,null,null,null,null,null,null,0,0,0,0,{"$f":"Concours!$A$2","v":0}]
[null,null,null,null,null,null,null,null,null,null,null,null,null,null,null,null,null,null,null,null,null,0,0,0,0,{"$f":"Concours!$A$2","v":0}]
[null,null,null,null,null,null,null,null,null,null,null,null,null,null,null,null,null,null,null,null,null,0,0,0,0,{"$f":"Concours!$A$2","v":0}]
[null,null,null,null,null,null,null,null,null,null,null,null,null,null,null,null,null,null,null,null,null,0,0,0,0,{"$f":"Concours!$A$2","v":0}]
[null,null,null,null,null,null,null,null,null,null,null,null,null,null,null,null,null,null,null,null,null,0,0,0,0,{"$f":"Concours!$A$2","v":0}]
[null,null,null,null,null,null,null,null,null,null,null,null,null,null,null,null,null,null,null,null,null,0,0,0,0,{"$f":"Concours!$A$2","v":0}]
[null,null,null,null,null,null,null,null,null,null,null,null,null,null,null,null,null,null,null,null,null,0,0,0,0,{"$f":"Concours!$A$2","v":0}]
[null,null,null,null,null,null,null,null,null,null,null,null,null,null,null,null,null,null,null,null,null,0,0,0,0,{"$f":"Concours!$A$2","v":0}]
[null,null,null,null,null,null,null,null,null,null,null,null,null,null,null,null,null,null,null,null,null,0,0,0,0,{"$f":"Concours!$A$2","v":0}]
[null,null,null,null,null,null,null,null,null,null,null,null,null,null,null,null,null,null,null,null,null,0,0,0,0,{"$f":"Concours!$A$2","v":0}]
[null,null,null,null,null,null,null,null,null,null,null,null,null,null,null,null,null,null,null,null,null,0,0,0,0,{"$f":"Concours!$A$2","v":0}]
[null,null,null,null,null,null,null,null,null,null,null,null,null,null,null,null,null,null,null,null,null,0,0,0,0,{"$f":"Concours!$A$2","v":0}]
[null,null,null,null,null,null,null,null,null,null,null,null,null,null,null,null,null,null,null,null,null,0,0,0,0,{"$f":"Concours!$A$2","v":0}]
[null,null,null,null,null,null,null,null,null,null,null,null,null,null,null,null,null,null,null,null,null,0,0,0,0,{"$f":"Concours!$A$2","v":0}]
[null,null,null,null,null,null,null,null,null,null,null,null,null,null,null,null,null,null,null,null,null,{"$f":"A386","v":0},{"$f":"L386","v":0},{"$f":"M386","v":0},{"$f":"N386","v":0},{"$f":"Concours!$A$2","v":0}]
[null,null,null,null,null,null,null,null,null,null,null,null,null,null,null,null,null,null,null,null,null,0,0,0,0,{"$f":"Concours!$A$2","v":0}]
[null,null,null,null,null,null,null,null,null,null,null,null,null,null,null,null,null,null,null,null,null,0,0,0,0,{"$f":"Concours!$A$2","v":0}]
[null,null,null,null,null,null,null,null,null,null,null,null,null,null,null,null,null,null,null,null,null,0,0,0,0,{"$f":"Concours!$A$2","v":0}]
[null,null,null,null,null,null,null,null,null,null,null,null,null,null,null,null,null,null,null,null,null,0,0,0,0,{"$f":"Concours!$A$2","v":0}]
[null,null,null,null,null,null,null,null,null,null,null,null,null,null,null,null,null,null,null,null,null,0,0,0,0,{"$f":"Concours!$A$2","v":0}]
[null,null,null,null,null,null,null,null,null,null,null,null,null,null,null,null,null,null,null,null,null,0,0,0,0,{"$f":"Concours!$A$2","v":0}]
[null,null,null,null,null,null,null,null,null,null,null,null,null,null,null,null,null,null,null,null,null,0,0,0,0,{"$f":"Concours!$A$2","v":0}]
[null,null,null,null,null,null,null,null,null,null,null,null,null,null,null,null,null,null,null,null,null,0,0,0,0,{"$f":"Concours!$A$2","v":0}]
[null,null,null,null,null,null,null,null,null,null,null,null,null,null,null,null,null,null,null,null,null,0,0,0,0,{"$f":"Concours!$A$2","v":0}]
[null,null,null,null,null,null,null,null,null,null,null,null,null,null,null,null,null,null,null,null,null,0,0,0,0,{"$f":"Concours!$A$2","v":0}]
[null,null,null,null,null,null,null,null,null,null,null,null,null,null,null,null,null,null,null,null,null,0,0,0,0,{"$f":"Concours!$A$2","v":0}]
[null,null,null,null,null,null,null,null,null,null,null,null,null,null,null,null,null,null,null,null,null,0,0,0,0,{"$f":"Concours!$A$2","v":0}]
[null,null,null,null,null,null,null,null,null,null,null,null,null,null,null,null,null,null,null,null,null,0,0,0,0,{"$f":"Concours!$A$2","v":0}]
[null,null,null,null,null,null,null,null,null,null,null,null,null,null,null,null,null,null,null,null,null,0,0,0,0,{"$f":"Concours!$A$2","v":0}]
[null,null,null,null,null,null,null,null,null,null,null,null,null,null,null,null,null,null,null,null,null,0,0,0,0,{"$f":"Concours!$A$2","v":0}]
[null,null,null,null,null,null,null,null,null,null,null,null,null,null,null,null,null,null,null,null,null,0,0,0,0,{"$f":"Concours!$A$2","v":0}]
[null,null,null,null,null,null,null,null,null,null,null,null,null,null,null,null,null,null,null,null,null,0,0,0,0,{"$f":"Concours!$A$2","v":0}]
[null,null,null,null,null,null,null,null,null,null,null,null,null,null,null,null,null,null,null,null,null,0,0,0,0,{"$f":"Concours!$A$2","v":0}]
[null,null,null,null,null,null,null,null,null,null,null,null,null,null,null,null,null,null,null,null,null,0,0,0,0,{"$f":"Concours!$A$2","v":0}]
[null,null,null,null,null,null,null,null,null,null,null,null,null,null,null,null,null,null,null,null,null,0,0,0,0,{"$f":"Concours!$A$2","v":0}]
[null,null,null,null,null,null,null,null,null,null,null,null,null,null,null,null,null,null,null,null,null,0,0,0,0,{"$f":"Concours!$A$2","v":0}]
[null,null,null,null,null,null,null,null,null,null,null,null,null,null,null,null,null,null,null,null,null,0,0,0,0,{"$f":"Concours!$A$2","v":0}]
[null,null,null,null,null,null,null,null,null,null,null,null,null,null,null,null,null,null,null,null,null,0,0,0,0,{"$f":"Concours!$A$2","v":0}]
[null,null,null,null,null,null,null,null,null,null,null,null,null,null,null,null,null,null,null,null,null,0,0,0,0,{"$f":"Concours!$A$2","v":0}]
[null,null,null,null,null,null,null,null,null,null,null,null,null,null,null,null,null,null,null,null,null,0,0,0,0,{"$f":"Concours!$A$2","v":0}]
[null,null,null,null,null,null,null,null,null,null,null,null,null,null,null,null,null,null,null,null,null,0,0,0,0,{"$f":"Concours!$A$2","v":0}]
[null,null,null,null,null,null,null,null,null,null,null,null,null,null,null,null,null,null,null,null,null,0,0,0,0,{"$f":"Concours!$A$2","v":0}]
[null,null,null,null,null,null,null,null,null,null,null,null,null,null,null,null,null,null,null,null,null,0,0,0,0,{"$f":"Concours!$A$2","v":0}]
[null,null,null,null,null,null,null,null,null,null,null,null,null,null,null,null,null,null,null,null,null,0,0,0,0,{"$f":"Concours!$A$2","v":0}]
[null,null,null,null,null,null,null,null,null,null,null,null,null,null,null,null,null,null,null,null,null,0,0,0,0,{"$f":"Concours!$A$2","v":0}]
[null,null,null,null,null,null,null,null,null,null,null,null,null,null,null,null,null,null,null,null,null,0,0,0,0,{"$f":"Concours!$A$2","v":0}]
[null,null,null,null,null,null,null,null,null,null,null,null,null,null,null,null,null,null,null,null,null,0,0,0,0,{"$f":"Concours!$A$2","v":0}]
[null,null,null,null,null,null,null,null,null,null,null,null,null,null,null,null,null,null,null,null,null,0,0,0,0,{"$f":"Concours!$A$2","v":0}]
[null,null,null,null,null,null,null,null,null,null,null,null,null,null,null,null,null,null,null,null,null,0,0,0,0,{"$f":"Concours!$A$2","v":0}]
[null,null,null,null,null,null,null,null,null,null,null,null,null,null,null,null,null,null,null,null,null,0,0,0,0,{"$f":"Concours!$A$2","v":0}]
[null,null,null,null,null,null,null,null,null,null,null,null,null,null,null,null,null,null,null,null,null,0,0,0,0,{"$f":"Concours!$A$2","v":0}]
[null,null,null,null,null,null,null,null,null,null,null,null,null,null,null,null,null,null,null,null,null,0,0,0,0,{"$f":"Concours!$A$2","v":0}]
[null,null,null,null,null,null,null,null,null,null,null,null,null,null,null,null,null,null,null,null,null,0,0,0,0,{"$f":"Concours!$A$2","v":0}]
[null,null,null,null,null,null,null,null,null,null,null,null,null,null,null,null,null,null,null,null,null,0,0,0,0,{"$f":"Concours!$A$2","v":0}]
[null,null,null,null,null,null,null,null,null,null,null,null,null,null,null,null,null,null,null,null,null,0,0,0,0,{"$f":"Concours!$A$2","v":0}]
[null,null,null,null,null,null,null,null,null,null,null,null,null,null,null,null,null,null,null,null,null,0,0,0,0,{"$f":"Concours!$A$2","v":0}]
[null,null,null,null,null,null,null,null,null,null,null,null,null,null,null,null,null,null,null,null,null,0,0,0,0,{"$f":"Concours!$A$2","v":0}]
[null,null,null,null,null,null,null,null,null,null,null,null,null,null,null,null,null,null,null,null,null,0,0,0,0,{"$f":"Concours!$A$2","v":0}]
[null,null,null,null,null,null,null,null,null,null,null,null,null,null,null,null,null,null,null,null,null,0,0,0,0,{"$f":"Concours!$A$2","v":0}]
[null,null,null,null,null,null,null,null,null,null,null,null,null,null,null,null,null,null,null,null,null,0,0,0,0,{"$f":"Concours!$A$2","v":0}]
[null,null,null,null,null,null,null,null,null,null,null,null,null,null,null,null,null,null,null,null,null,0,0,0,0,{"$f":"Concours!$A$2","v":0}]
[null,null,null,null,null,null,null,null,null,null,null,null,null,null,null,null,null,null,null,null,null,0,0,0,0,{"$f":"Concours!$A$2","v":0}]
[null,null,null,null,null,null,null,null,null,null,null,null,null,null,null,null,null,null,null,null,null,0,0,0,0,{"$f":"Concours!$A$2","v":0}]
[null,null,null,null,null,null,null,null,null,null,null,null,null,null,null,null,null,null,null,null,null,0,0,0,0,{"$f":"Concours!$A$2","v":0}]
[null,null,null,null,null,null,null,null,null,null,null,null,null,null,null,null,null,null,null,null,null,0,0,0,0,{"$f":"Concours!$A$2","v":0}]
[null,null,null,null,null,null,null,null,null,null,null,null,null,null,null,null,null,null,null,null,null,0,0,0,0,{"$f":"Concours!$A$2","v":0}]
[null,null,null,null,null,null,null,null,null,null,null,null,null,null,null,null,null,null,null,null,null,0,0,0,0,{"$f":"Concours!$A$2","v":0}]
[null,null,null,null,null,null,null,null,null,null,null,null,null,null,null,null,null,null,null,null,null,0,0,0,0,{"$f":"Concours!$A$2","v":0}]
[null,null,null,null,null,null,null,null,null,null,null,null,null,null,null,null,null,null,null,null,null,0,0,0,0,{"$f":"Concours!$A$2","v":0}]
[null,null,null,null,null,null,null,null,null,null,null,null,null,null,null,null,null,null,null,null,null,0,0,0,0,{"$f":"Concours!$A$2","v":0}]
[null,null,null,null,null,null,null,null,null,null,null,null,null,null,null,null,null,null,null,null,null,0,0,0,0,{"$f":"Concours!$A$2","v":0}]
[null,null,null,null,null,null,null,null,null,null,null,null,null,null,null,null,null,null,null,null,null,0,0,0,0,{"$f":"Concours!$A$2","v":0}]
[null,null,null,null,null,null,null,null,null,null,null,null,null,null,null,null,null,null,null,null,null,0,0,0,0,{"$f":"Concours!$A$2","v":0}]
[null,null,null,null,null,null,null,null,null,null,null,null,null,null,null,null,null,null,null,null,null,0,0,0,0,{"$f":"Concours!$A$2","v":0}]
[null,null,null,null,null,null,null,null,null,null,null,null,null,null,null,null,null,null,null,null,null,0,0,0,0,{"$f":"Concours!$A$2","v":0}]
[null,null,null,null,null,null,null,null,null,null,null,null,null,null,null,null,null,null,null,null,null,0,0,0,0,{"$f":"Concours!$A$2","v":0}]
[null,null,null,null,null,null,null,null,null,null,null,null,null,null,null,null,null,null,null,null,null,0,0,0,0,{"$f":"Concours!$A$2","v":0}]
[null,null,null,null,null,null,null,null,null,null,null,null,null,null,null,null,null,null,null,null,null,0,0,0,0,{"$f":"Concours!$A$2","v":0}]
[null,null,null,null,null,null,null,null,null,null,null,null,null,null,null,null,null,null,null,null,null,{"$f":"A450","v":0},{"$f":"L450","v":0},{"$f":"M450","v":0},{"$f":"N450","v":0},{"$f":"Concours!$A$2","v":0}]
[null,null,null,null,null,null,null,null,null,null,null,null,null,null,null,null,null,null,null,null,null,0,0,0,0,{"$f":"Concours!$A$2","v":0}]
[null,null,null,null,null,null,null,null,null,null,null,null,null,null,null,null,null,null,null,null,null,0,0,0,0,{"$f":"Concours!$A$2","v":0}]
[null,null,null,null,null,null,null,null,null,null,null,null,null,null,null,null,null,null,null,null,null,0,0,0,0,{"$f":"Concours!$A$2","v":0}]
[null,null,null,null,null,null,null,null,null,null,null,null,null,null,null,null,null,null,null,null,null,0,0,0,0,{"$f":"Concours!$A$2","v":0}]
[null,null,null,null,null,null,null,null,null,null,null,null,null,null,null,null,null,null,null,null,null,0,0,0,0,{"$f":"Concours!$A$2","v":0}]
[null,null,null,null,null,null,null,null,null,null,null,null,null,null,null,null,null,null,null,null,null,0,0,0,0,{"$f":"Concours!$A$2","v":0}]
[null,null,null,null,null,null,null,null,null,null,null,null,null,null,null,null,null,null,null,null,null,0,0,0,0,{"$f":"Concours!$A$2","v":0}]
[null,null,null,null,null,null,null,null,null,null,null,null,null,null,null,null,null,null,null,null,null,0,0,0,0,{"$f":"Concours!$A$2","v":0}]
[null,null,null,null,null,null,null,null,null,null,null,null,null,null,null,null,null,null,null,null,null,0,0,0,0,{"$f":"Concours!$A$2","v":0}]
[null,null,null,null,null,null,null,null,null,null,null,null,null,null,null,null,null,null,null,null,null,0,0,0,0,{"$f":"Concours!$A$2","v":0}]
[null,null,null,null,null,null,null,null,null,null,null,null,null,null,null,null,null,null,null,null,null,0,0,0,0,{"$f":"Concours!$A$2","v":0}]
[null,null,null,null,null,null,null,null,null,null,null,null,null,null,null,null,null,null,null,null,null,0,0,0,0,{"$f":"Concours!$A$2","v":0}]
[null,null,null,null,null,null,null,null,null,null,null,null,null,null,null,null,null,null,null,null,null,0,0,0,0,{"$f":"Concours!$A$2","v":0}]
[null,null,null,null,null,null,null,null,null,null,null,null,null,null,null,null,null,null,null,null,null,0,0,0,0,{"$f":"Concours!$A$2","v":0}]
[null,null,null,null,null,null,null,null,null,null,null,null,null,null,null,null,null,null,null,null,null,0,0,0,0,{"$f":"Concours!$A$2","v":0}]
[null,null,null,null,null,null,null,null,null,null,null,null,null,null,null,null,null,null,null,null,null,0,0,0,0,{"$f":"Concours!$A$2","v":0}]
[null,null,null,null,null,null,null,null,null,null,null,null,null,null,null,null,null,null,null,null,null,0,0,0,0,{"$f":"Concours!$A$2","v":0}]
[null,null,null,null,null,null,null,null,null,null,null,null,null,null,null,null,null,null,null,null,null,0,0,0,0,{"$f":"Concours!$A$2","v":0}]
[null,null,null,null,null,null,null,null,null,null,null,null,null,null,null,null,null,null,null,null,null,0,0,0,0,{"$f":"Concours!$A$2","v":0}]
[null,null,null,null,null,null,null,null,null,null,null,null,null,null,null,null,null,null,null,null,null,0,0,0,0,{"$f":"Concours!$A$2","v":0}]
[null,null,null,null,null,null,null,null,null,null,null,null,null,null,null,null,null,null,null,null,null,0,0,0,0,{"$f":"Concours!$A$2","v":0}]
[null,null,null,null,null,null,null,null,null,null,null,null,null,null,null,null,null,null,null,null,null,0,0,0,0,{"$f":"Concours!$A$2","v":0}]
[null,null,null,null,null,null,null,null,null,null,null,null,null,null,null,null,null,null,null,null,null,0,0,0,0,{"$f":"Concours!$A$2","v":0}]
[null,null,null,null,null,null,null,null,null,null,null,null,null,null,null,null,null,null,null,null,null,0,0,0,0,{"$f":"Concours!$A$2","v":0}]
[null,null,null,null,null,null,null,null,null,null,null,null,null,null,null,null,null,null,null,null,null,0,0,0,0,{"$f":"Concours!$A$2","v":0}]
[null,null,null,null,null,null,null,null,null,null,null,null,null,null,null,null,null,null,null,null,null,0,0,0,0,{"$f":"Concours!$A$2","v":0}]
[null,null,null,null,null,null,null,null,null,null,null,null,null,null,null,null,null,null,null,null,null,0,0,0,0,{"$f":"Concours!$A$2","v":0}]
[null,null,null,null,null,null,null,null,null,null,null,null,null,null,null,null,null,null,null,null,null,0,0,0,0,{"$f":"Concours!$A$2","v":0}]
[null,null,null,null,null,null,null,null,null,null,null,null,null,null,null,null,null,null,null,null,null,0,0,0,0,{"$f":"Concours!$A$2","v":0}]
[null,null,null,null,null,null,null,null,null,null,null,null,null,null,null,null,null,null,null,null,null,0,0,0,0,{"$f":"Concours!$A$2","v":0}]
[null,null,null,null,null,null,null,null,null,null,null,null,null,null,null,null,null,null,null,null,null,0,0,0,0,{"$f":"Concours!$A$2","v":0}]
[null,null,null,null,null,null,null,null,null,null,null,null,null,null,null,null,null,null,null,null,null,0,0,0,0,{"$f":"Concours!$A$2","v":0}]
[null,null,null,null,null,null,null,null,null,null,null,null,null,null,null,null,null,null,null,null,null,0,0,0,0,{"$f":"Concours!$A$2","v":0}]
[null,null,null,null,null,null,null,null,null,null,null,null,null,null,null,null,null,null,null,null,null,0,0,0,0,{"$f":"Concours!$A$2","v":0}]
[null,null,null,null,null,null,null,null,null,null,null,null,null,null,null,null,null,null,null,null,null,0,0,0,0,{"$f":"Concours!$A$2","v":0}]
[null,null,null,null,null,null,null,null,null,null,null,null,null,null,null,null,null,null,null,null,null,0,0,0,0,{"$f":"Concours!$A$2","v":0}]
[null,null,null,null,null,null,null,null,null,null,null,null,null,null,null,null,null,null,null,null,null,0,0,0,0,{"$f":"Concours!$A$2","v":0}]
[null,null,null,null,null,null,null,null,null,null,null,null,null,null,null,null,null,null,null,null,null,0,0,0,0,{"$f":"Concours!$A$2","v":0}]
[null,null,null,null,null,null,null,null,null,null,null,null,null,null,null,null,null,null,null,null,null,0,0,0,0,{"$f":"Concours!$A$2","v":0}]
[null,null,null,null,null,null,null,null,null,null,null,null,null,null,null,null,null,null,null,null,null,0,0,0,0,{"$f":"Concours!$A$2","v":0}]
[null,null,null,null,null,null,null,null,null,null,null,null,null,null,null,null,null,null,null,null,null,0,0,0,0,{"$f":"Concours!$A$2","v":0}]
[null,null,null,null,null,null,null,null,null,null,null,null,null,null,null,null,null,null,null,null,null,0,0,0,0,{"$f":"Concours!$A$2","v":0}]
[null,null,null,null,null,null,null,null,null,null,null,null,null,null,null,null,null,null,null,null,null,0,0,0,0,{"$f":"Concours!$A$2","v":0}]
[null,null,null,null,null,null,null,null,null,null,null,null,null,null,null,null,null,null,null,null,null,0,0,0,0,{"$f":"Concours!$A$2","v":0}]
[null,null,null,null,null,null,null,null,null,null,null,null,null,null,null,null,null,null,null,null,null,0,0,0,0,{"$f":"Concours!$A$2","v":0}]
[null,null,null,null,null,null,null,null,null,null,null,null,null,null,null,null,null,null,null,null,null,0,0,0,0,{"$f":"Concours!$A$2","v":0}]
[null,null,null,null,null,null,null,null,null,null,null,null,null,null,null,null,null,null,null,null,null,0,0,0,0,{"$f":"Concours!$A$2","v":0}]
[null,null,null,null,null,null,null,null,null,null,null,null,null,null,null,null,null,null,null,null,null,0,0,0,0,{"$f":"Concours!$A$2","v":0}]
[null,null,null,null,null,null,null,null,null,null,null,null,null,null,null,null,null,null,null,null,null,0,0,0,0,{"$f":"Concours!$A$2","v":0}]
[null,null,null,null,null,null,null,null,null,null,null,null,null,null,null,null,null,null,null,null,null,0,0,0,0,{"$f":"Concours!$A$2","v":0}]
[null,null,null,null,null,null,null,null,null,null,null,null,null,null,null,null,null,null,null,null,null,0,0,0,0,{"$f":"Concours!$A$2","v":0}]
[null,null,null,null,null,null,null,null,null,null,null,null,null,null,null,null,null,null,null,null,null,0,0,0,0,{"$f":"Concours!$A$2","v":0}]
[null,null,null,null,null,null,null,null,null,null,null,null,null,null,null,null,null,null,null,null,null,0,0,0,0,{"$f":"Concours!$A$2","v":0}]
[null,null,null,null,null,null,null,null,null,null,null,null,null,null,null,null,null,null,null,null,null,0,0,0,0,{"$f":"Concours!$A$2","v":0}]
[null,null,null,null,null,null,null,null,null,null,null,null,null,null,null,null,null,null,null,null,null,0,0,0,0,{"$f":"Concours!$A$2","v":0}]
[null,null,null,null,null,null,null,null,null,null,null,null,null,null,null,null,null,null,null,null,null,0,0,0,0,{"$f":"Concours!$A$2","v":0}]
[null,null,null,null,null,null,null,null,null,null,null,null,null,null,null,null,null,null,null,null,null,0,0,0,0,{"$f":"Concours!$A$2","v":0}]
[null,null,null,null,null,null,null,null,null,null,null,null,null,null,null,null,null,null,null,null,null,0,0,0,0,{"$f":"Concours!$A$2","v":0}]
[null,null,null,null,null,null,null,null,null,null,null,null,null,null,null,null,null,null,null,null,null,0,0,0,0,{"$f":"Concours!$A$2","v":0}]
[null,null,null,null,null,null,null,null,null,null,null,null,null,null,null,null,null,null,null,null,null,0,0,0,0,{"$f":"Concours!$A$2","v":0}]
[null,null,null,null,null,null,null,null,null,null,null,null,null,null,null,null,null,null,null,null,null,0,0,0,0,{"$f":"Concours!$A$2","v":0}]
[null,null,null,null,null,null,null,null,null,null,null,null,null,null,null,null,null,null,null,null,null,0,0,0,0,{"$f":"Concours!$A$2","v":0}]
[null,null,null,null,null,null,null,null,null,null,null,null,null,null,null,null,null,null,null,null,null,0,0,0,0,{"$f":"Concours!$A$2","v":0}]
[null,null,null,null,null,null,null,null,null,null,null,null,null,null,null,null,null,null,null,null,null,{"$f":"A514","v":0},{"$f":"L514","v":0},{"$f":"M514","v":0},{"$f":"N514","v":0},{"$f":"Concours!$A$2","v":0}]
[null,null,null,null,null,null,null,null,null,null,null,null,null,null,null,null,null,null,null,null,null,0,0,0,0,{"$f":"Concours!$A$2","v":0}]
[null,null,null,null,null,null,null,null,null,null,null,null,null,null,null,null,null,null,null,null,null,0,0,0,0,{"$f":"Concours!$A$2","v":0}]
[null,null,null,null,null,null,null,null,null,null,null,null,null,null,null,null,null,null,null,null,null,0,0,0,0,{"$f":"Concours!$A$2","v":0}]
[null,null,null,null,null,null,null,null,null,null,null,null,null,null,null,null,null,null,null,null,null,0,0,0,0,{"$f":"Concours!$A$2","v":0}]
[null,null,null,null,null,null,null,null,null,null,null,null,null,null,null,null,null,null,null,null,null,0,0,0,0,{"$f":"Concours!$A$2","v":0}]
[null,null,null,null,null,null,null,null,null,null,null,null,null,null,null,null,null,null,null,null,null,0,0,0,0,{"$f":"Concours!$A$2","v":0}]
[null,null,null,null,null,null,null,null,null,null,null,null,null,null,null,null,null,null,null,null,null,0,0,0,0,{"$f":"Concours!$A$2","v":0}]
[null,null,null,null,null,null,null,null,null,null,null,null,null,null,null,null,null,null,null,null,null,0,0,0,0,{"$f":"Concours!$A$2","v":0}]
[null,null,null,null,null,null,null,null,null,null,null,null,null,null,null,null,null,null,null,null,null,0,0,0,0,{"$f":"Concours!$A$2","v":0}]
[null,null,null,null,null,null,null,null,null,null,null,null,null,null,null,null,null,null,null,null,null,0,0,0,0,{"$f":"Concours!$A$2","v":0}]
[null,null,null,null,null,null,null,null,null,null,null,null,null,null,null,null,null,null,null,null,null,0,0,0,0,{"$f":"Concours!$A$2","v":0}]
[null,null,null,null,null,null,null,null,null,null,null,null,null,null,null,null,null,null,null,null,null,0,0,0,0,{"$f":"Concours!$A$2","v":0}]
[null,null,null,null,null,null,null,null,null,null,null,null,null,null,null,null,null,null,null,null,null,0,0,0,0,{"$f":"Concours!$A$2","v":0}]
[null,null,null,null,null,null,null,null,null,null,null,null,null,null,null,null,null,null,null,null,null,0,0,0,0,{"$f":"Concours!$A$2","v":0}]
[null,null,null,null,null,null,null,null,null,null,null,null,null,null,null,null,null,null,null,null,null,0,0,0,0,{"$f":"Concours!$A$2","v":0}]
[null,null,null,null,null,null,null,null,null,null,null,null,null,null,null,null,null,null,null,null,null,0,0,0,0,{"$f":"Concours!$A$2","v":0}]
[null,null,null,null,null,null,null,null,null,null,null,null,null,null,null,null,null,null,null,null,null,0,0,0,0,{"$f":"Concours!$A$2","v":0}]
[null,null,null,null,null,null,null,null,null,null,null,null,null,null,null,null,null,null,null,null,null,0,0,0,0,{"$f":"Concours!$A$2","v":0}]
[null,null,null,null,null,null,null,null,null,null,null,null,null,null,null,null,null,null,null,null,null,0,0,0,0,{"$f":"Concours!$A$2","v":0}]
[null,null,null,null,null,null,null,null,null,null,null,null,null,null,null,null,null,null,null,null,null,0,0,0,0,{"$f":"Concours!$A$2","v":0}]
[null,null,null,null,null,null,null,null,null,null,null,null,null,null,null,null,null,null,null,null,null,0,0,0,0,{"$f":"Concours!$A$2","v":0}]
[null,null,null,null,null,null,null,null,null,null,null,null,null,null,null,null,null,null,null,null,null,0,0,0,0,{"$f":"Concours!$A$2","v":0}]
[null,null,null,null,null,null,null,null,null,null,null,null,null,null,null,null,null,null,null,null,null,0,0,0,0,{"$f":"Concours!$A$2","v":0}]
[null,null,null,null,null,null,null,null,null,null,null,null,null,null,null,null,null,null,null,null,null,0,0,0,0,{"$f":"Concours!$A$2","v":0}]
[null,null,null,null,null,null,null,null,null,null,null,null,null,null,null,null,null,null,null,null,null,0,0,0,0,{"$f":"Concours!$A$2","v":0}]
[null,null,null,null,null,null,null,null,null,null,null,null,null,null,null,null,null,null,null,null,null,0,0,0,0,{"$f":"Concours!$A$2","v":0}]
[null,null,null,null,null,null,null,null,null,null,null,null,null,null,null,null,null,null,null,null,null,0,0,0,0,{"$f":"Concours!$A$2","v":0}]
[null,null,null,null,null,null,null,null,null,null,null,null,null,null,null,null,null,null,null,null,null,0,0,0,0,{"$f":"Concours!$A$2","v":0}]
[null,null,null,null,null,null,null,null,null,null,null,null,null,null,null,null,null,null,null,null,null,0,0,0,0,{"$f":"Concours!$A$2","v":0}]
[null,null,null,null,null,null,null,null,null,null,null,null,null,null,null,null,null,null,null,null,null,0,0,0,0,{"$f":"Concours!$A$2","v":0}]
[null,null,null,null,null,null,null,null,null,null,null,null,null,null,null,null,null,null,null,null,null,0,0,0,0,{"$f":"Concours!$A$2","v":0}]
[null,null,null,null,null,null,null,null,null,null,null,null,null,null,null,null,null,null,null,null,null,0,0,0,0,{"$f":"Concours!$A$2","v":0}]
[null,null,null,null,null,null,null,null,null,null,null,null,null,null,null,null,null,null,null,null,null,0,0,0,0,{"$f":"Concours!$A$2","v":0}]
[null,null,null,null,null,null,null,null,null,null,null,null,null,null,null,null,null,null,null,null,null,0,0,0,0,{"$f":"Concours!$A$2","v":0}]
[null,null,null,null,null,null,null,null,null,null,null,null,null,null,null,null,null,null,null,null,null,0,0,0,0,{"$f":"Concours!$A$2","v":0}]
[null,null,null,null,null,null,null,null,null,null,null,null,null,null,null,null,null,null,null,null,null,0,0,0,0,{"$f":"Concours!$A$2","v":0}]
[null,null,null,null,null,null,null,null,null,null,null,null,null,null,null,null,null,null,null,null,null,0,0,0,0,{"$f":"Concours!$A$2","v":0}]
[null,null,null,null,null,null,null,null,null,null,null,null,null,null,null,null,null,null,null,null,null,0,0,0,0,{"$f":"Concours!$A$2","v":0}]
[null,null,null,null,null,null,null,null,null,null,null,null,null,null,null,null,null,null,null,null,null,0,0,0,0,{"$f":"Concours!$A$2","v":0}]
[null,null,null,null,null,null,null,null,null,null,null,null,null,null,null,null,null,null,null,null,null,0,0,0,0,{"$f":"Concours!$A$2","v":0}]
[null,null,null,null,null,null,null,null,null,null,null,null,null,null,null,null,null,null,null,null,null,0,0,0,0,{"$f":"Concours!$A$2","v":0}]
[null,null,null,null,null,null,null,null,null,null,null,null,null,null,null,null,null,null,null,null,null,0,0,0,0,{"$f":"Concours!$A$2","v":0}]
[null,null,null,null,null,null,null,null,null,null,null,null,null,null,null,null,null,null,null,null,null,0,0,0,0,{"$f":"Concours!$A$2","v":0}]
[null,null,null,null,null,null,null,null,null,null,null,null,null,null,null,null,null,null,null,null,null,0,0,0,0,{"$f":"Concours!$A$2","v":0}]
[null,null,null,null,null,null,null,null,null,null,null,null,null,null,null,null,null,null,null,null,null,0,0,0,0,{"$f":"Concours!$A$2","v":0}]
[null,null,null,null,null,null,null,null,null,null,null,null,null,null,null,null,null,null,null,null,null,0,0,0,0,{"$f":"Concours!$A$2","v":0}]
[null,null,null,null,null,null,null,null,null,null,null,null,null,null,null,null,null,null,null,null,null,0,0,0,0,{"$f":"Concours!$A$2","v":0}]
[null,null,null,null,null,null,null,null,null,null,null,null,null,null,null,null,null,null,null,null,null,0,0,0,0,{"$f":"Concours!$A$2","v":0}]
[null,null,null,null,null,null,null,null,null,null,null,null,null,null,null,null,null,null,null,null,null,0,0,0,0,{"$f":"Concours!$A$2","v":0}]
[null,null,null,null,null,null,null,null,null,null,null,null,null,null,null,null,null,null,null,null,null,0,0,0,0,{"$f":"Concours!$A$2","v":0}]
[null,null,null,null,null,null,null,null,null,null,null,null,null,null,null,null,null,null,null,null,null,0,0,0,0,{"$f":"Concours!$A$2","v":0}]
[null,null,null,null,null,null,null,null,null,null,null,null,null,null,null,null,null,null,null,null,null,0,0,0,0,{"$f":"Concours!$A$2","v":0}]
[null,null,null,null,null,null,null,null,null,null,null,null,null,null,null,null,null,null,null,null,null,0,0,0,0,{"$f":"Concours!$A$2","v":0}]
[null,null,null,null,null,null,null,null,null,null,null,null,null,null,null,null,null,null,null,null,null,0,0,0,0,{"$f":"Concours!$A$2","v":0}]
[null,null,null,null,null,null,null,null,null,null,null,null,null,null,null,null,null,null,null,null,null,0,0,0,0,{"$f":"Concours!$A$2","v":0}]
[null,null,null,null,null,null,null,null,null,null,null,null,null,null,null,null,null,null,null,null,null,0,0,0,0,{"$f":"Concours!$A$2","v":0}]
[null,null,null,null,null,null,null,null,null,null,null,null,null,null,null,null,null,null,null,null,null,0,0,0,0,{"$f":"Concours!$A$2","v":0}]
[null,null,null,null,null,null,null,null,null,null,null,null,null,null,null,null,null,null,null,null,null,0,0,0,0,{"$f":"Concours!$A$2","v":0}]
[null,null,null,null,null,null,null,null,null,null,null,null,null,null,null,null,null,null,null,null,null,0,0,0,0,{"$f":"Concours!$A$2","v":0}]
[null,null,null,null,null,null,null,null,null,null,null,null,null,null,null,null,null,null,null,null,null,0,0,0,0,{"$f":"Concours!$A$2","v":0}]
[null,null,null,null,null,null,null,null,null,null,null,null,null,null,null,null,null,null,null,null,null,0,0,0,0,{"$f":"Concours!$A$2","v":0}]
[null,null,null,null,null,null,null,null,null,null,null,null,null,null,null,null,null,null,null,null,null,0,0,0,0,{"$f":"Concours!$A$2","v":0}]
[null,null,null,null,null,null,null,null,null,null,null,null,null,null,null,null,null,null,null,null,null,0,0,0,0,{"$f":"Concours!$A$2","v":0}]
[null,null,null,null,null,null,null,null,null,null,null,null,null,null,null,null,null,null,null,null,null,{"$f":"A578","v":0},{"$f":"L578","v":0},{"$f":"M578","v":0},{"$f":"N578","v":0},{"$f":"Concours!$A$2","v":0}]
[null,null,null,null,null,null,null,null,null,null,null,null,null,null,null,null,null,null,null,null,null,0,0,0,0,{"$f":"Concours!$A$2","v":0}]
[null,null,null,null,null,null,null,null,null,null,null,null,null,null,null,null,null,null,null,null,null,0,0,0,0,{"$f":"Concours!$A$2","v":0}]
[null,null,null,null,null,null,null,null,null,null,null,null,null,null,null,null,null,null,null,null,null,0,0,0,0,{"$f":"Concours!$A$2","v":0}]
[null,null,null,null,null,null,null,null,null,null,null,null,null,null,null,null,null,null,null,null,null,0,0,0,0,{"$f":"Concours!$A$2","v":0}]
[null,null,null,null,null,null,null,null,null,null,null,null,null,null,null,null,null,null,null,null,null,0,0,0,0,{"$f":"Concours!$A$2","v":0}]
[null,null,null,null,null,null,null,null,null,null,null,null,null,null,null,null,null,null,null,null,null,0,0,0,0,{"$f":"Concours!$A$2","v":0}]
[null,null,null,null,null,null,null,null,null,null,null,null,null,null,null,null,null,null,null,null,null,0,0,0,0,{"$f":"Concours!$A$2","v":0}]
[null,null,null,null,null,null,null,null,null,null,null,null,null,null,null,null,null,null,null,null,null,0,0,0,0,{"$f":"Concours!$A$2","v":0}]
[null,null,null,null,null,null,null,null,null,null,null,null,null,null,null,null,null,null,null,null,null,0,0,0,0,{"$f":"Concours!$A$2","v":0}]
[null,null,null,null,null,null,null,null,null,null,null,null,null,null,null,null,null,null,null,null,null,0,0,0,0,{"$f":"Concours!$A$2","v":0}]
[null,null,null,null,null,null,null,null,null,null,null,null,null,null,null,null,null,null,null,null,null,0,0,0,0,{"$f":"Concours!$A$2","v":0}]
[null,null,null,null,null,null,null,null,null,null,null,null,null,null,null,null,null,null,null,null,null,0,0,0,0,{"$f":"Concours!$A$2","v":0}]
[null,null,null,null,null,null,null,null,null,null,null,null,null,null,null,null,null,null,null,null,null,0,0,0,0,{"$f":"Concours!$A$2","v":0}]
[null,null,null,null,null,null,null,null,null,null,null,null,null,null,null,null,null,null,null,null,null,0,0,0,0,{"$f":"Concours!$A$2","v":0}]
[null,null,null,null,null,null,null,null,null,null,null,null,null,null,null,null,null,null,null,null,null,0,0,0,0,{"$f":"Concours!$A$2","v":0}]
[null,null,null,null,null,null,null,null,null,null,null,null,null,null,null,null,null,null,null,null,null,0,0,0,0,{"$f":"Concours!$A$2","v":0}]
[null,null,null,null,null,null,null,null,null,null,null,null,null,null,null,null,null,null,null,null,null,0,0,0,0,{"$f":"Concours!$A$2","v":0}]
[null,null,null,null,null,null,null,null,null,null,null,null,null,null,null,null,null,null,null,null,null,0,0,0,0,{"$f":"Concours!$A$2","v":0}]
[null,null,null,null,null,null,null,null,null,null,null,null,null,null,null,null,null,null,null,null,null,0,0,0,0,{"$f":"Concours!$A$2","v":0}]
[null,null,null,null,null,null,null,null,null,null,null,null,null,null,null,null,null,null,null,null,null,0,0,0,0,{"$f":"Concours!$A$2","v":0}]
[null,null,null,null,null,null,null,null,null,null,null,null,null,null,null,null,null,null,null,null,null,0,0,0,0,{"$f":"Concours!$A$2","v":0}]
[null,null,null,null,null,null,null,null,null,null,null,null,null,null,null,null,null,null,null,null,null,0,0,0,0,{"$f":"Concours!$A$2","v":0}]
[null,null,null,null,null,null,null,null,null,null,null,null,null,null,null,null,null,null,null,null,null,0,0,0,0,{"$f":"Concours!$A$2","v":0}]
[null,null,null,null,null,null,null,null,null,null,null,null,null,null,null,null,null,null,null,null,null,0,0,0,0,{"$f":"Concours!$A$2","v":0}]
[null,null,null,null,null,null,null,null,null,null,null,null,null,null,null,null,null,null,null,null,null,0,0,0,0,{"$f":"Concours!$A$2","v":0}]
[null,null,null,null,null,null,null,null,null,null,null,null,null,null,null,null,null,null,null,null,null,0,0,0,0,{"$f":"Concours!$A$2","v":0}]
[null,null,null,null,null,null,null,null,null,null,null,null,null,null,null,null,null,null,null,null,null,0,0,0,0,{"$f":"Concours!$A$2","v":0}]
[null,null,null,null,null,null,null,null,null,null,null,null,null,null,null,null,null,null,null,null,null,0,0,0,0,{"$f":"Concours!$A$2","v":0}]
[null,null,null,null,null,null,null,null,null,null,null,null,null,null,null,null,null,null,null,null,null,0,0,0,0,{"$f":"Concours!$A$2","v":0}]
[null,null,null,null,null,null,null,null,null,null,null,null,null,null,null,null,null,null,null,null,null,0,0,0,0,{"$f":"Concours!$A$2","v":0}]
[null,null,null,null,null,null,null,null,null,null,null,null,null,null,null,null,null,null,null,null,null,0,0,0,0,{"$f":"Concours!$A$2","v":0}]
[null,null,null,null,null,null,null,null,null,null,null,null,null,null,null,null,null,null,null,null,null,0,0,0,0,{"$f":"Concours!$A$2","v":0}]
[null,null,null,null,null,null,null,null,null,null,null,null,null,null,null,null,null,null,null,null,null,0,0,0,0,{"$f":"Concours!$A$2","v":0}]
[null,null,null,null,null,null,null,null,null,null,null,null,null,null,null,null,null,null,null,null,null,0,0,0,0,{"$f":"Concours!$A$2","v":0}]
[null,null,null,null,null,null,null,null,null,null,null,null,null,null,null,null,null,null,null,null,null,0,0,0,0,{"$f":"Concours!$A$2","v":0}]
[null,null,null,null,null,null,null,null,null,null,null,null,null,null,null,null,null,null,null,null,null,0,0,0,0,{"$f":"Concours!$A$2","v":0}]
[null,null,null,null,null,null,null,null,null,null,null,null,null,null,null,null,null,null,null,null,null,0,0,0,0,{"$f":"Concours!$A$2","v":0}]
[null,null,null,null,null,null,null,null,null,null,null,null,null,null,null,null,null,null,null,null,null,0,0,0,0,{"$f":"Concours!$A$2","v":0}]
[null,null,null,null,null,null,null,null,null,null,null,null,null,null,null,null,null,null,null,null,null,0,0,0,0,{"$f":"Concours!$A$2","v":0}]
[null,null,null,null,null,null,null,null,null,null,null,null,null,null,null,null,null,null,null,null,null,0,0,0,0,{"$f":"Concours!$A$2","v":0}]
[null,null,null,null,null,null,null,null,null,null,null,null,null,null,null,null,null,null,null,null,null,0,0,0,0,{"$f":"Concours!$A$2","v":0}]
[null,null,null,null,null,null,null,null,null,null,null,null,null,null,null,null,null,null,null,null,null,0,0,0,0,{"$f":"Concours!$A$2","v":0}]
[null,null,null,null,null,null,null,null,null,null,null,null,null,null,null,null,null,null,null,null,null,0,0,0,0,{"$f":"Concours!$A$2","v":0}]
[null,null,null,null,null,null,null,null,null,null,null,null,null,null,null,null,null,null,null,null,null,0,0,0,0,{"$f":"Concours!$A$2","v":0}]
[null,null,null,null,null,null,null,null,null,null,null,null,null,null,null,null,null,null,null,null,null,0,0,0,0,{"$f":"Concours!$A$2","v":0}]
[null,null,null,null,null,null,null,null,null,null,null,null,null,null,null,null,null,null,null,null,null,0,0,0,0,{"$f":"Concours!$A$2","v":0}]
[null,null,null,null,null,null,null,null,null,null,null,null,null,null,null,null,null,null,null,null,null,0,0,0,0,{"$f":"Concours!$A$2","v":0}]
[null,null,null,null,null,null,null,null,null,null,null,null,null,null,null,null,null,null,null,null,null,0,0,0,0,{"$f":"Concours!$A$2","v":0}]
[null,null,null,null,null,null,null,null,null,null,null,null,null,null,null,null,null,null,null,null,null,0,0,0,0,{"$f":"Concours!$A$2","v":0}]
[null,null,null,null,null,null,null,null,null,null,null,null,null,null,null,null,null,null,null,null,null,0,0,0,0,{"$f":"Concours!$A$2","v":0}]
[null,null,null,null,null,null,null,null,null,null,null,null,null,null,null,null,null,null,null,null,null,0,0,0,0,{"$f":"Concours!$A$2","v":0}]
[null,null,null,null,null,null,null,null,null,null,null,null,null,null,null,null,null,null,null,null,null,0,0,0,0,{"$f":"Concours!$A$2","v":0}]
[null,null,null,null,null,null,null,null,null,null,null,null,null,null,null,null,null,null,null,null,null,0,0,0,0,{"$f":"Concours!$A$2","v":0}]
[null,null,null,null,null,null,null,null,null,null,null,null,null,null,null,null,null,null,null,null,null,0,0,0,0,{"$f":"Concours!$A$2","v":0}]
[null,null,null,null,null,null,null,null,null,null,null,null,null,null,null,null,null,null,null,null,null,0,0,0,0,{"$f":"Concours!$A$2","v":0}]
[null,null,null,null,null,null,null,null,null,null,null,null,null,null,null,null,null,null,null,null,null,0,0,0,0,{"$f":"Concours!$A$2","v":0}]
[null,null,null,null,null,null,null,null,null,null,null,null,null,null,null,null,null,null,null,null,null,0,0,0,0,{"$f":"Concours!$A$2","v":0}]
[null,null,null,null,null,null,null,null,null,null,null,null,null,null,null,null,null,null,null,null,null,0,0,0,0,{"$f":"Concours!$A$2","v":0}]
[null,null,null,null,null,null,null,null,null,null,null,null,null,null,null,null,null,null,null,null,null,0,0,0,0,{"$f":"Concours!$A$2","v":0}]
[null,null,null,null,null,null,null,null,null,null,null,null,null,null,null,null,null,null,null,null,null,0,0,0,0,{"$f":"Concours!$A$2","v":0}]
[null,null,null,null,null,null,null,null,null,null,null,null,null,null,null,null,null,null,null,null,null,0,0,0,0,{"$f":"Concours!$A$2","v":0}]
[null,null,null,null,null,null,null,null,null,null,null,null,null,null,null,null,null,null,null,null,null,0,0,0,0,{"$f":"Concours!$A$2","v":0}]
[null,null,null,null,null,null,null,null,null,null,null,null,null,null,null,null,null,null,null,null,null,0,0,0,0,{"$f":"Concours!$A$2","v":0}]
[null,null,null,null,null,null,null,null,null,null,null,null,null,null,null,null,null,null,null,null,null,{"$f":"A642","v":0},{"$f":"L642","v":0},{"$f":"M642","v":0},{"$f":"N642","v":0},{"$f":"Concours!$A$2","v":0}]
[null,null,null,null,null,null,null,null,null,null,null,null,null,null,null,null,null,null,null,null,null,0,0,0,0,{"$f":"Concours!$A$2","v":0}]
[null,null,null,null,null,null,null,null,null,null,null,null,null,null,null,null,null,null,null,null,null,0,0,0,0,{"$f":"Concours!$A$2","v":0}]
[null,null,null,null,null,null,null,null,null,null,null,null,null,null,null,null,null,null,null,null,null,0,0,0,0,{"$f":"Concours!$A$2","v":0}]
[null,null,null,null,null,null,null,null,null,null,null,null,null,null,null,null,null,null,null,null,null,0,0,0,0,{"$f":"Concours!$A$2","v":0}]
[null,null,null,null,null,null,null,null,null,null,null,null,null,null,null,null,null,null,null,null,null,0,0,0,0,{"$f":"Concours!$A$2","v":0}]
[null,null,null,null,null,null,null,null,null,null,null,null,null,null,null,null,null,null,null,null,null,0,0,0,0,{"$f":"Concours!$A$2","v":0}]
[null,null,null,null,null,null,null,null,null,null,null,null,null,null,null,null,null,null,null,null,null,0,0,0,0,{"$f":"Concours!$A$2","v":0}]
[null,null,null,null,null,null,null,null,null,null,null,null,null,null,null,null,null,null,null,null,null,0,0,0,0,{"$f":"Concours!$A$2","v":0}]
[null,null,null,null,null,null,null,null,null,null,null,null,null,null,null,null,null,null,null,null,null,0,0,0,0,{"$f":"Concours!$A$2","v":0}]
[null,null,null,null,null,null,null,null,null,null,null,null,null,null,null,null,null,null,null,null,null,0,0,0,0,{"$f":"Concours!$A$2","v":0}]
[null,null,null,null,null,null,null,null,null,null,null,null,null,null,null,null,null,null,null,null,null,0,0,0,0,{"$f":"Concours!$A$2","v":0}]
[null,null,null,null,null,null,null,null,null,null,null,null,null,null,null,null,null,null,null,null,null,0,0,0,0,{"$f":"Concours!$A$2","v":0}]
[null,null,null,null,null,null,null,null,null,null,null,null,null,null,null,null,null,null,null,null,null,0,0,0,0,{"$f":"Concours!$A$2","v":0}]
[null,null,null,null,null,null,null,null,null,null,null,null,null,null,null,null,null,null,null,null,null,0,0,0,0,{"$f":"Concours!$A$2","v":0}]
[null,null,null,null,null,null,null,null,null,null,null,null,null,null,null,null,null,null,null,null,null,0,0,0,0,{"$f":"Concours!$A$2","v":0}]
[null,null,null,null,null,null,null,null,null,null,null,null,null,null,null,null,null,null,null,null,null,0,0,0,0,{"$f":"Concours!$A$2","v":0}]
[null,null,null,null,null,null,null,null,null,null,null,null,null,null,null,null,null,null,null,null,null,0,0,0,0,{"$f":"Concours!$A$2","v":0}]
[null,null,null,null,null,null,null,null,null,null,null,null,null,null,null,null,null,null,null,null,null,0,0,0,0,{"$f":"Concours!$A$2","v":0}]
[null,null,null,null,null,null,null,null,null,null,null,null,null,null,null,null,null,null,null,null,null,0,0,0,0,{"$f":"Concours!$A$2","v":0}]
[null,null,null,null,null,null,null,null,null,null,null,null,null,null,null,null,null,null,null,null,null,0,0,0,0,{"$f":"Concours!$A$2","v":0}]
[null,null,null,null,null,null,null,null,null,null,null,null,null,null,null,null,null,null,null,null,null,0,0,0,0,{"$f":"Concours!$A$2","v":0}]
[null,null,null,null,null,null,null,null,null,null,null,null,null,null,null,null,null,null,null,null,null,0,0,0,0,{"$f":"Concours!$A$2","v":0}]
[null,null,null,null,null,null,null,null,null,null,null,null,null,null,null,null,null,null,null,null,null,0,0,0,0,{"$f":"Concours!$A$2","v":0}]
[null,null,null,null,null,null,null,null,null,null,null,null,null,null,null,null,null,null,null,null,null,0,0,0,0,{"$f":"Concours!$A$2","v":0}]
[null,null,null,null,null,null,null,null,null,null,null,null,null,null,null,null,null,null,null,null,null,0,0,0,0,{"$f":"Concours!$A$2","v":0}]
[null,null,null,null,null,null,null,null,null,null,null,null,null,null,null,null,null,null,null,null,null,0,0,0,0,{"$f":"Concours!$A$2","v":0}]
[null,null,null,null,null,null,null,null,null,null,null,null,null,null,null,null,null,null,null,null,null,0,0,0,0,{"$f":"Concours!$A$2","v":0}]
[null,null,null,null,null,null,null,null,null,null,null,null,null,null,null,null,null,null,null,null,null,0,0,0,0,{"$f":"Concours!$A$2","v":0}]
[null,null,null,null,null,null,null,null,null,null,null,null,null,null,null,null,null,null,null,null,null,0,0,0,0,{"$f":"Concours!$A$2","v":0}]
[null,null,null,null,null,null,null,null,null,null,null,null,null,null,null,null,null,null,null,null,null,0,0,0,0,{"$f":"Concours!$A$2","v":0}]
[null,null,null,null,null,null,null,null,null,null,null,null,null,null,null,null,null,null,null,null,null,0,0,0,0,{"$f":"Concours!$A$2","v":0}]
[null,null,null,null,null,null,null,null,null,null,null,null,null,null,null,null,null,null,null,null,null,0,0,0,0,{"$f":"Concours!$A$2","v":0}]
[null,null,null,null,null,null,null,null,null,null,null,null,null,null,null,null,null,null,null,null,null,0,0,0,0,{"$f":"Concours!$A$2","v":0}]
[null,null,null,null,null,null,null,null,null,null,null,null,null,null,null,null,null,null,null,null,null,0,0,0,0,{"$f":"Concours!$A$2","v":0}]
[null,null,null,null,null,null,null,null,null,null,null,null,null,null,null,null,null,null,null,null,null,0,0,0,0,{"$f":"Concours!$A$2","v":0}]
[null,null,null,null,null,null,null,null,null,null,null,null,null,null,null,null,null,null,null,null,null,0,0,0,0,{"$f":"Concours!$A$2","v":0}]
[null,null,null,null,null,null,null,null,null,null,null,null,null,null,null,null,null,null,null,null,null,0,0,0,0,{"$f":"Concours!$A$2","v":0}]
[null,null,null,null,null,null,null,null,null,null,null,null,null,null,null,null,null,null,null,null,null,0,0,0,0,{"$f":"Concours!$A$2","v":0}]
[null,null,null,null,null,null,null,null,null,null,null,null,null,null,null,null,null,null,null,null,null,0,0,0,0,{"$f":"Concours!$A$2","v":0}]
[null,null,null,null,null,null,null,null,null,null,null,null,null,null,null,null,null,null,null,null,null,0,0,0,0,{"$f":"Concours!$A$2","v":0}]
[null,null,null,null,null,null,null,null,null,null,null,null,null,null,null,null,null,null,null,null,null,0,0,0,0,{"$f":"Concours!$A$2","v":0}]
[null,null,null,null,null,null,null,null,null,null,null,null,null,null,null,null,null,null,null,null,null,0,0,0,0,{"$f":"Concours!$A$2","v":0}]
[null,null,null,null,null,null,null,null,null,null,null,null,null,null,null,null,null,null,null,null,null,0,0,0,0,{"$f":"Concours!$A$2","v":0}]
[null,null,null,null,null,null,null,null,null,null,null,null,null,null,null,null,null,null,null,null,null,0,0,0,0,{"$f":"Concours!$A$2","v":0}]
[null,null,null,null,null,null,null,null,null,null,null,null,null,null,null,null,null,null,null,null,null,0,0,0,0,{"$f":"Concours!$A$2","v":0}]
[null,null,null,null,null,null,null,null,null,null,null,null,null,null,null,null,null,null,null,null,null,0,0,0,0,{"$f":"Concours!$A$2","v":0}]
[null,null,null,null,null,null,null,null,null,null,null,null,null,null,null,null,null,null,null,null,null,0,0,0,0,{"$f":"Concours!$A$2","v":0}]
[null,null,null,null,null,null,null,null,null,null,null,null,null,null,null,null,null,null,null,null,null,0,0,0,0,{"$f":"Concours!$A$2","v":0}]
[null,null,null,null,null,null,null,null,null,null,null,null,null,null,null,null,null,null,null,null,null,0,0,0,0,{"$f":"Concours!$A$2","v":0}]
[null,null,null,null,null,null,null,null,null,null,null,null,null,null,null,null,null,null,null,null,null,0,0,0,0,{"$f":"Concours!$A$2","v":0}]
[null,null,null,null,null,null,null,null,null,null,null,null,null,null,null,null,null,null,null,null,null,0,0,0,0,{"$f":"Concours!$A$2","v":0}]
[null,null,null,null,null,null,null,null,null,null,null,null,null,null,null,null,null,null,null,null,null,0,0,0,0,{"$f":"Concours!$A$2","v":0}]
[null,null,null,null,null,null,null,null,null,null,null,null,null,null,null,null,null,null,null,null,null,0,0,0,0,{"$f":"Concours!$A$2","v":0}]
[null,null,null,null,null,null,null,null,null,null,null,null,null,null,null,null,null,null,null,null,null,0,0,0,0,{"$f":"Concours!$A$2","v":0}]
[null,null,null,null,null,null,null,null,null,null,null,null,null,null,null,null,null,null,null,null,null,0,0,0,0,{"$f":"Concours!$A$2","v":0}]
[null,null,null,null,null,null,null,null,null,null,null,null,null,null,null,null,null,null,null,null,null,0,0,0,0,{"$f":"Concours!$A$2","v":0}]
[null,null,null,null,null,null,null,null,null,null,null,null,null,null,null,null,null,null,null,null,null,0,0,0,0,{"$f":"Concours!$A$2","v":0}]
[null,null,null,null,null,null,null,null,null,null,null,null,null,null,null,null,null,null,null,null,null,0,0,0,0,{"$f":"Concours!$A$2","v":0}]
[null,null,null,null,null,null,null,null,null,null,null,null,null,null,null,null,null,null,null,null,null,0,0,0,0,{"$f":"Concours!$A$2","v":0}]
[null,null,null,null,null,null,null,null,null,null,null,null,null,null,null,null,null,null,null,null,null,0,0,0,0,{"$f":"Concours!$A$2","v":0}]
[null,null,null,null,null,null,null,null,null,null,null,null,null,null,null,null,null,null,null,null,null,0,0,0,0,{"$f":"Concours!$A$2","v":0}]
[null,null,null,null,null,null,null,null,null,null,null,null,null,null,null,null,null,null,null,null,null,0,0,0,0,{"$f":"Concours!$A$2","v":0}]
[null,null,null,null,null,null,null,null,null,null,null,null,null,null,null,null,null,null,null,null,null,0,0,0,0,{"$f":"Concours!$A$2","v":0}]
[null,null,null,null,null,null,null,null,null,null,null,null,null,null,null,null,null,null,null,null,null,{"$f":"A706","v":0},{"$f":"L706","v":0},{"$f":"M706","v":0},{"$f":"N706","v":0},{"$f":"Concours!$A$2","v":0}]
[null,null,null,null,null,null,null,null,null,null,null,null,null,null,null,null,null,null,null,null,null,0,0,0,0,{"$f":"Concours!$A$2","v":0}]
[null,null,null,null,null,null,null,null,null,null,null,null,null,null,null,null,null,null,null,null,null,0,0,0,0,{"$f":"Concours!$A$2","v":0}]
[null,null,null,null,null,null,null,null,null,null,null,null,null,null,null,null,null,null,null,null,null,0,0,0,0,{"$f":"Concours!$A$2","v":0}]
[null,null,null,null,null,null,null,null,null,null,null,null,null,null,null,null,null,null,null,null,null,0,0,0,0,{"$f":"Concours!$A$2","v":0}]
[null,null,null,null,null,null,null,null,null,null,null,null,null,null,null,null,null,null,null,null,null,0,0,0,0,{"$f":"Concours!$A$2","v":0}]
[null,null,null,null,null,null,null,null,null,null,null,null,null,null,null,null,null,null,null,null,null,0,0,0,0,{"$f":"Concours!$A$2","v":0}]
[null,null,null,null,null,null,null,null,null,null,null,null,null,null,null,null,null,null,null,null,null,0,0,0,0,{"$f":"Concours!$A$2","v":0}]
[null,null,null,null,null,null,null,null,null,null,null,null,null,null,null,null,null,null,null,null,null,0,0,0,0,{"$f":"Concours!$A$2","v":0}]
[null,null,null,null,null,null,null,null,null,null,null,null,null,null,null,null,null,null,null,null,null,0,0,0,0,{"$f":"Concours!$A$2","v":0}]
[null,null,null,null,null,null,null,null,null,null,null,null,null,null,null,null,null,null,null,null,null,0,0,0,0,{"$f":"Concours!$A$2","v":0}]
[null,null,null,null,null,null,null,null,null,null,null,null,null,null,null,null,null,null,null,null,null,0,0,0,0,{"$f":"Concours!$A$2","v":0}]
[null,null,null,null,null,null,null,null,null,null,null,null,null,null,null,null,null,null,null,null,null,0,0,0,0,{"$f":"Concours!$A$2","v":0}]
[null,null,null,null,null,null,null,null,null,null,null,null,null,null,null,null,null,null,null,null,null,0,0,0,0,{"$f":"Concours!$A$2","v":0}]
[null,null,null,null,null,null,null,null,null,null,null,null,null,null,null,null,null,null,null,null,null,0,0,0,0,{"$f":"Concours!$A$2","v":0}]
[null,null,null,null,null,null,null,null,null,null,null,null,null,null,null,null,null,null,null,null,null,0,0,0,0,{"$f":"Concours!$A$2","v":0}]
[null,null,null,null,null,null,null,null,null,null,null,null,null,null,null,null,null,null,null,null,null,0,0,0,0,{"$f":"Concours!$A$2","v":0}]
[null,null,null,null,null,null,null,null,null,null,null,null,null,null,null,null,null,null,null,null,null,0,0,0,0,{"$f":"Concours!$A$2","v":0}]
[null,null,null,null,null,null,null,null,null,null,null,null,null,null,null,null,null,null,null,null,null,0,0,0,0,{"$f":"Concours!$A$2","v":0}]
[null,null,null,null,null,null,null,null,null,null,null,null,null,null,null,null,null,null,null,null,null,0,0,0,0,{"$f":"Concours!$A$2","v":0}]
[null,null,null,null,null,null,null,null,null,null,null,null,null,null,null,null,null,null,null,null,null,0,0,0,0,{"$f":"Concours!$A$2","v":0}]
[null,null,null,null,null,null,null,null,null,null,null,null,null,null,null,null,null,null,null,null,null,0,0,0,0,{"$f":"Concours!$A$2","v":0}]
[null,null,null,null,null,null,null,null,null,null,null,null,null,null,null,null,null,null,null,null,null,0,0,0,0,{"$f":"Concours!$A$2","v":0}]
[null,null,null,null,null,null,null,null,null,null,null,null,null,null,null,null,null,null,null,null,null,0,0,0,0,{"$f":"Concours!$A$2","v":0}]
[null,null,null,null,null,null,null,null,null,null,null,null,null,null,null,null,null,null,null,null,null,0,0,0,0,{"$f":"Concours!$A$2","v":0}]
[null,null,null,null,null,null,null,null,null,null,null,null,null,null,null,null,null,null,null,null,null,0,0,0,0,{"$f":"Concours!$A$2","v":0}]
[null,null,null,null,null,null,null,null,null,null,null,null,null,null,null,null,null,null,null,null,null,0,0,0,0,{"$f":"Concours!$A$2","v":0}]
[null,null,null,null,null,null,null,null,null,null,null,null,null,null,null,null,null,null,null,null,null,0,0,0,0,{"$f":"Concours!$A$2","v":0}]
[null,null,null,null,null,null,null,null,null,null,null,null,null,null,null,null,null,null,null,null,null,0,0,0,0,{"$f":"Concours!$A$2","v":0}]
[null,null,null,null,null,null,null,null,null,null,null,null,null,null,null,null,null,null,null,null,null,0,0,0,0,{"$f":"Concours!$A$2","v":0}]
[null,null,null,null,null,null,null,null,null,null,null,null,null,null,null,null,null,null,null,null,null,0,0,0,0,{"$f":"Concours!$A$2","v":0}]
[null,null,null,null,null,null,null,null,null,null,null,null,null,null,null,null,null,null,null,null,null,0,0,0,0,{"$f":"Concours!$A$2","v":0}]
[null,null,null,null,null,null,null,null,null,null,null,null,null,null,null,null,null,null,null,null,null,0,0,0,0,{"$f":"Concours!$A$2","v":0}]
[null,null,null,null,null,null,null,null,null,null,null,null,null,null,null,null,null,null,null,null,null,0,0,0,0,{"$f":"Concours!$A$2","v":0}]
[null,null,null,null,null,null,null,null,null,null,null,null,null,null,null,null,null,null,null,null,null,0,0,0,0,{"$f":"Concours!$A$2","v":0}]
[null,null,null,null,null,null,null,null,null,null,null,null,null,null,null,null,null,null,null,null,null,0,0,0,0,{"$f":"Concours!$A$2","v":0}]
[null,null,null,null,null,null,null,null,null,null,null,null,null,null,null,null,null,null,null,null,null,0,0,0,0,{"$f":"Concours!$A$2","v":0}]
[null,null,null,null,null,null,null,null,null,null,null,null,null,null,null,null,null,null,null,null,null,0,0,0,0,{"$f":"Concours!$A$2","v":0}]
[null,null,null,null,null,null,null,null,null,null,null,null,null,null,null,null,null,null,null,null,null,0,0,0,0,{"$f":"Concours!$A$2","v":0}]
[null,null,null,null,null,null,null,null,null,null,null,null,null,null,null,null,null,null,null,null,null,0,0,0,0,{"$f":"Concours!$A$2","v":0}]
[null,null,null,null,null,null,null,null,null,null,null,null,null,null,null,null,null,null,null,null,null,0,0,0,0,{"$f":"Concours!$A$2","v":0}]
[null,null,null,null,null,null,null,null,null,null,null,null,null,null,null,null,null,null,null,null,null,0,0,0,0,{"$f":"Concours!$A$2","v":0}]
[null,null,null,null,null,null,null,null,null,null,null,null,null,null,null,null,null,null,null,null,null,0,0,0,0,{"$f":"Concours!$A$2","v":0}]
[null,null,null,null,null,null,null,null,null,null,null,null,null,null,null,null,null,null,null,null,null,0,0,0,0,{"$f":"Concours!$A$2","v":0}]
[null,null,null,null,null,null,null,null,null,null,null,null,null,null,null,null,null,null,null,null,null,0,0,0,0,{"$f":"Concours!$A$2","v":0}]
[]
[]
[]
[]
[]
[]
[]
[]
[]
[]
[]
[]
[]
[null,null,null,null,null,null,null,null,null,null,null,null,null,null,null,{"$f":"IF(L764=\"\",\"\",L764&\" \"&D764&IF(H764=\"\",\"\",\" (\"&H764&\")\"))","v":""}]
[null,null,null,null,null,null,null,null,null,null,null,null,null,null,null,""]
[null,null,null,null,null,null,null,null,null,null,null,null,null,null,null,""]
[null,null,null,null,null,null,null,null,null,null,null,null,null,null,null,""]
[null,null,null,null,null,null,null,null,null,null,null,null,null,null,null,""]
[null,null,null,null,null,null,null,null,null,null,null,null,null,null,null,""]
[null,null,null,null,null,null,null,null,null,null,null,null,null,null,null,""]
[null,null,null,null,null,null,null,null,null,null,null,null,null,null,null,""]
[null,null,null,null,null,null,null,null,null,null,null,null,null,null,null,""]
[null,null,null,null,null,null,null,null,null,null,null,null,null,null,null,""]
[null,null,null,null,null,null,null,null,null,null,null,null,null,null,null,""]
[null,null,null,null,null,null,null,null,null,null,null,null,null,null,null,""]
[null,null,null,null,null,null,null,null,null,null,null,null,null,null,null,""]
[null,null,null,null,null,null,null,null,null,null,null,null,null,null,null,""]
[null,null,null,null,null,null,null,null,null,null,null,null,null,null,null,""]
[null,null,null,null,null,null,null,null,null,null,null,null,null,null,null,""]
[null,null,null,null,null,null,null,null,null,null,null,null,null,null,null,""]
[null,null,null,null,null,null,null,null,null,null,null,null,null,null,null,""]
[null,null,null,null,null,null,null,null,null,null,null,null,null,null,null,""]
[null,null,null,null,null,null,null,null,null,null,null,null,null,null,null,""]
[null,null,null,null,null,null,null,null,null,null,null,null,null,null,null,""]
[null,null,null,null,null,null,null,null,null,null,null,null,null,null,null,""]
[null,null,null,null,null,null,null,null,null,null,null,null,null,null,null,""]
[null,null,null,null,null,null,null,null,null,null,null,null,null,null,null,""]
[null,null,null,null,null,null,null,null,null,null,null,null,null,null,null,""]
[null,null,null,null,null,null,null,null,null,null,null,null,null,null,null,""]
[null,null,null,null,null,null,null,null,null,null,null,null,null,null,null,""]
[null,null,null,null,null,null,null,null,null,null,null,null,null,null,null,""]
[null,null,null,null,null,null,null,null,null,null,null,null,null,null,null,""]
[null,null,null,null,null,null,null,null,null,null,null,null,null,null,null,""]
[null,null,null,null,null,null,null,null,null,null,null,null,null,null,null,""]
[null,null,null,null,null,null,null,null,null,null,null,null,null,null,null,""]
[null,null,null,null,null,null,null,null,null,null,null,null,null,null,null,{"$f":"IF(L796=\"\",\"\",L796&\" \"&D796&IF(H796=\"\",\"\",\" (\"&H796&\")\"))","v":""}]
[null,null,null,null,null,null,null,null,null,null,null,null,null,null,null,""]
[null,null,null,null,null,null,null,null,null,null,null,null,null,null,null,""]
[null,null,null,null,null,null,null,null,null,null,null,null,null,null,null,""]
[null,null,null,null,null,null,null,null,null,null,null,null,null,null,null,""]
[null,null,null,null,null,null,null,null,null,null,null,null,null,null,null,""]
[null,null,null,null,null,null,null,null,null,null,null,null,null,null,null,""]
[null,null,null,null,null,null,null,null,null,null,null,null,null,null,null,""]
[null,null,null,null,null,null,null,null,null,null,null,null,null,null,null,""]
[null,null,null,null,null,null,null,null,null,null,null,null,null,null,null,""]
[null,null,null,null,null,null,null,null,null,null,null,null,null,null,null,""]
[null,null,null,null,null,null,null,null,null,null,null,null,null,null,null,""]
[null,null,null,null,null,null,null,null,null,null,null,null,null,null,null,""]
[null,null,null,null,null,null,null,null,null,null,null,null,null,null,null,""]
[null,null,null,null,null,null,null,null,null,null,null,null,null,null,null,""]
[null,null,null,null,null,null,null,null,null,null,null,null,null,null,null,""]
[null,null,null,null,null,null,null,null,null,null,null,null,null,null,null,""]
[null,null,null,null,null,null,null,null,null,null,null,null,null,null,null,""]
[null,null,null,null,null,null,null,null,null,null,null,null,null,null,null,""]
[null,null,null,null,null,null,null,null,null,null,null,null,null,null,null,""]
[null,null,null,null,null,null,null,null,null,null,null,null,null,null,null,""]
[null,null,null,null,null,null,null,null,null,null,null,null,null,null,null,""]
[null,null,null,null,null,null,null,null,null,null,null,null,null,null,null,""]
[null,null,null,null,null,null,null,null,null,null,null,null,null,null,null,""]
[null,null,null,null,null,null,null,null,null,null,null,null,null,null,null,""]
[null,null,null,null,null,null,null,null,null,null,null,null,null,null,null,""]
[null,null,null,null,null,null,null,null,null,null,null,null,null,null,null,""]
[null,null,null,null,null,null,null,null,null,null,null,null,null,null,null,""]
[null,null,null,null,null,null,null,null,null,null,null,null,null,null,null,""]
[null,null,null,null,null,null,null,null,null,null,null,null,null,null,null,""]
[null,null,null,null,null,null,null,null,null,null,null,null,null,null,null,""]
[null,null,null,null,null,null,null,null,null,null,null,null,null,null,null,""]
[null,null,null,null,null,null,null,null,null,null,null,null,null,null,null,{"$f":"IF(L828=\"\",\"\",L828&\" \"&D828&IF(H828=\"\",\"\",\" (\"&H828&\")\"))","v":""}]
[null,null,null,null,null,null,null,null,null,null,null,null,null,null,null,""]
[null,null,null,null,null,null,null,null,null,null,null,null,null,null,null,""]
[null,null,null,null,null,null,null,null,null,null,null,null,null,null,null,""]
[null,null,null,null,null,null,null,null,null,null,null,null,null,null,null,""]
[null,null,null,null,null,null,null,null,null,null,null,null,null,null,null,""]
[null,null,null,null,null,null,null,null,null,null,null,null,null,null,null,""]
[null,null,null,null,null,null,null,null,null,null,null,null,null,null,null,""]
[null,null,null,null,null,null,null,null,null,null,null,null,null,null,null,""]
[null,null,null,null,null,null,null,null,null,null,null,null,null,null,null,""]
[null,null,null,null,null,null,null,null,null,null,null,null,null,null,null,""]
[null,null,null,null,null,null,null,null,null,null,null,null,null,null,null,""]
[null,null,null,null,null,null,null,null,null,null,null,null,null,null,null,""]
[null,null,null,null,null,null,null,null,null,null,null,null,null,null,null,""]
[null,null,null,null,null,null,null,null,null,null,null,null,null,null,null,""]
[null,null,null,null,null,null,null,null,null,null,null,null,null,null,null,""]
[null,null,null,null,null,null,null,null,null,null,null,null,null,null,null,""]
[null,null,null,null,null,null,null,null,null,null,null,null,null,null,null,""]
[null,null,null,null,null,null,null,null,null,null,null,null,null,null,null,""]
[null,null,null,null,null,null,null,null,null,null,null,null,null,null,null,""]
[null,null,null,null,null,null,null,null,null,null,null,null,null,null,null,""]
[null,null,null,null,null,null,null,null,null,null,null,null,null,null,null,""]
[null,null,null,null,null,null,null,null,null,null,null,null,null,null,null,""]
[null,null,null,null,null,null,null,null,null,null,null,null,null,null,null,""]
[null,null,null,null,null,null,null,null,null,null,null,null,null,null,null,""]
[null,null,null,null,null,null,null,null,null,null,null,null,null,null,null,""]
[null,null,null,null,null,null,null,null,null,null,null,null,null,null,null,""]
[null,null,null,null,null,null,null,null,null,null,null,null,null,null,null,""]
[null,null,null,null,null,null,null,null,null,null,null,null,null,null,null,""]
[null,null,null,null,null,null,null,null,null,null,null,null,null,null,null,""]
[null,null,null,null,null,null,null,null,null,null,null,null,null,null,null,""]
[null,null,null,null,null,null,null,null,null,null,null,null,null,null,null,""]
[null,null,null,null,null,null,null,null,null,null,null,null,null,null,null,{"$f":"IF(L860=\"\",\"\",L860&\" \"&D860&IF(H860=\"\",\"\",\" (\"&H860&\")\"))","v":""}]
[null,null,null,null,null,null,null,null,null,null,null,null,null,null,null,""]
[null,null,null,null,null,null,null,null,null,null,null,null,null,null,null,""]
[null,null,null,null,null,null,null,null,null,null,null,null,null,null,null,""]
[null,null,null,null,null,null,null,null,null,null,null,null,null,null,null,""]
[null,null,null,null,null,null,null,null,null,null,null,null,null,null,null,""]
[null,null,null,null,null,null,null,null,null,null,null,null,null,null,null,""]
[null,null,null,null,null,null,null,null,null,null,null,null,null,null,null,""]
[null,null,null,null,null,null,null,null,null,null,null,null,null,null,null,""]
[null,null,null,null,null,null,null,null,null,null,null,null,null,null,null,""]
[null,null,null,null,null,null,null,null,null,null,null,null,null,null,null,""]
[null,null,null,null,null,null,null,null,null,null,null,null,null,null,null,""]
[null,null,null,null,null,null,null,null,null,null,null,null,null,null,null,""]
[null,null,null,null,null,null,null,null,null,null,null,null,null,null,null,""]
[null,null,null,null,null,null,null,null,null,null,null,null,null,null,null,""]
[null,null,null,null,null,null,null,null,null,null,null,null,null,null,null,""]
[null,null,null,null,null,null,null,null,null,null,null,null,null,null,null,""]
[null,null,null,null,null,null,null,null,null,null,null,null,null,null,null,""]
[null,null,null,null,null,null,null,null,null,null,null,null,null,null,null,""]
[null,null,null,null,null,null,null,null,null,null,null,null,null,null,null,""]
[null,null,null,null,null,null,null,null,null,null,null,null,null,null,null,""]
[null,null,null,null,null,null,null,null,null,null,null,null,null,null,null,""]
[null,null,null,null,null,null,null,null,null,null,null,null,null,null,null,""]
[null,null,null,null,null,null,null,null,null,null,null,null,null,null,null,""]
[null,null,null,null,null,null,null,null,null,null,null,null,null,null,null,""]
[null,null,null,null,null,null,null,null,null,null,null,null,null,null,null,""]
[null,null,null,null,null,null,null,null,null,null,null,null,null,null,null,""]
[null,null,null,null,null,null,null,null,null,null,null,null,null,null,null,""]
[null,null,null,null,null,null,null,null,null,null,null,null,null,null,null,""]
[null,null,null,null,null,null,null,null,null,null,null,null,null,null,null,""]
[null,null,null,null,null,null,null,null,null,null,null,null,null,null,null,""]
[null,null,null,null,null,null,null,null,null,null,null,null,null,null,null,""]
[null,null,null,null,null,null,null,null,null,null,null,null,null,null,null,{"$f":"IF(L892=\"\",\"\",L892&\" \"&D892&IF(H892=\"\",\"\",\" (\"&H892&\")\"))","v":""}]
[null,null,null,null,null,null,null,null,null,null,null,null,null,null,null,""]
[null,null,null,null,null,null,null,null,null,null,null,null,null,null,null,""]
[null,null,null,null,null,null,null,null,null,null,null,null,null,null,null,""]
[null,null,null,null,null,null,null,null,null,null,null,null,null,null,null,""]
[null,null,null,null,null,null,null,null,null,null,null,null,null,null,null,""]
[null,null,null,null,null,null,null,null,null,null,null,null,null,null,null,""]
[null,null,null,null,null,null,null,null,null,null,null,null,null,null,null,""]
[null,null,null,null,null,null,null,null,null,null,null,null,null,null,null,""]
[null,null,null,null,null,null,null,null,null,null,null,null,null,null,null,""]
[null,null,null,null,null,null,null,null,null,null,null,null,null,null,null,""]
[null,null,null,null,null,null,null,null,null,null,null,null,null,null,null,""]
[null,null,null,null,null,null,null,null,null,null,null,null,null,null,null,""]
[null,null,null,null,null,null,null,null,null,null,null,null,null,null,null,""]
[null,null,null,null,null,null,null,null,null,null,null,null,null,null,null,""]
[null,null,null,null,null,null,null,null,null,null,null,null,null,null,null,""]
[null,null,null,null,null,null,null,null,null,null,null,null,null,null,null,""]
[null,null,null,null,null,null,null,null,null,null,null,null,null,null,null,""]
[null,null,null,null,null,null,null,null,null,null,null,null,null,null,null,""]
[null,null,null,null,null,null,null,null,null,null,null,null,null,null,null,""]
[null,null,null,null,null,null,null,null,null,null,null,null,null,null,null,""]
[null,null,null,null,null,null,null,null,null,null,null,null,null,null,null,""]
[null,null,null,null,null,null,null,null,null,null,null,null,null,null,null,""]
[null,null,null,null,null,null,null,null,null,null,null,null,null,null,null,""]
[null,null,null,null,null,null,null,null,null,null,null,null,null,null,null,""]
[null,null,null,null,null,null,null,null,null,null,null,null,null,null,null,""]
[null,null,null,null,null,null,null,null,null,null,null,null,null,null,null,""]
[null,null,null,null,null,null,null,null,null,null,null,null,null,null,null,""]
[null,null,null,null,null,null,null,null,null,null,null,null,null,null,null,""]
[null,null,null,null,null,null,null,null,null,null,null,null,null,null,null,""]
[null,null,null,null,null,null,null,null,null,null,null,null,null,null,null,""]
[null,null,null,null,null,null,null,null,null,null,null,null,null,null,null,""]
[null,null,null,null,null,null,null,null,null,null,null,null,null,null,null,{"$f":"IF(L924=\"\",\"\",L924&\" \"&D924&IF(H924=\"\",\"\",\" (\"&H924&\")\"))","v":""}]
[null,null,null,null,null,null,null,null,null,null,null,null,null,null,null,""]
[null,null,null,null,null,null,null,null,null,null,null,null,null,null,null,""]
[null,null,null,null,null,null,null,null,null,null,null,null,null,null,null,""]
[null,null,null,null,null,null,null,null,null,null,null,null,null,null,null,""]
[null,null,null,null,null,null,null,null,null,null,null,null,null,null,null,""]
[null,null,null,null,null,null,null,null,null,null,null,null,null,null,null,""]
[null,null,null,null,null,null,null,null,null,null,null,null,null,null,null,""]
[null,null,null,null,null,null,null,null,null,null,null,null,null,null,null,""]
[null,null,null,null,null,null,null,null,null,null,null,null,null,null,null,""]
[null,null,null,null,null,null,null,null,null,null,null,null,null,null,null,""]
[null,null,null,null,null,null,null,null,null,null,null,null,null,null,null,""]
[null,null,null,null,null,null,null,null,null,null,null,null,null,null,null,""]
[null,null,null,null,null,null,null,null,null,null,null,null,null,null,null,""]
[null,null,null,null,null,null,null,null,null,null,null,null,null,null,null,""]
[null,null,null,null,null,null,null,null,null,null,null,null,null,null,null,""]
[null,null,null,null,null,null,null,null,null,null,null,null,null,null,null,""]
[null,null,null,null,null,null,null,null,null,null,null,null,null,null,null,""]
[null,null,null,null,null,null,null,null,null,null,null,null,null,null,null,""]
[null,null,null,null,null,null,null,null,null,null,null,null,null,null,null,""]
[null,null,null,null,null,null,null,null,null,null,null,null,null,null,null,""]
[null,null,null,null,null,null,null,null,null,null,null,null,null,null,null,""]
[null,null,null,null,null,null,null,null,null,null,null,null,null,null,null,""]
[null,null,null,null,null,null,null,null,null,null,null,null,null,null,null,""]
[null,null,null,null,null,null,null,null,null,null,null,null,null,null,null,""]
[null,null,null,null,null,null,null,null,null,null,null,null,null,null,null,""]

{"sheet":"Day 1","index":2,"n_rows":93,"n_cols":41,"rows_kept":93,"cut":false,"hidden":false,"merged":[[84,20,84,23],[84,24,84,27],[84,28,84,31],[84,32,84,35],[84,36,84,39],[84,0,84,3],[84,4,84,7],[84,8,84,11],[84,12,84,15],[84,16,84,19],[75,20,75,23],[75,24,75,27],[75,28,75,31],[75,32,75,35],[75,36,75,39],[75,0,75,3],[75,4,75,7],[75,8,75,11],[75,12,75,15],[75,16,75,19],[66,20,66,23],[66,24,66,27],[66,28,66,31],[66,32,66,35],[66,36,66,39],[66,0,66,3],[66,4,66,7],[66,8,66,11],[66,12,66,15],[66,16,66,19],[57,20,57,23],[57,24,57,27],[57,28,57,31],[57,32,57,35],[57,36,57,39],[57,0,57,3],[57,4,57,7],[57,8,57,11],[57,12,57,15],[57,16,57,19],[0,0,1,2],[0,3,1,8],[0,32,1,40],[3,0,3,3],[3,4,3,7],[3,8,3,11],[3,12,3,15],[3,16,3,19],[3,24,3,27],[0,11,1,19],[3,28,3,31],[3,32,3,35],[3,36,3,39],[3,20,3,23],[12,32,12,35],[12,36,12,39],[21,32,21,35],[12,16,12,19],[12,20,12,23],[21,36,21,39],[12,24,12,27],[12,28,12,31],[21,24,21,27],[21,28,21,31],[21,16,21,19],[21,20,21,23],[12,8,12,11],[12,12,12,15],[21,8,21,11],[21,12,21,15],[30,0,30,3],[30,4,30,7],[30,8,30,11],[30,12,30,15],[12,0,12,3],[12,4,12,7],[21,0,21,3],[21,4,21,7],[30,16,30,19],[39,8,39,11],[39,12,39,15],[30,36,30,39],[39,36,39,39],[30,32,30,35],[30,20,30,23],[30,24,30,27],[30,28,30,31],[39,28,39,31],[48,36,48,39],[39,24,39,27],[48,0,48,3],[48,4,48,7],[48,8,48,11],[48,12,48,15],[39,0,39,3],[39,4,39,7],[48,16,48,19],[48,20,48,23],[48,24,48,27],[48,28,48,31],[39,32,39,35],[39,16,39,19],[39,20,39,23],[48,32,48,35]]}
[1,null,null,"<= Jour",null,null,null,null,null,null,null,{"$f":"VLOOKUP(A1,Concours!$C$1:$E$15,2,0)","v":{"$error":"#N/A"}},null,null,null,null,null,null,null,null,null,null,null,null,null,null,null,null,null,null,null,null,{"$f":"SUM(AO10:AO129)","v":0}]
[]
[]
[1,null,null,null,{"$f":"A4+1","v":2},null,null,null,{"$f":"E4+1","v":3},null,null,null,{"$f":"I4+1","v":4},null,null,null,{"$f":"M4+1","v":5},null,null,null,{"$f":"Q4+1","v":6},null,null,null,{"$f":"U4+1","v":7},null,null,null,{"$f":"Y4+1","v":8},null,null,null,{"$f":"AC4+1","v":9},null,null,null,{"$f":"AG4+1","v":10}]
[]
[]
[]
[]
[]
[]
[null,null,{"$f":"SUM(C5:C10)","v":0},{"$f":"IF(SUM(D5:D10)=0,\"\",AVERAGE(D5:D10))","v":""},null,null,{"$f":"SUM(G5:G10)","v":0},{"$f":"IF(SUM(H5:H10)=0,\"\",AVERAGE(H5:H10))","v":""},null,null,{"$f":"SUM(K5:K10)","v":0},{"$f":"IF(SUM(L5:L10)=0,\"\",AVERAGE(L5:L10))","v":""},null,null,{"$f":"SUM(O5:O10)","v":0},{"$f":"IF(SUM(P5:P10)=0,\"\",AVERAGE(P5:P10))","v":""},null,null,{"$f":"SUM(S5:S10)","v":0},{"$f":"IF(SUM(T5:T10)=0,\"\",AVERAGE(T5:T10))","v":""},null,null,{"$f":"SUM(W5:W10)","v":0},{"$f":"IF(SUM(X5:X10)=0,\"\",AVERAGE(X5:X10))","v":""},null,null,{"$f":"SUM(AA5:AA10)","v":0},{"$f":"IF(SUM(AB5:AB10)=0,\"\",AVERAGE(AB5:AB10))","v":""},null,null,{"$f":"SUM(AE5:AE10)","v":0},{"$f":"IF(SUM(AF5:AF10)=0,\"\",AVERAGE(AF5:AF10))","v":""},null,null,{"$f":"SUM(AI5:AI10)","v":0},{"$f":"IF(SUM(AJ5:AJ10)=0,\"\",AVERAGE(AJ5:AJ10))","v":""},null,null,{"$f":"SUM(AM5:AM10)","v":0},{"$f":"IF(SUM(AN5:AN10)=0,\"\",AVERAGE(AN5:AN10))","v":""},{"$f":"C11+G11+K11+O11+S11+W11+AA11+AE11+AI11+AM11","v":0}]
[null,null,null,null,null,null,null,null,null,null,null,null,null,null,null,null,null,null,null,null,null,null,null,null,null,null,null,null,null,null,null,null,null,null,null,null,null,null,{"$f":"IF(AJ12<>\"\",VLOOKUP(AJ12,séries,4,FALSE),\"\")","v":""}]
[{"$f":"A4+10","v":11},null,null,null,{"$f":"A13+1","v":12},null,null,null,{"$f":"E13+1","v":13},null,null,null,{"$f":"I13+1","v":14},null,null,null,{"$f":"M13+1","v":15},null,null,null,{"$f":"Q13+1","v":16},null,null,null,{"$f":"U13+1","v":17},null,null,null,{"$f":"Y13+1","v":18},null,null,null,{"$f":"AC13+1","v":19},null,null,null,{"$f":"AG13+1","v":20}]
[]
[]
[]
[]
[]
[]
[null,null,{"$f":"SUM(C14:C19)","v":0},{"$f":"IF(SUM(D14:D19)=0,\"\",AVERAGE(D14:D19))","v":""},null,null,{"$f":"SUM(G14:G19)","v":0},{"$f":"IF(SUM(H14:H19)=0,\"\",AVERAGE(H14:H19))","v":""},null,null,{"$f":"SUM(K14:K19)","v":0},{"$f":"IF(SUM(L14:L19)=0,\"\",AVERAGE(L14:L19))","v":""},null,null,{"$f":"SUM(O14:O19)","v":0},{"$f":"IF(SUM(P14:P19)=0,\"\",AVERAGE(P14:P19))","v":""},null,null,{"$f":"SUM(S14:S19)","v":0},{"$f":"IF(SUM(T14:T19)=0,\"\",AVERAGE(T14:T19))","v":""},null,null,{"$f":"SUM(W14:W19)","v":0},{"$f":"IF(SUM(X14:X19)=0,\"\",AVERAGE(X14:X19))","v":""},null,null,{"$f":"SUM(AA14:AA19)","v":0},{"$f":"IF(SUM(AB14:AB19)=0,\"\",AVERAGE(AB14:AB19))","v":""},null,null,{"$f":"SUM(AE14:AE19)","v":0},{"$f":"IF(SUM(AF14:AF19)=0,\"\",AVERAGE(AF14:AF19))","v":""},null,null,{"$f":"SUM(AI14:AI19)","v":0},{"$f":"IF(SUM(AJ14:AJ19)=0,\"\",AVERAGE(AJ14:AJ19))","v":""},null,null,{"$f":"SUM(AM14:AM19)","v":0},{"$f":"IF(SUM(AN14:AN19)=0,\"\",AVERAGE(AN14:AN19))","v":""},{"$f":"C20+G20+K20+O20+S20+W20+AA20+AE20+AI20+AM20","v":0}]
[null,null,null,null,null,null,null,null,null,null,null,null,null,null,null,null,null,null,null,null,null,null,null,null,null,null,null,null,null,null,null,null,null,null,null,null,null,null,{"$f":"IF(AJ21<>\"\",VLOOKUP(AJ21,séries,4,FALSE),\"\")","v":""}]
[{"$f":"A13+10","v":21},null,null,null,{"$f":"A22+1","v":22},null,null,null,{"$f":"E22+1","v":23},null,null,null,{"$f":"I22+1","v":24},null,null,null,{"$f":"M22+1","v":25},null,null,null,{"$f":"Q22+1","v":26},null,null,null,{"$f":"U22+1","v":27},null,null,null,{"$f":"Y22+1","v":28},null,null,null,{"$f":"AC22+1","v":29},null,null,null,{"$f":"AG22+1","v":30}]
[]
[]
[]
[]
[]
[]
[null,null,{"$f":"SUM(C23:C28)","v":0},{"$f":"IF(SUM(D23:D28)=0,\"\",AVERAGE(D23:D28))","v":""},null,null,{"$f":"SUM(G23:G28)","v":0},{"$f":"IF(SUM(H23:H28)=0,\"\",AVERAGE(H23:H28))","v":""},null,null,{"$f":"SUM(K23:K28)","v":0},{"$f":"IF(SUM(L23:L28)=0,\"\",AVERAGE(L23:L28))","v":""},null,null,{"$f":"SUM(O23:O28)","v":0},{"$f":"IF(SUM(P23:P28)=0,\"\",AVERAGE(P23:P28))","v":""},null,null,{"$f":"SUM(S23:S28)","v":0},{"$f":"IF(SUM(T23:T28)=0,\"\",AVERAGE(T23:T28))","v":""},null,null,{"$f":"SUM(W23:W28)","v":0},{"$f":"IF(SUM(X23:X28)=0,\"\",AVERAGE(X23:X28))","v":""},null,null,{"$f":"SUM(AA23:AA28)","v":0},{"$f":"IF(SUM(AB23:AB28)=0,\"\",AVERAGE(AB23:AB28))","v":""},null,null,{"$f":"SUM(AE23:AE28)","v":0},{"$f":"IF(SUM(AF23:AF28)=0,\"\",AVERAGE(AF23:AF28))","v":""},null,null,{"$f":"SUM(AI23:AI28)","v":0},{"$f":"IF(SUM(AJ23:AJ28)=0,\"\",AVERAGE(AJ23:AJ28))","v":""},null,null,{"$f":"SUM(AM23:AM28)","v":0},{"$f":"IF(SUM(AN23:AN28)=0,\"\",AVERAGE(AN23:AN28))","v":""},{"$f":"C29+G29+K29+O29+S29+W29+AA29+AE29+AI29+AM29","v":0}]
[null,null,null,null,null,null,null,null,null,null,null,null,null,null,null,null,null,null,null,null,null,null,null,null,null,null,null,null,null,null,null,null,null,null,null,null,null,null,{"$f":"IF(AJ30<>\"\",VLOOKUP(AJ30,séries,4,FALSE),\"\")","v":""}]
[{"$f":"A22+10","v":31},null,null,null,{"$f":"A31+1","v":32},null,null,null,{"$f":"E31+1","v":33},null,null,null,{"$f":"I31+1","v":34},null,null,null,{"$f":"M31+1","v":35},null,null,null,{"$f":"Q31+1","v":36},null,null,null,{"$f":"U31+1","v":37},null,null,null,{"$f":"Y31+1","v":38},null,null,null,{"$f":"AC31+1","v":39},null,null,null,{"$f":"AG31+1","v":40}]
[]
[]
[]
[]
[]
[]
[null,null,{"$f":"SUM(C32:C37)","v":0},{"$f":"IF(SUM(D32:D37)=0,\"\",AVERAGE(D32:D37))","v":""},null,null,{"$f":"SUM(G32:G37)","v":0},{"$f":"IF(SUM(H32:H37)=0,\"\",AVERAGE(H32:H37))","v":""},null,null,{"$f":"SUM(K32:K37)","v":0},{"$f":"IF(SUM(L32:L37)=0,\"\",AVERAGE(L32:L37))","v":""},null,null,{"$f":"SUM(O32:O37)","v":0},{"$f":"IF(SUM(P32:P37)=0,\"\",AVERAGE(P32:P37))","v":""},null,null,{"$f":"SUM(S32:S37)","v":0},{"$f":"IF(SUM(T32:T37)=0,\"\",AVERAGE(T32:T37))","v":""},null,null,{"$f":"SUM(W32:W37)","v":0},{"$f":"IF(SUM(X32:X37)=0,\"\",AVERAGE(X32:X37))","v":""},null,null,{"$f":"SUM(AA32:AA37)","v":0},{"$f":"IF(SUM(AB32:AB37)=0,\"\",AVERAGE(AB32:AB37))","v":""},null,null,{"$f":"SUM(AE32:AE37)","v":0},{"$f":"IF(SUM(AF32:AF37)=0,\"\",AVERAGE(AF32:AF37))","v":""},null,null,{"$f":"SUM(AI32:AI37)","v":0},{"$f":"IF(SUM(AJ32:AJ37)=0,\"\",AVERAGE(AJ32:AJ37))","v":""},null,null,{"$f":"SUM(AM32:AM37)","v":0},{"$f":"IF(SUM(AN32:AN37)=0,\"\",AVERAGE(AN32:AN37))","v":""},{"$f":"C38+G38+K38+O38+S38+W38+AA38+AE38+AI38+AM38","v":0}]
[null,null,null,null,null,null,null,null,null,null,null,null,null,null,null,null,null,null,null,null,null,null,null,null,null,null,null,null,null,null,null,null,null,null,null,null,null,null,{"$f":"IF(AJ39<>\"\",VLOOKUP(AJ39,séries,4,FALSE),\"\")","v":""}]
[{"$f":"A31+10","v":41},null,null,null,{"$f":"A40+1","v":42},null,null,null,{"$f":"E40+1","v":43},null,null,null,{"$f":"I40+1","v":44},null,null,null,{"$f":"M40+1","v":45},null,null,null,{"$f":"Q40+1","v":46},null,null,null,{"$f":"U40+1","v":47},null,null,null,{"$f":"Y40+1","v":48},null,null,null,{"$f":"AC40+1","v":49},null,null,null,{"$f":"AG40+1","v":50}]
[]
[]
[]
[]
[]
[]
[null,null,{"$f":"SUM(C41:C46)","v":0},{"$f":"IF(SUM(D41:D46)=0,\"\",AVERAGE(D41:D46))","v":""},null,null,{"$f":"SUM(G41:G46)","v":0},{"$f":"IF(SUM(H41:H46)=0,\"\",AVERAGE(H41:H46))","v":""},null,null,{"$f":"SUM(K41:K46)","v":0},{"$f":"IF(SUM(L41:L46)=0,\"\",AVERAGE(L41:L46))","v":""},null,null,{"$f":"SUM(O41:O46)","v":0},{"$f":"IF(SUM(P41:P46)=0,\"\",AVERAGE(P41:P46))","v":""},null,null,{"$f":"SUM(S41:S46)","v":0},{"$f":"IF(SUM(T41:T46)=0,\"\",AVERAGE(T41:T46))","v":""},null,null,{"$f":"SUM(W41:W46)","v":0},{"$f":"IF(SUM(X41:X46)=0,\"\",AVERAGE(X41:X46))","v":""},null,null,{"$f":"SUM(AA41:AA46)","v":0},{"$f":"IF(SUM(AB41:AB46)=0,\"\",AVERAGE(AB41:AB46))","v":""},null,null,{"$f":"SUM(AE41:AE46)","v":0},{"$f":"IF(SUM(AF41:AF46)=0,\"\",AVERAGE(AF41:AF46))","v":""},null,null,{"$f":"SUM(AI41:AI46)","v":0},{"$f":"IF(SUM(AJ41:AJ46)=0,\"\",AVERAGE(AJ41:AJ46))","v":""},null,null,{"$f":"SUM(AM41:AM46)","v":0},{"$f":"IF(SUM(AN41:AN46)=0,\"\",AVERAGE(AN41:AN46))","v":""},{"$f":"C47+G47+K47+O47+S47+W47+AA47+AE47+AI47+AM47","v":0}]
[null,null,null,null,null,null,null,null,null,null,null,null,null,null,null,null,null,null,null,null,null,null,null,null,null,null,null,null,null,null,null,null,null,null,null,null,null,null,{"$f":"IF(AJ48<>\"\",VLOOKUP(AJ48,séries,4,FALSE),\"\")","v":""}]
[{"$f":"A40+10","v":51},null,null,null,{"$f":"A49+1","v":52},null,null,null,{"$f":"E49+1","v":53},null,null,null,{"$f":"I49+1","v":54},null,null,null,{"$f":"M49+1","v":55},null,null,null,{"$f":"Q49+1","v":56},null,null,null,{"$f":"U49+1","v":57},null,null,null,{"$f":"Y49+1","v":58},null,null,null,{"$f":"AC49+1","v":59},null,null,null,{"$f":"AG49+1","v":60}]
[]
[]
[]
[]
[]
[]
[null,null,{"$f":"SUM(C50:C55)","v":0},{"$f":"IF(SUM(D50:D55)=0,\"\",AVERAGE(D50:D55))","v":""},null,null,{"$f":"SUM(G50:G55)","v":0},{"$f":"IF(SUM(H50:H55)=0,\"\",AVERAGE(H50:H55))","v":""},null,null,{"$f":"SUM(K50:K55)","v":0},{"$f":"IF(SUM(L50:L55)=0,\"\",AVERAGE(L50:L55))","v":""},null,null,{"$f":"SUM(O50:O55)","v":0},{"$f":"IF(SUM(P50:P55)=0,\"\",AVERAGE(P50:P55))","v":""},null,null,{"$f":"SUM(S50:S55)","v":0},{"$f":"IF(SUM(T50:T55)=0,\"\",AVERAGE(T50:T55))","v":""},null,null,{"$f":"SUM(W50:W55)","v":0},{"$f":"IF(SUM(X50:X55)=0,\"\",AVERAGE(X50:X55))","v":""},null,null,{"$f":"SUM(AA50:AA55)","v":0},{"$f":"IF(SUM(AB50:AB55)=0,\"\",AVERAGE(AB50:AB55))","v":""},null,null,{"$f":"SUM(AE50:AE55)","v":0},{"$f":"IF(SUM(AF50:AF55)=0,\"\",AVERAGE(AF50:AF55))","v":""},null,null,{"$f":"SUM(AI50:AI55)","v":0},{"$f":"IF(SUM(AJ50:AJ55)=0,\"\",AVERAGE(AJ50:AJ55))","v":""},null,null,{"$f":"SUM(AM50:AM55)","v":0},{"$f":"IF(SUM(AN50:AN55)=0,\"\",AVERAGE(AN50:AN55))","v":""},{"$f":"C56+G56+K56+O56+S56+W56+AA56+AE56+AI56+AM56","v":0}]
[null,null,null,null,null,null,null,null,null,null,null,null,null,null,null,null,null,null,null,null,null,null,null,null,null,null,null,null,null,null,null,null,null,null,null,null,null,null,{"$f":"IF(AJ57<>\"\",VLOOKUP(AJ57,séries,4,FALSE),\"\")","v":""}]
[{"$f":"A49+10","v":61},null,null,null,{"$f":"A58+1","v":62},null,null,null,{"$f":"E58+1","v":63},null,null,null,{"$f":"I58+1","v":64},null,null,null,{"$f":"M58+1","v":65},null,null,null,{"$f":"Q58+1","v":66},null,null,null,{"$f":"U58+1","v":67},null,null,null,{"$f":"Y58+1","v":68},null,null,null,{"$f":"AC58+1","v":69},null,null,null,{"$f":"AG58+1","v":70}]
[]
[]
[]
[]
[]
[]
[null,null,{"$f":"SUM(C59:C64)","v":0},{"$f":"IF(SUM(D59:D64)=0,\"\",AVERAGE(D59:D64))","v":""},null,null,{"$f":"SUM(G59:G64)","v":0},{"$f":"IF(SUM(H59:H64)=0,\"\",AVERAGE(H59:H64))","v":""},null,null,{"$f":"SUM(K59:K64)","v":0},{"$f":"IF(SUM(L59:L64)=0,\"\",AVERAGE(L59:L64))","v":""},null,null,{"$f":"SUM(O59:O64)","v":0},{"$f":"IF(SUM(P59:P64)=0,\"\",AVERAGE(P59:P64))","v":""},null,null,{"$f":"SUM(S59:S64)","v":0},{"$f":"IF(SUM(T59:T64)=0,\"\",AVERAGE(T59:T64))","v":""},null,null,{"$f":"SUM(W59:W64)","v":0},{"$f":"IF(SUM(X59:X64)=0,\"\",AVERAGE(X59:X64))","v":""},null,null,{"$f":"SUM(AA59:AA64)","v":0},{"$f":"IF(SUM(AB59:AB64)=0,\"\",AVERAGE(AB59:AB64))","v":""},null,null,{"$f":"SUM(AE59:AE64)","v":0},{"$f":"IF(SUM(AF59:AF64)=0,\"\",AVERAGE(AF59:AF64))","v":""},null,null,{"$f":"SUM(AI59:AI64)","v":0},{"$f":"IF(SUM(AJ59:AJ64)=0,\"\",AVERAGE(AJ59:AJ64))","v":""},null,null,{"$f":"SUM(AM59:AM64)","v":0},{"$f":"IF(SUM(AN59:AN64)=0,\"\",AVERAGE(AN59:AN64))","v":""},{"$f":"C65+G65+K65+O65+S65+W65+AA65+AE65+AI65+AM65","v":0}]
[null,null,null,null,null,null,null,null,null,null,null,null,null,null,null,null,null,null,null,null,null,null,null,null,null,null,null,null,null,null,null,null,null,null,null,null,null,null,{"$f":"IF(AJ66<>\"\",VLOOKUP(AJ66,séries,4,FALSE),\"\")","v":""}]
[{"$f":"A58+10","v":71},null,null,null,{"$f":"A67+1","v":72},null,null,null,{"$f":"E67+1","v":73},null,null,null,{"$f":"I67+1","v":74},null,null,null,{"$f":"M67+1","v":75},null,null,null,{"$f":"Q67+1","v":76},null,null,null,{"$f":"U67+1","v":77},null,null,null,{"$f":"Y67+1","v":78},null,null,null,{"$f":"AC67+1","v":79},null,null,null,{"$f":"AG67+1","v":80}]
[]
[]
[]
[]
[]
[]
[null,null,{"$f":"SUM(C68:C73)","v":0},{"$f":"IF(SUM(D68:D73)=0,\"\",AVERAGE(D68:D73))","v":""},null,null,{"$f":"SUM(G68:G73)","v":0},{"$f":"IF(SUM(H68:H73)=0,\"\",AVERAGE(H68:H73))","v":""},null,null,{"$f":"SUM(K68:K73)","v":0},{"$f":"IF(SUM(L68:L73)=0,\"\",AVERAGE(L68:L73))","v":""},null,null,{"$f":"SUM(O68:O73)","v":0},{"$f":"IF(SUM(P68:P73)=0,\"\",AVERAGE(P68:P73))","v":""},null,null,{"$f":"SUM(S68:S73)","v":0},{"$f":"IF(SUM(T68:T73)=0,\"\",AVERAGE(T68:T73))","v":""},null,null,{"$f":"SUM(W68:W73)","v":0},{"$f":"IF(SUM(X68:X73)=0,\"\",AVERAGE(X68:X73))","v":""},null,null,{"$f":"SUM(AA68:AA73)","v":0},{"$f":"IF(SUM(AB68:AB73)=0,\"\",AVERAGE(AB68:AB73))","v":""},null,null,{"$f":"SUM(AE68:AE73)","v":0},{"$f":"IF(SUM(AF68:AF73)=0,\"\",AVERAGE(AF68:AF73))","v":""},null,null,{"$f":"SUM(AI68:AI73)","v":0},{"$f":"IF(SUM(AJ68:AJ73)=0,\"\",AVERAGE(AJ68:AJ73))","v":""},null,null,{"$f":"SUM(AM68:AM73)","v":0},{"$f":"IF(SUM(AN68:AN73)=0,\"\",AVERAGE(AN68:AN73))","v":""},{"$f":"C74+G74+K74+O74+S74+W74+AA74+AE74+AI74+AM74","v":0}]
[null,null,null,null,null,null,null,null,null,null,null,null,null,null,null,null,null,null,null,null,null,null,null,null,null,null,null,null,null,null,null,null,null,null,null,null,null,null,{"$f":"IF(AJ75<>\"\",VLOOKUP(AJ75,séries,4,FALSE),\"\")","v":""}]
[{"$f":"A67+10","v":81},null,null,null,{"$f":"A76+1","v":82},null,null,null,{"$f":"E76+1","v":83},null,null,null,{"$f":"I76+1","v":84},null,null,null,{"$f":"M76+1","v":85},null,null,null,{"$f":"Q76+1","v":86},null,null,null,{"$f":"U76+1","v":87},null,null,null,{"$f":"Y76+1","v":88},null,null,null,{"$f":"AC76+1","v":89},null,null,null,{"$f":"AG76+1","v":90}]
[]
[]
[]
[]
[]
[]
[null,null,{"$f":"SUM(C77:C82)","v":0},{"$f":"IF(SUM(D77:D82)=0,\"\",AVERAGE(D77:D82))","v":""},null,null,{"$f":"SUM(G77:G82)","v":0},{"$f":"IF(SUM(H77:H82)=0,\"\",AVERAGE(H77:H82))","v":""},null,null,{"$f":"SUM(K77:K82)","v":0},{"$f":"IF(SUM(L77:L82)=0,\"\",AVERAGE(L77:L82))","v":""},null,null,{"$f":"SUM(O77:O82)","v":0},{"$f":"IF(SUM(P77:P82)=0,\"\",AVERAGE(P77:P82))","v":""},null,null,{"$f":"SUM(S77:S82)","v":0},{"$f":"IF(SUM(T77:T82)=0,\"\",AVERAGE(T77:T82))","v":""},null,null,{"$f":"SUM(W77:W82)","v":0},{"$f":"IF(SUM(X77:X82)=0,\"\",AVERAGE(X77:X82))","v":""},null,null,{"$f":"SUM(AA77:AA82)","v":0},{"$f":"IF(SUM(AB77:AB82)=0,\"\",AVERAGE(AB77:AB82))","v":""},null,null,{"$f":"SUM(AE77:AE82)","v":0},{"$f":"IF(SUM(AF77:AF82)=0,\"\",AVERAGE(AF77:AF82))","v":""},null,null,{"$f":"SUM(AI77:AI82)","v":0},{"$f":"IF(SUM(AJ77:AJ82)=0,\"\",AVERAGE(AJ77:AJ82))","v":""},null,null,{"$f":"SUM(AM77:AM82)","v":0},{"$f":"IF(SUM(AN77:AN82)=0,\"\",AVERAGE(AN77:AN82))","v":""},{"$f":"C83+G83+K83+O83+S83+W83+AA83+AE83+AI83+AM83","v":0}]
[null,null,null,null,null,null,null,null,null,null,null,null,null,null,null,null,null,null,null,null,null,null,null,null,null,null,null,null,null,null,null,null,null,null,null,null,null,null,{"$f":"IF(AJ84<>\"\",VLOOKUP(AJ84,séries,4,FALSE),\"\")","v":""}]
[{"$f":"A76+10","v":91},null,null,null,{"$f":"A85+1","v":92},null,null,null,{"$f":"E85+1","v":93},null,null,null,{"$f":"I85+1","v":94},null,null,null,{"$f":"M85+1","v":95},null,null,null,{"$f":"Q85+1","v":96},null,null,null,{"$f":"U85+1","v":97},null,null,null,{"$f":"Y85+1","v":98},null,null,null,{"$f":"AC85+1","v":99},null,null,null,{"$f":"AG85+1","v":100}]
[]
[]
[]
[]
[]
[]
[null,null,{"$f":"SUM(C86:C91)","v":0},{"$f":"IF(SUM(D86:D91)=0,\"\",AVERAGE(D86:D91))","v":""},null,null,{"$f":"SUM(G86:G91)","v":0},{"$f":"IF(SUM(H86:H91)=0,\"\",AVERAGE(H86:H91))","v":""},null,null,{"$f":"SUM(K86:K91)","v":0},{"$f":"IF(SUM(L86:L91)=0,\"\",AVERAGE(L86:L91))","v":""},null,null,{"$f":"SUM(O86:O91)","v":0},{"$f":"IF(SUM(P86:P91)=0,\"\",AVERAGE(P86:P91))","v":""},null,null,{"$f":"SUM(S86:S91)","v":0},{"$f":"IF(SUM(T86:T91)=0,\"\",AVERAGE(T86:T91))","v":""},null,null,{"$f":"SUM(W86:W91)","v":0},{"$f":"IF(SUM(X86:X91)=0,\"\",AVERAGE(X86:X91))","v":""},null,null,{"$f":"SUM(AA86:AA91)","v":0},{"$f":"IF(SUM(AB86:AB91)=0,\"\",AVERAGE(AB86:AB91))","v":""},null,null,{"$f":"SUM(AE86:AE91)","v":0},{"$f":"IF(SUM(AF86:AF91)=0,\"\",AVERAGE(AF86:AF91))","v":""},null,null,{"$f":"SUM(AI86:AI91)","v":0},{"$f":"IF(SUM(AJ86:AJ91)=0,\"\",AVERAGE(AJ86:AJ91))","v":""},null,null,{"$f":"SUM(AM86:AM91)","v":0},{"$f":"IF(SUM(AN86:AN91)=0,\"\",AVERAGE(AN86:AN91))","v":""},{"$f":"C92+G92+K92+O92+S92+W92+AA92+AE92+AI92+AM92","v":0}]
[null,null,null,null,null,null,null,null,null,null,null,null,null,null,null,null,null,null,null,null,null,null,null,null,null,null,null,null,null,null,null,null,null,null,null,null,null,null,{"$f":"IF(AJ93<>\"\",VLOOKUP(AJ93,séries,4,FALSE),\"\")","v":""}]

{"sheet":"Day 2","index":3,"n_rows":93,"n_cols":41,"rows_kept":93,"cut":false,"hidden":false,"merged":[[66,36,66,39],[75,0,75,3],[75,4,75,7],[75,8,75,11],[75,12,75,15],[75,16,75,19],[75,20,75,23],[84,24,84,27],[84,28,84,31],[84,32,84,35],[84,36,84,39],[75,24,75,27],[75,28,75,31],[75,32,75,35],[75,36,75,39],[84,0,84,3],[84,4,84,7],[84,8,84,11],[84,12,84,15],[84,16,84,19],[84,20,84,23],[66,0,66,3],[66,4,66,7],[66,8,66,11],[66,12,66,15],[66,16,66,19],[66,20,66,23],[66,24,66,27],[66,28,66,31],[66,32,66,35],[48,36,48,39],[57,0,57,3],[57,4,57,7],[57,8,57,11],[57,12,57,15],[57,16,57,19],[57,20,57,23],[57,24,57,27],[57,28,57,31],[57,32,57,35],[57,36,57,39],[48,0,48,3],[48,4,48,7],[48,8,48,11],[48,12,48,15],[48,16,48,19],[48,20,48,23],[48,24,48,27],[48,28,48,31],[48,32,48,35],[30,36,30,39],[39,0,39,3],[39,4,39,7],[39,8,39,11],[39,12,39,15],[39,16,39,19],[39,20,39,23],[39,24,39,27],[39,28,39,31],[39,32,39,35],[39,36,39,39],[30,0,30,3],[30,4,30,7],[30,8,30,11],[30,12,30,15],[30,16,30,19],[30,20,30,23],[30,24,30,27],[30,28,30,31],[30,32,30,35],[12,36,12,39],[21,0,21,3],[21,4,21,7],[21,8,21,11],[21,12,21,15],[21,16,21,19],[21,20,21,23],[21,24,21,27],[21,28,21,31],[21,32,21,35],[21,36,21,39],[12,0,12,3],[12,4,12,7],[12,8,12,11],[12,12,12,15],[12,16,12,19],[12,20,12,23],[12,24,12,27],[12,28,12,31],[12,32,12,35],[0,0,1,2],[0,3,1,8],[0,11,1,19],[0,32,1,40],[3,0,3,3],[3,4,3,7],[3,8,3,11],[3,12,3,15],[3,16,3,19],[3,20,3,23],[3,24,3,27],[3,28,3,31],[3,32,3,35],[3,36,3,39]]}
[2,null,null,"<= Jour",null,null,null,null,null,null,null,{"$f":"VLOOKUP(A1,Concours!$C$1:$E$15,2,0)","v":{"$error":"#N/A"}},null,null,null,null,null,null,null,null,null,null,null,null,null,null,null,null,null,null,null,null,{"$f":"SUM(AO10:AO129)","v":0}]
[]
[]
[1,null,null,null,{"$f":"A4+1","v":2},null,null,null,{"$f":"E4+1","v":3},null,null,null,{"$f":"I4+1","v":4},null,null,null,{"$f":"M4+1","v":5},null,null,null,{"$f":"Q4+1","v":6},null,null,null,{"$f":"U4+1","v":7},null,null,null,{"$f":"Y4+1","v":8},null,null,null,{"$f":"AC4+1","v":9},null,null,null,{"$f":"AG4+1","v":10}]
[]
[]
[]
[]
[]
[]
[null,null,{"$f":"SUM(C5:C10)","v":0},{"$f":"IF(SUM(D5:D10)=0,\"\",AVERAGE(D5:D10))","v":""},null,null,{"$f":"SUM(G5:G10)","v":0},{"$f":"IF(SUM(H5:H10)=0,\"\",AVERAGE(H5:H10))","v":""},null,null,{"$f":"SUM(K5:K10)","v":0},{"$f":"IF(SUM(L5:L10)=0,\"\",AVERAGE(L5:L10))","v":""},null,null,{"$f":"SUM(O5:O10)","v":0},{"$f":"IF(SUM(P5:P10)=0,\"\",AVERAGE(P5:P10))","v":""},null,null,{"$f":"SUM(S5:S10)","v":0},{"$f":"IF(SUM(T5:T10)=0,\"\",AVERAGE(T5:T10))","v":""},null,null,{"$f":"SUM(W5:W10)","v":0},{"$f":"IF(SUM(X5:X10)=0,\"\",AVERAGE(X5:X10))","v":""},null,null,{"$f":"SUM(AA5:AA10)","v":0},{"$f":"IF(SUM(AB5:AB10)=0,\"\",AVERAGE(AB5:AB10))","v":""},null,null,{"$f":"SUM(AE5:AE10)","v":0},{"$f":"IF(SUM(AF5:AF10)=0,\"\",AVERAGE(AF5:AF10))","v":""},null,null,{"$f":"SUM(AI5:AI10)","v":0},{"$f":"IF(SUM(AJ5:AJ10)=0,\"\",AVERAGE(AJ5:AJ10))","v":""},null,null,{"$f":"SUM(AM5:AM10)","v":0},{"$f":"IF(SUM(AN5:AN10)=0,\"\",AVERAGE(AN5:AN10))","v":""},{"$f":"C11+G11+K11+O11+S11+W11+AA11+AE11+AI11+AM11","v":0}]
[null,null,null,null,null,null,null,null,null,null,null,null,null,null,null,null,null,null,null,null,null,null,null,null,null,null,null,null,null,null,null,null,null,null,null,null,null,null,{"$f":"IF(AJ12<>\"\",VLOOKUP(AJ12,séries,4,FALSE),\"\")","v":""}]
[{"$f":"A4+10","v":11},null,null,null,{"$f":"A13+1","v":12},null,null,null,{"$f":"E13+1","v":13},null,null,null,{"$f":"I13+1","v":14},null,null,null,{"$f":"M13+1","v":15},null,null,null,{"$f":"Q13+1","v":16},null,null,null,{"$f":"U13+1","v":17},null,null,null,{"$f":"Y13+1","v":18},null,null,null,{"$f":"AC13+1","v":19},null,null,null,{"$f":"AG13+1","v":20}]
[]
[]
[]
[]
[]
[]
[null,null,{"$f":"SUM(C14:C19)","v":0},{"$f":"IF(SUM(D14:D19)=0,\"\",AVERAGE(D14:D19))","v":""},null,null,{"$f":"SUM(G14:G19)","v":0},{"$f":"IF(SUM(H14:H19)=0,\"\",AVERAGE(H14:H19))","v":""},null,null,{"$f":"SUM(K14:K19)","v":0},{"$f":"IF(SUM(L14:L19)=0,\"\",AVERAGE(L14:L19))","v":""},null,null,{"$f":"SUM(O14:O19)","v":0},{"$f":"IF(SUM(P14:P19)=0,\"\",AVERAGE(P14:P19))","v":""},null,null,{"$f":"SUM(S14:S19)","v":0},{"$f":"IF(SUM(T14:T19)=0,\"\",AVERAGE(T14:T19))","v":""},null,null,{"$f":"SUM(W14:W19)","v":0},{"$f":"IF(SUM(X14:X19)=0,\"\",AVERAGE(X14:X19))","v":""},null,null,{"$f":"SUM(AA14:AA19)","v":0},{"$f":"IF(SUM(AB14:AB19)=0,\"\",AVERAGE(AB14:AB19))","v":""},null,null,{"$f":"SUM(AE14:AE19)","v":0},{"$f":"IF(SUM(AF14:AF19)=0,\"\",AVERAGE(AF14:AF19))","v":""},null,null,{"$f":"SUM(AI14:AI19)","v":0},{"$f":"IF(SUM(AJ14:AJ19)=0,\"\",AVERAGE(AJ14:AJ19))","v":""},null,null,{"$f":"SUM(AM14:AM19)","v":0},{"$f":"IF(SUM(AN14:AN19)=0,\"\",AVERAGE(AN14:AN19))","v":""},{"$f":"C20+G20+K20+O20+S20+W20+AA20+AE20+AI20+AM20","v":0}]
[null,null,null,null,null,null,null,null,null,null,null,null,null,null,null,null,null,null,null,null,null,null,null,null,null,null,null,null,null,null,null,null,null,null,null,null,null,null,{"$f":"IF(AJ21<>\"\",VLOOKUP(AJ21,séries,4,FALSE),\"\")","v":""}]
[{"$f":"A13+10","v":21},null,null,null,{"$f":"A22+1","v":22},null,null,null,{"$f":"E22+1","v":23},null,null,null,{"$f":"I22+1","v":24},null,null,null,{"$f":"M22+1","v":25},null,null,null,{"$f":"Q22+1","v":26},null,null,null,{"$f":"U22+1","v":27},null,null,null,{"$f":"Y22+1","v":28},null,null,null,{"$f":"AC22+1","v":29},null,null,null,{"$f":"AG22+1","v":30}]
[]
[]
[]
[]
[]
[]
[null,null,{"$f":"SUM(C23:C28)","v":0},{"$f":"IF(SUM(D23:D28)=0,\"\",AVERAGE(D23:D28))","v":""},null,null,{"$f":"SUM(G23:G28)","v":0},{"$f":"IF(SUM(H23:H28)=0,\"\",AVERAGE(H23:H28))","v":""},null,null,{"$f":"SUM(K23:K28)","v":0},{"$f":"IF(SUM(L23:L28)=0,\"\",AVERAGE(L23:L28))","v":""},null,null,{"$f":"SUM(O23:O28)","v":0},{"$f":"IF(SUM(P23:P28)=0,\"\",AVERAGE(P23:P28))","v":""},null,null,{"$f":"SUM(S23:S28)","v":0},{"$f":"IF(SUM(T23:T28)=0,\"\",AVERAGE(T23:T28))","v":""},null,null,{"$f":"SUM(W23:W28)","v":0},{"$f":"IF(SUM(X23:X28)=0,\"\",AVERAGE(X23:X28))","v":""},null,null,{"$f":"SUM(AA23:AA28)","v":0},{"$f":"IF(SUM(AB23:AB28)=0,\"\",AVERAGE(AB23:AB28))","v":""},null,null,{"$f":"SUM(AE23:AE28)","v":0},{"$f":"IF(SUM(AF23:AF28)=0,\"\",AVERAGE(AF23:AF28))","v":""},null,null,{"$f":"SUM(AI23:AI28)","v":0},{"$f":"IF(SUM(AJ23:AJ28)=0,\"\",AVERAGE(AJ23:AJ28))","v":""},null,null,{"$f":"SUM(AM23:AM28)","v":0},{"$f":"IF(SUM(AN23:AN28)=0,\"\",AVERAGE(AN23:AN28))","v":""},{"$f":"C29+G29+K29+O29+S29+W29+AA29+AE29+AI29+AM29","v":0}]
[null,null,null,null,null,null,null,null,null,null,null,null,null,null,null,null,null,null,null,null,null,null,null,null,null,null,null,null,null,null,null,null,null,null,null,null,null,null,{"$f":"IF(AJ30<>\"\",VLOOKUP(AJ30,séries,4,FALSE),\"\")","v":""}]
[{"$f":"A22+10","v":31},null,null,null,{"$f":"A31+1","v":32},null,null,null,{"$f":"E31+1","v":33},null,null,null,{"$f":"I31+1","v":34},null,null,null,{"$f":"M31+1","v":35},null,null,null,{"$f":"Q31+1","v":36},null,null,null,{"$f":"U31+1","v":37},null,null,null,{"$f":"Y31+1","v":38},null,null,null,{"$f":"AC31+1","v":39},null,null,null,{"$f":"AG31+1","v":40}]
[]
[]
[]
[]
[]
[]
[null,null,{"$f":"SUM(C32:C37)","v":0},{"$f":"IF(SUM(D32:D37)=0,\"\",AVERAGE(D32:D37))","v":""},null,null,{"$f":"SUM(G32:G37)","v":0},{"$f":"IF(SUM(H32:H37)=0,\"\",AVERAGE(H32:H37))","v":""},null,null,{"$f":"SUM(K32:K37)","v":0},{"$f":"IF(SUM(L32:L37)=0,\"\",AVERAGE(L32:L37))","v":""},null,null,{"$f":"SUM(O32:O37)","v":0},{"$f":"IF(SUM(P32:P37)=0,\"\",AVERAGE(P32:P37))","v":""},null,null,{"$f":"SUM(S32:S37)","v":0},{"$f":"IF(SUM(T32:T37)=0,\"\",AVERAGE(T32:T37))","v":""},null,null,{"$f":"SUM(W32:W37)","v":0},{"$f":"IF(SUM(X32:X37)=0,\"\",AVERAGE(X32:X37))","v":""},null,null,{"$f":"SUM(AA32:AA37)","v":0},{"$f":"IF(SUM(AB32:AB37)=0,\"\",AVERAGE(AB32:AB37))","v":""},null,null,{"$f":"SUM(AE32:AE37)","v":0},{"$f":"IF(SUM(AF32:AF37)=0,\"\",AVERAGE(AF32:AF37))","v":""},null,null,{"$f":"SUM(AI32:AI37)","v":0},{"$f":"IF(SUM(AJ32:AJ37)=0,\"\",AVERAGE(AJ32:AJ37))","v":""},null,null,{"$f":"SUM(AM32:AM37)","v":0},{"$f":"IF(SUM(AN32:AN37)=0,\"\",AVERAGE(AN32:AN37))","v":""},{"$f":"C38+G38+K38+O38+S38+W38+AA38+AE38+AI38+AM38","v":0}]
[null,null,null,null,null,null,null,null,null,null,null,null,null,null,null,null,null,null,null,null,null,null,null,null,null,null,null,null,null,null,null,null,null,null,null,null,null,null,{"$f":"IF(AJ39<>\"\",VLOOKUP(AJ39,séries,4,FALSE),\"\")","v":""}]
[{"$f":"A31+10","v":41},null,null,null,{"$f":"A40+1","v":42},null,null,null,{"$f":"E40+1","v":43},null,null,null,{"$f":"I40+1","v":44},null,null,null,{"$f":"M40+1","v":45},null,null,null,{"$f":"Q40+1","v":46},null,null,null,{"$f":"U40+1","v":47},null,null,null,{"$f":"Y40+1","v":48},null,null,null,{"$f":"AC40+1","v":49},null,null,null,{"$f":"AG40+1","v":50}]
[]
[]
[]
[]
[]
[]
[null,null,{"$f":"SUM(C41:C46)","v":0},{"$f":"IF(SUM(D41:D46)=0,\"\",AVERAGE(D41:D46))","v":""},null,null,{"$f":"SUM(G41:G46)","v":0},{"$f":"IF(SUM(H41:H46)=0,\"\",AVERAGE(H41:H46))","v":""},null,null,{"$f":"SUM(K41:K46)","v":0},{"$f":"IF(SUM(L41:L46)=0,\"\",AVERAGE(L41:L46))","v":""},null,null,{"$f":"SUM(O41:O46)","v":0},{"$f":"IF(SUM(P41:P46)=0,\"\",AVERAGE(P41:P46))","v":""},null,null,{"$f":"SUM(S41:S46)","v":0},{"$f":"IF(SUM(T41:T46)=0,\"\",AVERAGE(T41:T46))","v":""},null,null,{"$f":"SUM(W41:W46)","v":0},{"$f":"IF(SUM(X41:X46)=0,\"\",AVERAGE(X41:X46))","v":""},null,null,{"$f":"SUM(AA41:AA46)","v":0},{"$f":"IF(SUM(AB41:AB46)=0,\"\",AVERAGE(AB41:AB46))","v":""},null,null,{"$f":"SUM(AE41:AE46)","v":0},{"$f":"IF(SUM(AF41:AF46)=0,\"\",AVERAGE(AF41:AF46))","v":""},null,null,{"$f":"SUM(AI41:AI46)","v":0},{"$f":"IF(SUM(AJ41:AJ46)=0,\"\",AVERAGE(AJ41:AJ46))","v":""},null,null,{"$f":"SUM(AM41:AM46)","v":0},{"$f":"IF(SUM(AN41:AN46)=0,\"\",AVERAGE(AN41:AN46))","v":""},{"$f":"C47+G47+K47+O47+S47+W47+AA47+AE47+AI47+AM47","v":0}]
[null,null,null,null,null,null,null,null,null,null,null,null,null,null,null,null,null,null,null,null,null,null,null,null,null,null,null,null,null,null,null,null,null,null,null,null,null,null,{"$f":"IF(AJ48<>\"\",VLOOKUP(AJ48,séries,4,FALSE),\"\")","v":""}]
[{"$f":"A40+10","v":51},null,null,null,{"$f":"A49+1","v":52},null,null,null,{"$f":"E49+1","v":53},null,null,null,{"$f":"I49+1","v":54},null,null,null,{"$f":"M49+1","v":55},null,null,null,{"$f":"Q49+1","v":56},null,null,null,{"$f":"U49+1","v":57},null,null,null,{"$f":"Y49+1","v":58},null,null,null,{"$f":"AC49+1","v":59},null,null,null,{"$f":"AG49+1","v":60}]
[]
[]
[]
[]
[]
[]
[null,null,{"$f":"SUM(C50:C55)","v":0},{"$f":"IF(SUM(D50:D55)=0,\"\",AVERAGE(D50:D55))","v":""},null,null,{"$f":"SUM(G50:G55)","v":0},{"$f":"IF(SUM(H50:H55)=0,\"\",AVERAGE(H50:H55))","v":""},null,null,{"$f":"SUM(K50:K55)","v":0},{"$f":"IF(SUM(L50:L55)=0,\"\",AVERAGE(L50:L55))","v":""},null,null,{"$f":"SUM(O50:O55)","v":0},{"$f":"IF(SUM(P50:P55)=0,\"\",AVERAGE(P50:P55))","v":""},null,null,{"$f":"SUM(S50:S55)","v":0},{"$f":"IF(SUM(T50:T55)=0,\"\",AVERAGE(T50:T55))","v":""},null,null,{"$f":"SUM(W50:W55)","v":0},{"$f":"IF(SUM(X50:X55)=0,\"\",AVERAGE(X50:X55))","v":""},null,null,{"$f":"SUM(AA50:AA55)","v":0},{"$f":"IF(SUM(AB50:AB55)=0,\"\",AVERAGE(AB50:AB55))","v":""},null,null,{"$f":"SUM(AE50:AE55)","v":0},{"$f":"IF(SUM(AF50:AF55)=0,\"\",AVERAGE(AF50:AF55))","v":""},null,null,{"$f":"SUM(AI50:AI55)","v":0},{"$f":"IF(SUM(AJ50:AJ55)=0,\"\",AVERAGE(AJ50:AJ55))","v":""},null,null,{"$f":"SUM(AM50:AM55)","v":0},{"$f":"IF(SUM(AN50:AN55)=0,\"\",AVERAGE(AN50:AN55))","v":""},{"$f":"C56+G56+K56+O56+S56+W56+AA56+AE56+AI56+AM56","v":0}]
[null,null,null,null,null,null,null,null,null,null,null,null,null,null,null,null,null,null,null,null,null,null,null,null,null,null,null,null,null,null,null,null,null,null,null,null,null,null,{"$f":"IF(AJ57<>\"\",VLOOKUP(AJ57,séries,4,FALSE),\"\")","v":""}]
[{"$f":"A49+10","v":61},null,null,null,{"$f":"A58+1","v":62},null,null,null,{"$f":"E58+1","v":63},null,null,null,{"$f":"I58+1","v":64},null,null,null,{"$f":"M58+1","v":65},null,null,null,{"$f":"Q58+1","v":66},null,null,null,{"$f":"U58+1","v":67},null,null,null,{"$f":"Y58+1","v":68},null,null,null,{"$f":"AC58+1","v":69},null,null,null,{"$f":"AG58+1","v":70}]
[]
[]
[]
[]
[]
[]
[null,null,{"$f":"SUM(C59:C64)","v":0},{"$f":"IF(SUM(D59:D64)=0,\"\",AVERAGE(D59:D64))","v":""},null,null,{"$f":"SUM(G59:G64)","v":0},{"$f":"IF(SUM(H59:H64)=0,\"\",AVERAGE(H59:H64))","v":""},null,null,{"$f":"SUM(K59:K64)","v":0},{"$f":"IF(SUM(L59:L64)=0,\"\",AVERAGE(L59:L64))","v":""},null,null,{"$f":"SUM(O59:O64)","v":0},{"$f":"IF(SUM(P59:P64)=0,\"\",AVERAGE(P59:P64))","v":""},null,null,{"$f":"SUM(S59:S64)","v":0},{"$f":"IF(SUM(T59:T64)=0,\"\",AVERAGE(T59:T64))","v":""},null,null,{"$f":"SUM(W59:W64)","v":0},{"$f":"IF(SUM(X59:X64)=0,\"\",AVERAGE(X59:X64))","v":""},null,null,{"$f":"SUM(AA59:AA64)","v":0},{"$f":"IF(SUM(AB59:AB64)=0,\"\",AVERAGE(AB59:AB64))","v":""},null,null,{"$f":"SUM(AE59:AE64)","v":0},{"$f":"IF(SUM(AF59:AF64)=0,\"\",AVERAGE(AF59:AF64))","v":""},null,null,{"$f":"SUM(AI59:AI64)","v":0},{"$f":"IF(SUM(AJ59:AJ64)=0,\"\",AVERAGE(AJ59:AJ64))","v":""},null,null,{"$f":"SUM(AM59:AM64)","v":0},{"$f":"IF(SUM(AN59:AN64)=0,\"\",AVERAGE(AN59:AN64))","v":""},{"$f":"C65+G65+K65+O65+S65+W65+AA65+AE65+AI65+AM65","v":0}]
[null,null,null,null,null,null,null,null,null,null,null,null,null,null,null,null,null,null,null,null,null,null,null,null,null,null,null,null,null,null,null,null,null,null,null,null,null,null,{"$f":"IF(AJ66<>\"\",VLOOKUP(AJ66,séries,4,FALSE),\"\")","v":""}]
[{"$f":"A58+10","v":71},null,null,null,{"$f":"A67+1","v":72},null,null,null,{"$f":"E67+1","v":73},null,null,null,{"$f":"I67+1","v":74},null,null,null,{"$f":"M67+1","v":75},null,null,null,{"$f":"Q67+1","v":76},null,null,null,{"$f":"U67+1","v":77},null,null,null,{"$f":"Y67+1","v":78},null,null,null,{"$f":"AC67+1","v":79},null,null,null,{"$f":"AG67+1","v":80}]
[]
[]
[]
[]
[]
[]
[null,null,{"$f":"SUM(C68:C73)","v":0},{"$f":"IF(SUM(D68:D73)=0,\"\",AVERAGE(D68:D73))","v":""},null,null,{"$f":"SUM(G68:G73)","v":0},{"$f":"IF(SUM(H68:H73)=0,\"\",AVERAGE(H68:H73))","v":""},null,null,{"$f":"SUM(K68:K73)","v":0},{"$f":"IF(SUM(L68:L73)=0,\"\",AVERAGE(L68:L73))","v":""},null,null,{"$f":"SUM(O68:O73)","v":0},{"$f":"IF(SUM(P68:P73)=0,\"\",AVERAGE(P68:P73))","v":""},null,null,{"$f":"SUM(S68:S73)","v":0},{"$f":"IF(SUM(T68:T73)=0,\"\",AVERAGE(T68:T73))","v":""},null,null,{"$f":"SUM(W68:W73)","v":0},{"$f":"IF(SUM(X68:X73)=0,\"\",AVERAGE(X68:X73))","v":""},null,null,{"$f":"SUM(AA68:AA73)","v":0},{"$f":"IF(SUM(AB68:AB73)=0,\"\",AVERAGE(AB68:AB73))","v":""},null,null,{"$f":"SUM(AE68:AE73)","v":0},{"$f":"IF(SUM(AF68:AF73)=0,\"\",AVERAGE(AF68:AF73))","v":""},null,null,{"$f":"SUM(AI68:AI73)","v":0},{"$f":"IF(SUM(AJ68:AJ73)=0,\"\",AVERAGE(AJ68:AJ73))","v":""},null,null,{"$f":"SUM(AM68:AM73)","v":0},{"$f":"IF(SUM(AN68:AN73)=0,\"\",AVERAGE(AN68:AN73))","v":""},{"$f":"C74+G74+K74+O74+S74+W74+AA74+AE74+AI74+AM74","v":0}]
[null,null,null,null,null,null,null,null,null,null,null,null,null,null,null,null,null,null,null,null,null,null,null,null,null,null,null,null,null,null,null,null,null,null,null,null,null,null,{"$f":"IF(AJ75<>\"\",VLOOKUP(AJ75,séries,4,FALSE),\"\")","v":""}]
[{"$f":"A67+10","v":81},null,null,null,{"$f":"A76+1","v":82},null,null,null,{"$f":"E76+1","v":83},null,null,null,{"$f":"I76+1","v":84},null,null,null,{"$f":"M76+1","v":85},null,null,null,{"$f":"Q76+1","v":86},null,null,null,{"$f":"U76+1","v":87},null,null,null,{"$f":"Y76+1","v":88},null,null,null,{"$f":"AC76+1","v":89},null,null,null,{"$f":"AG76+1","v":90}]
[]
[]
[]
[]
[]
[]
[null,null,{"$f":"SUM(C77:C82)","v":0},{"$f":"IF(SUM(D77:D82)=0,\"\",AVERAGE(D77:D82))","v":""},null,null,{"$f":"SUM(G77:G82)","v":0},{"$f":"IF(SUM(H77:H82)=0,\"\",AVERAGE(H77:H82))","v":""},null,null,{"$f":"SUM(K77:K82)","v":0},{"$f":"IF(SUM(L77:L82)=0,\"\",AVERAGE(L77:L82))","v":""},null,null,{"$f":"SUM(O77:O82)","v":0},{"$f":"IF(SUM(P77:P82)=0,\"\",AVERAGE(P77:P82))","v":""},null,null,{"$f":"SUM(S77:S82)","v":0},{"$f":"IF(SUM(T77:T82)=0,\"\",AVERAGE(T77:T82))","v":""},null,null,{"$f":"SUM(W77:W82)","v":0},{"$f":"IF(SUM(X77:X82)=0,\"\",AVERAGE(X77:X82))","v":""},null,null,{"$f":"SUM(AA77:AA82)","v":0},{"$f":"IF(SUM(AB77:AB82)=0,\"\",AVERAGE(AB77:AB82))","v":""},null,null,{"$f":"SUM(AE77:AE82)","v":0},{"$f":"IF(SUM(AF77:AF82)=0,\"\",AVERAGE(AF77:AF82))","v":""},null,null,{"$f":"SUM(AI77:AI82)","v":0},{"$f":"IF(SUM(AJ77:AJ82)=0,\"\",AVERAGE(AJ77:AJ82))","v":""},null,null,{"$f":"SUM(AM77:AM82)","v":0},{"$f":"IF(SUM(AN77:AN82)=0,\"\",AVERAGE(AN77:AN82))","v":""},{"$f":"C83+G83+K83+O83+S83+W83+AA83+AE83+AI83+AM83","v":0}]
[null,null,null,null,null,null,null,null,null,null,null,null,null,null,null,null,null,null,null,null,null,null,null,null,null,null,null,null,null,null,null,null,null,null,null,null,null,null,{"$f":"IF(AJ84<>\"\",VLOOKUP(AJ84,séries,4,FALSE),\"\")","v":""}]
[{"$f":"A76+10","v":91},null,null,null,{"$f":"A85+1","v":92},null,null,null,{"$f":"E85+1","v":93},null,null,null,{"$f":"I85+1","v":94},null,null,null,{"$f":"M85+1","v":95},null,null,null,{"$f":"Q85+1","v":96},null,null,null,{"$f":"U85+1","v":97},null,null,null,{"$f":"Y85+1","v":98},null,null,null,{"$f":"AC85+1","v":99},null,null,null,{"$f":"AG85+1","v":100}]
[]
[]
[]
[]
[]
[]
[null,null,{"$f":"SUM(C86:C91)","v":0},{"$f":"IF(SUM(D86:D91)=0,\"\",AVERAGE(D86:D91))","v":""},null,null,{"$f":"SUM(G86:G91)","v":0},{"$f":"IF(SUM(H86:H91)=0,\"\",AVERAGE(H86:H91))","v":""},null,null,{"$f":"SUM(K86:K91)","v":0},{"$f":"IF(SUM(L86:L91)=0,\"\",AVERAGE(L86:L91))","v":""},null,null,{"$f":"SUM(O86:O91)","v":0},{"$f":"IF(SUM(P86:P91)=0,\"\",AVERAGE(P86:P91))","v":""},null,null,{"$f":"SUM(S86:S91)","v":0},{"$f":"IF(SUM(T86:T91)=0,\"\",AVERAGE(T86:T91))","v":""},null,null,{"$f":"SUM(W86:W91)","v":0},{"$f":"IF(SUM(X86:X91)=0,\"\",AVERAGE(X86:X91))","v":""},null,null,{"$f":"SUM(AA86:AA91)","v":0},{"$f":"IF(SUM(AB86:AB91)=0,\"\",AVERAGE(AB86:AB91))","v":""},null,null,{"$f":"SUM(AE86:AE91)","v":0},{"$f":"IF(SUM(AF86:AF91)=0,\"\",AVERAGE(AF86:AF91))","v":""},null,null,{"$f":"SUM(AI86:AI91)","v":0},{"$f":"IF(SUM(AJ86:AJ91)=0,\"\",AVERAGE(AJ86:AJ91))","v":""},null,null,{"$f":"SUM(AM86:AM91)","v":0},{"$f":"IF(SUM(AN86:AN91)=0,\"\",AVERAGE(AN86:AN91))","v":""},{"$f":"C92+G92+K92+O92+S92+W92+AA92+AE92+AI92+AM92","v":0}]
[null,null,null,null,null,null,null,null,null,null,null,null,null,null,null,null,null,null,null,null,null,null,null,null,null,null,null,null,null,null,null,null,null,null,null,null,null,null,{"$f":"IF(AJ93<>\"\",VLOOKUP(AJ93,séries,4,FALSE),\"\")","v":""}]

{"sheet":"Day 3","index":4,"n_rows":93,"n_cols":41,"rows_kept":93,"cut":false,"hidden":false,"merged":[[66,36,66,39],[75,0,75,3],[75,4,75,7],[75,8,75,11],[75,12,75,15],[75,16,75,19],[75,20,75,23],[84,24,84,27],[84,28,84,31],[84,32,84,35],[84,36,84,39],[75,24,75,27],[75,28,75,31],[75,32,75,35],[75,36,75,39],[84,0,84,3],[84,4,84,7],[84,8,84,11],[84,12,84,15],[84,16,84,19],[84,20,84,23],[66,0,66,3],[66,4,66,7],[66,8,66,11],[66,12,66,15],[66,16,66,19],[66,20,66,23],[66,24,66,27],[66,28,66,31],[66,32,66,35],[48,36,48,39],[57,0,57,3],[57,4,57,7],[57,8,57,11],[57,12,57,15],[57,16,57,19],[57,20,57,23],[57,24,57,27],[57,28,57,31],[57,32,57,35],[57,36,57,39],[48,0,48,3],[48,4,48,7],[48,8,48,11],[48,12,48,15],[48,16,48,19],[48,20,48,23],[48,24,48,27],[48,28,48,31],[48,32,48,35],[30,36,30,39],[39,0,39,3],[39,4,39,7],[39,8,39,11],[39,12,39,15],[39,16,39,19],[39,20,39,23],[39,24,39,27],[39,28,39,31],[39,32,39,35],[39,36,39,39],[30,0,30,3],[30,4,30,7],[30,8,30,11],[30,12,30,15],[30,16,30,19],[30,20,30,23],[30,24,30,27],[30,28,30,31],[30,32,30,35],[12,36,12,39],[21,0,21,3],[21,4,21,7],[21,8,21,11],[21,12,21,15],[21,16,21,19],[21,20,21,23],[21,24,21,27],[21,28,21,31],[21,32,21,35],[21,36,21,39],[12,0,12,3],[12,4,12,7],[12,8,12,11],[12,12,12,15],[12,16,12,19],[12,20,12,23],[12,24,12,27],[12,28,12,31],[12,32,12,35],[0,0,1,2],[0,3,1,8],[0,11,1,19],[0,32,1,40],[3,0,3,3],[3,4,3,7],[3,8,3,11],[3,12,3,15],[3,16,3,19],[3,20,3,23],[3,24,3,27],[3,28,3,31],[3,32,3,35],[3,36,3,39]]}
[3,null,null,"<= Jour",null,null,null,null,null,null,null,{"$f":"VLOOKUP(A1,Concours!$C$1:$E$15,2,0)","v":{"$error":"#N/A"}},null,null,null,null,null,null,null,null,null,null,null,null,null,null,null,null,null,null,null,null,{"$f":"SUM(AO10:AO129)","v":0}]
[]
[]
[1,null,null,null,{"$f":"A4+1","v":2},null,null,null,{"$f":"E4+1","v":3},null,null,null,{"$f":"I4+1","v":4},null,null,null,{"$f":"M4+1","v":5},null,null,null,{"$f":"Q4+1","v":6},null,null,null,{"$f":"U4+1","v":7},null,null,null,{"$f":"Y4+1","v":8},null,null,null,{"$f":"AC4+1","v":9},null,null,null,{"$f":"AG4+1","v":10}]
[]
[]
[]
[]
[]
[]
[null,null,{"$f":"SUM(C5:C10)","v":0},{"$f":"IF(SUM(D5:D10)=0,\"\",AVERAGE(D5:D10))","v":""},null,null,{"$f":"SUM(G5:G10)","v":0},{"$f":"IF(SUM(H5:H10)=0,\"\",AVERAGE(H5:H10))","v":""},null,null,{"$f":"SUM(K5:K10)","v":0},{"$f":"IF(SUM(L5:L10)=0,\"\",AVERAGE(L5:L10))","v":""},null,null,{"$f":"SUM(O5:O10)","v":0},{"$f":"IF(SUM(P5:P10)=0,\"\",AVERAGE(P5:P10))","v":""},null,null,{"$f":"SUM(S5:S10)","v":0},{"$f":"IF(SUM(T5:T10)=0,\"\",AVERAGE(T5:T10))","v":""},null,null,{"$f":"SUM(W5:W10)","v":0},{"$f":"IF(SUM(X5:X10)=0,\"\",AVERAGE(X5:X10))","v":""},null,null,{"$f":"SUM(AA5:AA10)","v":0},{"$f":"IF(SUM(AB5:AB10)=0,\"\",AVERAGE(AB5:AB10))","v":""},null,null,{"$f":"SUM(AE5:AE10)","v":0},{"$f":"IF(SUM(AF5:AF10)=0,\"\",AVERAGE(AF5:AF10))","v":""},null,null,{"$f":"SUM(AI5:AI10)","v":0},{"$f":"IF(SUM(AJ5:AJ10)=0,\"\",AVERAGE(AJ5:AJ10))","v":""},null,null,{"$f":"SUM(AM5:AM10)","v":0},{"$f":"IF(SUM(AN5:AN10)=0,\"\",AVERAGE(AN5:AN10))","v":""},{"$f":"C11+G11+K11+O11+S11+W11+AA11+AE11+AI11+AM11","v":0}]
[null,null,null,null,null,null,null,null,null,null,null,null,null,null,null,null,null,null,null,null,null,null,null,null,null,null,null,null,null,null,null,null,null,null,null,null,null,null,{"$f":"IF(AJ12<>\"\",VLOOKUP(AJ12,séries,4,FALSE),\"\")","v":""}]
[{"$f":"A4+10","v":11},null,null,null,{"$f":"A13+1","v":12},null,null,null,{"$f":"E13+1","v":13},null,null,null,{"$f":"I13+1","v":14},null,null,null,{"$f":"M13+1","v":15},null,null,null,{"$f":"Q13+1","v":16},null,null,null,{"$f":"U13+1","v":17},null,null,null,{"$f":"Y13+1","v":18},null,null,null,{"$f":"AC13+1","v":19},null,null,null,{"$f":"AG13+1","v":20}]
[]
[]
[]
[]
[]
[]
[null,null,{"$f":"SUM(C14:C19)","v":0},{"$f":"IF(SUM(D14:D19)=0,\"\",AVERAGE(D14:D19))","v":""},null,null,{"$f":"SUM(G14:G19)","v":0},{"$f":"IF(SUM(H14:H19)=0,\"\",AVERAGE(H14:H19))","v":""},null,null,{"$f":"SUM(K14:K19)","v":0},{"$f":"IF(SUM(L14:L19)=0,\"\",AVERAGE(L14:L19))","v":""},null,null,{"$f":"SUM(O14:O19)","v":0},{"$f":"IF(SUM(P14:P19)=0,\"\",AVERAGE(P14:P19))","v":""},null,null,{"$f":"SUM(S14:S19)","v":0},{"$f":"IF(SUM(T14:T19)=0,\"\",AVERAGE(T14:T19))","v":""},null,null,{"$f":"SUM(W14:W19)","v":0},{"$f":"IF(SUM(X14:X19)=0,\"\",AVERAGE(X14:X19))","v":""},null,null,{"$f":"SUM(AA14:AA19)","v":0},{"$f":"IF(SUM(AB14:AB19)=0,\"\",AVERAGE(AB14:AB19))","v":""},null,null,{"$f":"SUM(AE14:AE19)","v":0},{"$f":"IF(SUM(AF14:AF19)=0,\"\",AVERAGE(AF14:AF19))","v":""},null,null,{"$f":"SUM(AI14:AI19)","v":0},{"$f":"IF(SUM(AJ14:AJ19)=0,\"\",AVERAGE(AJ14:AJ19))","v":""},null,null,{"$f":"SUM(AM14:AM19)","v":0},{"$f":"IF(SUM(AN14:AN19)=0,\"\",AVERAGE(AN14:AN19))","v":""},{"$f":"C20+G20+K20+O20+S20+W20+AA20+AE20+AI20+AM20","v":0}]
[null,null,null,null,null,null,null,null,null,null,null,null,null,null,null,null,null,null,null,null,null,null,null,null,null,null,null,null,null,null,null,null,null,null,null,null,null,null,{"$f":"IF(AJ21<>\"\",VLOOKUP(AJ21,séries,4,FALSE),\"\")","v":""}]
[{"$f":"A13+10","v":21},null,null,null,{"$f":"A22+1","v":22},null,null,null,{"$f":"E22+1","v":23},null,null,null,{"$f":"I22+1","v":24},null,null,null,{"$f":"M22+1","v":25},null,null,null,{"$f":"Q22+1","v":26},null,null,null,{"$f":"U22+1","v":27},null,null,null,{"$f":"Y22+1","v":28},null,null,null,{"$f":"AC22+1","v":29},null,null,null,{"$f":"AG22+1","v":30}]
[]
[]
[]
[]
[]
[]
[null,null,{"$f":"SUM(C23:C28)","v":0},{"$f":"IF(SUM(D23:D28)=0,\"\",AVERAGE(D23:D28))","v":""},null,null,{"$f":"SUM(G23:G28)","v":0},{"$f":"IF(SUM(H23:H28)=0,\"\",AVERAGE(H23:H28))","v":""},null,null,{"$f":"SUM(K23:K28)","v":0},{"$f":"IF(SUM(L23:L28)=0,\"\",AVERAGE(L23:L28))","v":""},null,null,{"$f":"SUM(O23:O28)","v":0},{"$f":"IF(SUM(P23:P28)=0,\"\",AVERAGE(P23:P28))","v":""},null,null,{"$f":"SUM(S23:S28)","v":0},{"$f":"IF(SUM(T23:T28)=0,\"\",AVERAGE(T23:T28))","v":""},null,null,{"$f":"SUM(W23:W28)","v":0},{"$f":"IF(SUM(X23:X28)=0,\"\",AVERAGE(X23:X28))","v":""},null,null,{"$f":"SUM(AA23:AA28)","v":0},{"$f":"IF(SUM(AB23:AB28)=0,\"\",AVERAGE(AB23:AB28))","v":""},null,null,{"$f":"SUM(AE23:AE28)","v":0},{"$f":"IF(SUM(AF23:AF28)=0,\"\",AVERAGE(AF23:AF28))","v":""},null,null,{"$f":"SUM(AI23:AI28)","v":0},{"$f":"IF(SUM(AJ23:AJ28)=0,\"\",AVERAGE(AJ23:AJ28))","v":""},null,null,{"$f":"SUM(AM23:AM28)","v":0},{"$f":"IF(SUM(AN23:AN28)=0,\"\",AVERAGE(AN23:AN28))","v":""},{"$f":"C29+G29+K29+O29+S29+W29+AA29+AE29+AI29+AM29","v":0}]
[null,null,null,null,null,null,null,null,null,null,null,null,null,null,null,null,null,null,null,null,null,null,null,null,null,null,null,null,null,null,null,null,null,null,null,null,null,null,{"$f":"IF(AJ30<>\"\",VLOOKUP(AJ30,séries,4,FALSE),\"\")","v":""}]
[{"$f":"A22+10","v":31},null,null,null,{"$f":"A31+1","v":32},null,null,null,{"$f":"E31+1","v":33},null,null,null,{"$f":"I31+1","v":34},null,null,null,{"$f":"M31+1","v":35},null,null,null,{"$f":"Q31+1","v":36},null,null,null,{"$f":"U31+1","v":37},null,null,null,{"$f":"Y31+1","v":38},null,null,null,{"$f":"AC31+1","v":39},null,null,null,{"$f":"AG31+1","v":40}]
[]
[]
[]
[]
[]
[]
[null,null,{"$f":"SUM(C32:C37)","v":0},{"$f":"IF(SUM(D32:D37)=0,\"\",AVERAGE(D32:D37))","v":""},null,null,{"$f":"SUM(G32:G37)","v":0},{"$f":"IF(SUM(H32:H37)=0,\"\",AVERAGE(H32:H37))","v":""},null,null,{"$f":"SUM(K32:K37)","v":0},{"$f":"IF(SUM(L32:L37)=0,\"\",AVERAGE(L32:L37))","v":""},null,null,{"$f":"SUM(O32:O37)","v":0},{"$f":"IF(SUM(P32:P37)=0,\"\",AVERAGE(P32:P37))","v":""},null,null,{"$f":"SUM(S32:S37)","v":0},{"$f":"IF(SUM(T32:T37)=0,\"\",AVERAGE(T32:T37))","v":""},null,null,{"$f":"SUM(W32:W37)","v":0},{"$f":"IF(SUM(X32:X37)=0,\"\",AVERAGE(X32:X37))","v":""},null,null,{"$f":"SUM(AA32:AA37)","v":0},{"$f":"IF(SUM(AB32:AB37)=0,\"\",AVERAGE(AB32:AB37))","v":""},null,null,{"$f":"SUM(AE32:AE37)","v":0},{"$f":"IF(SUM(AF32:AF37)=0,\"\",AVERAGE(AF32:AF37))","v":""},null,null,{"$f":"SUM(AI32:AI37)","v":0},{"$f":"IF(SUM(AJ32:AJ37)=0,\"\",AVERAGE(AJ32:AJ37))","v":""},null,null,{"$f":"SUM(AM32:AM37)","v":0},{"$f":"IF(SUM(AN32:AN37)=0,\"\",AVERAGE(AN32:AN37))","v":""},{"$f":"C38+G38+K38+O38+S38+W38+AA38+AE38+AI38+AM38","v":0}]
[null,null,null,null,null,null,null,null,null,null,null,null,null,null,null,null,null,null,null,null,null,null,null,null,null,null,null,null,null,null,null,null,null,null,null,null,null,null,{"$f":"IF(AJ39<>\"\",VLOOKUP(AJ39,séries,4,FALSE),\"\")","v":""}]
[{"$f":"A31+10","v":41},null,null,null,{"$f":"A40+1","v":42},null,null,null,{"$f":"E40+1","v":43},null,null,null,{"$f":"I40+1","v":44},null,null,null,{"$f":"M40+1","v":45},null,null,null,{"$f":"Q40+1","v":46},null,null,null,{"$f":"U40+1","v":47},null,null,null,{"$f":"Y40+1","v":48},null,null,null,{"$f":"AC40+1","v":49},null,null,null,{"$f":"AG40+1","v":50}]
[]
[]
[]
[]
[]
[]
[null,null,{"$f":"SUM(C41:C46)","v":0},{"$f":"IF(SUM(D41:D46)=0,\"\",AVERAGE(D41:D46))","v":""},null,null,{"$f":"SUM(G41:G46)","v":0},{"$f":"IF(SUM(H41:H46)=0,\"\",AVERAGE(H41:H46))","v":""},null,null,{"$f":"SUM(K41:K46)","v":0},{"$f":"IF(SUM(L41:L46)=0,\"\",AVERAGE(L41:L46))","v":""},null,null,{"$f":"SUM(O41:O46)","v":0},{"$f":"IF(SUM(P41:P46)=0,\"\",AVERAGE(P41:P46))","v":""},null,null,{"$f":"SUM(S41:S46)","v":0},{"$f":"IF(SUM(T41:T46)=0,\"\",AVERAGE(T41:T46))","v":""},null,null,{"$f":"SUM(W41:W46)","v":0},{"$f":"IF(SUM(X41:X46)=0,\"\",AVERAGE(X41:X46))","v":""},null,null,{"$f":"SUM(AA41:AA46)","v":0},{"$f":"IF(SUM(AB41:AB46)=0,\"\",AVERAGE(AB41:AB46))","v":""},null,null,{"$f":"SUM(AE41:AE46)","v":0},{"$f":"IF(SUM(AF41:AF46)=0,\"\",AVERAGE(AF41:AF46))","v":""},null,null,{"$f":"SUM(AI41:AI46)","v":0},{"$f":"IF(SUM(AJ41:AJ46)=0,\"\",AVERAGE(AJ41:AJ46))","v":""},null,null,{"$f":"SUM(AM41:AM46)","v":0},{"$f":"IF(SUM(AN41:AN46)=0,\"\",AVERAGE(AN41:AN46))","v":""},{"$f":"C47+G47+K47+O47+S47+W47+AA47+AE47+AI47+AM47","v":0}]
[null,null,null,null,null,null,null,null,null,null,null,null,null,null,null,null,null,null,null,null,null,null,null,null,null,null,null,null,null,null,null,null,null,null,null,null,null,null,{"$f":"IF(AJ48<>\"\",VLOOKUP(AJ48,séries,4,FALSE),\"\")","v":""}]
[{"$f":"A40+10","v":51},null,null,null,{"$f":"A49+1","v":52},null,null,null,{"$f":"E49+1","v":53},null,null,null,{"$f":"I49+1","v":54},null,null,null,{"$f":"M49+1","v":55},null,null,null,{"$f":"Q49+1","v":56},null,null,null,{"$f":"U49+1","v":57},null,null,null,{"$f":"Y49+1","v":58},null,null,null,{"$f":"AC49+1","v":59},null,null,null,{"$f":"AG49+1","v":60}]
[]
[]
[]
[]
[]
[]
[null,null,{"$f":"SUM(C50:C55)","v":0},{"$f":"IF(SUM(D50:D55)=0,\"\",AVERAGE(D50:D55))","v":""},null,null,{"$f":"SUM(G50:G55)","v":0},{"$f":"IF(SUM(H50:H55)=0,\"\",AVERAGE(H50:H55))","v":""},null,null,{"$f":"SUM(K50:K55)","v":0},{"$f":"IF(SUM(L50:L55)=0,\"\",AVERAGE(L50:L55))","v":""},null,null,{"$f":"SUM(O50:O55)","v":0},{"$f":"IF(SUM(P50:P55)=0,\"\",AVERAGE(P50:P55))","v":""},null,null,{"$f":"SUM(S50:S55)","v":0},{"$f":"IF(SUM(T50:T55)=0,\"\",AVERAGE(T50:T55))","v":""},null,null,{"$f":"SUM(W50:W55)","v":0},{"$f":"IF(SUM(X50:X55)=0,\"\",AVERAGE(X50:X55))","v":""},null,null,{"$f":"SUM(AA50:AA55)","v":0},{"$f":"IF(SUM(AB50:AB55)=0,\"\",AVERAGE(AB50:AB55))","v":""},null,null,{"$f":"SUM(AE50:AE55)","v":0},{"$f":"IF(SUM(AF50:AF55)=0,\"\",AVERAGE(AF50:AF55))","v":""},null,null,{"$f":"SUM(AI50:AI55)","v":0},{"$f":"IF(SUM(AJ50:AJ55)=0,\"\",AVERAGE(AJ50:AJ55))","v":""},null,null,{"$f":"SUM(AM50:AM55)","v":0},{"$f":"IF(SUM(AN50:AN55)=0,\"\",AVERAGE(AN50:AN55))","v":""},{"$f":"C56+G56+K56+O56+S56+W56+AA56+AE56+AI56+AM56","v":0}]
[null,null,null,null,null,null,null,null,null,null,null,null,null,null,null,null,null,null,null,null,null,null,null,null,null,null,null,null,null,null,null,null,null,null,null,null,null,null,{"$f":"IF(AJ57<>\"\",VLOOKUP(AJ57,séries,4,FALSE),\"\")","v":""}]
[{"$f":"A49+10","v":61},null,null,null,{"$f":"A58+1","v":62},null,null,null,{"$f":"E58+1","v":63},null,null,null,{"$f":"I58+1","v":64},null,null,null,{"$f":"M58+1","v":65},null,null,null,{"$f":"Q58+1","v":66},null,null,null,{"$f":"U58+1","v":67},null,null,null,{"$f":"Y58+1","v":68},null,null,null,{"$f":"AC58+1","v":69},null,null,null,{"$f":"AG58+1","v":70}]
[]
[]
[]
[]
[]
[]
[null,null,{"$f":"SUM(C59:C64)","v":0},{"$f":"IF(SUM(D59:D64)=0,\"\",AVERAGE(D59:D64))","v":""},null,null,{"$f":"SUM(G59:G64)","v":0},{"$f":"IF(SUM(H59:H64)=0,\"\",AVERAGE(H59:H64))","v":""},null,null,{"$f":"SUM(K59:K64)","v":0},{"$f":"IF(SUM(L59:L64)=0,\"\",AVERAGE(L59:L64))","v":""},null,null,{"$f":"SUM(O59:O64)","v":0},{"$f":"IF(SUM(P59:P64)=0,\"\",AVERAGE(P59:P64))","v":""},null,null,{"$f":"SUM(S59:S64)","v":0},{"$f":"IF(SUM(T59:T64)=0,\"\",AVERAGE(T59:T64))","v":""},null,null,{"$f":"SUM(W59:W64)","v":0},{"$f":"IF(SUM(X59:X64)=0,\"\",AVERAGE(X59:X64))","v":""},null,null,{"$f":"SUM(AA59:AA64)","v":0},{"$f":"IF(SUM(AB59:AB64)=0,\"\",AVERAGE(AB59:AB64))","v":""},null,null,{"$f":"SUM(AE59:AE64)","v":0},{"$f":"IF(SUM(AF59:AF64)=0,\"\",AVERAGE(AF59:AF64))","v":""},null,null,{"$f":"SUM(AI59:AI64)","v":0},{"$f":"IF(SUM(AJ59:AJ64)=0,\"\",AVERAGE(AJ59:AJ64))","v":""},null,null,{"$f":"SUM(AM59:AM64)","v":0},{"$f":"IF(SUM(AN59:AN64)=0,\"\",AVERAGE(AN59:AN64))","v":""},{"$f":"C65+G65+K65+O65+S65+W65+AA65+AE65+AI65+AM65","v":0}]
[null,null,null,null,null,null,null,null,null,null,null,null,null,null,null,null,null,null,null,null,null,null,null,null,null,null,null,null,null,null,null,null,null,null,null,null,null,null,{"$f":"IF(AJ66<>\"\",VLOOKUP(AJ66,séries,4,FALSE),\"\")","v":""}]
[{"$f":"A58+10","v":71},null,null,null,{"$f":"A67+1","v":72},null,null,null,{"$f":"E67+1","v":73},null,null,null,{"$f":"I67+1","v":74},null,null,null,{"$f":"M67+1","v":75},null,null,null,{"$f":"Q67+1","v":76},null,null,null,{"$f":"U67+1","v":77},null,null,null,{"$f":"Y67+1","v":78},null,null,null,{"$f":"AC67+1","v":79},null,null,null,{"$f":"AG67+1","v":80}]
[]
[]
[]
[]
[]
[]
[null,null,{"$f":"SUM(C68:C73)","v":0},{"$f":"IF(SUM(D68:D73)=0,\"\",AVERAGE(D68:D73))","v":""},null,null,{"$f":"SUM(G68:G73)","v":0},{"$f":"IF(SUM(H68:H73)=0,\"\",AVERAGE(H68:H73))","v":""},null,null,{"$f":"SUM(K68:K73)","v":0},{"$f":"IF(SUM(L68:L73)=0,\"\",AVERAGE(L68:L73))","v":""},null,null,{"$f":"SUM(O68:O73)","v":0},{"$f":"IF(SUM(P68:P73)=0,\"\",AVERAGE(P68:P73))","v":""},null,null,{"$f":"SUM(S68:S73)","v":0},{"$f":"IF(SUM(T68:T73)=0,\"\",AVERAGE(T68:T73))","v":""},null,null,{"$f":"SUM(W68:W73)","v":0},{"$f":"IF(SUM(X68:X73)=0,\"\",AVERAGE(X68:X73))","v":""},null,null,{"$f":"SUM(AA68:AA73)","v":0},{"$f":"IF(SUM(AB68:AB73)=0,\"\",AVERAGE(AB68:AB73))","v":""},null,null,{"$f":"SUM(AE68:AE73)","v":0},{"$f":"IF(SUM(AF68:AF73)=0,\"\",AVERAGE(AF68:AF73))","v":""},null,null,{"$f":"SUM(AI68:AI73)","v":0},{"$f":"IF(SUM(AJ68:AJ73)=0,\"\",AVERAGE(AJ68:AJ73))","v":""},null,null,{"$f":"SUM(AM68:AM73)","v":0},{"$f":"IF(SUM(AN68:AN73)=0,\"\",AVERAGE(AN68:AN73))","v":""},{"$f":"C74+G74+K74+O74+S74+W74+AA74+AE74+AI74+AM74","v":0}]
[null,null,null,null,null,null,null,null,null,null,null,null,null,null,null,null,null,null,null,null,null,null,null,null,null,null,null,null,null,null,null,null,null,null,null,null,null,null,{"$f":"IF(AJ75<>\"\",VLOOKUP(AJ75,séries,4,FALSE),\"\")","v":""}]
[{"$f":"A67+10","v":81},null,null,null,{"$f":"A76+1","v":82},null,null,null,{"$f":"E76+1","v":83},null,null,null,{"$f":"I76+1","v":84},null,null,null,{"$f":"M76+1","v":85},null,null,null,{"$f":"Q76+1","v":86},null,null,null,{"$f":"U76+1","v":87},null,null,null,{"$f":"Y76+1","v":88},null,null,null,{"$f":"AC76+1","v":89},null,null,null,{"$f":"AG76+1","v":90}]
[]
[]
[]
[]
[]
[]
[null,null,{"$f":"SUM(C77:C82)","v":0},{"$f":"IF(SUM(D77:D82)=0,\"\",AVERAGE(D77:D82))","v":""},null,null,{"$f":"SUM(G77:G82)","v":0},{"$f":"IF(SUM(H77:H82)=0,\"\",AVERAGE(H77:H82))","v":""},null,null,{"$f":"SUM(K77:K82)","v":0},{"$f":"IF(SUM(L77:L82)=0,\"\",AVERAGE(L77:L82))","v":""},null,null,{"$f":"SUM(O77:O82)","v":0},{"$f":"IF(SUM(P77:P82)=0,\"\",AVERAGE(P77:P82))","v":""},null,null,{"$f":"SUM(S77:S82)","v":0},{"$f":"IF(SUM(T77:T82)=0,\"\",AVERAGE(T77:T82))","v":""},null,null,{"$f":"SUM(W77:W82)","v":0},{"$f":"IF(SUM(X77:X82)=0,\"\",AVERAGE(X77:X82))","v":""},null,null,{"$f":"SUM(AA77:AA82)","v":0},{"$f":"IF(SUM(AB77:AB82)=0,\"\",AVERAGE(AB77:AB82))","v":""},null,null,{"$f":"SUM(AE77:AE82)","v":0},{"$f":"IF(SUM(AF77:AF82)=0,\"\",AVERAGE(AF77:AF82))","v":""},null,null,{"$f":"SUM(AI77:AI82)","v":0},{"$f":"IF(SUM(AJ77:AJ82)=0,\"\",AVERAGE(AJ77:AJ82))","v":""},null,null,{"$f":"SUM(AM77:AM82)","v":0},{"$f":"IF(SUM(AN77:AN82)=0,\"\",AVERAGE(AN77:AN82))","v":""},{"$f":"C83+G83+K83+O83+S83+W83+AA83+AE83+AI83+AM83","v":0}]
[null,null,null,null,null,null,null,null,null,null,null,null,null,null,null,null,null,null,null,null,null,null,null,null,null,null,null,null,null,null,null,null,null,null,null,null,null,null,{"$f":"IF(AJ84<>\"\",VLOOKUP(AJ84,séries,4,FALSE),\"\")","v":""}]
[{"$f":"A76+10","v":91},null,null,null,{"$f":"A85+1","v":92},null,null,null,{"$f":"E85+1","v":93},null,null,null,{"$f":"I85+1","v":94},null,null,null,{"$f":"M85+1","v":95},null,null,null,{"$f":"Q85+1","v":96},null,null,null,{"$f":"U85+1","v":97},null,null,null,{"$f":"Y85+1","v":98},null,null,null,{"$f":"AC85+1","v":99},null,null,null,{"$f":"AG85+1","v":100}]
[]
[]
[]
[]
[]
[]
[null,null,{"$f":"SUM(C86:C91)","v":0},{"$f":"IF(SUM(D86:D91)=0,\"\",AVERAGE(D86:D91))","v":""},null,null,{"$f":"SUM(G86:G91)","v":0},{"$f":"IF(SUM(H86:H91)=0,\"\",AVERAGE(H86:H91))","v":""},null,null,{"$f":"SUM(K86:K91)","v":0},{"$f":"IF(SUM(L86:L91)=0,\"\",AVERAGE(L86:L91))","v":""},null,null,{"$f":"SUM(O86:O91)","v":0},{"$f":"IF(SUM(P86:P91)=0,\"\",AVERAGE(P86:P91))","v":""},null,null,{"$f":"SUM(S86:S91)","v":0},{"$f":"IF(SUM(T86:T91)=0,\"\",AVERAGE(T86:T91))","v":""},null,null,{"$f":"SUM(W86:W91)","v":0},{"$f":"IF(SUM(X86:X91)=0,\"\",AVERAGE(X86:X91))","v":""},null,null,{"$f":"SUM(AA86:AA91)","v":0},{"$f":"IF(SUM(AB86:AB91)=0,\"\",AVERAGE(AB86:AB91))","v":""},null,null,{"$f":"SUM(AE86:AE91)","v":0},{"$f":"IF(SUM(AF86:AF91)=0,\"\",AVERAGE(AF86:AF91))","v":""},null,null,{"$f":"SUM(AI86:AI91)","v":0},{"$f":"IF(SUM(AJ86:AJ91)=0,\"\",AVERAGE(AJ86:AJ91))","v":""},null,null,{"$f":"SUM(AM86:AM91)","v":0},{"$f":"IF(SUM(AN86:AN91)=0,\"\",AVERAGE(AN86:AN91))","v":""},{"$f":"C92+G92+K92+O92+S92+W92+AA92+AE92+AI92+AM92","v":0}]
[null,null,null,null,null,null,null,null,null,null,null,null,null,null,null,null,null,null,null,null,null,null,null,null,null,null,null,null,null,null,null,null,null,null,null,null,null,null,{"$f":"IF(AJ93<>\"\",VLOOKUP(AJ93,séries,4,FALSE),\"\")","v":""}]

{"sheet":"Day 4","index":5,"n_rows":93,"n_cols":41,"rows_kept":93,"cut":false,"hidden":false,"merged":[[0,0,1,2],[0,3,1,8],[0,11,1,19],[0,32,1,40],[3,0,3,3],[3,4,3,7],[3,8,3,11],[3,12,3,15],[3,16,3,19],[3,20,3,23],[3,24,3,27],[3,28,3,31],[3,32,3,35],[3,36,3,39],[12,0,12,3],[12,4,12,7],[12,8,12,11],[12,12,12,15],[12,16,12,19],[12,20,12,23],[12,24,12,27],[12,28,12,31],[12,32,12,35],[12,36,12,39],[21,0,21,3],[21,4,21,7],[21,8,21,11],[21,12,21,15],[21,16,21,19],[21,20,21,23],[21,24,21,27],[21,28,21,31],[21,32,21,35],[21,36,21,39],[30,0,30,3],[30,4,30,7],[30,8,30,11],[30,12,30,15],[30,16,30,19],[30,20,30,23],[30,24,30,27],[30,28,30,31],[30,32,30,35],[30,36,30,39],[39,0,39,3],[39,4,39,7],[39,8,39,11],[39,12,39,15],[39,16,39,19],[39,20,39,23],[39,24,39,27],[39,28,39,31],[39,32,39,35],[39,36,39,39],[48,0,48,3],[48,4,48,7],[48,8,48,11],[48,12,48,15],[48,16,48,19],[48,20,48,23],[48,24,48,27],[48,28,48,31],[48,32,48,35],[48,36,48,39],[57,0,57,3],[57,4,57,7],[57,8,57,11],[57,12,57,15],[57,16,57,19],[57,20,57,23],[57,24,57,27],[57,28,57,31],[57,32,57,35],[57,36,57,39],[66,0,66,3],[66,4,66,7],[66,8,66,11],[66,12,66,15],[66,16,66,19],[66,20,66,23],[66,24,66,27],[66,28,66,31],[66,32,66,35],[66,36,66,39],[75,0,75,3],[75,4,75,7],[75,8,75,11],[75,12,75,15],[75,16,75,19],[75,20,75,23],[84,24,84,27],[84,28,84,31],[84,32,84,35],[84,36,84,39],[75,24,75,27],[75,28,75,31],[75,32,75,35],[75,36,75,39],[84,0,84,3],[84,4,84,7],[84,8,84,11],[84,12,84,15],[84,16,84,19],[84,20,84,23]]}
[4,null,null,"<= Jour",null,null,null,null,null,null,null,{"$f":"VLOOKUP(A1,Concours!$C$1:$E$15,2,0)","v":{"$error":"#N/A"}},null,null,null,null,null,null,null,null,null,null,null,null,null,null,null,null,null,null,null,null,{"$f":"SUM(AO10:AO129)","v":0}]
[]
[]
[1,null,null,null,{"$f":"A4+1","v":2},null,null,null,{"$f":"E4+1","v":3},null,null,null,{"$f":"I4+1","v":4},null,null,null,{"$f":"M4+1","v":5},null,null,null,{"$f":"Q4+1","v":6},null,null,null,{"$f":"U4+1","v":7},null,null,null,{"$f":"Y4+1","v":8},null,null,null,{"$f":"AC4+1","v":9},null,null,null,{"$f":"AG4+1","v":10}]
[]
[]
[]
[]
[]
[]
[null,null,{"$f":"SUM(C5:C10)","v":0},{"$f":"IF(SUM(D5:D10)=0,\"\",AVERAGE(D5:D10))","v":""},null,null,{"$f":"SUM(G5:G10)","v":0},{"$f":"IF(SUM(H5:H10)=0,\"\",AVERAGE(H5:H10))","v":""},null,null,{"$f":"SUM(K5:K10)","v":0},{"$f":"IF(SUM(L5:L10)=0,\"\",AVERAGE(L5:L10))","v":""},null,null,{"$f":"SUM(O5:O10)","v":0},{"$f":"IF(SUM(P5:P10)=0,\"\",AVERAGE(P5:P10))","v":""},null,null,{"$f":"SUM(S5:S10)","v":0},{"$f":"IF(SUM(T5:T10)=0,\"\",AVERAGE(T5:T10))","v":""},null,null,{"$f":"SUM(W5:W10)","v":0},{"$f":"IF(SUM(X5:X10)=0,\"\",AVERAGE(X5:X10))","v":""},null,null,{"$f":"SUM(AA5:AA10)","v":0},{"$f":"IF(SUM(AB5:AB10)=0,\"\",AVERAGE(AB5:AB10))","v":""},null,null,{"$f":"SUM(AE5:AE10)","v":0},{"$f":"IF(SUM(AF5:AF10)=0,\"\",AVERAGE(AF5:AF10))","v":""},null,null,{"$f":"SUM(AI5:AI10)","v":0},{"$f":"IF(SUM(AJ5:AJ10)=0,\"\",AVERAGE(AJ5:AJ10))","v":""},null,null,{"$f":"SUM(AM5:AM10)","v":0},{"$f":"IF(SUM(AN5:AN10)=0,\"\",AVERAGE(AN5:AN10))","v":""},{"$f":"C11+G11+K11+O11+S11+W11+AA11+AE11+AI11+AM11","v":0}]
[null,null,null,null,null,null,null,null,null,null,null,null,null,null,null,null,null,null,null,null,null,null,null,null,null,null,null,null,null,null,null,null,null,null,null,null,null,null,{"$f":"IF(AJ12<>\"\",VLOOKUP(AJ12,séries,4,FALSE),\"\")","v":""}]
[{"$f":"A4+10","v":11},null,null,null,{"$f":"A13+1","v":12},null,null,null,{"$f":"E13+1","v":13},null,null,null,{"$f":"I13+1","v":14},null,null,null,{"$f":"M13+1","v":15},null,null,null,{"$f":"Q13+1","v":16},null,null,null,{"$f":"U13+1","v":17},null,null,null,{"$f":"Y13+1","v":18},null,null,null,{"$f":"AC13+1","v":19},null,null,null,{"$f":"AG13+1","v":20}]
[]
[]
[]
[]
[]
[]
[null,null,{"$f":"SUM(C14:C19)","v":0},{"$f":"IF(SUM(D14:D19)=0,\"\",AVERAGE(D14:D19))","v":""},null,null,{"$f":"SUM(G14:G19)","v":0},{"$f":"IF(SUM(H14:H19)=0,\"\",AVERAGE(H14:H19))","v":""},null,null,{"$f":"SUM(K14:K19)","v":0},{"$f":"IF(SUM(L14:L19)=0,\"\",AVERAGE(L14:L19))","v":""},null,null,{"$f":"SUM(O14:O19)","v":0},{"$f":"IF(SUM(P14:P19)=0,\"\",AVERAGE(P14:P19))","v":""},null,null,{"$f":"SUM(S14:S19)","v":0},{"$f":"IF(SUM(T14:T19)=0,\"\",AVERAGE(T14:T19))","v":""},null,null,{"$f":"SUM(W14:W19)","v":0},{"$f":"IF(SUM(X14:X19)=0,\"\",AVERAGE(X14:X19))","v":""},null,null,{"$f":"SUM(AA14:AA19)","v":0},{"$f":"IF(SUM(AB14:AB19)=0,\"\",AVERAGE(AB14:AB19))","v":""},null,null,{"$f":"SUM(AE14:AE19)","v":0},{"$f":"IF(SUM(AF14:AF19)=0,\"\",AVERAGE(AF14:AF19))","v":""},null,null,{"$f":"SUM(AI14:AI19)","v":0},{"$f":"IF(SUM(AJ14:AJ19)=0,\"\",AVERAGE(AJ14:AJ19))","v":""},null,null,{"$f":"SUM(AM14:AM19)","v":0},{"$f":"IF(SUM(AN14:AN19)=0,\"\",AVERAGE(AN14:AN19))","v":""},{"$f":"C20+G20+K20+O20+S20+W20+AA20+AE20+AI20+AM20","v":0}]
[null,null,null,null,null,null,null,null,null,null,null,null,null,null,null,null,null,null,null,null,null,null,null,null,null,null,null,null,null,null,null,null,null,null,null,null,null,null,{"$f":"IF(AJ21<>\"\",VLOOKUP(AJ21,séries,4,FALSE),\"\")","v":""}]
[{"$f":"A13+10","v":21},null,null,null,{"$f":"A22+1","v":22},null,null,null,{"$f":"E22+1","v":23},null,null,null,{"$f":"I22+1","v":24},null,null,null,{"$f":"M22+1","v":25},null,null,null,{"$f":"Q22+1","v":26},null,null,null,{"$f":"U22+1","v":27},null,null,null,{"$f":"Y22+1","v":28},null,null,null,{"$f":"AC22+1","v":29},null,null,null,{"$f":"AG22+1","v":30}]
[]
[]
[]
[]
[]
[]
[null,null,{"$f":"SUM(C23:C28)","v":0},{"$f":"IF(SUM(D23:D28)=0,\"\",AVERAGE(D23:D28))","v":""},null,null,{"$f":"SUM(G23:G28)","v":0},{"$f":"IF(SUM(H23:H28)=0,\"\",AVERAGE(H23:H28))","v":""},null,null,{"$f":"SUM(K23:K28)","v":0},{"$f":"IF(SUM(L23:L28)=0,\"\",AVERAGE(L23:L28))","v":""},null,null,{"$f":"SUM(O23:O28)","v":0},{"$f":"IF(SUM(P23:P28)=0,\"\",AVERAGE(P23:P28))","v":""},null,null,{"$f":"SUM(S23:S28)","v":0},{"$f":"IF(SUM(T23:T28)=0,\"\",AVERAGE(T23:T28))","v":""},null,null,{"$f":"SUM(W23:W28)","v":0},{"$f":"IF(SUM(X23:X28)=0,\"\",AVERAGE(X23:X28))","v":""},null,null,{"$f":"SUM(AA23:AA28)","v":0},{"$f":"IF(SUM(AB23:AB28)=0,\"\",AVERAGE(AB23:AB28))","v":""},null,null,{"$f":"SUM(AE23:AE28)","v":0},{"$f":"IF(SUM(AF23:AF28)=0,\"\",AVERAGE(AF23:AF28))","v":""},null,null,{"$f":"SUM(AI23:AI28)","v":0},{"$f":"IF(SUM(AJ23:AJ28)=0,\"\",AVERAGE(AJ23:AJ28))","v":""},null,null,{"$f":"SUM(AM23:AM28)","v":0},{"$f":"IF(SUM(AN23:AN28)=0,\"\",AVERAGE(AN23:AN28))","v":""},{"$f":"C29+G29+K29+O29+S29+W29+AA29+AE29+AI29+AM29","v":0}]
[null,null,null,null,null,null,null,null,null,null,null,null,null,null,null,null,null,null,null,null,null,null,null,null,null,null,null,null,null,null,null,null,null,null,null,null,null,null,{"$f":"IF(AJ30<>\"\",VLOOKUP(AJ30,séries,4,FALSE),\"\")","v":""}]
[{"$f":"A22+10","v":31},null,null,null,{"$f":"A31+1","v":32},null,null,null,{"$f":"E31+1","v":33},null,null,null,{"$f":"I31+1","v":34},null,null,null,{"$f":"M31+1","v":35},null,null,null,{"$f":"Q31+1","v":36},null,null,null,{"$f":"U31+1","v":37},null,null,null,{"$f":"Y31+1","v":38},null,null,null,{"$f":"AC31+1","v":39},null,null,null,{"$f":"AG31+1","v":40}]
[]
[]
[]
[]
[]
[]
[null,null,{"$f":"SUM(C32:C37)","v":0},{"$f":"IF(SUM(D32:D37)=0,\"\",AVERAGE(D32:D37))","v":""},null,null,{"$f":"SUM(G32:G37)","v":0},{"$f":"IF(SUM(H32:H37)=0,\"\",AVERAGE(H32:H37))","v":""},null,null,{"$f":"SUM(K32:K37)","v":0},{"$f":"IF(SUM(L32:L37)=0,\"\",AVERAGE(L32:L37))","v":""},null,null,{"$f":"SUM(O32:O37)","v":0},{"$f":"IF(SUM(P32:P37)=0,\"\",AVERAGE(P32:P37))","v":""},null,null,{"$f":"SUM(S32:S37)","v":0},{"$f":"IF(SUM(T32:T37)=0,\"\",AVERAGE(T32:T37))","v":""},null,null,{"$f":"SUM(W32:W37)","v":0},{"$f":"IF(SUM(X32:X37)=0,\"\",AVERAGE(X32:X37))","v":""},null,null,{"$f":"SUM(AA32:AA37)","v":0},{"$f":"IF(SUM(AB32:AB37)=0,\"\",AVERAGE(AB32:AB37))","v":""},null,null,{"$f":"SUM(AE32:AE37)","v":0},{"$f":"IF(SUM(AF32:AF37)=0,\"\",AVERAGE(AF32:AF37))","v":""},null,null,{"$f":"SUM(AI32:AI37)","v":0},{"$f":"IF(SUM(AJ32:AJ37)=0,\"\",AVERAGE(AJ32:AJ37))","v":""},null,null,{"$f":"SUM(AM32:AM37)","v":0},{"$f":"IF(SUM(AN32:AN37)=0,\"\",AVERAGE(AN32:AN37))","v":""},{"$f":"C38+G38+K38+O38+S38+W38+AA38+AE38+AI38+AM38","v":0}]
[null,null,null,null,null,null,null,null,null,null,null,null,null,null,null,null,null,null,null,null,null,null,null,null,null,null,null,null,null,null,null,null,null,null,null,null,null,null,{"$f":"IF(AJ39<>\"\",VLOOKUP(AJ39,séries,4,FALSE),\"\")","v":""}]
[{"$f":"A31+10","v":41},null,null,null,{"$f":"A40+1","v":42},null,null,null,{"$f":"E40+1","v":43},null,null,null,{"$f":"I40+1","v":44},null,null,null,{"$f":"M40+1","v":45},null,null,null,{"$f":"Q40+1","v":46},null,null,null,{"$f":"U40+1","v":47},null,null,null,{"$f":"Y40+1","v":48},null,null,null,{"$f":"AC40+1","v":49},null,null,null,{"$f":"AG40+1","v":50}]
[]
[]
[]
[]
[]
[]
[null,null,{"$f":"SUM(C41:C46)","v":0},{"$f":"IF(SUM(D41:D46)=0,\"\",AVERAGE(D41:D46))","v":""},null,null,{"$f":"SUM(G41:G46)","v":0},{"$f":"IF(SUM(H41:H46)=0,\"\",AVERAGE(H41:H46))","v":""},null,null,{"$f":"SUM(K41:K46)","v":0},{"$f":"IF(SUM(L41:L46)=0,\"\",AVERAGE(L41:L46))","v":""},null,null,{"$f":"SUM(O41:O46)","v":0},{"$f":"IF(SUM(P41:P46)=0,\"\",AVERAGE(P41:P46))","v":""},null,null,{"$f":"SUM(S41:S46)","v":0},{"$f":"IF(SUM(T41:T46)=0,\"\",AVERAGE(T41:T46))","v":""},null,null,{"$f":"SUM(W41:W46)","v":0},{"$f":"IF(SUM(X41:X46)=0,\"\",AVERAGE(X41:X46))","v":""},null,null,{"$f":"SUM(AA41:AA46)","v":0},{"$f":"IF(SUM(AB41:AB46)=0,\"\",AVERAGE(AB41:AB46))","v":""},null,null,{"$f":"SUM(AE41:AE46)","v":0},{"$f":"IF(SUM(AF41:AF46)=0,\"\",AVERAGE(AF41:AF46))","v":""},null,null,{"$f":"SUM(AI41:AI46)","v":0},{"$f":"IF(SUM(AJ41:AJ46)=0,\"\",AVERAGE(AJ41:AJ46))","v":""},null,null,{"$f":"SUM(AM41:AM46)","v":0},{"$f":"IF(SUM(AN41:AN46)=0,\"\",AVERAGE(AN41:AN46))","v":""},{"$f":"C47+G47+K47+O47+S47+W47+AA47+AE47+AI47+AM47","v":0}]
[null,null,null,null,null,null,null,null,null,null,null,null,null,null,null,null,null,null,null,null,null,null,null,null,null,null,null,null,null,null,null,null,null,null,null,null,null,null,{"$f":"IF(AJ48<>\"\",VLOOKUP(AJ48,séries,4,FALSE),\"\")","v":""}]
[{"$f":"A40+10","v":51},null,null,null,{"$f":"A49+1","v":52},null,null,null,{"$f":"E49+1","v":53},null,null,null,{"$f":"I49+1","v":54},null,null,null,{"$f":"M49+1","v":55},null,null,null,{"$f":"Q49+1","v":56},null,null,null,{"$f":"U49+1","v":57},null,null,null,{"$f":"Y49+1","v":58},null,null,null,{"$f":"AC49+1","v":59},null,null,null,{"$f":"AG49+1","v":60}]
[]
[]
[]
[]
[]
[]
[null,null,{"$f":"SUM(C50:C55)","v":0},{"$f":"IF(SUM(D50:D55)=0,\"\",AVERAGE(D50:D55))","v":""},null,null,{"$f":"SUM(G50:G55)","v":0},{"$f":"IF(SUM(H50:H55)=0,\"\",AVERAGE(H50:H55))","v":""},null,null,{"$f":"SUM(K50:K55)","v":0},{"$f":"IF(SUM(L50:L55)=0,\"\",AVERAGE(L50:L55))","v":""},null,null,{"$f":"SUM(O50:O55)","v":0},{"$f":"IF(SUM(P50:P55)=0,\"\",AVERAGE(P50:P55))","v":""},null,null,{"$f":"SUM(S50:S55)","v":0},{"$f":"IF(SUM(T50:T55)=0,\"\",AVERAGE(T50:T55))","v":""},null,null,{"$f":"SUM(W50:W55)","v":0},{"$f":"IF(SUM(X50:X55)=0,\"\",AVERAGE(X50:X55))","v":""},null,null,{"$f":"SUM(AA50:AA55)","v":0},{"$f":"IF(SUM(AB50:AB55)=0,\"\",AVERAGE(AB50:AB55))","v":""},null,null,{"$f":"SUM(AE50:AE55)","v":0},{"$f":"IF(SUM(AF50:AF55)=0,\"\",AVERAGE(AF50:AF55))","v":""},null,null,{"$f":"SUM(AI50:AI55)","v":0},{"$f":"IF(SUM(AJ50:AJ55)=0,\"\",AVERAGE(AJ50:AJ55))","v":""},null,null,{"$f":"SUM(AM50:AM55)","v":0},{"$f":"IF(SUM(AN50:AN55)=0,\"\",AVERAGE(AN50:AN55))","v":""},{"$f":"C56+G56+K56+O56+S56+W56+AA56+AE56+AI56+AM56","v":0}]
[null,null,null,null,null,null,null,null,null,null,null,null,null,null,null,null,null,null,null,null,null,null,null,null,null,null,null,null,null,null,null,null,null,null,null,null,null,null,{"$f":"IF(AJ57<>\"\",VLOOKUP(AJ57,séries,4,FALSE),\"\")","v":""}]
[{"$f":"A49+10","v":61},null,null,null,{"$f":"A58+1","v":62},null,null,null,{"$f":"E58+1","v":63},null,null,null,{"$f":"I58+1","v":64},null,null,null,{"$f":"M58+1","v":65},null,null,null,{"$f":"Q58+1","v":66},null,null,null,{"$f":"U58+1","v":67},null,null,null,{"$f":"Y58+1","v":68},null,null,null,{"$f":"AC58+1","v":69},null,null,null,{"$f":"AG58+1","v":70}]
[]
[]
[]
[]
[]
[]
[null,null,{"$f":"SUM(C59:C64)","v":0},{"$f":"IF(SUM(D59:D64)=0,\"\",AVERAGE(D59:D64))","v":""},null,null,{"$f":"SUM(G59:G64)","v":0},{"$f":"IF(SUM(H59:H64)=0,\"\",AVERAGE(H59:H64))","v":""},null,null,{"$f":"SUM(K59:K64)","v":0},{"$f":"IF(SUM(L59:L64)=0,\"\",AVERAGE(L59:L64))","v":""},null,null,{"$f":"SUM(O59:O64)","v":0},{"$f":"IF(SUM(P59:P64)=0,\"\",AVERAGE(P59:P64))","v":""},null,null,{"$f":"SUM(S59:S64)","v":0},{"$f":"IF(SUM(T59:T64)=0,\"\",AVERAGE(T59:T64))","v":""},null,null,{"$f":"SUM(W59:W64)","v":0},{"$f":"IF(SUM(X59:X64)=0,\"\",AVERAGE(X59:X64))","v":""},null,null,{"$f":"SUM(AA59:AA64)","v":0},{"$f":"IF(SUM(AB59:AB64)=0,\"\",AVERAGE(AB59:AB64))","v":""},null,null,{"$f":"SUM(AE59:AE64)","v":0},{"$f":"IF(SUM(AF59:AF64)=0,\"\",AVERAGE(AF59:AF64))","v":""},null,null,{"$f":"SUM(AI59:AI64)","v":0},{"$f":"IF(SUM(AJ59:AJ64)=0,\"\",AVERAGE(AJ59:AJ64))","v":""},null,null,{"$f":"SUM(AM59:AM64)","v":0},{"$f":"IF(SUM(AN59:AN64)=0,\"\",AVERAGE(AN59:AN64))","v":""},{"$f":"C65+G65+K65+O65+S65+W65+AA65+AE65+AI65+AM65","v":0}]
[null,null,null,null,null,null,null,null,null,null,null,null,null,null,null,null,null,null,null,null,null,null,null,null,null,null,null,null,null,null,null,null,null,null,null,null,null,null,{"$f":"IF(AJ66<>\"\",VLOOKUP(AJ66,séries,4,FALSE),\"\")","v":""}]
[{"$f":"A58+10","v":71},null,null,null,{"$f":"A67+1","v":72},null,null,null,{"$f":"E67+1","v":73},null,null,null,{"$f":"I67+1","v":74},null,null,null,{"$f":"M67+1","v":75},null,null,null,{"$f":"Q67+1","v":76},null,null,null,{"$f":"U67+1","v":77},null,null,null,{"$f":"Y67+1","v":78},null,null,null,{"$f":"AC67+1","v":79},null,null,null,{"$f":"AG67+1","v":80}]
[]
[]
[]
[]
[]
[]
[null,null,{"$f":"SUM(C68:C73)","v":0},{"$f":"IF(SUM(D68:D73)=0,\"\",AVERAGE(D68:D73))","v":""},null,null,{"$f":"SUM(G68:G73)","v":0},{"$f":"IF(SUM(H68:H73)=0,\"\",AVERAGE(H68:H73))","v":""},null,null,{"$f":"SUM(K68:K73)","v":0},{"$f":"IF(SUM(L68:L73)=0,\"\",AVERAGE(L68:L73))","v":""},null,null,{"$f":"SUM(O68:O73)","v":0},{"$f":"IF(SUM(P68:P73)=0,\"\",AVERAGE(P68:P73))","v":""},null,null,{"$f":"SUM(S68:S73)","v":0},{"$f":"IF(SUM(T68:T73)=0,\"\",AVERAGE(T68:T73))","v":""},null,null,{"$f":"SUM(W68:W73)","v":0},{"$f":"IF(SUM(X68:X73)=0,\"\",AVERAGE(X68:X73))","v":""},null,null,{"$f":"SUM(AA68:AA73)","v":0},{"$f":"IF(SUM(AB68:AB73)=0,\"\",AVERAGE(AB68:AB73))","v":""},null,null,{"$f":"SUM(AE68:AE73)","v":0},{"$f":"IF(SUM(AF68:AF73)=0,\"\",AVERAGE(AF68:AF73))","v":""},null,null,{"$f":"SUM(AI68:AI73)","v":0},{"$f":"IF(SUM(AJ68:AJ73)=0,\"\",AVERAGE(AJ68:AJ73))","v":""},null,null,{"$f":"SUM(AM68:AM73)","v":0},{"$f":"IF(SUM(AN68:AN73)=0,\"\",AVERAGE(AN68:AN73))","v":""},{"$f":"C74+G74+K74+O74+S74+W74+AA74+AE74+AI74+AM74","v":0}]
[null,null,null,null,null,null,null,null,null,null,null,null,null,null,null,null,null,null,null,null,null,null,null,null,null,null,null,null,null,null,null,null,null,null,null,null,null,null,{"$f":"IF(AJ75<>\"\",VLOOKUP(AJ75,séries,4,FALSE),\"\")","v":""}]
[{"$f":"A67+10","v":81},null,null,null,{"$f":"A76+1","v":82},null,null,null,{"$f":"E76+1","v":83},null,null,null,{"$f":"I76+1","v":84},null,null,null,{"$f":"M76+1","v":85},null,null,null,{"$f":"Q76+1","v":86},null,null,null,{"$f":"U76+1","v":87},null,null,null,{"$f":"Y76+1","v":88},null,null,null,{"$f":"AC76+1","v":89},null,null,null,{"$f":"AG76+1","v":90}]
[]
[]
[]
[]
[]
[]
[null,null,{"$f":"SUM(C77:C82)","v":0},{"$f":"IF(SUM(D77:D82)=0,\"\",AVERAGE(D77:D82))","v":""},null,null,{"$f":"SUM(G77:G82)","v":0},{"$f":"IF(SUM(H77:H82)=0,\"\",AVERAGE(H77:H82))","v":""},null,null,{"$f":"SUM(K77:K82)","v":0},{"$f":"IF(SUM(L77:L82)=0,\"\",AVERAGE(L77:L82))","v":""},null,null,{"$f":"SUM(O77:O82)","v":0},{"$f":"IF(SUM(P77:P82)=0,\"\",AVERAGE(P77:P82))","v":""},null,null,{"$f":"SUM(S77:S82)","v":0},{"$f":"IF(SUM(T77:T82)=0,\"\",AVERAGE(T77:T82))","v":""},null,null,{"$f":"SUM(W77:W82)","v":0},{"$f":"IF(SUM(X77:X82)=0,\"\",AVERAGE(X77:X82))","v":""},null,null,{"$f":"SUM(AA77:AA82)","v":0},{"$f":"IF(SUM(AB77:AB82)=0,\"\",AVERAGE(AB77:AB82))","v":""},null,null,{"$f":"SUM(AE77:AE82)","v":0},{"$f":"IF(SUM(AF77:AF82)=0,\"\",AVERAGE(AF77:AF82))","v":""},null,null,{"$f":"SUM(AI77:AI82)","v":0},{"$f":"IF(SUM(AJ77:AJ82)=0,\"\",AVERAGE(AJ77:AJ82))","v":""},null,null,{"$f":"SUM(AM77:AM82)","v":0},{"$f":"IF(SUM(AN77:AN82)=0,\"\",AVERAGE(AN77:AN82))","v":""},{"$f":"C83+G83+K83+O83+S83+W83+AA83+AE83+AI83+AM83","v":0}]
[null,null,null,null,null,null,null,null,null,null,null,null,null,null,null,null,null,null,null,null,null,null,null,null,null,null,null,null,null,null,null,null,null,null,null,null,null,null,{"$f":"IF(AJ84<>\"\",VLOOKUP(AJ84,séries,4,FALSE),\"\")","v":""}]
[{"$f":"A76+10","v":91},null,null,null,{"$f":"A85+1","v":92},null,null,null,{"$f":"E85+1","v":93},null,null,null,{"$f":"I85+1","v":94},null,null,null,{"$f":"M85+1","v":95},null,null,null,{"$f":"Q85+1","v":96},null,null,null,{"$f":"U85+1","v":97},null,null,null,{"$f":"Y85+1","v":98},null,null,null,{"$f":"AC85+1","v":99},null,null,null,{"$f":"AG85+1","v":100}]
[]
[]
[]
[]
[]
[]
[null,null,{"$f":"SUM(C86:C91)","v":0},{"$f":"IF(SUM(D86:D91)=0,\"\",AVERAGE(D86:D91))","v":""},null,null,{"$f":"SUM(G86:G91)","v":0},{"$f":"IF(SUM(H86:H91)=0,\"\",AVERAGE(H86:H91))","v":""},null,null,{"$f":"SUM(K86:K91)","v":0},{"$f":"IF(SUM(L86:L91)=0,\"\",AVERAGE(L86:L91))","v":""},null,null,{"$f":"SUM(O86:O91)","v":0},{"$f":"IF(SUM(P86:P91)=0,\"\",AVERAGE(P86:P91))","v":""},null,null,{"$f":"SUM(S86:S91)","v":0},{"$f":"IF(SUM(T86:T91)=0,\"\",AVERAGE(T86:T91))","v":""},null,null,{"$f":"SUM(W86:W91)","v":0},{"$f":"IF(SUM(X86:X91)=0,\"\",AVERAGE(X86:X91))","v":""},null,null,{"$f":"SUM(AA86:AA91)","v":0},{"$f":"IF(SUM(AB86:AB91)=0,\"\",AVERAGE(AB86:AB91))","v":""},null,null,{"$f":"SUM(AE86:AE91)","v":0},{"$f":"IF(SUM(AF86:AF91)=0,\"\",AVERAGE(AF86:AF91))","v":""},null,null,{"$f":"SUM(AI86:AI91)","v":0},{"$f":"IF(SUM(AJ86:AJ91)=0,\"\",AVERAGE(AJ86:AJ91))","v":""},null,null,{"$f":"SUM(AM86:AM91)","v":0},{"$f":"IF(SUM(AN86:AN91)=0,\"\",AVERAGE(AN86:AN91))","v":""},{"$f":"C92+G92+K92+O92+S92+W92+AA92+AE92+AI92+AM92","v":0}]
[null,null,null,null,null,null,null,null,null,null,null,null,null,null,null,null,null,null,null,null,null,null,null,null,null,null,null,null,null,null,null,null,null,null,null,null,null,null,{"$f":"IF(AJ93<>\"\",VLOOKUP(AJ93,séries,4,FALSE),\"\")","v":""}]

{"sheet":"Day 5","index":6,"n_rows":93,"n_cols":41,"rows_kept":93,"cut":false,"hidden":false,"merged":[[0,0,1,2],[0,3,1,8],[0,11,1,19],[0,32,1,40],[3,0,3,3],[3,4,3,7],[3,8,3,11],[3,12,3,15],[3,16,3,19],[3,20,3,23],[3,24,3,27],[3,28,3,31],[3,32,3,35],[3,36,3,39],[12,0,12,3],[12,4,12,7],[12,8,12,11],[12,12,12,15],[12,16,12,19],[12,20,12,23],[12,24,12,27],[12,28,12,31],[12,32,12,35],[12,36,12,39],[21,0,21,3],[21,4,21,7],[21,8,21,11],[21,12,21,15],[21,16,21,19],[21,20,21,23],[21,24,21,27],[21,28,21,31],[21,32,21,35],[21,36,21,39],[30,0,30,3],[30,4,30,7],[30,8,30,11],[30,12,30,15],[30,16,30,19],[30,20,30,23],[30,24,30,27],[30,28,30,31],[30,32,30,35],[30,36,30,39],[39,0,39,3],[39,4,39,7],[39,8,39,11],[39,12,39,15],[39,16,39,19],[39,20,39,23],[39,24,39,27],[39,28,39,31],[39,32,39,35],[39,36,39,39],[48,0,48,3],[48,4,48,7],[48,8,48,11],[48,12,48,15],[48,16,48,19],[48,20,48,23],[48,24,48,27],[48,28,48,31],[48,32,48,35],[48,36,48,39],[57,0,57,3],[57,4,57,7],[57,8,57,11],[57,12,57,15],[57,16,57,19],[57,20,57,23],[57,24,57,27],[57,28,57,31],[57,32,57,35],[57,36,57,39],[66,0,66,3],[66,4,66,7],[66,8,66,11],[66,12,66,15],[66,16,66,19],[66,20,66,23],[66,24,66,27],[66,28,66,31],[66,32,66,35],[66,36,66,39],[75,0,75,3],[75,4,75,7],[75,8,75,11],[75,12,75,15],[75,16,75,19],[75,20,75,23],[84,24,84,27],[84,28,84,31],[84,32,84,35],[84,36,84,39],[75,24,75,27],[75,28,75,31],[75,32,75,35],[75,36,75,39],[84,0,84,3],[84,4,84,7],[84,8,84,11],[84,12,84,15],[84,16,84,19],[84,20,84,23]]}
[5,null,null,"<= Jour",null,null,null,null,null,null,null,{"$f":"VLOOKUP(A1,Concours!$C$1:$E$15,2,0)","v":{"$error":"#N/A"}},null,null,null,null,null,null,null,null,null,null,null,null,null,null,null,null,null,null,null,null,{"$f":"SUM(AO10:AO129)","v":0}]
[]
[]
[1,null,null,null,{"$f":"A4+1","v":2},null,null,null,{"$f":"E4+1","v":3},null,null,null,{"$f":"I4+1","v":4},null,null,null,{"$f":"M4+1","v":5},null,null,null,{"$f":"Q4+1","v":6},null,null,null,{"$f":"U4+1","v":7},null,null,null,{"$f":"Y4+1","v":8},null,null,null,{"$f":"AC4+1","v":9},null,null,null,{"$f":"AG4+1","v":10}]
[]
[]
[]
[]
[]
[]
[null,null,{"$f":"SUM(C5:C10)","v":0},{"$f":"IF(SUM(D5:D10)=0,\"\",AVERAGE(D5:D10))","v":""},null,null,{"$f":"SUM(G5:G10)","v":0},{"$f":"IF(SUM(H5:H10)=0,\"\",AVERAGE(H5:H10))","v":""},null,null,{"$f":"SUM(K5:K10)","v":0},{"$f":"IF(SUM(L5:L10)=0,\"\",AVERAGE(L5:L10))","v":""},null,null,{"$f":"SUM(O5:O10)","v":0},{"$f":"IF(SUM(P5:P10)=0,\"\",AVERAGE(P5:P10))","v":""},null,null,{"$f":"SUM(S5:S10)","v":0},{"$f":"IF(SUM(T5:T10)=0,\"\",AVERAGE(T5:T10))","v":""},null,null,{"$f":"SUM(W5:W10)","v":0},{"$f":"IF(SUM(X5:X10)=0,\"\",AVERAGE(X5:X10))","v":""},null,null,{"$f":"SUM(AA5:AA10)","v":0},{"$f":"IF(SUM(AB5:AB10)=0,\"\",AVERAGE(AB5:AB10))","v":""},null,null,{"$f":"SUM(AE5:AE10)","v":0},{"$f":"IF(SUM(AF5:AF10)=0,\"\",AVERAGE(AF5:AF10))","v":""},null,null,{"$f":"SUM(AI5:AI10)","v":0},{"$f":"IF(SUM(AJ5:AJ10)=0,\"\",AVERAGE(AJ5:AJ10))","v":""},null,null,{"$f":"SUM(AM5:AM10)","v":0},{"$f":"IF(SUM(AN5:AN10)=0,\"\",AVERAGE(AN5:AN10))","v":""},{"$f":"C11+G11+K11+O11+S11+W11+AA11+AE11+AI11+AM11","v":0}]
[null,null,null,null,null,null,null,null,null,null,null,null,null,null,null,null,null,null,null,null,null,null,null,null,null,null,null,null,null,null,null,null,null,null,null,null,null,null,{"$f":"IF(AJ12<>\"\",VLOOKUP(AJ12,séries,4,FALSE),\"\")","v":""}]
[{"$f":"A4+10","v":11},null,null,null,{"$f":"A13+1","v":12},null,null,null,{"$f":"E13+1","v":13},null,null,null,{"$f":"I13+1","v":14},null,null,null,{"$f":"M13+1","v":15},null,null,null,{"$f":"Q13+1","v":16},null,null,null,{"$f":"U13+1","v":17},null,null,null,{"$f":"Y13+1","v":18},null,null,null,{"$f":"AC13+1","v":19},null,null,null,{"$f":"AG13+1","v":20}]
[]
[]
[]
[]
[]
[]
[null,null,{"$f":"SUM(C14:C19)","v":0},{"$f":"IF(SUM(D14:D19)=0,\"\",AVERAGE(D14:D19))","v":""},null,null,{"$f":"SUM(G14:G19)","v":0},{"$f":"IF(SUM(H14:H19)=0,\"\",AVERAGE(H14:H19))","v":""},null,null,{"$f":"SUM(K14:K19)","v":0},{"$f":"IF(SUM(L14:L19)=0,\"\",AVERAGE(L14:L19))","v":""},null,null,{"$f":"SUM(O14:O19)","v":0},{"$f":"IF(SUM(P14:P19)=0,\"\",AVERAGE(P14:P19))","v":""},null,null,{"$f":"SUM(S14:S19)","v":0},{"$f":"IF(SUM(T14:T19)=0,\"\",AVERAGE(T14:T19))","v":""},null,null,{"$f":"SUM(W14:W19)","v":0},{"$f":"IF(SUM(X14:X19)=0,\"\",AVERAGE(X14:X19))","v":""},null,null,{"$f":"SUM(AA14:AA19)","v":0},{"$f":"IF(SUM(AB14:AB19)=0,\"\",AVERAGE(AB14:AB19))","v":""},null,null,{"$f":"SUM(AE14:AE19)","v":0},{"$f":"IF(SUM(AF14:AF19)=0,\"\",AVERAGE(AF14:AF19))","v":""},null,null,{"$f":"SUM(AI14:AI19)","v":0},{"$f":"IF(SUM(AJ14:AJ19)=0,\"\",AVERAGE(AJ14:AJ19))","v":""},null,null,{"$f":"SUM(AM14:AM19)","v":0},{"$f":"IF(SUM(AN14:AN19)=0,\"\",AVERAGE(AN14:AN19))","v":""},{"$f":"C20+G20+K20+O20+S20+W20+AA20+AE20+AI20+AM20","v":0}]
[null,null,null,null,null,null,null,null,null,null,null,null,null,null,null,null,null,null,null,null,null,null,null,null,null,null,null,null,null,null,null,null,null,null,null,null,null,null,{"$f":"IF(AJ21<>\"\",VLOOKUP(AJ21,séries,4,FALSE),\"\")","v":""}]
[{"$f":"A13+10","v":21},null,null,null,{"$f":"A22+1","v":22},null,null,null,{"$f":"E22+1","v":23},null,null,null,{"$f":"I22+1","v":24},null,null,null,{"$f":"M22+1","v":25},null,null,null,{"$f":"Q22+1","v":26},null,null,null,{"$f":"U22+1","v":27},null,null,null,{"$f":"Y22+1","v":28},null,null,null,{"$f":"AC22+1","v":29},null,null,null,{"$f":"AG22+1","v":30}]
[]
[]
[]
[]
[]
[]
[null,null,{"$f":"SUM(C23:C28)","v":0},{"$f":"IF(SUM(D23:D28)=0,\"\",AVERAGE(D23:D28))","v":""},null,null,{"$f":"SUM(G23:G28)","v":0},{"$f":"IF(SUM(H23:H28)=0,\"\",AVERAGE(H23:H28))","v":""},null,null,{"$f":"SUM(K23:K28)","v":0},{"$f":"IF(SUM(L23:L28)=0,\"\",AVERAGE(L23:L28))","v":""},null,null,{"$f":"SUM(O23:O28)","v":0},{"$f":"IF(SUM(P23:P28)=0,\"\",AVERAGE(P23:P28))","v":""},null,null,{"$f":"SUM(S23:S28)","v":0},{"$f":"IF(SUM(T23:T28)=0,\"\",AVERAGE(T23:T28))","v":""},null,null,{"$f":"SUM(W23:W28)","v":0},{"$f":"IF(SUM(X23:X28)=0,\"\",AVERAGE(X23:X28))","v":""},null,null,{"$f":"SUM(AA23:AA28)","v":0},{"$f":"IF(SUM(AB23:AB28)=0,\"\",AVERAGE(AB23:AB28))","v":""},null,null,{"$f":"SUM(AE23:AE28)","v":0},{"$f":"IF(SUM(AF23:AF28)=0,\"\",AVERAGE(AF23:AF28))","v":""},null,null,{"$f":"SUM(AI23:AI28)","v":0},{"$f":"IF(SUM(AJ23:AJ28)=0,\"\",AVERAGE(AJ23:AJ28))","v":""},null,null,{"$f":"SUM(AM23:AM28)","v":0},{"$f":"IF(SUM(AN23:AN28)=0,\"\",AVERAGE(AN23:AN28))","v":""},{"$f":"C29+G29+K29+O29+S29+W29+AA29+AE29+AI29+AM29","v":0}]
[null,null,null,null,null,null,null,null,null,null,null,null,null,null,null,null,null,null,null,null,null,null,null,null,null,null,null,null,null,null,null,null,null,null,null,null,null,null,{"$f":"IF(AJ30<>\"\",VLOOKUP(AJ30,séries,4,FALSE),\"\")","v":""}]
[{"$f":"A22+10","v":31},null,null,null,{"$f":"A31+1","v":32},null,null,null,{"$f":"E31+1","v":33},null,null,null,{"$f":"I31+1","v":34},null,null,null,{"$f":"M31+1","v":35},null,null,null,{"$f":"Q31+1","v":36},null,null,null,{"$f":"U31+1","v":37},null,null,null,{"$f":"Y31+1","v":38},null,null,null,{"$f":"AC31+1","v":39},null,null,null,{"$f":"AG31+1","v":40}]
[]
[]
[]
[]
[]
[]
[null,null,{"$f":"SUM(C32:C37)","v":0},{"$f":"IF(SUM(D32:D37)=0,\"\",AVERAGE(D32:D37))","v":""},null,null,{"$f":"SUM(G32:G37)","v":0},{"$f":"IF(SUM(H32:H37)=0,\"\",AVERAGE(H32:H37))","v":""},null,null,{"$f":"SUM(K32:K37)","v":0},{"$f":"IF(SUM(L32:L37)=0,\"\",AVERAGE(L32:L37))","v":""},null,null,{"$f":"SUM(O32:O37)","v":0},{"$f":"IF(SUM(P32:P37)=0,\"\",AVERAGE(P32:P37))","v":""},null,null,{"$f":"SUM(S32:S37)","v":0},{"$f":"IF(SUM(T32:T37)=0,\"\",AVERAGE(T32:T37))","v":""},null,null,{"$f":"SUM(W32:W37)","v":0},{"$f":"IF(SUM(X32:X37)=0,\"\",AVERAGE(X32:X37))","v":""},null,null,{"$f":"SUM(AA32:AA37)","v":0},{"$f":"IF(SUM(AB32:AB37)=0,\"\",AVERAGE(AB32:AB37))","v":""},null,null,{"$f":"SUM(AE32:AE37)","v":0},{"$f":"IF(SUM(AF32:AF37)=0,\"\",AVERAGE(AF32:AF37))","v":""},null,null,{"$f":"SUM(AI32:AI37)","v":0},{"$f":"IF(SUM(AJ32:AJ37)=0,\"\",AVERAGE(AJ32:AJ37))","v":""},null,null,{"$f":"SUM(AM32:AM37)","v":0},{"$f":"IF(SUM(AN32:AN37)=0,\"\",AVERAGE(AN32:AN37))","v":""},{"$f":"C38+G38+K38+O38+S38+W38+AA38+AE38+AI38+AM38","v":0}]
[null,null,null,null,null,null,null,null,null,null,null,null,null,null,null,null,null,null,null,null,null,null,null,null,null,null,null,null,null,null,null,null,null,null,null,null,null,null,{"$f":"IF(AJ39<>\"\",VLOOKUP(AJ39,séries,4,FALSE),\"\")","v":""}]
[{"$f":"A31+10","v":41},null,null,null,{"$f":"A40+1","v":42},null,null,null,{"$f":"E40+1","v":43},null,null,null,{"$f":"I40+1","v":44},null,null,null,{"$f":"M40+1","v":45},null,null,null,{"$f":"Q40+1","v":46},null,null,null,{"$f":"U40+1","v":47},null,null,null,{"$f":"Y40+1","v":48},null,null,null,{"$f":"AC40+1","v":49},null,null,null,{"$f":"AG40+1","v":50}]
[]
[]
[]
[]
[]
[]
[null,null,{"$f":"SUM(C41:C46)","v":0},{"$f":"IF(SUM(D41:D46)=0,\"\",AVERAGE(D41:D46))","v":""},null,null,{"$f":"SUM(G41:G46)","v":0},{"$f":"IF(SUM(H41:H46)=0,\"\",AVERAGE(H41:H46))","v":""},null,null,{"$f":"SUM(K41:K46)","v":0},{"$f":"IF(SUM(L41:L46)=0,\"\",AVERAGE(L41:L46))","v":""},null,null,{"$f":"SUM(O41:O46)","v":0},{"$f":"IF(SUM(P41:P46)=0,\"\",AVERAGE(P41:P46))","v":""},null,null,{"$f":"SUM(S41:S46)","v":0},{"$f":"IF(SUM(T41:T46)=0,\"\",AVERAGE(T41:T46))","v":""},null,null,{"$f":"SUM(W41:W46)","v":0},{"$f":"IF(SUM(X41:X46)=0,\"\",AVERAGE(X41:X46))","v":""},null,null,{"$f":"SUM(AA41:AA46)","v":0},{"$f":"IF(SUM(AB41:AB46)=0,\"\",AVERAGE(AB41:AB46))","v":""},null,null,{"$f":"SUM(AE41:AE46)","v":0},{"$f":"IF(SUM(AF41:AF46)=0,\"\",AVERAGE(AF41:AF46))","v":""},null,null,{"$f":"SUM(AI41:AI46)","v":0},{"$f":"IF(SUM(AJ41:AJ46)=0,\"\",AVERAGE(AJ41:AJ46))","v":""},null,null,{"$f":"SUM(AM41:AM46)","v":0},{"$f":"IF(SUM(AN41:AN46)=0,\"\",AVERAGE(AN41:AN46))","v":""},{"$f":"C47+G47+K47+O47+S47+W47+AA47+AE47+AI47+AM47","v":0}]
[null,null,null,null,null,null,null,null,null,null,null,null,null,null,null,null,null,null,null,null,null,null,null,null,null,null,null,null,null,null,null,null,null,null,null,null,null,null,{"$f":"IF(AJ48<>\"\",VLOOKUP(AJ48,séries,4,FALSE),\"\")","v":""}]
[{"$f":"A40+10","v":51},null,null,null,{"$f":"A49+1","v":52},null,null,null,{"$f":"E49+1","v":53},null,null,null,{"$f":"I49+1","v":54},null,null,null,{"$f":"M49+1","v":55},null,null,null,{"$f":"Q49+1","v":56},null,null,null,{"$f":"U49+1","v":57},null,null,null,{"$f":"Y49+1","v":58},null,null,null,{"$f":"AC49+1","v":59},null,null,null,{"$f":"AG49+1","v":60}]
[]
[]
[]
[]
[]
[]
[null,null,{"$f":"SUM(C50:C55)","v":0},{"$f":"IF(SUM(D50:D55)=0,\"\",AVERAGE(D50:D55))","v":""},null,null,{"$f":"SUM(G50:G55)","v":0},{"$f":"IF(SUM(H50:H55)=0,\"\",AVERAGE(H50:H55))","v":""},null,null,{"$f":"SUM(K50:K55)","v":0},{"$f":"IF(SUM(L50:L55)=0,\"\",AVERAGE(L50:L55))","v":""},null,null,{"$f":"SUM(O50:O55)","v":0},{"$f":"IF(SUM(P50:P55)=0,\"\",AVERAGE(P50:P55))","v":""},null,null,{"$f":"SUM(S50:S55)","v":0},{"$f":"IF(SUM(T50:T55)=0,\"\",AVERAGE(T50:T55))","v":""},null,null,{"$f":"SUM(W50:W55)","v":0},{"$f":"IF(SUM(X50:X55)=0,\"\",AVERAGE(X50:X55))","v":""},null,null,{"$f":"SUM(AA50:AA55)","v":0},{"$f":"IF(SUM(AB50:AB55)=0,\"\",AVERAGE(AB50:AB55))","v":""},null,null,{"$f":"SUM(AE50:AE55)","v":0},{"$f":"IF(SUM(AF50:AF55)=0,\"\",AVERAGE(AF50:AF55))","v":""},null,null,{"$f":"SUM(AI50:AI55)","v":0},{"$f":"IF(SUM(AJ50:AJ55)=0,\"\",AVERAGE(AJ50:AJ55))","v":""},null,null,{"$f":"SUM(AM50:AM55)","v":0},{"$f":"IF(SUM(AN50:AN55)=0,\"\",AVERAGE(AN50:AN55))","v":""},{"$f":"C56+G56+K56+O56+S56+W56+AA56+AE56+AI56+AM56","v":0}]
[null,null,null,null,null,null,null,null,null,null,null,null,null,null,null,null,null,null,null,null,null,null,null,null,null,null,null,null,null,null,null,null,null,null,null,null,null,null,{"$f":"IF(AJ57<>\"\",VLOOKUP(AJ57,séries,4,FALSE),\"\")","v":""}]
[{"$f":"A49+10","v":61},null,null,null,{"$f":"A58+1","v":62},null,null,null,{"$f":"E58+1","v":63},null,null,null,{"$f":"I58+1","v":64},null,null,null,{"$f":"M58+1","v":65},null,null,null,{"$f":"Q58+1","v":66},null,null,null,{"$f":"U58+1","v":67},null,null,null,{"$f":"Y58+1","v":68},null,null,null,{"$f":"AC58+1","v":69},null,null,null,{"$f":"AG58+1","v":70}]
[]
[]
[]
[]
[]
[]
[null,null,{"$f":"SUM(C59:C64)","v":0},{"$f":"IF(SUM(D59:D64)=0,\"\",AVERAGE(D59:D64))","v":""},null,null,{"$f":"SUM(G59:G64)","v":0},{"$f":"IF(SUM(H59:H64)=0,\"\",AVERAGE(H59:H64))","v":""},null,null,{"$f":"SUM(K59:K64)","v":0},{"$f":"IF(SUM(L59:L64)=0,\"\",AVERAGE(L59:L64))","v":""},null,null,{"$f":"SUM(O59:O64)","v":0},{"$f":"IF(SUM(P59:P64)=0,\"\",AVERAGE(P59:P64))","v":""},null,null,{"$f":"SUM(S59:S64)","v":0},{"$f":"IF(SUM(T59:T64)=0,\"\",AVERAGE(T59:T64))","v":""},null,null,{"$f":"SUM(W59:W64)","v":0},{"$f":"IF(SUM(X59:X64)=0,\"\",AVERAGE(X59:X64))","v":""},null,null,{"$f":"SUM(AA59:AA64)","v":0},{"$f":"IF(SUM(AB59:AB64)=0,\"\",AVERAGE(AB59:AB64))","v":""},null,null,{"$f":"SUM(AE59:AE64)","v":0},{"$f":"IF(SUM(AF59:AF64)=0,\"\",AVERAGE(AF59:AF64))","v":""},null,null,{"$f":"SUM(AI59:AI64)","v":0},{"$f":"IF(SUM(AJ59:AJ64)=0,\"\",AVERAGE(AJ59:AJ64))","v":""},null,null,{"$f":"SUM(AM59:AM64)","v":0},{"$f":"IF(SUM(AN59:AN64)=0,\"\",AVERAGE(AN59:AN64))","v":""},{"$f":"C65+G65+K65+O65+S65+W65+AA65+AE65+AI65+AM65","v":0}]
[null,null,null,null,null,null,null,null,null,null,null,null,null,null,null,null,null,null,null,null,null,null,null,null,null,null,null,null,null,null,null,null,null,null,null,null,null,null,{"$f":"IF(AJ66<>\"\",VLOOKUP(AJ66,séries,4,FALSE),\"\")","v":""}]
[{"$f":"A58+10","v":71},null,null,null,{"$f":"A67+1","v":72},null,null,null,{"$f":"E67+1","v":73},null,null,null,{"$f":"I67+1","v":74},null,null,null,{"$f":"M67+1","v":75},null,null,null,{"$f":"Q67+1","v":76},null,null,null,{"$f":"U67+1","v":77},null,null,null,{"$f":"Y67+1","v":78},null,null,null,{"$f":"AC67+1","v":79},null,null,null,{"$f":"AG67+1","v":80}]
[]
[]
[]
[]
[]
[]
[null,null,{"$f":"SUM(C68:C73)","v":0},{"$f":"IF(SUM(D68:D73)=0,\"\",AVERAGE(D68:D73))","v":""},null,null,{"$f":"SUM(G68:G73)","v":0},{"$f":"IF(SUM(H68:H73)=0,\"\",AVERAGE(H68:H73))","v":""},null,null,{"$f":"SUM(K68:K73)","v":0},{"$f":"IF(SUM(L68:L73)=0,\"\",AVERAGE(L68:L73))","v":""},null,null,{"$f":"SUM(O68:O73)","v":0},{"$f":"IF(SUM(P68:P73)=0,\"\",AVERAGE(P68:P73))","v":""},null,null,{"$f":"SUM(S68:S73)","v":0},{"$f":"IF(SUM(T68:T73)=0,\"\",AVERAGE(T68:T73))","v":""},null,null,{"$f":"SUM(W68:W73)","v":0},{"$f":"IF(SUM(X68:X73)=0,\"\",AVERAGE(X68:X73))","v":""},null,null,{"$f":"SUM(AA68:AA73)","v":0},{"$f":"IF(SUM(AB68:AB73)=0,\"\",AVERAGE(AB68:AB73))","v":""},null,null,{"$f":"SUM(AE68:AE73)","v":0},{"$f":"IF(SUM(AF68:AF73)=0,\"\",AVERAGE(AF68:AF73))","v":""},null,null,{"$f":"SUM(AI68:AI73)","v":0},{"$f":"IF(SUM(AJ68:AJ73)=0,\"\",AVERAGE(AJ68:AJ73))","v":""},null,null,{"$f":"SUM(AM68:AM73)","v":0},{"$f":"IF(SUM(AN68:AN73)=0,\"\",AVERAGE(AN68:AN73))","v":""},{"$f":"C74+G74+K74+O74+S74+W74+AA74+AE74+AI74+AM74","v":0}]
[null,null,null,null,null,null,null,null,null,null,null,null,null,null,null,null,null,null,null,null,null,null,null,null,null,null,null,null,null,null,null,null,null,null,null,null,null,null,{"$f":"IF(AJ75<>\"\",VLOOKUP(AJ75,séries,4,FALSE),\"\")","v":""}]
[{"$f":"A67+10","v":81},null,null,null,{"$f":"A76+1","v":82},null,null,null,{"$f":"E76+1","v":83},null,null,null,{"$f":"I76+1","v":84},null,null,null,{"$f":"M76+1","v":85},null,null,null,{"$f":"Q76+1","v":86},null,null,null,{"$f":"U76+1","v":87},null,null,null,{"$f":"Y76+1","v":88},null,null,null,{"$f":"AC76+1","v":89},null,null,null,{"$f":"AG76+1","v":90}]
[]
[]
[]
[]
[]
[]
[null,null,{"$f":"SUM(C77:C82)","v":0},{"$f":"IF(SUM(D77:D82)=0,\"\",AVERAGE(D77:D82))","v":""},null,null,{"$f":"SUM(G77:G82)","v":0},{"$f":"IF(SUM(H77:H82)=0,\"\",AVERAGE(H77:H82))","v":""},null,null,{"$f":"SUM(K77:K82)","v":0},{"$f":"IF(SUM(L77:L82)=0,\"\",AVERAGE(L77:L82))","v":""},null,null,{"$f":"SUM(O77:O82)","v":0},{"$f":"IF(SUM(P77:P82)=0,\"\",AVERAGE(P77:P82))","v":""},null,null,{"$f":"SUM(S77:S82)","v":0},{"$f":"IF(SUM(T77:T82)=0,\"\",AVERAGE(T77:T82))","v":""},null,null,{"$f":"SUM(W77:W82)","v":0},{"$f":"IF(SUM(X77:X82)=0,\"\",AVERAGE(X77:X82))","v":""},null,null,{"$f":"SUM(AA77:AA82)","v":0},{"$f":"IF(SUM(AB77:AB82)=0,\"\",AVERAGE(AB77:AB82))","v":""},null,null,{"$f":"SUM(AE77:AE82)","v":0},{"$f":"IF(SUM(AF77:AF82)=0,\"\",AVERAGE(AF77:AF82))","v":""},null,null,{"$f":"SUM(AI77:AI82)","v":0},{"$f":"IF(SUM(AJ77:AJ82)=0,\"\",AVERAGE(AJ77:AJ82))","v":""},null,null,{"$f":"SUM(AM77:AM82)","v":0},{"$f":"IF(SUM(AN77:AN82)=0,\"\",AVERAGE(AN77:AN82))","v":""},{"$f":"C83+G83+K83+O83+S83+W83+AA83+AE83+AI83+AM83","v":0}]
[null,null,null,null,null,null,null,null,null,null,null,null,null,null,null,null,null,null,null,null,null,null,null,null,null,null,null,null,null,null,null,null,null,null,null,null,null,null,{"$f":"IF(AJ84<>\"\",VLOOKUP(AJ84,séries,4,FALSE),\"\")","v":""}]
[{"$f":"A76+10","v":91},null,null,null,{"$f":"A85+1","v":92},null,null,null,{"$f":"E85+1","v":93},null,null,null,{"$f":"I85+1","v":94},null,null,null,{"$f":"M85+1","v":95},null,null,null,{"$f":"Q85+1","v":96},null,null,null,{"$f":"U85+1","v":97},null,null,null,{"$f":"Y85+1","v":98},null,null,null,{"$f":"AC85+1","v":99},null,null,null,{"$f":"AG85+1","v":100}]
[]
[]
[]
[]
[]
[]
[null,null,{"$f":"SUM(C86:C91)","v":0},{"$f":"IF(SUM(D86:D91)=0,\"\",AVERAGE(D86:D91))","v":""},null,null,{"$f":"SUM(G86:G91)","v":0},{"$f":"IF(SUM(H86:H91)=0,\"\",AVERAGE(H86:H91))","v":""},null,null,{"$f":"SUM(K86:K91)","v":0},{"$f":"IF(SUM(L86:L91)=0,\"\",AVERAGE(L86:L91))","v":""},null,null,{"$f":"SUM(O86:O91)","v":0},{"$f":"IF(SUM(P86:P91)=0,\"\",AVERAGE(P86:P91))","v":""},null,null,{"$f":"SUM(S86:S91)","v":0},{"$f":"IF(SUM(T86:T91)=0,\"\",AVERAGE(T86:T91))","v":""},null,null,{"$f":"SUM(W86:W91)","v":0},{"$f":"IF(SUM(X86:X91)=0,\"\",AVERAGE(X86:X91))","v":""},null,null,{"$f":"SUM(AA86:AA91)","v":0},{"$f":"IF(SUM(AB86:AB91)=0,\"\",AVERAGE(AB86:AB91))","v":""},null,null,{"$f":"SUM(AE86:AE91)","v":0},{"$f":"IF(SUM(AF86:AF91)=0,\"\",AVERAGE(AF86:AF91))","v":""},null,null,{"$f":"SUM(AI86:AI91)","v":0},{"$f":"IF(SUM(AJ86:AJ91)=0,\"\",AVERAGE(AJ86:AJ91))","v":""},null,null,{"$f":"SUM(AM86:AM91)","v":0},{"$f":"IF(SUM(AN86:AN91)=0,\"\",AVERAGE(AN86:AN91))","v":""},{"$f":"C92+G92+K92+O92+S92+W92+AA92+AE92+AI92+AM92","v":0}]
[null,null,null,null,null,null,null,null,null,null,null,null,null,null,null,null,null,null,null,null,null,null,null,null,null,null,null,null,null,null,null,null,null,null,null,null,null,null,{"$f":"IF(AJ93<>\"\",VLOOKUP(AJ93,séries,4,FALSE),\"\")","v":""}]

{"sheet":"Day 6","index":7,"n_rows":93,"n_cols":41,"rows_kept":93,"cut":false,"hidden":false,"merged":[[0,0,1,2],[0,3,1,8],[0,11,1,19],[0,32,1,40],[3,0,3,3],[3,4,3,7],[3,8,3,11],[3,12,3,15],[3,16,3,19],[3,20,3,23],[3,24,3,27],[3,28,3,31],[3,32,3,35],[3,36,3,39],[12,0,12,3],[12,4,12,7],[12,8,12,11],[12,12,12,15],[12,16,12,19],[12,20,12,23],[12,24,12,27],[12,28,12,31],[12,32,12,35],[12,36,12,39],[21,0,21,3],[21,4,21,7],[21,8,21,11],[21,12,21,15],[21,16,21,19],[21,20,21,23],[21,24,21,27],[21,28,21,31],[21,32,21,35],[21,36,21,39],[30,0,30,3],[30,4,30,7],[30,8,30,11],[30,12,30,15],[30,16,30,19],[30,20,30,23],[30,24,30,27],[30,28,30,31],[30,32,30,35],[30,36,30,39],[39,0,39,3],[39,4,39,7],[39,8,39,11],[39,12,39,15],[39,16,39,19],[39,20,39,23],[39,24,39,27],[39,28,39,31],[39,32,39,35],[39,36,39,39],[48,0,48,3],[48,4,48,7],[48,8,48,11],[48,12,48,15],[48,16,48,19],[48,20,48,23],[48,24,48,27],[48,28,48,31],[48,32,48,35],[48,36,48,39],[57,0,57,3],[57,4,57,7],[57,8,57,11],[57,12,57,15],[57,16,57,19],[57,20,57,23],[57,24,57,27],[57,28,57,31],[57,32,57,35],[57,36,57,39],[66,0,66,3],[66,4,66,7],[66,8,66,11],[66,12,66,15],[66,16,66,19],[66,20,66,23],[66,24,66,27],[66,28,66,31],[66,32,66,35],[66,36,66,39],[75,0,75,3],[75,4,75,7],[75,8,75,11],[75,12,75,15],[75,16,75,19],[75,20,75,23],[84,24,84,27],[84,28,84,31],[84,32,84,35],[84,36,84,39],[75,24,75,27],[75,28,75,31],[75,32,75,35],[75,36,75,39],[84,0,84,3],[84,4,84,7],[84,8,84,11],[84,12,84,15],[84,16,84,19],[84,20,84,23]]}
[6,null,null,"<= Jour",null,null,null,null,null,null,null,{"$f":"VLOOKUP(A1,Concours!$C$1:$E$15,2,0)","v":{"$error":"#N/A"}},null,null,null,null,null,null,null,null,null,null,null,null,null,null,null,null,null,null,null,null,{"$f":"SUM(AO10:AO129)","v":0}]
[]
[]
[1,null,null,null,{"$f":"A4+1","v":2},null,null,null,{"$f":"E4+1","v":3},null,null,null,{"$f":"I4+1","v":4},null,null,null,{"$f":"M4+1","v":5},null,null,null,{"$f":"Q4+1","v":6},null,null,null,{"$f":"U4+1","v":7},null,null,null,{"$f":"Y4+1","v":8},null,null,null,{"$f":"AC4+1","v":9},null,null,null,{"$f":"AG4+1","v":10}]
[]
[]
[]
[]
[]
[]
[null,null,{"$f":"SUM(C5:C10)","v":0},{"$f":"IF(SUM(D5:D10)=0,\"\",AVERAGE(D5:D10))","v":""},null,null,{"$f":"SUM(G5:G10)","v":0},{"$f":"IF(SUM(H5:H10)=0,\"\",AVERAGE(H5:H10))","v":""},null,null,{"$f":"SUM(K5:K10)","v":0},{"$f":"IF(SUM(L5:L10)=0,\"\",AVERAGE(L5:L10))","v":""},null,null,{"$f":"SUM(O5:O10)","v":0},{"$f":"IF(SUM(P5:P10)=0,\"\",AVERAGE(P5:P10))","v":""},null,null,{"$f":"SUM(S5:S10)","v":0},{"$f":"IF(SUM(T5:T10)=0,\"\",AVERAGE(T5:T10))","v":""},null,null,{"$f":"SUM(W5:W10)","v":0},{"$f":"IF(SUM(X5:X10)=0,\"\",AVERAGE(X5:X10))","v":""},null,null,{"$f":"SUM(AA5:AA10)","v":0},{"$f":"IF(SUM(AB5:AB10)=0,\"\",AVERAGE(AB5:AB10))","v":""},null,null,{"$f":"SUM(AE5:AE10)","v":0},{"$f":"IF(SUM(AF5:AF10)=0,\"\",AVERAGE(AF5:AF10))","v":""},null,null,{"$f":"SUM(AI5:AI10)","v":0},{"$f":"IF(SUM(AJ5:AJ10)=0,\"\",AVERAGE(AJ5:AJ10))","v":""},null,null,{"$f":"SUM(AM5:AM10)","v":0},{"$f":"IF(SUM(AN5:AN10)=0,\"\",AVERAGE(AN5:AN10))","v":""},{"$f":"C11+G11+K11+O11+S11+W11+AA11+AE11+AI11+AM11","v":0}]
[null,null,null,null,null,null,null,null,null,null,null,null,null,null,null,null,null,null,null,null,null,null,null,null,null,null,null,null,null,null,null,null,null,null,null,null,null,null,{"$f":"IF(AJ12<>\"\",VLOOKUP(AJ12,séries,4,FALSE),\"\")","v":""}]
[{"$f":"A4+10","v":11},null,null,null,{"$f":"A13+1","v":12},null,null,null,{"$f":"E13+1","v":13},null,null,null,{"$f":"I13+1","v":14},null,null,null,{"$f":"M13+1","v":15},null,null,null,{"$f":"Q13+1","v":16},null,null,null,{"$f":"U13+1","v":17},null,null,null,{"$f":"Y13+1","v":18},null,null,null,{"$f":"AC13+1","v":19},null,null,null,{"$f":"AG13+1","v":20}]
[]
[]
[]
[]
[]
[]
[null,null,{"$f":"SUM(C14:C19)","v":0},{"$f":"IF(SUM(D14:D19)=0,\"\",AVERAGE(D14:D19))","v":""},null,null,{"$f":"SUM(G14:G19)","v":0},{"$f":"IF(SUM(H14:H19)=0,\"\",AVERAGE(H14:H19))","v":""},null,null,{"$f":"SUM(K14:K19)","v":0},{"$f":"IF(SUM(L14:L19)=0,\"\",AVERAGE(L14:L19))","v":""},null,null,{"$f":"SUM(O14:O19)","v":0},{"$f":"IF(SUM(P14:P19)=0,\"\",AVERAGE(P14:P19))","v":""},null,null,{"$f":"SUM(S14:S19)","v":0},{"$f":"IF(SUM(T14:T19)=0,\"\",AVERAGE(T14:T19))","v":""},null,null,{"$f":"SUM(W14:W19)","v":0},{"$f":"IF(SUM(X14:X19)=0,\"\",AVERAGE(X14:X19))","v":""},null,null,{"$f":"SUM(AA14:AA19)","v":0},{"$f":"IF(SUM(AB14:AB19)=0,\"\",AVERAGE(AB14:AB19))","v":""},null,null,{"$f":"SUM(AE14:AE19)","v":0},{"$f":"IF(SUM(AF14:AF19)=0,\"\",AVERAGE(AF14:AF19))","v":""},null,null,{"$f":"SUM(AI14:AI19)","v":0},{"$f":"IF(SUM(AJ14:AJ19)=0,\"\",AVERAGE(AJ14:AJ19))","v":""},null,null,{"$f":"SUM(AM14:AM19)","v":0},{"$f":"IF(SUM(AN14:AN19)=0,\"\",AVERAGE(AN14:AN19))","v":""},{"$f":"C20+G20+K20+O20+S20+W20+AA20+AE20+AI20+AM20","v":0}]
[null,null,null,null,null,null,null,null,null,null,null,null,null,null,null,null,null,null,null,null,null,null,null,null,null,null,null,null,null,null,null,null,null,null,null,null,null,null,{"$f":"IF(AJ21<>\"\",VLOOKUP(AJ21,séries,4,FALSE),\"\")","v":""}]
[{"$f":"A13+10","v":21},null,null,null,{"$f":"A22+1","v":22},null,null,null,{"$f":"E22+1","v":23},null,null,null,{"$f":"I22+1","v":24},null,null,null,{"$f":"M22+1","v":25},null,null,null,{"$f":"Q22+1","v":26},null,null,null,{"$f":"U22+1","v":27},null,null,null,{"$f":"Y22+1","v":28},null,null,null,{"$f":"AC22+1","v":29},null,null,null,{"$f":"AG22+1","v":30}]
[]
[]
[]
[]
[]
[]
[null,null,{"$f":"SUM(C23:C28)","v":0},{"$f":"IF(SUM(D23:D28)=0,\"\",AVERAGE(D23:D28))","v":""},null,null,{"$f":"SUM(G23:G28)","v":0},{"$f":"IF(SUM(H23:H28)=0,\"\",AVERAGE(H23:H28))","v":""},null,null,{"$f":"SUM(K23:K28)","v":0},{"$f":"IF(SUM(L23:L28)=0,\"\",AVERAGE(L23:L28))","v":""},null,null,{"$f":"SUM(O23:O28)","v":0},{"$f":"IF(SUM(P23:P28)=0,\"\",AVERAGE(P23:P28))","v":""},null,null,{"$f":"SUM(S23:S28)","v":0},{"$f":"IF(SUM(T23:T28)=0,\"\",AVERAGE(T23:T28))","v":""},null,null,{"$f":"SUM(W23:W28)","v":0},{"$f":"IF(SUM(X23:X28)=0,\"\",AVERAGE(X23:X28))","v":""},null,null,{"$f":"SUM(AA23:AA28)","v":0},{"$f":"IF(SUM(AB23:AB28)=0,\"\",AVERAGE(AB23:AB28))","v":""},null,null,{"$f":"SUM(AE23:AE28)","v":0},{"$f":"IF(SUM(AF23:AF28)=0,\"\",AVERAGE(AF23:AF28))","v":""},null,null,{"$f":"SUM(AI23:AI28)","v":0},{"$f":"IF(SUM(AJ23:AJ28)=0,\"\",AVERAGE(AJ23:AJ28))","v":""},null,null,{"$f":"SUM(AM23:AM28)","v":0},{"$f":"IF(SUM(AN23:AN28)=0,\"\",AVERAGE(AN23:AN28))","v":""},{"$f":"C29+G29+K29+O29+S29+W29+AA29+AE29+AI29+AM29","v":0}]
[null,null,null,null,null,null,null,null,null,null,null,null,null,null,null,null,null,null,null,null,null,null,null,null,null,null,null,null,null,null,null,null,null,null,null,null,null,null,{"$f":"IF(AJ30<>\"\",VLOOKUP(AJ30,séries,4,FALSE),\"\")","v":""}]
[{"$f":"A22+10","v":31},null,null,null,{"$f":"A31+1","v":32},null,null,null,{"$f":"E31+1","v":33},null,null,null,{"$f":"I31+1","v":34},null,null,null,{"$f":"M31+1","v":35},null,null,null,{"$f":"Q31+1","v":36},null,null,null,{"$f":"U31+1","v":37},null,null,null,{"$f":"Y31+1","v":38},null,null,null,{"$f":"AC31+1","v":39},null,null,null,{"$f":"AG31+1","v":40}]
[]
[]
[]
[]
[]
[]
[null,null,{"$f":"SUM(C32:C37)","v":0},{"$f":"IF(SUM(D32:D37)=0,\"\",AVERAGE(D32:D37))","v":""},null,null,{"$f":"SUM(G32:G37)","v":0},{"$f":"IF(SUM(H32:H37)=0,\"\",AVERAGE(H32:H37))","v":""},null,null,{"$f":"SUM(K32:K37)","v":0},{"$f":"IF(SUM(L32:L37)=0,\"\",AVERAGE(L32:L37))","v":""},null,null,{"$f":"SUM(O32:O37)","v":0},{"$f":"IF(SUM(P32:P37)=0,\"\",AVERAGE(P32:P37))","v":""},null,null,{"$f":"SUM(S32:S37)","v":0},{"$f":"IF(SUM(T32:T37)=0,\"\",AVERAGE(T32:T37))","v":""},null,null,{"$f":"SUM(W32:W37)","v":0},{"$f":"IF(SUM(X32:X37)=0,\"\",AVERAGE(X32:X37))","v":""},null,null,{"$f":"SUM(AA32:AA37)","v":0},{"$f":"IF(SUM(AB32:AB37)=0,\"\",AVERAGE(AB32:AB37))","v":""},null,null,{"$f":"SUM(AE32:AE37)","v":0},{"$f":"IF(SUM(AF32:AF37)=0,\"\",AVERAGE(AF32:AF37))","v":""},null,null,{"$f":"SUM(AI32:AI37)","v":0},{"$f":"IF(SUM(AJ32:AJ37)=0,\"\",AVERAGE(AJ32:AJ37))","v":""},null,null,{"$f":"SUM(AM32:AM37)","v":0},{"$f":"IF(SUM(AN32:AN37)=0,\"\",AVERAGE(AN32:AN37))","v":""},{"$f":"C38+G38+K38+O38+S38+W38+AA38+AE38+AI38+AM38","v":0}]
[null,null,null,null,null,null,null,null,null,null,null,null,null,null,null,null,null,null,null,null,null,null,null,null,null,null,null,null,null,null,null,null,null,null,null,null,null,null,{"$f":"IF(AJ39<>\"\",VLOOKUP(AJ39,séries,4,FALSE),\"\")","v":""}]
[{"$f":"A31+10","v":41},null,null,null,{"$f":"A40+1","v":42},null,null,null,{"$f":"E40+1","v":43},null,null,null,{"$f":"I40+1","v":44},null,null,null,{"$f":"M40+1","v":45},null,null,null,{"$f":"Q40+1","v":46},null,null,null,{"$f":"U40+1","v":47},null,null,null,{"$f":"Y40+1","v":48},null,null,null,{"$f":"AC40+1","v":49},null,null,null,{"$f":"AG40+1","v":50}]
[]
[]
[]
[]
[]
[]
[null,null,{"$f":"SUM(C41:C46)","v":0},{"$f":"IF(SUM(D41:D46)=0,\"\",AVERAGE(D41:D46))","v":""},null,null,{"$f":"SUM(G41:G46)","v":0},{"$f":"IF(SUM(H41:H46)=0,\"\",AVERAGE(H41:H46))","v":""},null,null,{"$f":"SUM(K41:K46)","v":0},{"$f":"IF(SUM(L41:L46)=0,\"\",AVERAGE(L41:L46))","v":""},null,null,{"$f":"SUM(O41:O46)","v":0},{"$f":"IF(SUM(P41:P46)=0,\"\",AVERAGE(P41:P46))","v":""},null,null,{"$f":"SUM(S41:S46)","v":0},{"$f":"IF(SUM(T41:T46)=0,\"\",AVERAGE(T41:T46))","v":""},null,null,{"$f":"SUM(W41:W46)","v":0},{"$f":"IF(SUM(X41:X46)=0,\"\",AVERAGE(X41:X46))","v":""},null,null,{"$f":"SUM(AA41:AA46)","v":0},{"$f":"IF(SUM(AB41:AB46)=0,\"\",AVERAGE(AB41:AB46))","v":""},null,null,{"$f":"SUM(AE41:AE46)","v":0},{"$f":"IF(SUM(AF41:AF46)=0,\"\",AVERAGE(AF41:AF46))","v":""},null,null,{"$f":"SUM(AI41:AI46)","v":0},{"$f":"IF(SUM(AJ41:AJ46)=0,\"\",AVERAGE(AJ41:AJ46))","v":""},null,null,{"$f":"SUM(AM41:AM46)","v":0},{"$f":"IF(SUM(AN41:AN46)=0,\"\",AVERAGE(AN41:AN46))","v":""},{"$f":"C47+G47+K47+O47+S47+W47+AA47+AE47+AI47+AM47","v":0}]
[null,null,null,null,null,null,null,null,null,null,null,null,null,null,null,null,null,null,null,null,null,null,null,null,null,null,null,null,null,null,null,null,null,null,null,null,null,null,{"$f":"IF(AJ48<>\"\",VLOOKUP(AJ48,séries,4,FALSE),\"\")","v":""}]
[{"$f":"A40+10","v":51},null,null,null,{"$f":"A49+1","v":52},null,null,null,{"$f":"E49+1","v":53},null,null,null,{"$f":"I49+1","v":54},null,null,null,{"$f":"M49+1","v":55},null,null,null,{"$f":"Q49+1","v":56},null,null,null,{"$f":"U49+1","v":57},null,null,null,{"$f":"Y49+1","v":58},null,null,null,{"$f":"AC49+1","v":59},null,null,null,{"$f":"AG49+1","v":60}]
[]
[]
[]
[]
[]
[]
[null,null,{"$f":"SUM(C50:C55)","v":0},{"$f":"IF(SUM(D50:D55)=0,\"\",AVERAGE(D50:D55))","v":""},null,null,{"$f":"SUM(G50:G55)","v":0},{"$f":"IF(SUM(H50:H55)=0,\"\",AVERAGE(H50:H55))","v":""},null,null,{"$f":"SUM(K50:K55)","v":0},{"$f":"IF(SUM(L50:L55)=0,\"\",AVERAGE(L50:L55))","v":""},null,null,{"$f":"SUM(O50:O55)","v":0},{"$f":"IF(SUM(P50:P55)=0,\"\",AVERAGE(P50:P55))","v":""},null,null,{"$f":"SUM(S50:S55)","v":0},{"$f":"IF(SUM(T50:T55)=0,\"\",AVERAGE(T50:T55))","v":""},null,null,{"$f":"SUM(W50:W55)","v":0},{"$f":"IF(SUM(X50:X55)=0,\"\",AVERAGE(X50:X55))","v":""},null,null,{"$f":"SUM(AA50:AA55)","v":0},{"$f":"IF(SUM(AB50:AB55)=0,\"\",AVERAGE(AB50:AB55))","v":""},null,null,{"$f":"SUM(AE50:AE55)","v":0},{"$f":"IF(SUM(AF50:AF55)=0,\"\",AVERAGE(AF50:AF55))","v":""},null,null,{"$f":"SUM(AI50:AI55)","v":0},{"$f":"IF(SUM(AJ50:AJ55)=0,\"\",AVERAGE(AJ50:AJ55))","v":""},null,null,{"$f":"SUM(AM50:AM55)","v":0},{"$f":"IF(SUM(AN50:AN55)=0,\"\",AVERAGE(AN50:AN55))","v":""},{"$f":"C56+G56+K56+O56+S56+W56+AA56+AE56+AI56+AM56","v":0}]
[null,null,null,null,null,null,null,null,null,null,null,null,null,null,null,null,null,null,null,null,null,null,null,null,null,null,null,null,null,null,null,null,null,null,null,null,null,null,{"$f":"IF(AJ57<>\"\",VLOOKUP(AJ57,séries,4,FALSE),\"\")","v":""}]
[{"$f":"A49+10","v":61},null,null,null,{"$f":"A58+1","v":62},null,null,null,{"$f":"E58+1","v":63},null,null,null,{"$f":"I58+1","v":64},null,null,null,{"$f":"M58+1","v":65},null,null,null,{"$f":"Q58+1","v":66},null,null,null,{"$f":"U58+1","v":67},null,null,null,{"$f":"Y58+1","v":68},null,null,null,{"$f":"AC58+1","v":69},null,null,null,{"$f":"AG58+1","v":70}]
[]
[]
[]
[]
[]
[]
[null,null,{"$f":"SUM(C59:C64)","v":0},{"$f":"IF(SUM(D59:D64)=0,\"\",AVERAGE(D59:D64))","v":""},null,null,{"$f":"SUM(G59:G64)","v":0},{"$f":"IF(SUM(H59:H64)=0,\"\",AVERAGE(H59:H64))","v":""},null,null,{"$f":"SUM(K59:K64)","v":0},{"$f":"IF(SUM(L59:L64)=0,\"\",AVERAGE(L59:L64))","v":""},null,null,{"$f":"SUM(O59:O64)","v":0},{"$f":"IF(SUM(P59:P64)=0,\"\",AVERAGE(P59:P64))","v":""},null,null,{"$f":"SUM(S59:S64)","v":0},{"$f":"IF(SUM(T59:T64)=0,\"\",AVERAGE(T59:T64))","v":""},null,null,{"$f":"SUM(W59:W64)","v":0},{"$f":"IF(SUM(X59:X64)=0,\"\",AVERAGE(X59:X64))","v":""},null,null,{"$f":"SUM(AA59:AA64)","v":0},{"$f":"IF(SUM(AB59:AB64)=0,\"\",AVERAGE(AB59:AB64))","v":""},null,null,{"$f":"SUM(AE59:AE64)","v":0},{"$f":"IF(SUM(AF59:AF64)=0,\"\",AVERAGE(AF59:AF64))","v":""},null,null,{"$f":"SUM(AI59:AI64)","v":0},{"$f":"IF(SUM(AJ59:AJ64)=0,\"\",AVERAGE(AJ59:AJ64))","v":""},null,null,{"$f":"SUM(AM59:AM64)","v":0},{"$f":"IF(SUM(AN59:AN64)=0,\"\",AVERAGE(AN59:AN64))","v":""},{"$f":"C65+G65+K65+O65+S65+W65+AA65+AE65+AI65+AM65","v":0}]
[null,null,null,null,null,null,null,null,null,null,null,null,null,null,null,null,null,null,null,null,null,null,null,null,null,null,null,null,null,null,null,null,null,null,null,null,null,null,{"$f":"IF(AJ66<>\"\",VLOOKUP(AJ66,séries,4,FALSE),\"\")","v":""}]
[{"$f":"A58+10","v":71},null,null,null,{"$f":"A67+1","v":72},null,null,null,{"$f":"E67+1","v":73},null,null,null,{"$f":"I67+1","v":74},null,null,null,{"$f":"M67+1","v":75},null,null,null,{"$f":"Q67+1","v":76},null,null,null,{"$f":"U67+1","v":77},null,null,null,{"$f":"Y67+1","v":78},null,null,null,{"$f":"AC67+1","v":79},null,null,null,{"$f":"AG67+1","v":80}]
[]
[]
[]
[]
[]
[]
[null,null,{"$f":"SUM(C68:C73)","v":0},{"$f":"IF(SUM(D68:D73)=0,\"\",AVERAGE(D68:D73))","v":""},null,null,{"$f":"SUM(G68:G73)","v":0},{"$f":"IF(SUM(H68:H73)=0,\"\",AVERAGE(H68:H73))","v":""},null,null,{"$f":"SUM(K68:K73)","v":0},{"$f":"IF(SUM(L68:L73)=0,\"\",AVERAGE(L68:L73))","v":""},null,null,{"$f":"SUM(O68:O73)","v":0},{"$f":"IF(SUM(P68:P73)=0,\"\",AVERAGE(P68:P73))","v":""},null,null,{"$f":"SUM(S68:S73)","v":0},{"$f":"IF(SUM(T68:T73)=0,\"\",AVERAGE(T68:T73))","v":""},null,null,{"$f":"SUM(W68:W73)","v":0},{"$f":"IF(SUM(X68:X73)=0,\"\",AVERAGE(X68:X73))","v":""},null,null,{"$f":"SUM(AA68:AA73)","v":0},{"$f":"IF(SUM(AB68:AB73)=0,\"\",AVERAGE(AB68:AB73))","v":""},null,null,{"$f":"SUM(AE68:AE73)","v":0},{"$f":"IF(SUM(AF68:AF73)=0,\"\",AVERAGE(AF68:AF73))","v":""},null,null,{"$f":"SUM(AI68:AI73)","v":0},{"$f":"IF(SUM(AJ68:AJ73)=0,\"\",AVERAGE(AJ68:AJ73))","v":""},null,null,{"$f":"SUM(AM68:AM73)","v":0},{"$f":"IF(SUM(AN68:AN73)=0,\"\",AVERAGE(AN68:AN73))","v":""},{"$f":"C74+G74+K74+O74+S74+W74+AA74+AE74+AI74+AM74","v":0}]
[null,null,null,null,null,null,null,null,null,null,null,null,null,null,null,null,null,null,null,null,null,null,null,null,null,null,null,null,null,null,null,null,null,null,null,null,null,null,{"$f":"IF(AJ75<>\"\",VLOOKUP(AJ75,séries,4,FALSE),\"\")","v":""}]
[{"$f":"A67+10","v":81},null,null,null,{"$f":"A76+1","v":82},null,null,null,{"$f":"E76+1","v":83},null,null,null,{"$f":"I76+1","v":84},null,null,null,{"$f":"M76+1","v":85},null,null,null,{"$f":"Q76+1","v":86},null,null,null,{"$f":"U76+1","v":87},null,null,null,{"$f":"Y76+1","v":88},null,null,null,{"$f":"AC76+1","v":89},null,null,null,{"$f":"AG76+1","v":90}]
[]
[]
[]
[]
[]
[]
[null,null,{"$f":"SUM(C77:C82)","v":0},{"$f":"IF(SUM(D77:D82)=0,\"\",AVERAGE(D77:D82))","v":""},null,null,{"$f":"SUM(G77:G82)","v":0},{"$f":"IF(SUM(H77:H82)=0,\"\",AVERAGE(H77:H82))","v":""},null,null,{"$f":"SUM(K77:K82)","v":0},{"$f":"IF(SUM(L77:L82)=0,\"\",AVERAGE(L77:L82))","v":""},null,null,{"$f":"SUM(O77:O82)","v":0},{"$f":"IF(SUM(P77:P82)=0,\"\",AVERAGE(P77:P82))","v":""},null,null,{"$f":"SUM(S77:S82)","v":0},{"$f":"IF(SUM(T77:T82)=0,\"\",AVERAGE(T77:T82))","v":""},null,null,{"$f":"SUM(W77:W82)","v":0},{"$f":"IF(SUM(X77:X82)=0,\"\",AVERAGE(X77:X82))","v":""},null,null,{"$f":"SUM(AA77:AA82)","v":0},{"$f":"IF(SUM(AB77:AB82)=0,\"\",AVERAGE(AB77:AB82))","v":""},null,null,{"$f":"SUM(AE77:AE82)","v":0},{"$f":"IF(SUM(AF77:AF82)=0,\"\",AVERAGE(AF77:AF82))","v":""},null,null,{"$f":"SUM(AI77:AI82)","v":0},{"$f":"IF(SUM(AJ77:AJ82)=0,\"\",AVERAGE(AJ77:AJ82))","v":""},null,null,{"$f":"SUM(AM77:AM82)","v":0},{"$f":"IF(SUM(AN77:AN82)=0,\"\",AVERAGE(AN77:AN82))","v":""},{"$f":"C83+G83+K83+O83+S83+W83+AA83+AE83+AI83+AM83","v":0}]
[null,null,null,null,null,null,null,null,null,null,null,null,null,null,null,null,null,null,null,null,null,null,null,null,null,null,null,null,null,null,null,null,null,null,null,null,null,null,{"$f":"IF(AJ84<>\"\",VLOOKUP(AJ84,séries,4,FALSE),\"\")","v":""}]
[{"$f":"A76+10","v":91},null,null,null,{"$f":"A85+1","v":92},null,null,null,{"$f":"E85+1","v":93},null,null,null,{"$f":"I85+1","v":94},null,null,null,{"$f":"M85+1","v":95},null,null,null,{"$f":"Q85+1","v":96},null,null,null,{"$f":"U85+1","v":97},null,null,null,{"$f":"Y85+1","v":98},null,null,null,{"$f":"AC85+1","v":99},null,null,null,{"$f":"AG85+1","v":100}]
[]
[]
[]
[]
[]
[]
[null,null,{"$f":"SUM(C86:C91)","v":0},{"$f":"IF(SUM(D86:D91)=0,\"\",AVERAGE(D86:D91))","v":""},null,null,{"$f":"SUM(G86:G91)","v":0},{"$f":"IF(SUM(H86:H91)=0,\"\",AVERAGE(H86:H91))","v":""},null,null,{"$f":"SUM(K86:K91)","v":0},{"$f":"IF(SUM(L86:L91)=0,\"\",AVERAGE(L86:L91))","v":""},null,null,{"$f":"SUM(O86:O91)","v":0},{"$f":"IF(SUM(P86:P91)=0,\"\",AVERAGE(P86:P91))","v":""},null,null,{"$f":"SUM(S86:S91)","v":0},{"$f":"IF(SUM(T86:T91)=0,\"\",AVERAGE(T86:T91))","v":""},null,null,{"$f":"SUM(W86:W91)","v":0},{"$f":"IF(SUM(X86:X91)=0,\"\",AVERAGE(X86:X91))","v":""},null,null,{"$f":"SUM(AA86:AA91)","v":0},{"$f":"IF(SUM(AB86:AB91)=0,\"\",AVERAGE(AB86:AB91))","v":""},null,null,{"$f":"SUM(AE86:AE91)","v":0},{"$f":"IF(SUM(AF86:AF91)=0,\"\",AVERAGE(AF86:AF91))","v":""},null,null,{"$f":"SUM(AI86:AI91)","v":0},{"$f":"IF(SUM(AJ86:AJ91)=0,\"\",AVERAGE(AJ86:AJ91))","v":""},null,null,{"$f":"SUM(AM86:AM91)","v":0},{"$f":"IF(SUM(AN86:AN91)=0,\"\",AVERAGE(AN86:AN91))","v":""},{"$f":"C92+G92+K92+O92+S92+W92+AA92+AE92+AI92+AM92","v":0}]
[null,null,null,null,null,null,null,null,null,null,null,null,null,null,null,null,null,null,null,null,null,null,null,null,null,null,null,null,null,null,null,null,null,null,null,null,null,null,{"$f":"IF(AJ93<>\"\",VLOOKUP(AJ93,séries,4,FALSE),\"\")","v":""}]

{"sheet":"Day 7","index":8,"n_rows":93,"n_cols":41,"rows_kept":93,"cut":false,"hidden":false,"merged":[[0,0,1,2],[0,3,1,8],[0,11,1,19],[0,32,1,40],[3,0,3,3],[3,4,3,7],[3,8,3,11],[3,12,3,15],[3,16,3,19],[3,20,3,23],[3,24,3,27],[3,28,3,31],[3,32,3,35],[3,36,3,39],[12,0,12,3],[12,4,12,7],[12,8,12,11],[12,12,12,15],[12,16,12,19],[12,20,12,23],[12,24,12,27],[12,28,12,31],[12,32,12,35],[12,36,12,39],[21,0,21,3],[21,4,21,7],[21,8,21,11],[21,12,21,15],[21,16,21,19],[21,20,21,23],[21,24,21,27],[21,28,21,31],[21,32,21,35],[21,36,21,39],[30,0,30,3],[30,4,30,7],[30,8,30,11],[30,12,30,15],[30,16,30,19],[30,20,30,23],[30,24,30,27],[30,28,30,31],[30,32,30,35],[30,36,30,39],[39,0,39,3],[39,4,39,7],[39,8,39,11],[39,12,39,15],[39,16,39,19],[39,20,39,23],[39,24,39,27],[39,28,39,31],[39,32,39,35],[39,36,39,39],[48,0,48,3],[48,4,48,7],[48,8,48,11],[48,12,48,15],[48,16,48,19],[48,20,48,23],[48,24,48,27],[48,28,48,31],[48,32,48,35],[48,36,48,39],[57,0,57,3],[57,4,57,7],[57,8,57,11],[57,12,57,15],[57,16,57,19],[57,20,57,23],[57,24,57,27],[57,28,57,31],[57,32,57,35],[57,36,57,39],[66,0,66,3],[66,4,66,7],[66,8,66,11],[66,12,66,15],[66,16,66,19],[66,20,66,23],[66,24,66,27],[66,28,66,31],[66,32,66,35],[66,36,66,39],[75,0,75,3],[75,4,75,7],[75,8,75,11],[75,12,75,15],[75,16,75,19],[75,20,75,23],[84,24,84,27],[84,28,84,31],[84,32,84,35],[84,36,84,39],[75,24,75,27],[75,28,75,31],[75,32,75,35],[75,36,75,39],[84,0,84,3],[84,4,84,7],[84,8,84,11],[84,12,84,15],[84,16,84,19],[84,20,84,23]]}
[7,null,null,"<= Jour",null,null,null,null,null,null,null,{"$f":"VLOOKUP(A1,Concours!$C$1:$E$15,2,0)","v":{"$error":"#N/A"}},null,null,null,null,null,null,null,null,null,null,null,null,null,null,null,null,null,null,null,null,{"$f":"SUM(AO10:AO129)","v":0}]
[]
[]
[1,null,null,null,{"$f":"A4+1","v":2},null,null,null,{"$f":"E4+1","v":3},null,null,null,{"$f":"I4+1","v":4},null,null,null,{"$f":"M4+1","v":5},null,null,null,{"$f":"Q4+1","v":6},null,null,null,{"$f":"U4+1","v":7},null,null,null,{"$f":"Y4+1","v":8},null,null,null,{"$f":"AC4+1","v":9},null,null,null,{"$f":"AG4+1","v":10}]
[]
[]
[]
[]
[]
[]
[null,null,{"$f":"SUM(C5:C10)","v":0},{"$f":"IF(SUM(D5:D10)=0,\"\",AVERAGE(D5:D10))","v":""},null,null,{"$f":"SUM(G5:G10)","v":0},{"$f":"IF(SUM(H5:H10)=0,\"\",AVERAGE(H5:H10))","v":""},null,null,{"$f":"SUM(K5:K10)","v":0},{"$f":"IF(SUM(L5:L10)=0,\"\",AVERAGE(L5:L10))","v":""},null,null,{"$f":"SUM(O5:O10)","v":0},{"$f":"IF(SUM(P5:P10)=0,\"\",AVERAGE(P5:P10))","v":""},null,null,{"$f":"SUM(S5:S10)","v":0},{"$f":"IF(SUM(T5:T10)=0,\"\",AVERAGE(T5:T10))","v":""},null,null,{"$f":"SUM(W5:W10)","v":0},{"$f":"IF(SUM(X5:X10)=0,\"\",AVERAGE(X5:X10))","v":""},null,null,{"$f":"SUM(AA5:AA10)","v":0},{"$f":"IF(SUM(AB5:AB10)=0,\"\",AVERAGE(AB5:AB10))","v":""},null,null,{"$f":"SUM(AE5:AE10)","v":0},{"$f":"IF(SUM(AF5:AF10)=0,\"\",AVERAGE(AF5:AF10))","v":""},null,null,{"$f":"SUM(AI5:AI10)","v":0},{"$f":"IF(SUM(AJ5:AJ10)=0,\"\",AVERAGE(AJ5:AJ10))","v":""},null,null,{"$f":"SUM(AM5:AM10)","v":0},{"$f":"IF(SUM(AN5:AN10)=0,\"\",AVERAGE(AN5:AN10))","v":""},{"$f":"C11+G11+K11+O11+S11+W11+AA11+AE11+AI11+AM11","v":0}]
[null,null,null,null,null,null,null,null,null,null,null,null,null,null,null,null,null,null,null,null,null,null,null,null,null,null,null,null,null,null,null,null,null,null,null,null,null,null,{"$f":"IF(AJ12<>\"\",VLOOKUP(AJ12,séries,4,FALSE),\"\")","v":""}]
[{"$f":"A4+10","v":11},null,null,null,{"$f":"A13+1","v":12},null,null,null,{"$f":"E13+1","v":13},null,null,null,{"$f":"I13+1","v":14},null,null,null,{"$f":"M13+1","v":15},null,null,null,{"$f":"Q13+1","v":16},null,null,null,{"$f":"U13+1","v":17},null,null,null,{"$f":"Y13+1","v":18},null,null,null,{"$f":"AC13+1","v":19},null,null,null,{"$f":"AG13+1","v":20}]
[]
[]
[]
[]
[]
[]
[null,null,{"$f":"SUM(C14:C19)","v":0},{"$f":"IF(SUM(D14:D19)=0,\"\",AVERAGE(D14:D19))","v":""},null,null,{"$f":"SUM(G14:G19)","v":0},{"$f":"IF(SUM(H14:H19)=0,\"\",AVERAGE(H14:H19))","v":""},null,null,{"$f":"SUM(K14:K19)","v":0},{"$f":"IF(SUM(L14:L19)=0,\"\",AVERAGE(L14:L19))","v":""},null,null,{"$f":"SUM(O14:O19)","v":0},{"$f":"IF(SUM(P14:P19)=0,\"\",AVERAGE(P14:P19))","v":""},null,null,{"$f":"SUM(S14:S19)","v":0},{"$f":"IF(SUM(T14:T19)=0,\"\",AVERAGE(T14:T19))","v":""},null,null,{"$f":"SUM(W14:W19)","v":0},{"$f":"IF(SUM(X14:X19)=0,\"\",AVERAGE(X14:X19))","v":""},null,null,{"$f":"SUM(AA14:AA19)","v":0},{"$f":"IF(SUM(AB14:AB19)=0,\"\",AVERAGE(AB14:AB19))","v":""},null,null,{"$f":"SUM(AE14:AE19)","v":0},{"$f":"IF(SUM(AF14:AF19)=0,\"\",AVERAGE(AF14:AF19))","v":""},null,null,{"$f":"SUM(AI14:AI19)","v":0},{"$f":"IF(SUM(AJ14:AJ19)=0,\"\",AVERAGE(AJ14:AJ19))","v":""},null,null,{"$f":"SUM(AM14:AM19)","v":0},{"$f":"IF(SUM(AN14:AN19)=0,\"\",AVERAGE(AN14:AN19))","v":""},{"$f":"C20+G20+K20+O20+S20+W20+AA20+AE20+AI20+AM20","v":0}]
[null,null,null,null,null,null,null,null,null,null,null,null,null,null,null,null,null,null,null,null,null,null,null,null,null,null,null,null,null,null,null,null,null,null,null,null,null,null,{"$f":"IF(AJ21<>\"\",VLOOKUP(AJ21,séries,4,FALSE),\"\")","v":""}]
[{"$f":"A13+10","v":21},null,null,null,{"$f":"A22+1","v":22},null,null,null,{"$f":"E22+1","v":23},null,null,null,{"$f":"I22+1","v":24},null,null,null,{"$f":"M22+1","v":25},null,null,null,{"$f":"Q22+1","v":26},null,null,null,{"$f":"U22+1","v":27},null,null,null,{"$f":"Y22+1","v":28},null,null,null,{"$f":"AC22+1","v":29},null,null,null,{"$f":"AG22+1","v":30}]
[]
[]
[]
[]
[]
[]
[null,null,{"$f":"SUM(C23:C28)","v":0},{"$f":"IF(SUM(D23:D28)=0,\"\",AVERAGE(D23:D28))","v":""},null,null,{"$f":"SUM(G23:G28)","v":0},{"$f":"IF(SUM(H23:H28)=0,\"\",AVERAGE(H23:H28))","v":""},null,null,{"$f":"SUM(K23:K28)","v":0},{"$f":"IF(SUM(L23:L28)=0,\"\",AVERAGE(L23:L28))","v":""},null,null,{"$f":"SUM(O23:O28)","v":0},{"$f":"IF(SUM(P23:P28)=0,\"\",AVERAGE(P23:P28))","v":""},null,null,{"$f":"SUM(S23:S28)","v":0},{"$f":"IF(SUM(T23:T28)=0,\"\",AVERAGE(T23:T28))","v":""},null,null,{"$f":"SUM(W23:W28)","v":0},{"$f":"IF(SUM(X23:X28)=0,\"\",AVERAGE(X23:X28))","v":""},null,null,{"$f":"SUM(AA23:AA28)","v":0},{"$f":"IF(SUM(AB23:AB28)=0,\"\",AVERAGE(AB23:AB28))","v":""},null,null,{"$f":"SUM(AE23:AE28)","v":0},{"$f":"IF(SUM(AF23:AF28)=0,\"\",AVERAGE(AF23:AF28))","v":""},null,null,{"$f":"SUM(AI23:AI28)","v":0},{"$f":"IF(SUM(AJ23:AJ28)=0,\"\",AVERAGE(AJ23:AJ28))","v":""},null,null,{"$f":"SUM(AM23:AM28)","v":0},{"$f":"IF(SUM(AN23:AN28)=0,\"\",AVERAGE(AN23:AN28))","v":""},{"$f":"C29+G29+K29+O29+S29+W29+AA29+AE29+AI29+AM29","v":0}]
[null,null,null,null,null,null,null,null,null,null,null,null,null,null,null,null,null,null,null,null,null,null,null,null,null,null,null,null,null,null,null,null,null,null,null,null,null,null,{"$f":"IF(AJ30<>\"\",VLOOKUP(AJ30,séries,4,FALSE),\"\")","v":""}]
[{"$f":"A22+10","v":31},null,null,null,{"$f":"A31+1","v":32},null,null,null,{"$f":"E31+1","v":33},null,null,null,{"$f":"I31+1","v":34},null,null,null,{"$f":"M31+1","v":35},null,null,null,{"$f":"Q31+1","v":36},null,null,null,{"$f":"U31+1","v":37},null,null,null,{"$f":"Y31+1","v":38},null,null,null,{"$f":"AC31+1","v":39},null,null,null,{"$f":"AG31+1","v":40}]
[]
[]
[]
[]
[]
[]
[null,null,{"$f":"SUM(C32:C37)","v":0},{"$f":"IF(SUM(D32:D37)=0,\"\",AVERAGE(D32:D37))","v":""},null,null,{"$f":"SUM(G32:G37)","v":0},{"$f":"IF(SUM(H32:H37)=0,\"\",AVERAGE(H32:H37))","v":""},null,null,{"$f":"SUM(K32:K37)","v":0},{"$f":"IF(SUM(L32:L37)=0,\"\",AVERAGE(L32:L37))","v":""},null,null,{"$f":"SUM(O32:O37)","v":0},{"$f":"IF(SUM(P32:P37)=0,\"\",AVERAGE(P32:P37))","v":""},null,null,{"$f":"SUM(S32:S37)","v":0},{"$f":"IF(SUM(T32:T37)=0,\"\",AVERAGE(T32:T37))","v":""},null,null,{"$f":"SUM(W32:W37)","v":0},{"$f":"IF(SUM(X32:X37)=0,\"\",AVERAGE(X32:X37))","v":""},null,null,{"$f":"SUM(AA32:AA37)","v":0},{"$f":"IF(SUM(AB32:AB37)=0,\"\",AVERAGE(AB32:AB37))","v":""},null,null,{"$f":"SUM(AE32:AE37)","v":0},{"$f":"IF(SUM(AF32:AF37)=0,\"\",AVERAGE(AF32:AF37))","v":""},null,null,{"$f":"SUM(AI32:AI37)","v":0},{"$f":"IF(SUM(AJ32:AJ37)=0,\"\",AVERAGE(AJ32:AJ37))","v":""},null,null,{"$f":"SUM(AM32:AM37)","v":0},{"$f":"IF(SUM(AN32:AN37)=0,\"\",AVERAGE(AN32:AN37))","v":""},{"$f":"C38+G38+K38+O38+S38+W38+AA38+AE38+AI38+AM38","v":0}]
[null,null,null,null,null,null,null,null,null,null,null,null,null,null,null,null,null,null,null,null,null,null,null,null,null,null,null,null,null,null,null,null,null,null,null,null,null,null,{"$f":"IF(AJ39<>\"\",VLOOKUP(AJ39,séries,4,FALSE),\"\")","v":""}]
[{"$f":"A31+10","v":41},null,null,null,{"$f":"A40+1","v":42},null,null,null,{"$f":"E40+1","v":43},null,null,null,{"$f":"I40+1","v":44},null,null,null,{"$f":"M40+1","v":45},null,null,null,{"$f":"Q40+1","v":46},null,null,null,{"$f":"U40+1","v":47},null,null,null,{"$f":"Y40+1","v":48},null,null,null,{"$f":"AC40+1","v":49},null,null,null,{"$f":"AG40+1","v":50}]
[]
[]
[]
[]
[]
[]
[null,null,{"$f":"SUM(C41:C46)","v":0},{"$f":"IF(SUM(D41:D46)=0,\"\",AVERAGE(D41:D46))","v":""},null,null,{"$f":"SUM(G41:G46)","v":0},{"$f":"IF(SUM(H41:H46)=0,\"\",AVERAGE(H41:H46))","v":""},null,null,{"$f":"SUM(K41:K46)","v":0},{"$f":"IF(SUM(L41:L46)=0,\"\",AVERAGE(L41:L46))","v":""},null,null,{"$f":"SUM(O41:O46)","v":0},{"$f":"IF(SUM(P41:P46)=0,\"\",AVERAGE(P41:P46))","v":""},null,null,{"$f":"SUM(S41:S46)","v":0},{"$f":"IF(SUM(T41:T46)=0,\"\",AVERAGE(T41:T46))","v":""},null,null,{"$f":"SUM(W41:W46)","v":0},{"$f":"IF(SUM(X41:X46)=0,\"\",AVERAGE(X41:X46))","v":""},null,null,{"$f":"SUM(AA41:AA46)","v":0},{"$f":"IF(SUM(AB41:AB46)=0,\"\",AVERAGE(AB41:AB46))","v":""},null,null,{"$f":"SUM(AE41:AE46)","v":0},{"$f":"IF(SUM(AF41:AF46)=0,\"\",AVERAGE(AF41:AF46))","v":""},null,null,{"$f":"SUM(AI41:AI46)","v":0},{"$f":"IF(SUM(AJ41:AJ46)=0,\"\",AVERAGE(AJ41:AJ46))","v":""},null,null,{"$f":"SUM(AM41:AM46)","v":0},{"$f":"IF(SUM(AN41:AN46)=0,\"\",AVERAGE(AN41:AN46))","v":""},{"$f":"C47+G47+K47+O47+S47+W47+AA47+AE47+AI47+AM47","v":0}]
[null,null,null,null,null,null,null,null,null,null,null,null,null,null,null,null,null,null,null,null,null,null,null,null,null,null,null,null,null,null,null,null,null,null,null,null,null,null,{"$f":"IF(AJ48<>\"\",VLOOKUP(AJ48,séries,4,FALSE),\"\")","v":""}]
[{"$f":"A40+10","v":51},null,null,null,{"$f":"A49+1","v":52},null,null,null,{"$f":"E49+1","v":53},null,null,null,{"$f":"I49+1","v":54},null,null,null,{"$f":"M49+1","v":55},null,null,null,{"$f":"Q49+1","v":56},null,null,null,{"$f":"U49+1","v":57},null,null,null,{"$f":"Y49+1","v":58},null,null,null,{"$f":"AC49+1","v":59},null,null,null,{"$f":"AG49+1","v":60}]
[]
[]
[]
[]
[]
[]
[null,null,{"$f":"SUM(C50:C55)","v":0},{"$f":"IF(SUM(D50:D55)=0,\"\",AVERAGE(D50:D55))","v":""},null,null,{"$f":"SUM(G50:G55)","v":0},{"$f":"IF(SUM(H50:H55)=0,\"\",AVERAGE(H50:H55))","v":""},null,null,{"$f":"SUM(K50:K55)","v":0},{"$f":"IF(SUM(L50:L55)=0,\"\",AVERAGE(L50:L55))","v":""},null,null,{"$f":"SUM(O50:O55)","v":0},{"$f":"IF(SUM(P50:P55)=0,\"\",AVERAGE(P50:P55))","v":""},null,null,{"$f":"SUM(S50:S55)","v":0},{"$f":"IF(SUM(T50:T55)=0,\"\",AVERAGE(T50:T55))","v":""},null,null,{"$f":"SUM(W50:W55)","v":0},{"$f":"IF(SUM(X50:X55)=0,\"\",AVERAGE(X50:X55))","v":""},null,null,{"$f":"SUM(AA50:AA55)","v":0},{"$f":"IF(SUM(AB50:AB55)=0,\"\",AVERAGE(AB50:AB55))","v":""},null,null,{"$f":"SUM(AE50:AE55)","v":0},{"$f":"IF(SUM(AF50:AF55)=0,\"\",AVERAGE(AF50:AF55))","v":""},null,null,{"$f":"SUM(AI50:AI55)","v":0},{"$f":"IF(SUM(AJ50:AJ55)=0,\"\",AVERAGE(AJ50:AJ55))","v":""},null,null,{"$f":"SUM(AM50:AM55)","v":0},{"$f":"IF(SUM(AN50:AN55)=0,\"\",AVERAGE(AN50:AN55))","v":""},{"$f":"C56+G56+K56+O56+S56+W56+AA56+AE56+AI56+AM56","v":0}]
[null,null,null,null,null,null,null,null,null,null,null,null,null,null,null,null,null,null,null,null,null,null,null,null,null,null,null,null,null,null,null,null,null,null,null,null,null,null,{"$f":"IF(AJ57<>\"\",VLOOKUP(AJ57,séries,4,FALSE),\"\")","v":""}]
[{"$f":"A49+10","v":61},null,null,null,{"$f":"A58+1","v":62},null,null,null,{"$f":"E58+1","v":63},null,null,null,{"$f":"I58+1","v":64},null,null,null,{"$f":"M58+1","v":65},null,null,null,{"$f":"Q58+1","v":66},null,null,null,{"$f":"U58+1","v":67},null,null,null,{"$f":"Y58+1","v":68},null,null,null,{"$f":"AC58+1","v":69},null,null,null,{"$f":"AG58+1","v":70}]
[]
[]
[]
[]
[]
[]
[null,null,{"$f":"SUM(C59:C64)","v":0},{"$f":"IF(SUM(D59:D64)=0,\"\",AVERAGE(D59:D64))","v":""},null,null,{"$f":"SUM(G59:G64)","v":0},{"$f":"IF(SUM(H59:H64)=0,\"\",AVERAGE(H59:H64))","v":""},null,null,{"$f":"SUM(K59:K64)","v":0},{"$f":"IF(SUM(L59:L64)=0,\"\",AVERAGE(L59:L64))","v":""},null,null,{"$f":"SUM(O59:O64)","v":0},{"$f":"IF(SUM(P59:P64)=0,\"\",AVERAGE(P59:P64))","v":""},null,null,{"$f":"SUM(S59:S64)","v":0},{"$f":"IF(SUM(T59:T64)=0,\"\",AVERAGE(T59:T64))","v":""},null,null,{"$f":"SUM(W59:W64)","v":0},{"$f":"IF(SUM(X59:X64)=0,\"\",AVERAGE(X59:X64))","v":""},null,null,{"$f":"SUM(AA59:AA64)","v":0},{"$f":"IF(SUM(AB59:AB64)=0,\"\",AVERAGE(AB59:AB64))","v":""},null,null,{"$f":"SUM(AE59:AE64)","v":0},{"$f":"IF(SUM(AF59:AF64)=0,\"\",AVERAGE(AF59:AF64))","v":""},null,null,{"$f":"SUM(AI59:AI64)","v":0},{"$f":"IF(SUM(AJ59:AJ64)=0,\"\",AVERAGE(AJ59:AJ64))","v":""},null,null,{"$f":"SUM(AM59:AM64)","v":0},{"$f":"IF(SUM(AN59:AN64)=0,\"\",AVERAGE(AN59:AN64))","v":""},{"$f":"C65+G65+K65+O65+S65+W65+AA65+AE65+AI65+AM65","v":0}]
[null,null,null,null,null,null,null,null,null,null,null,null,null,null,null,null,null,null,null,null,null,null,null,null,null,null,null,null,null,null,null,null,null,null,null,null,null,null,{"$f":"IF(AJ66<>\"\",VLOOKUP(AJ66,séries,4,FALSE),\"\")","v":""}]
[{"$f":"A58+10","v":71},null,null,null,{"$f":"A67+1","v":72},null,null,null,{"$f":"E67+1","v":73},null,null,null,{"$f":"I67+1","v":74},null,null,null,{"$f":"M67+1","v":75},null,null,null,{"$f":"Q67+1","v":76},null,null,null,{"$f":"U67+1","v":77},null,null,null,{"$f":"Y67+1","v":78},null,null,null,{"$f":"AC67+1","v":79},null,null,null,{"$f":"AG67+1","v":80}]
[]
[]
[]
[]
[]
[]
[null,null,{"$f":"SUM(C68:C73)","v":0},{"$f":"IF(SUM(D68:D73)=0,\"\",AVERAGE(D68:D73))","v":""},null,null,{"$f":"SUM(G68:G73)","v":0},{"$f":"IF(SUM(H68:H73)=0,\"\",AVERAGE(H68:H73))","v":""},null,null,{"$f":"SUM(K68:K73)","v":0},{"$f":"IF(SUM(L68:L73)=0,\"\",AVERAGE(L68:L73))","v":""},null,null,{"$f":"SUM(O68:O73)","v":0},{"$f":"IF(SUM(P68:P73)=0,\"\",AVERAGE(P68:P73))","v":""},null,null,{"$f":"SUM(S68:S73)","v":0},{"$f":"IF(SUM(T68:T73)=0,\"\",AVERAGE(T68:T73))","v":""},null,null,{"$f":"SUM(W68:W73)","v":0},{"$f":"IF(SUM(X68:X73)=0,\"\",AVERAGE(X68:X73))","v":""},null,null,{"$f":"SUM(AA68:AA73)","v":0},{"$f":"IF(SUM(AB68:AB73)=0,\"\",AVERAGE(AB68:AB73))","v":""},null,null,{"$f":"SUM(AE68:AE73)","v":0},{"$f":"IF(SUM(AF68:AF73)=0,\"\",AVERAGE(AF68:AF73))","v":""},null,null,{"$f":"SUM(AI68:AI73)","v":0},{"$f":"IF(SUM(AJ68:AJ73)=0,\"\",AVERAGE(AJ68:AJ73))","v":""},null,null,{"$f":"SUM(AM68:AM73)","v":0},{"$f":"IF(SUM(AN68:AN73)=0,\"\",AVERAGE(AN68:AN73))","v":""},{"$f":"C74+G74+K74+O74+S74+W74+AA74+AE74+AI74+AM74","v":0}]
[null,null,null,null,null,null,null,null,null,null,null,null,null,null,null,null,null,null,null,null,null,null,null,null,null,null,null,null,null,null,null,null,null,null,null,null,null,null,{"$f":"IF(AJ75<>\"\",VLOOKUP(AJ75,séries,4,FALSE),\"\")","v":""}]
[{"$f":"A67+10","v":81},null,null,null,{"$f":"A76+1","v":82},null,null,null,{"$f":"E76+1","v":83},null,null,null,{"$f":"I76+1","v":84},null,null,null,{"$f":"M76+1","v":85},null,null,null,{"$f":"Q76+1","v":86},null,null,null,{"$f":"U76+1","v":87},null,null,null,{"$f":"Y76+1","v":88},null,null,null,{"$f":"AC76+1","v":89},null,null,null,{"$f":"AG76+1","v":90}]
[]
[]
[]
[]
[]
[]
[null,null,{"$f":"SUM(C77:C82)","v":0},{"$f":"IF(SUM(D77:D82)=0,\"\",AVERAGE(D77:D82))","v":""},null,null,{"$f":"SUM(G77:G82)","v":0},{"$f":"IF(SUM(H77:H82)=0,\"\",AVERAGE(H77:H82))","v":""},null,null,{"$f":"SUM(K77:K82)","v":0},{"$f":"IF(SUM(L77:L82)=0,\"\",AVERAGE(L77:L82))","v":""},null,null,{"$f":"SUM(O77:O82)","v":0},{"$f":"IF(SUM(P77:P82)=0,\"\",AVERAGE(P77:P82))","v":""},null,null,{"$f":"SUM(S77:S82)","v":0},{"$f":"IF(SUM(T77:T82)=0,\"\",AVERAGE(T77:T82))","v":""},null,null,{"$f":"SUM(W77:W82)","v":0},{"$f":"IF(SUM(X77:X82)=0,\"\",AVERAGE(X77:X82))","v":""},null,null,{"$f":"SUM(AA77:AA82)","v":0},{"$f":"IF(SUM(AB77:AB82)=0,\"\",AVERAGE(AB77:AB82))","v":""},null,null,{"$f":"SUM(AE77:AE82)","v":0},{"$f":"IF(SUM(AF77:AF82)=0,\"\",AVERAGE(AF77:AF82))","v":""},null,null,{"$f":"SUM(AI77:AI82)","v":0},{"$f":"IF(SUM(AJ77:AJ82)=0,\"\",AVERAGE(AJ77:AJ82))","v":""},null,null,{"$f":"SUM(AM77:AM82)","v":0},{"$f":"IF(SUM(AN77:AN82)=0,\"\",AVERAGE(AN77:AN82))","v":""},{"$f":"C83+G83+K83+O83+S83+W83+AA83+AE83+AI83+AM83","v":0}]
[null,null,null,null,null,null,null,null,null,null,null,null,null,null,null,null,null,null,null,null,null,null,null,null,null,null,null,null,null,null,null,null,null,null,null,null,null,null,{"$f":"IF(AJ84<>\"\",VLOOKUP(AJ84,séries,4,FALSE),\"\")","v":""}]
[{"$f":"A76+10","v":91},null,null,null,{"$f":"A85+1","v":92},null,null,null,{"$f":"E85+1","v":93},null,null,null,{"$f":"I85+1","v":94},null,null,null,{"$f":"M85+1","v":95},null,null,null,{"$f":"Q85+1","v":96},null,null,null,{"$f":"U85+1","v":97},null,null,null,{"$f":"Y85+1","v":98},null,null,null,{"$f":"AC85+1","v":99},null,null,null,{"$f":"AG85+1","v":100}]
[]
[]
[]
[]
[]
[]
[null,null,{"$f":"SUM(C86:C91)","v":0},{"$f":"IF(SUM(D86:D91)=0,\"\",AVERAGE(D86:D91))","v":""},null,null,{"$f":"SUM(G86:G91)","v":0},{"$f":"IF(SUM(H86:H91)=0,\"\",AVERAGE(H86:H91))","v":""},null,null,{"$f":"SUM(K86:K91)","v":0},{"$f":"IF(SUM(L86:L91)=0,\"\",AVERAGE(L86:L91))","v":""},null,null,{"$f":"SUM(O86:O91)","v":0},{"$f":"IF(SUM(P86:P91)=0,\"\",AVERAGE(P86:P91))","v":""},null,null,{"$f":"SUM(S86:S91)","v":0},{"$f":"IF(SUM(T86:T91)=0,\"\",AVERAGE(T86:T91))","v":""},null,null,{"$f":"SUM(W86:W91)","v":0},{"$f":"IF(SUM(X86:X91)=0,\"\",AVERAGE(X86:X91))","v":""},null,null,{"$f":"SUM(AA86:AA91)","v":0},{"$f":"IF(SUM(AB86:AB91)=0,\"\",AVERAGE(AB86:AB91))","v":""},null,null,{"$f":"SUM(AE86:AE91)","v":0},{"$f":"IF(SUM(AF86:AF91)=0,\"\",AVERAGE(AF86:AF91))","v":""},null,null,{"$f":"SUM(AI86:AI91)","v":0},{"$f":"IF(SUM(AJ86:AJ91)=0,\"\",AVERAGE(AJ86:AJ91))","v":""},null,null,{"$f":"SUM(AM86:AM91)","v":0},{"$f":"IF(SUM(AN86:AN91)=0,\"\",AVERAGE(AN86:AN91))","v":""},{"$f":"C92+G92+K92+O92+S92+W92+AA92+AE92+AI92+AM92","v":0}]
[null,null,null,null,null,null,null,null,null,null,null,null,null,null,null,null,null,null,null,null,null,null,null,null,null,null,null,null,null,null,null,null,null,null,null,null,null,null,{"$f":"IF(AJ93<>\"\",VLOOKUP(AJ93,séries,4,FALSE),\"\")","v":""}]

{"sheet":"Day 8","index":9,"n_rows":93,"n_cols":41,"rows_kept":93,"cut":false,"hidden":false,"merged":[[0,0,1,2],[0,3,1,8],[0,11,1,19],[0,32,1,40],[3,0,3,3],[3,4,3,7],[3,8,3,11],[3,12,3,15],[3,16,3,19],[3,20,3,23],[3,24,3,27],[3,28,3,31],[3,32,3,35],[3,36,3,39],[12,0,12,3],[12,4,12,7],[12,8,12,11],[12,12,12,15],[12,16,12,19],[12,20,12,23],[12,24,12,27],[12,28,12,31],[12,32,12,35],[12,36,12,39],[21,0,21,3],[21,4,21,7],[21,8,21,11],[21,12,21,15],[21,16,21,19],[21,20,21,23],[21,24,21,27],[21,28,21,31],[21,32,21,35],[21,36,21,39],[30,0,30,3],[30,4,30,7],[30,8,30,11],[30,12,30,15],[30,16,30,19],[30,20,30,23],[30,24,30,27],[30,28,30,31],[30,32,30,35],[30,36,30,39],[39,0,39,3],[39,4,39,7],[39,8,39,11],[39,12,39,15],[39,16,39,19],[39,20,39,23],[39,24,39,27],[39,28,39,31],[39,32,39,35],[39,36,39,39],[48,0,48,3],[48,4,48,7],[48,8,48,11],[48,12,48,15],[48,16,48,19],[48,20,48,23],[48,24,48,27],[48,28,48,31],[48,32,48,35],[48,36,48,39],[57,0,57,3],[57,4,57,7],[57,8,57,11],[57,12,57,15],[57,16,57,19],[57,20,57,23],[57,24,57,27],[57,28,57,31],[57,32,57,35],[57,36,57,39],[66,0,66,3],[66,4,66,7],[66,8,66,11],[66,12,66,15],[66,16,66,19],[66,20,66,23],[66,24,66,27],[66,28,66,31],[66,32,66,35],[66,36,66,39],[75,0,75,3],[75,4,75,7],[75,8,75,11],[75,12,75,15],[75,16,75,19],[75,20,75,23],[84,24,84,27],[84,28,84,31],[84,32,84,35],[84,36,84,39],[75,24,75,27],[75,28,75,31],[75,32,75,35],[75,36,75,39],[84,0,84,3],[84,4,84,7],[84,8,84,11],[84,12,84,15],[84,16,84,19],[84,20,84,23]]}
[8,null,null,"<= Jour",null,null,null,null,null,null,null,{"$f":"VLOOKUP(A1,Concours!$C$1:$E$15,2,0)","v":{"$error":"#N/A"}},null,null,null,null,null,null,null,null,null,null,null,null,null,null,null,null,null,null,null,null,{"$f":"SUM(AO10:AO129)","v":0}]
[]
[]
[1,null,null,null,{"$f":"A4+1","v":2},null,null,null,{"$f":"E4+1","v":3},null,null,null,{"$f":"I4+1","v":4},null,null,null,{"$f":"M4+1","v":5},null,null,null,{"$f":"Q4+1","v":6},null,null,null,{"$f":"U4+1","v":7},null,null,null,{"$f":"Y4+1","v":8},null,null,null,{"$f":"AC4+1","v":9},null,null,null,{"$f":"AG4+1","v":10}]
[]
[]
[]
[]
[]
[]
[null,null,{"$f":"SUM(C5:C10)","v":0},{"$f":"IF(SUM(D5:D10)=0,\"\",AVERAGE(D5:D10))","v":""},null,null,{"$f":"SUM(G5:G10)","v":0},{"$f":"IF(SUM(H5:H10)=0,\"\",AVERAGE(H5:H10))","v":""},null,null,{"$f":"SUM(K5:K10)","v":0},{"$f":"IF(SUM(L5:L10)=0,\"\",AVERAGE(L5:L10))","v":""},null,null,{"$f":"SUM(O5:O10)","v":0},{"$f":"IF(SUM(P5:P10)=0,\"\",AVERAGE(P5:P10))","v":""},null,null,{"$f":"SUM(S5:S10)","v":0},{"$f":"IF(SUM(T5:T10)=0,\"\",AVERAGE(T5:T10))","v":""},null,null,{"$f":"SUM(W5:W10)","v":0},{"$f":"IF(SUM(X5:X10)=0,\"\",AVERAGE(X5:X10))","v":""},null,null,{"$f":"SUM(AA5:AA10)","v":0},{"$f":"IF(SUM(AB5:AB10)=0,\"\",AVERAGE(AB5:AB10))","v":""},null,null,{"$f":"SUM(AE5:AE10)","v":0},{"$f":"IF(SUM(AF5:AF10)=0,\"\",AVERAGE(AF5:AF10))","v":""},null,null,{"$f":"SUM(AI5:AI10)","v":0},{"$f":"IF(SUM(AJ5:AJ10)=0,\"\",AVERAGE(AJ5:AJ10))","v":""},null,null,{"$f":"SUM(AM5:AM10)","v":0},{"$f":"IF(SUM(AN5:AN10)=0,\"\",AVERAGE(AN5:AN10))","v":""},{"$f":"C11+G11+K11+O11+S11+W11+AA11+AE11+AI11+AM11","v":0}]
[null,null,null,null,null,null,null,null,null,null,null,null,null,null,null,null,null,null,null,null,null,null,null,null,null,null,null,null,null,null,null,null,null,null,null,null,null,null,{"$f":"IF(AJ12<>\"\",VLOOKUP(AJ12,séries,4,FALSE),\"\")","v":""}]
[{"$f":"A4+10","v":11},null,null,null,{"$f":"A13+1","v":12},null,null,null,{"$f":"E13+1","v":13},null,null,null,{"$f":"I13+1","v":14},null,null,null,{"$f":"M13+1","v":15},null,null,null,{"$f":"Q13+1","v":16},null,null,null,{"$f":"U13+1","v":17},null,null,null,{"$f":"Y13+1","v":18},null,null,null,{"$f":"AC13+1","v":19},null,null,null,{"$f":"AG13+1","v":20}]
[]
[]
[]
[]
[]
[]
[null,null,{"$f":"SUM(C14:C19)","v":0},{"$f":"IF(SUM(D14:D19)=0,\"\",AVERAGE(D14:D19))","v":""},null,null,{"$f":"SUM(G14:G19)","v":0},{"$f":"IF(SUM(H14:H19)=0,\"\",AVERAGE(H14:H19))","v":""},null,null,{"$f":"SUM(K14:K19)","v":0},{"$f":"IF(SUM(L14:L19)=0,\"\",AVERAGE(L14:L19))","v":""},null,null,{"$f":"SUM(O14:O19)","v":0},{"$f":"IF(SUM(P14:P19)=0,\"\",AVERAGE(P14:P19))","v":""},null,null,{"$f":"SUM(S14:S19)","v":0},{"$f":"IF(SUM(T14:T19)=0,\"\",AVERAGE(T14:T19))","v":""},null,null,{"$f":"SUM(W14:W19)","v":0},{"$f":"IF(SUM(X14:X19)=0,\"\",AVERAGE(X14:X19))","v":""},null,null,{"$f":"SUM(AA14:AA19)","v":0},{"$f":"IF(SUM(AB14:AB19)=0,\"\",AVERAGE(AB14:AB19))","v":""},null,null,{"$f":"SUM(AE14:AE19)","v":0},{"$f":"IF(SUM(AF14:AF19)=0,\"\",AVERAGE(AF14:AF19))","v":""},null,null,{"$f":"SUM(AI14:AI19)","v":0},{"$f":"IF(SUM(AJ14:AJ19)=0,\"\",AVERAGE(AJ14:AJ19))","v":""},null,null,{"$f":"SUM(AM14:AM19)","v":0},{"$f":"IF(SUM(AN14:AN19)=0,\"\",AVERAGE(AN14:AN19))","v":""},{"$f":"C20+G20+K20+O20+S20+W20+AA20+AE20+AI20+AM20","v":0}]
[null,null,null,null,null,null,null,null,null,null,null,null,null,null,null,null,null,null,null,null,null,null,null,null,null,null,null,null,null,null,null,null,null,null,null,null,null,null,{"$f":"IF(AJ21<>\"\",VLOOKUP(AJ21,séries,4,FALSE),\"\")","v":""}]
[{"$f":"A13+10","v":21},null,null,null,{"$f":"A22+1","v":22},null,null,null,{"$f":"E22+1","v":23},null,null,null,{"$f":"I22+1","v":24},null,null,null,{"$f":"M22+1","v":25},null,null,null,{"$f":"Q22+1","v":26},null,null,null,{"$f":"U22+1","v":27},null,null,null,{"$f":"Y22+1","v":28},null,null,null,{"$f":"AC22+1","v":29},null,null,null,{"$f":"AG22+1","v":30}]
[]
[]
[]
[]
[]
[]
[null,null,{"$f":"SUM(C23:C28)","v":0},{"$f":"IF(SUM(D23:D28)=0,\"\",AVERAGE(D23:D28))","v":""},null,null,{"$f":"SUM(G23:G28)","v":0},{"$f":"IF(SUM(H23:H28)=0,\"\",AVERAGE(H23:H28))","v":""},null,null,{"$f":"SUM(K23:K28)","v":0},{"$f":"IF(SUM(L23:L28)=0,\"\",AVERAGE(L23:L28))","v":""},null,null,{"$f":"SUM(O23:O28)","v":0},{"$f":"IF(SUM(P23:P28)=0,\"\",AVERAGE(P23:P28))","v":""},null,null,{"$f":"SUM(S23:S28)","v":0},{"$f":"IF(SUM(T23:T28)=0,\"\",AVERAGE(T23:T28))","v":""},null,null,{"$f":"SUM(W23:W28)","v":0},{"$f":"IF(SUM(X23:X28)=0,\"\",AVERAGE(X23:X28))","v":""},null,null,{"$f":"SUM(AA23:AA28)","v":0},{"$f":"IF(SUM(AB23:AB28)=0,\"\",AVERAGE(AB23:AB28))","v":""},null,null,{"$f":"SUM(AE23:AE28)","v":0},{"$f":"IF(SUM(AF23:AF28)=0,\"\",AVERAGE(AF23:AF28))","v":""},null,null,{"$f":"SUM(AI23:AI28)","v":0},{"$f":"IF(SUM(AJ23:AJ28)=0,\"\",AVERAGE(AJ23:AJ28))","v":""},null,null,{"$f":"SUM(AM23:AM28)","v":0},{"$f":"IF(SUM(AN23:AN28)=0,\"\",AVERAGE(AN23:AN28))","v":""},{"$f":"C29+G29+K29+O29+S29+W29+AA29+AE29+AI29+AM29","v":0}]
[null,null,null,null,null,null,null,null,null,null,null,null,null,null,null,null,null,null,null,null,null,null,null,null,null,null,null,null,null,null,null,null,null,null,null,null,null,null,{"$f":"IF(AJ30<>\"\",VLOOKUP(AJ30,séries,4,FALSE),\"\")","v":""}]
[{"$f":"A22+10","v":31},null,null,null,{"$f":"A31+1","v":32},null,null,null,{"$f":"E31+1","v":33},null,null,null,{"$f":"I31+1","v":34},null,null,null,{"$f":"M31+1","v":35},null,null,null,{"$f":"Q31+1","v":36},null,null,null,{"$f":"U31+1","v":37},null,null,null,{"$f":"Y31+1","v":38},null,null,null,{"$f":"AC31+1","v":39},null,null,null,{"$f":"AG31+1","v":40}]
[]
[]
[]
[]
[]
[]
[null,null,{"$f":"SUM(C32:C37)","v":0},{"$f":"IF(SUM(D32:D37)=0,\"\",AVERAGE(D32:D37))","v":""},null,null,{"$f":"SUM(G32:G37)","v":0},{"$f":"IF(SUM(H32:H37)=0,\"\",AVERAGE(H32:H37))","v":""},null,null,{"$f":"SUM(K32:K37)","v":0},{"$f":"IF(SUM(L32:L37)=0,\"\",AVERAGE(L32:L37))","v":""},null,null,{"$f":"SUM(O32:O37)","v":0},{"$f":"IF(SUM(P32:P37)=0,\"\",AVERAGE(P32:P37))","v":""},null,null,{"$f":"SUM(S32:S37)","v":0},{"$f":"IF(SUM(T32:T37)=0,\"\",AVERAGE(T32:T37))","v":""},null,null,{"$f":"SUM(W32:W37)","v":0},{"$f":"IF(SUM(X32:X37)=0,\"\",AVERAGE(X32:X37))","v":""},null,null,{"$f":"SUM(AA32:AA37)","v":0},{"$f":"IF(SUM(AB32:AB37)=0,\"\",AVERAGE(AB32:AB37))","v":""},null,null,{"$f":"SUM(AE32:AE37)","v":0},{"$f":"IF(SUM(AF32:AF37)=0,\"\",AVERAGE(AF32:AF37))","v":""},null,null,{"$f":"SUM(AI32:AI37)","v":0},{"$f":"IF(SUM(AJ32:AJ37)=0,\"\",AVERAGE(AJ32:AJ37))","v":""},null,null,{"$f":"SUM(AM32:AM37)","v":0},{"$f":"IF(SUM(AN32:AN37)=0,\"\",AVERAGE(AN32:AN37))","v":""},{"$f":"C38+G38+K38+O38+S38+W38+AA38+AE38+AI38+AM38","v":0}]
[null,null,null,null,null,null,null,null,null,null,null,null,null,null,null,null,null,null,null,null,null,null,null,null,null,null,null,null,null,null,null,null,null,null,null,null,null,null,{"$f":"IF(AJ39<>\"\",VLOOKUP(AJ39,séries,4,FALSE),\"\")","v":""}]
[{"$f":"A31+10","v":41},null,null,null,{"$f":"A40+1","v":42},null,null,null,{"$f":"E40+1","v":43},null,null,null,{"$f":"I40+1","v":44},null,null,null,{"$f":"M40+1","v":45},null,null,null,{"$f":"Q40+1","v":46},null,null,null,{"$f":"U40+1","v":47},null,null,null,{"$f":"Y40+1","v":48},null,null,null,{"$f":"AC40+1","v":49},null,null,null,{"$f":"AG40+1","v":50}]
[]
[]
[]
[]
[]
[]
[null,null,{"$f":"SUM(C41:C46)","v":0},{"$f":"IF(SUM(D41:D46)=0,\"\",AVERAGE(D41:D46))","v":""},null,null,{"$f":"SUM(G41:G46)","v":0},{"$f":"IF(SUM(H41:H46)=0,\"\",AVERAGE(H41:H46))","v":""},null,null,{"$f":"SUM(K41:K46)","v":0},{"$f":"IF(SUM(L41:L46)=0,\"\",AVERAGE(L41:L46))","v":""},null,null,{"$f":"SUM(O41:O46)","v":0},{"$f":"IF(SUM(P41:P46)=0,\"\",AVERAGE(P41:P46))","v":""},null,null,{"$f":"SUM(S41:S46)","v":0},{"$f":"IF(SUM(T41:T46)=0,\"\",AVERAGE(T41:T46))","v":""},null,null,{"$f":"SUM(W41:W46)","v":0},{"$f":"IF(SUM(X41:X46)=0,\"\",AVERAGE(X41:X46))","v":""},null,null,{"$f":"SUM(AA41:AA46)","v":0},{"$f":"IF(SUM(AB41:AB46)=0,\"\",AVERAGE(AB41:AB46))","v":""},null,null,{"$f":"SUM(AE41:AE46)","v":0},{"$f":"IF(SUM(AF41:AF46)=0,\"\",AVERAGE(AF41:AF46))","v":""},null,null,{"$f":"SUM(AI41:AI46)","v":0},{"$f":"IF(SUM(AJ41:AJ46)=0,\"\",AVERAGE(AJ41:AJ46))","v":""},null,null,{"$f":"SUM(AM41:AM46)","v":0},{"$f":"IF(SUM(AN41:AN46)=0,\"\",AVERAGE(AN41:AN46))","v":""},{"$f":"C47+G47+K47+O47+S47+W47+AA47+AE47+AI47+AM47","v":0}]
[null,null,null,null,null,null,null,null,null,null,null,null,null,null,null,null,null,null,null,null,null,null,null,null,null,null,null,null,null,null,null,null,null,null,null,null,null,null,{"$f":"IF(AJ48<>\"\",VLOOKUP(AJ48,séries,4,FALSE),\"\")","v":""}]
[{"$f":"A40+10","v":51},null,null,null,{"$f":"A49+1","v":52},null,null,null,{"$f":"E49+1","v":53},null,null,null,{"$f":"I49+1","v":54},null,null,null,{"$f":"M49+1","v":55},null,null,null,{"$f":"Q49+1","v":56},null,null,null,{"$f":"U49+1","v":57},null,null,null,{"$f":"Y49+1","v":58},null,null,null,{"$f":"AC49+1","v":59},null,null,null,{"$f":"AG49+1","v":60}]
[]
[]
[]
[]
[]
[]
[null,null,{"$f":"SUM(C50:C55)","v":0},{"$f":"IF(SUM(D50:D55)=0,\"\",AVERAGE(D50:D55))","v":""},null,null,{"$f":"SUM(G50:G55)","v":0},{"$f":"IF(SUM(H50:H55)=0,\"\",AVERAGE(H50:H55))","v":""},null,null,{"$f":"SUM(K50:K55)","v":0},{"$f":"IF(SUM(L50:L55)=0,\"\",AVERAGE(L50:L55))","v":""},null,null,{"$f":"SUM(O50:O55)","v":0},{"$f":"IF(SUM(P50:P55)=0,\"\",AVERAGE(P50:P55))","v":""},null,null,{"$f":"SUM(S50:S55)","v":0},{"$f":"IF(SUM(T50:T55)=0,\"\",AVERAGE(T50:T55))","v":""},null,null,{"$f":"SUM(W50:W55)","v":0},{"$f":"IF(SUM(X50:X55)=0,\"\",AVERAGE(X50:X55))","v":""},null,null,{"$f":"SUM(AA50:AA55)","v":0},{"$f":"IF(SUM(AB50:AB55)=0,\"\",AVERAGE(AB50:AB55))","v":""},null,null,{"$f":"SUM(AE50:AE55)","v":0},{"$f":"IF(SUM(AF50:AF55)=0,\"\",AVERAGE(AF50:AF55))","v":""},null,null,{"$f":"SUM(AI50:AI55)","v":0},{"$f":"IF(SUM(AJ50:AJ55)=0,\"\",AVERAGE(AJ50:AJ55))","v":""},null,null,{"$f":"SUM(AM50:AM55)","v":0},{"$f":"IF(SUM(AN50:AN55)=0,\"\",AVERAGE(AN50:AN55))","v":""},{"$f":"C56+G56+K56+O56+S56+W56+AA56+AE56+AI56+AM56","v":0}]
[null,null,null,null,null,null,null,null,null,null,null,null,null,null,null,null,null,null,null,null,null,null,null,null,null,null,null,null,null,null,null,null,null,null,null,null,null,null,{"$f":"IF(AJ57<>\"\",VLOOKUP(AJ57,séries,4,FALSE),\"\")","v":""}]
[{"$f":"A49+10","v":61},null,null,null,{"$f":"A58+1","v":62},null,null,null,{"$f":"E58+1","v":63},null,null,null,{"$f":"I58+1","v":64},null,null,null,{"$f":"M58+1","v":65},null,null,null,{"$f":"Q58+1","v":66},null,null,null,{"$f":"U58+1","v":67},null,null,null,{"$f":"Y58+1","v":68},null,null,null,{"$f":"AC58+1","v":69},null,null,null,{"$f":"AG58+1","v":70}]
[]
[]
[]
[]
[]
[]
[null,null,{"$f":"SUM(C59:C64)","v":0},{"$f":"IF(SUM(D59:D64)=0,\"\",AVERAGE(D59:D64))","v":""},null,null,{"$f":"SUM(G59:G64)","v":0},{"$f":"IF(SUM(H59:H64)=0,\"\",AVERAGE(H59:H64))","v":""},null,null,{"$f":"SUM(K59:K64)","v":0},{"$f":"IF(SUM(L59:L64)=0,\"\",AVERAGE(L59:L64))","v":""},null,null,{"$f":"SUM(O59:O64)","v":0},{"$f":"IF(SUM(P59:P64)=0,\"\",AVERAGE(P59:P64))","v":""},null,null,{"$f":"SUM(S59:S64)","v":0},{"$f":"IF(SUM(T59:T64)=0,\"\",AVERAGE(T59:T64))","v":""},null,null,{"$f":"SUM(W59:W64)","v":0},{"$f":"IF(SUM(X59:X64)=0,\"\",AVERAGE(X59:X64))","v":""},null,null,{"$f":"SUM(AA59:AA64)","v":0},{"$f":"IF(SUM(AB59:AB64)=0,\"\",AVERAGE(AB59:AB64))","v":""},null,null,{"$f":"SUM(AE59:AE64)","v":0},{"$f":"IF(SUM(AF59:AF64)=0,\"\",AVERAGE(AF59:AF64))","v":""},null,null,{"$f":"SUM(AI59:AI64)","v":0},{"$f":"IF(SUM(AJ59:AJ64)=0,\"\",AVERAGE(AJ59:AJ64))","v":""},null,null,{"$f":"SUM(AM59:AM64)","v":0},{"$f":"IF(SUM(AN59:AN64)=0,\"\",AVERAGE(AN59:AN64))","v":""},{"$f":"C65+G65+K65+O65+S65+W65+AA65+AE65+AI65+AM65","v":0}]
[null,null,null,null,null,null,null,null,null,null,null,null,null,null,null,null,null,null,null,null,null,null,null,null,null,null,null,null,null,null,null,null,null,null,null,null,null,null,{"$f":"IF(AJ66<>\"\",VLOOKUP(AJ66,séries,4,FALSE),\"\")","v":""}]
[{"$f":"A58+10","v":71},null,null,null,{"$f":"A67+1","v":72},null,null,null,{"$f":"E67+1","v":73},null,null,null,{"$f":"I67+1","v":74},null,null,null,{"$f":"M67+1","v":75},null,null,null,{"$f":"Q67+1","v":76},null,null,null,{"$f":"U67+1","v":77},null,null,null,{"$f":"Y67+1","v":78},null,null,null,{"$f":"AC67+1","v":79},null,null,null,{"$f":"AG67+1","v":80}]
[]
[]
[]
[]
[]
[]
[null,null,{"$f":"SUM(C68:C73)","v":0},{"$f":"IF(SUM(D68:D73)=0,\"\",AVERAGE(D68:D73))","v":""},null,null,{"$f":"SUM(G68:G73)","v":0},{"$f":"IF(SUM(H68:H73)=0,\"\",AVERAGE(H68:H73))","v":""},null,null,{"$f":"SUM(K68:K73)","v":0},{"$f":"IF(SUM(L68:L73)=0,\"\",AVERAGE(L68:L73))","v":""},null,null,{"$f":"SUM(O68:O73)","v":0},{"$f":"IF(SUM(P68:P73)=0,\"\",AVERAGE(P68:P73))","v":""},null,null,{"$f":"SUM(S68:S73)","v":0},{"$f":"IF(SUM(T68:T73)=0,\"\",AVERAGE(T68:T73))","v":""},null,null,{"$f":"SUM(W68:W73)","v":0},{"$f":"IF(SUM(X68:X73)=0,\"\",AVERAGE(X68:X73))","v":""},null,null,{"$f":"SUM(AA68:AA73)","v":0},{"$f":"IF(SUM(AB68:AB73)=0,\"\",AVERAGE(AB68:AB73))","v":""},null,null,{"$f":"SUM(AE68:AE73)","v":0},{"$f":"IF(SUM(AF68:AF73)=0,\"\",AVERAGE(AF68:AF73))","v":""},null,null,{"$f":"SUM(AI68:AI73)","v":0},{"$f":"IF(SUM(AJ68:AJ73)=0,\"\",AVERAGE(AJ68:AJ73))","v":""},null,null,{"$f":"SUM(AM68:AM73)","v":0},{"$f":"IF(SUM(AN68:AN73)=0,\"\",AVERAGE(AN68:AN73))","v":""},{"$f":"C74+G74+K74+O74+S74+W74+AA74+AE74+AI74+AM74","v":0}]
[null,null,null,null,null,null,null,null,null,null,null,null,null,null,null,null,null,null,null,null,null,null,null,null,null,null,null,null,null,null,null,null,null,null,null,null,null,null,{"$f":"IF(AJ75<>\"\",VLOOKUP(AJ75,séries,4,FALSE),\"\")","v":""}]
[{"$f":"A67+10","v":81},null,null,null,{"$f":"A76+1","v":82},null,null,null,{"$f":"E76+1","v":83},null,null,null,{"$f":"I76+1","v":84},null,null,null,{"$f":"M76+1","v":85},null,null,null,{"$f":"Q76+1","v":86},null,null,null,{"$f":"U76+1","v":87},null,null,null,{"$f":"Y76+1","v":88},null,null,null,{"$f":"AC76+1","v":89},null,null,null,{"$f":"AG76+1","v":90}]
[]
[]
[]
[]
[]
[]
[null,null,{"$f":"SUM(C77:C82)","v":0},{"$f":"IF(SUM(D77:D82)=0,\"\",AVERAGE(D77:D82))","v":""},null,null,{"$f":"SUM(G77:G82)","v":0},{"$f":"IF(SUM(H77:H82)=0,\"\",AVERAGE(H77:H82))","v":""},null,null,{"$f":"SUM(K77:K82)","v":0},{"$f":"IF(SUM(L77:L82)=0,\"\",AVERAGE(L77:L82))","v":""},null,null,{"$f":"SUM(O77:O82)","v":0},{"$f":"IF(SUM(P77:P82)=0,\"\",AVERAGE(P77:P82))","v":""},null,null,{"$f":"SUM(S77:S82)","v":0},{"$f":"IF(SUM(T77:T82)=0,\"\",AVERAGE(T77:T82))","v":""},null,null,{"$f":"SUM(W77:W82)","v":0},{"$f":"IF(SUM(X77:X82)=0,\"\",AVERAGE(X77:X82))","v":""},null,null,{"$f":"SUM(AA77:AA82)","v":0},{"$f":"IF(SUM(AB77:AB82)=0,\"\",AVERAGE(AB77:AB82))","v":""},null,null,{"$f":"SUM(AE77:AE82)","v":0},{"$f":"IF(SUM(AF77:AF82)=0,\"\",AVERAGE(AF77:AF82))","v":""},null,null,{"$f":"SUM(AI77:AI82)","v":0},{"$f":"IF(SUM(AJ77:AJ82)=0,\"\",AVERAGE(AJ77:AJ82))","v":""},null,null,{"$f":"SUM(AM77:AM82)","v":0},{"$f":"IF(SUM(AN77:AN82)=0,\"\",AVERAGE(AN77:AN82))","v":""},{"$f":"C83+G83+K83+O83+S83+W83+AA83+AE83+AI83+AM83","v":0}]
[null,null,null,null,null,null,null,null,null,null,null,null,null,null,null,null,null,null,null,null,null,null,null,null,null,null,null,null,null,null,null,null,null,null,null,null,null,null,{"$f":"IF(AJ84<>\"\",VLOOKUP(AJ84,séries,4,FALSE),\"\")","v":""}]
[{"$f":"A76+10","v":91},null,null,null,{"$f":"A85+1","v":92},null,null,null,{"$f":"E85+1","v":93},null,null,null,{"$f":"I85+1","v":94},null,null,null,{"$f":"M85+1","v":95},null,null,null,{"$f":"Q85+1","v":96},null,null,null,{"$f":"U85+1","v":97},null,null,null,{"$f":"Y85+1","v":98},null,null,null,{"$f":"AC85+1","v":99},null,null,null,{"$f":"AG85+1","v":100}]
[]
[]
[]
[]
[]
[]
[null,null,{"$f":"SUM(C86:C91)","v":0},{"$f":"IF(SUM(D86:D91)=0,\"\",AVERAGE(D86:D91))","v":""},null,null,{"$f":"SUM(G86:G91)","v":0},{"$f":"IF(SUM(H86:H91)=0,\"\",AVERAGE(H86:H91))","v":""},null,null,{"$f":"SUM(K86:K91)","v":0},{"$f":"IF(SUM(L86:L91)=0,\"\",AVERAGE(L86:L91))","v":""},null,null,{"$f":"SUM(O86:O91)","v":0},{"$f":"IF(SUM(P86:P91)=0,\"\",AVERAGE(P86:P91))","v":""},null,null,{"$f":"SUM(S86:S91)","v":0},{"$f":"IF(SUM(T86:T91)=0,\"\",AVERAGE(T86:T91))","v":""},null,null,{"$f":"SUM(W86:W91)","v":0},{"$f":"IF(SUM(X86:X91)=0,\"\",AVERAGE(X86:X91))","v":""},null,null,{"$f":"SUM(AA86:AA91)","v":0},{"$f":"IF(SUM(AB86:AB91)=0,\"\",AVERAGE(AB86:AB91))","v":""},null,null,{"$f":"SUM(AE86:AE91)","v":0},{"$f":"IF(SUM(AF86:AF91)=0,\"\",AVERAGE(AF86:AF91))","v":""},null,null,{"$f":"SUM(AI86:AI91)","v":0},{"$f":"IF(SUM(AJ86:AJ91)=0,\"\",AVERAGE(AJ86:AJ91))","v":""},null,null,{"$f":"SUM(AM86:AM91)","v":0},{"$f":"IF(SUM(AN86:AN91)=0,\"\",AVERAGE(AN86:AN91))","v":""},{"$f":"C92+G92+K92+O92+S92+W92+AA92+AE92+AI92+AM92","v":0}]
[null,null,null,null,null,null,null,null,null,null,null,null,null,null,null,null,null,null,null,null,null,null,null,null,null,null,null,null,null,null,null,null,null,null,null,null,null,null,{"$f":"IF(AJ93<>\"\",VLOOKUP(AJ93,séries,4,FALSE),\"\")","v":""}]

{"sheet":"Day 9","index":10,"n_rows":93,"n_cols":41,"rows_kept":93,"cut":false,"hidden":false,"merged":[[0,0,1,2],[0,3,1,8],[0,11,1,19],[0,32,1,40],[3,0,3,3],[3,4,3,7],[3,8,3,11],[3,12,3,15],[3,16,3,19],[3,20,3,23],[3,24,3,27],[3,28,3,31],[3,32,3,35],[3,36,3,39],[12,0,12,3],[12,4,12,7],[12,8,12,11],[12,12,12,15],[12,16,12,19],[12,20,12,23],[12,24,12,27],[12,28,12,31],[12,32,12,35],[12,36,12,39],[21,0,21,3],[21,4,21,7],[21,8,21,11],[21,12,21,15],[21,16,21,19],[21,20,21,23],[21,24,21,27],[21,28,21,31],[21,32,21,35],[21,36,21,39],[30,0,30,3],[30,4,30,7],[30,8,30,11],[30,12,30,15],[30,16,30,19],[30,20,30,23],[30,24,30,27],[30,28,30,31],[30,32,30,35],[30,36,30,39],[39,0,39,3],[39,4,39,7],[39,8,39,11],[39,12,39,15],[39,16,39,19],[39,20,39,23],[39,24,39,27],[39,28,39,31],[39,32,39,35],[39,36,39,39],[48,0,48,3],[48,4,48,7],[48,8,48,11],[48,12,48,15],[48,16,48,19],[48,20,48,23],[48,24,48,27],[48,28,48,31],[48,32,48,35],[48,36,48,39],[57,0,57,3],[57,4,57,7],[57,8,57,11],[57,12,57,15],[57,16,57,19],[57,20,57,23],[57,24,57,27],[57,28,57,31],[57,32,57,35],[57,36,57,39],[66,0,66,3],[66,4,66,7],[66,8,66,11],[66,12,66,15],[66,16,66,19],[66,20,66,23],[66,24,66,27],[66,28,66,31],[66,32,66,35],[66,36,66,39],[75,0,75,3],[75,4,75,7],[75,8,75,11],[75,12,75,15],[75,16,75,19],[75,20,75,23],[84,24,84,27],[84,28,84,31],[84,32,84,35],[84,36,84,39],[75,24,75,27],[75,28,75,31],[75,32,75,35],[75,36,75,39],[84,0,84,3],[84,4,84,7],[84,8,84,11],[84,12,84,15],[84,16,84,19],[84,20,84,23]]}
[9,null,null,"<= Jour",null,null,null,null,null,null,null,{"$f":"VLOOKUP(A1,Concours!$C$1:$E$15,2,0)","v":{"$error":"#N/A"}},null,null,null,null,null,null,null,null,null,null,null,null,null,null,null,null,null,null,null,null,{"$f":"SUM(AO10:AO129)","v":0}]
[]
[]
[1,null,null,null,{"$f":"A4+1","v":2},null,null,null,{"$f":"E4+1","v":3},null,null,null,{"$f":"I4+1","v":4},null,null,null,{"$f":"M4+1","v":5},null,null,null,{"$f":"Q4+1","v":6},null,null,null,{"$f":"U4+1","v":7},null,null,null,{"$f":"Y4+1","v":8},null,null,null,{"$f":"AC4+1","v":9},null,null,null,{"$f":"AG4+1","v":10}]
[]
[]
[]
[]
[]
[]
[null,null,{"$f":"SUM(C5:C10)","v":0},{"$f":"IF(SUM(D5:D10)=0,\"\",AVERAGE(D5:D10))","v":""},null,null,{"$f":"SUM(G5:G10)","v":0},{"$f":"IF(SUM(H5:H10)=0,\"\",AVERAGE(H5:H10))","v":""},null,null,{"$f":"SUM(K5:K10)","v":0},{"$f":"IF(SUM(L5:L10)=0,\"\",AVERAGE(L5:L10))","v":""},null,null,{"$f":"SUM(O5:O10)","v":0},{"$f":"IF(SUM(P5:P10)=0,\"\",AVERAGE(P5:P10))","v":""},null,null,{"$f":"SUM(S5:S10)","v":0},{"$f":"IF(SUM(T5:T10)=0,\"\",AVERAGE(T5:T10))","v":""},null,null,{"$f":"SUM(W5:W10)","v":0},{"$f":"IF(SUM(X5:X10)=0,\"\",AVERAGE(X5:X10))","v":""},null,null,{"$f":"SUM(AA5:AA10)","v":0},{"$f":"IF(SUM(AB5:AB10)=0,\"\",AVERAGE(AB5:AB10))","v":""},null,null,{"$f":"SUM(AE5:AE10)","v":0},{"$f":"IF(SUM(AF5:AF10)=0,\"\",AVERAGE(AF5:AF10))","v":""},null,null,{"$f":"SUM(AI5:AI10)","v":0},{"$f":"IF(SUM(AJ5:AJ10)=0,\"\",AVERAGE(AJ5:AJ10))","v":""},null,null,{"$f":"SUM(AM5:AM10)","v":0},{"$f":"IF(SUM(AN5:AN10)=0,\"\",AVERAGE(AN5:AN10))","v":""},{"$f":"C11+G11+K11+O11+S11+W11+AA11+AE11+AI11+AM11","v":0}]
[null,null,null,null,null,null,null,null,null,null,null,null,null,null,null,null,null,null,null,null,null,null,null,null,null,null,null,null,null,null,null,null,null,null,null,null,null,null,{"$f":"IF(AJ12<>\"\",VLOOKUP(AJ12,séries,4,FALSE),\"\")","v":""}]
[{"$f":"A4+10","v":11},null,null,null,{"$f":"A13+1","v":12},null,null,null,{"$f":"E13+1","v":13},null,null,null,{"$f":"I13+1","v":14},null,null,null,{"$f":"M13+1","v":15},null,null,null,{"$f":"Q13+1","v":16},null,null,null,{"$f":"U13+1","v":17},null,null,null,{"$f":"Y13+1","v":18},null,null,null,{"$f":"AC13+1","v":19},null,null,null,{"$f":"AG13+1","v":20}]
[]
[]
[]
[]
[]
[]
[null,null,{"$f":"SUM(C14:C19)","v":0},{"$f":"IF(SUM(D14:D19)=0,\"\",AVERAGE(D14:D19))","v":""},null,null,{"$f":"SUM(G14:G19)","v":0},{"$f":"IF(SUM(H14:H19)=0,\"\",AVERAGE(H14:H19))","v":""},null,null,{"$f":"SUM(K14:K19)","v":0},{"$f":"IF(SUM(L14:L19)=0,\"\",AVERAGE(L14:L19))","v":""},null,null,{"$f":"SUM(O14:O19)","v":0},{"$f":"IF(SUM(P14:P19)=0,\"\",AVERAGE(P14:P19))","v":""},null,null,{"$f":"SUM(S14:S19)","v":0},{"$f":"IF(SUM(T14:T19)=0,\"\",AVERAGE(T14:T19))","v":""},null,null,{"$f":"SUM(W14:W19)","v":0},{"$f":"IF(SUM(X14:X19)=0,\"\",AVERAGE(X14:X19))","v":""},null,null,{"$f":"SUM(AA14:AA19)","v":0},{"$f":"IF(SUM(AB14:AB19)=0,\"\",AVERAGE(AB14:AB19))","v":""},null,null,{"$f":"SUM(AE14:AE19)","v":0},{"$f":"IF(SUM(AF14:AF19)=0,\"\",AVERAGE(AF14:AF19))","v":""},null,null,{"$f":"SUM(AI14:AI19)","v":0},{"$f":"IF(SUM(AJ14:AJ19)=0,\"\",AVERAGE(AJ14:AJ19))","v":""},null,null,{"$f":"SUM(AM14:AM19)","v":0},{"$f":"IF(SUM(AN14:AN19)=0,\"\",AVERAGE(AN14:AN19))","v":""},{"$f":"C20+G20+K20+O20+S20+W20+AA20+AE20+AI20+AM20","v":0}]
[null,null,null,null,null,null,null,null,null,null,null,null,null,null,null,null,null,null,null,null,null,null,null,null,null,null,null,null,null,null,null,null,null,null,null,null,null,null,{"$f":"IF(AJ21<>\"\",VLOOKUP(AJ21,séries,4,FALSE),\"\")","v":""}]
[{"$f":"A13+10","v":21},null,null,null,{"$f":"A22+1","v":22},null,null,null,{"$f":"E22+1","v":23},null,null,null,{"$f":"I22+1","v":24},null,null,null,{"$f":"M22+1","v":25},null,null,null,{"$f":"Q22+1","v":26},null,null,null,{"$f":"U22+1","v":27},null,null,null,{"$f":"Y22+1","v":28},null,null,null,{"$f":"AC22+1","v":29},null,null,null,{"$f":"AG22+1","v":30}]
[]
[]
[]
[]
[]
[]
[null,null,{"$f":"SUM(C23:C28)","v":0},{"$f":"IF(SUM(D23:D28)=0,\"\",AVERAGE(D23:D28))","v":""},null,null,{"$f":"SUM(G23:G28)","v":0},{"$f":"IF(SUM(H23:H28)=0,\"\",AVERAGE(H23:H28))","v":""},null,null,{"$f":"SUM(K23:K28)","v":0},{"$f":"IF(SUM(L23:L28)=0,\"\",AVERAGE(L23:L28))","v":""},null,null,{"$f":"SUM(O23:O28)","v":0},{"$f":"IF(SUM(P23:P28)=0,\"\",AVERAGE(P23:P28))","v":""},null,null,{"$f":"SUM(S23:S28)","v":0},{"$f":"IF(SUM(T23:T28)=0,\"\",AVERAGE(T23:T28))","v":""},null,null,{"$f":"SUM(W23:W28)","v":0},{"$f":"IF(SUM(X23:X28)=0,\"\",AVERAGE(X23:X28))","v":""},null,null,{"$f":"SUM(AA23:AA28)","v":0},{"$f":"IF(SUM(AB23:AB28)=0,\"\",AVERAGE(AB23:AB28))","v":""},null,null,{"$f":"SUM(AE23:AE28)","v":0},{"$f":"IF(SUM(AF23:AF28)=0,\"\",AVERAGE(AF23:AF28))","v":""},null,null,{"$f":"SUM(AI23:AI28)","v":0},{"$f":"IF(SUM(AJ23:AJ28)=0,\"\",AVERAGE(AJ23:AJ28))","v":""},null,null,{"$f":"SUM(AM23:AM28)","v":0},{"$f":"IF(SUM(AN23:AN28)=0,\"\",AVERAGE(AN23:AN28))","v":""},{"$f":"C29+G29+K29+O29+S29+W29+AA29+AE29+AI29+AM29","v":0}]
[null,null,null,null,null,null,null,null,null,null,null,null,null,null,null,null,null,null,null,null,null,null,null,null,null,null,null,null,null,null,null,null,null,null,null,null,null,null,{"$f":"IF(AJ30<>\"\",VLOOKUP(AJ30,séries,4,FALSE),\"\")","v":""}]
[{"$f":"A22+10","v":31},null,null,null,{"$f":"A31+1","v":32},null,null,null,{"$f":"E31+1","v":33},null,null,null,{"$f":"I31+1","v":34},null,null,null,{"$f":"M31+1","v":35},null,null,null,{"$f":"Q31+1","v":36},null,null,null,{"$f":"U31+1","v":37},null,null,null,{"$f":"Y31+1","v":38},null,null,null,{"$f":"AC31+1","v":39},null,null,null,{"$f":"AG31+1","v":40}]
[]
[]
[]
[]
[]
[]
[null,null,{"$f":"SUM(C32:C37)","v":0},{"$f":"IF(SUM(D32:D37)=0,\"\",AVERAGE(D32:D37))","v":""},null,null,{"$f":"SUM(G32:G37)","v":0},{"$f":"IF(SUM(H32:H37)=0,\"\",AVERAGE(H32:H37))","v":""},null,null,{"$f":"SUM(K32:K37)","v":0},{"$f":"IF(SUM(L32:L37)=0,\"\",AVERAGE(L32:L37))","v":""},null,null,{"$f":"SUM(O32:O37)","v":0},{"$f":"IF(SUM(P32:P37)=0,\"\",AVERAGE(P32:P37))","v":""},null,null,{"$f":"SUM(S32:S37)","v":0},{"$f":"IF(SUM(T32:T37)=0,\"\",AVERAGE(T32:T37))","v":""},null,null,{"$f":"SUM(W32:W37)","v":0},{"$f":"IF(SUM(X32:X37)=0,\"\",AVERAGE(X32:X37))","v":""},null,null,{"$f":"SUM(AA32:AA37)","v":0},{"$f":"IF(SUM(AB32:AB37)=0,\"\",AVERAGE(AB32:AB37))","v":""},null,null,{"$f":"SUM(AE32:AE37)","v":0},{"$f":"IF(SUM(AF32:AF37)=0,\"\",AVERAGE(AF32:AF37))","v":""},null,null,{"$f":"SUM(AI32:AI37)","v":0},{"$f":"IF(SUM(AJ32:AJ37)=0,\"\",AVERAGE(AJ32:AJ37))","v":""},null,null,{"$f":"SUM(AM32:AM37)","v":0},{"$f":"IF(SUM(AN32:AN37)=0,\"\",AVERAGE(AN32:AN37))","v":""},{"$f":"C38+G38+K38+O38+S38+W38+AA38+AE38+AI38+AM38","v":0}]
[null,null,null,null,null,null,null,null,null,null,null,null,null,null,null,null,null,null,null,null,null,null,null,null,null,null,null,null,null,null,null,null,null,null,null,null,null,null,{"$f":"IF(AJ39<>\"\",VLOOKUP(AJ39,séries,4,FALSE),\"\")","v":""}]
[{"$f":"A31+10","v":41},null,null,null,{"$f":"A40+1","v":42},null,null,null,{"$f":"E40+1","v":43},null,null,null,{"$f":"I40+1","v":44},null,null,null,{"$f":"M40+1","v":45},null,null,null,{"$f":"Q40+1","v":46},null,null,null,{"$f":"U40+1","v":47},null,null,null,{"$f":"Y40+1","v":48},null,null,null,{"$f":"AC40+1","v":49},null,null,null,{"$f":"AG40+1","v":50}]
[]
[]
[]
[]
[]
[]
[null,null,{"$f":"SUM(C41:C46)","v":0},{"$f":"IF(SUM(D41:D46)=0,\"\",AVERAGE(D41:D46))","v":""},null,null,{"$f":"SUM(G41:G46)","v":0},{"$f":"IF(SUM(H41:H46)=0,\"\",AVERAGE(H41:H46))","v":""},null,null,{"$f":"SUM(K41:K46)","v":0},{"$f":"IF(SUM(L41:L46)=0,\"\",AVERAGE(L41:L46))","v":""},null,null,{"$f":"SUM(O41:O46)","v":0},{"$f":"IF(SUM(P41:P46)=0,\"\",AVERAGE(P41:P46))","v":""},null,null,{"$f":"SUM(S41:S46)","v":0},{"$f":"IF(SUM(T41:T46)=0,\"\",AVERAGE(T41:T46))","v":""},null,null,{"$f":"SUM(W41:W46)","v":0},{"$f":"IF(SUM(X41:X46)=0,\"\",AVERAGE(X41:X46))","v":""},null,null,{"$f":"SUM(AA41:AA46)","v":0},{"$f":"IF(SUM(AB41:AB46)=0,\"\",AVERAGE(AB41:AB46))","v":""},null,null,{"$f":"SUM(AE41:AE46)","v":0},{"$f":"IF(SUM(AF41:AF46)=0,\"\",AVERAGE(AF41:AF46))","v":""},null,null,{"$f":"SUM(AI41:AI46)","v":0},{"$f":"IF(SUM(AJ41:AJ46)=0,\"\",AVERAGE(AJ41:AJ46))","v":""},null,null,{"$f":"SUM(AM41:AM46)","v":0},{"$f":"IF(SUM(AN41:AN46)=0,\"\",AVERAGE(AN41:AN46))","v":""},{"$f":"C47+G47+K47+O47+S47+W47+AA47+AE47+AI47+AM47","v":0}]
[null,null,null,null,null,null,null,null,null,null,null,null,null,null,null,null,null,null,null,null,null,null,null,null,null,null,null,null,null,null,null,null,null,null,null,null,null,null,{"$f":"IF(AJ48<>\"\",VLOOKUP(AJ48,séries,4,FALSE),\"\")","v":""}]
[{"$f":"A40+10","v":51},null,null,null,{"$f":"A49+1","v":52},null,null,null,{"$f":"E49+1","v":53},null,null,null,{"$f":"I49+1","v":54},null,null,null,{"$f":"M49+1","v":55},null,null,null,{"$f":"Q49+1","v":56},null,null,null,{"$f":"U49+1","v":57},null,null,null,{"$f":"Y49+1","v":58},null,null,null,{"$f":"AC49+1","v":59},null,null,null,{"$f":"AG49+1","v":60}]
[]
[]
[]
[]
[]
[]
[null,null,{"$f":"SUM(C50:C55)","v":0},{"$f":"IF(SUM(D50:D55)=0,\"\",AVERAGE(D50:D55))","v":""},null,null,{"$f":"SUM(G50:G55)","v":0},{"$f":"IF(SUM(H50:H55)=0,\"\",AVERAGE(H50:H55))","v":""},null,null,{"$f":"SUM(K50:K55)","v":0},{"$f":"IF(SUM(L50:L55)=0,\"\",AVERAGE(L50:L55))","v":""},null,null,{"$f":"SUM(O50:O55)","v":0},{"$f":"IF(SUM(P50:P55)=0,\"\",AVERAGE(P50:P55))","v":""},null,null,{"$f":"SUM(S50:S55)","v":0},{"$f":"IF(SUM(T50:T55)=0,\"\",AVERAGE(T50:T55))","v":""},null,null,{"$f":"SUM(W50:W55)","v":0},{"$f":"IF(SUM(X50:X55)=0,\"\",AVERAGE(X50:X55))","v":""},null,null,{"$f":"SUM(AA50:AA55)","v":0},{"$f":"IF(SUM(AB50:AB55)=0,\"\",AVERAGE(AB50:AB55))","v":""},null,null,{"$f":"SUM(AE50:AE55)","v":0},{"$f":"IF(SUM(AF50:AF55)=0,\"\",AVERAGE(AF50:AF55))","v":""},null,null,{"$f":"SUM(AI50:AI55)","v":0},{"$f":"IF(SUM(AJ50:AJ55)=0,\"\",AVERAGE(AJ50:AJ55))","v":""},null,null,{"$f":"SUM(AM50:AM55)","v":0},{"$f":"IF(SUM(AN50:AN55)=0,\"\",AVERAGE(AN50:AN55))","v":""},{"$f":"C56+G56+K56+O56+S56+W56+AA56+AE56+AI56+AM56","v":0}]
[null,null,null,null,null,null,null,null,null,null,null,null,null,null,null,null,null,null,null,null,null,null,null,null,null,null,null,null,null,null,null,null,null,null,null,null,null,null,{"$f":"IF(AJ57<>\"\",VLOOKUP(AJ57,séries,4,FALSE),\"\")","v":""}]
[{"$f":"A49+10","v":61},null,null,null,{"$f":"A58+1","v":62},null,null,null,{"$f":"E58+1","v":63},null,null,null,{"$f":"I58+1","v":64},null,null,null,{"$f":"M58+1","v":65},null,null,null,{"$f":"Q58+1","v":66},null,null,null,{"$f":"U58+1","v":67},null,null,null,{"$f":"Y58+1","v":68},null,null,null,{"$f":"AC58+1","v":69},null,null,null,{"$f":"AG58+1","v":70}]
[]
[]
[]
[]
[]
[]
[null,null,{"$f":"SUM(C59:C64)","v":0},{"$f":"IF(SUM(D59:D64)=0,\"\",AVERAGE(D59:D64))","v":""},null,null,{"$f":"SUM(G59:G64)","v":0},{"$f":"IF(SUM(H59:H64)=0,\"\",AVERAGE(H59:H64))","v":""},null,null,{"$f":"SUM(K59:K64)","v":0},{"$f":"IF(SUM(L59:L64)=0,\"\",AVERAGE(L59:L64))","v":""},null,null,{"$f":"SUM(O59:O64)","v":0},{"$f":"IF(SUM(P59:P64)=0,\"\",AVERAGE(P59:P64))","v":""},null,null,{"$f":"SUM(S59:S64)","v":0},{"$f":"IF(SUM(T59:T64)=0,\"\",AVERAGE(T59:T64))","v":""},null,null,{"$f":"SUM(W59:W64)","v":0},{"$f":"IF(SUM(X59:X64)=0,\"\",AVERAGE(X59:X64))","v":""},null,null,{"$f":"SUM(AA59:AA64)","v":0},{"$f":"IF(SUM(AB59:AB64)=0,\"\",AVERAGE(AB59:AB64))","v":""},null,null,{"$f":"SUM(AE59:AE64)","v":0},{"$f":"IF(SUM(AF59:AF64)=0,\"\",AVERAGE(AF59:AF64))","v":""},null,null,{"$f":"SUM(AI59:AI64)","v":0},{"$f":"IF(SUM(AJ59:AJ64)=0,\"\",AVERAGE(AJ59:AJ64))","v":""},null,null,{"$f":"SUM(AM59:AM64)","v":0},{"$f":"IF(SUM(AN59:AN64)=0,\"\",AVERAGE(AN59:AN64))","v":""},{"$f":"C65+G65+K65+O65+S65+W65+AA65+AE65+AI65+AM65","v":0}]
[null,null,null,null,null,null,null,null,null,null,null,null,null,null,null,null,null,null,null,null,null,null,null,null,null,null,null,null,null,null,null,null,null,null,null,null,null,null,{"$f":"IF(AJ66<>\"\",VLOOKUP(AJ66,séries,4,FALSE),\"\")","v":""}]
[{"$f":"A58+10","v":71},null,null,null,{"$f":"A67+1","v":72},null,null,null,{"$f":"E67+1","v":73},null,null,null,{"$f":"I67+1","v":74},null,null,null,{"$f":"M67+1","v":75},null,null,null,{"$f":"Q67+1","v":76},null,null,null,{"$f":"U67+1","v":77},null,null,null,{"$f":"Y67+1","v":78},null,null,null,{"$f":"AC67+1","v":79},null,null,null,{"$f":"AG67+1","v":80}]
[]
[]
[]
[]
[]
[]
[null,null,{"$f":"SUM(C68:C73)","v":0},{"$f":"IF(SUM(D68:D73)=0,\"\",AVERAGE(D68:D73))","v":""},null,null,{"$f":"SUM(G68:G73)","v":0},{"$f":"IF(SUM(H68:H73)=0,\"\",AVERAGE(H68:H73))","v":""},null,null,{"$f":"SUM(K68:K73)","v":0},{"$f":"IF(SUM(L68:L73)=0,\"\",AVERAGE(L68:L73))","v":""},null,null,{"$f":"SUM(O68:O73)","v":0},{"$f":"IF(SUM(P68:P73)=0,\"\",AVERAGE(P68:P73))","v":""},null,null,{"$f":"SUM(S68:S73)","v":0},{"$f":"IF(SUM(T68:T73)=0,\"\",AVERAGE(T68:T73))","v":""},null,null,{"$f":"SUM(W68:W73)","v":0},{"$f":"IF(SUM(X68:X73)=0,\"\",AVERAGE(X68:X73))","v":""},null,null,{"$f":"SUM(AA68:AA73)","v":0},{"$f":"IF(SUM(AB68:AB73)=0,\"\",AVERAGE(AB68:AB73))","v":""},null,null,{"$f":"SUM(AE68:AE73)","v":0},{"$f":"IF(SUM(AF68:AF73)=0,\"\",AVERAGE(AF68:AF73))","v":""},null,null,{"$f":"SUM(AI68:AI73)","v":0},{"$f":"IF(SUM(AJ68:AJ73)=0,\"\",AVERAGE(AJ68:AJ73))","v":""},null,null,{"$f":"SUM(AM68:AM73)","v":0},{"$f":"IF(SUM(AN68:AN73)=0,\"\",AVERAGE(AN68:AN73))","v":""},{"$f":"C74+G74+K74+O74+S74+W74+AA74+AE74+AI74+AM74","v":0}]
[null,null,null,null,null,null,null,null,null,null,null,null,null,null,null,null,null,null,null,null,null,null,null,null,null,null,null,null,null,null,null,null,null,null,null,null,null,null,{"$f":"IF(AJ75<>\"\",VLOOKUP(AJ75,séries,4,FALSE),\"\")","v":""}]
[{"$f":"A67+10","v":81},null,null,null,{"$f":"A76+1","v":82},null,null,null,{"$f":"E76+1","v":83},null,null,null,{"$f":"I76+1","v":84},null,null,null,{"$f":"M76+1","v":85},null,null,null,{"$f":"Q76+1","v":86},null,null,null,{"$f":"U76+1","v":87},null,null,null,{"$f":"Y76+1","v":88},null,null,null,{"$f":"AC76+1","v":89},null,null,null,{"$f":"AG76+1","v":90}]
[]
[]
[]
[]
[]
[]
[null,null,{"$f":"SUM(C77:C82)","v":0},{"$f":"IF(SUM(D77:D82)=0,\"\",AVERAGE(D77:D82))","v":""},null,null,{"$f":"SUM(G77:G82)","v":0},{"$f":"IF(SUM(H77:H82)=0,\"\",AVERAGE(H77:H82))","v":""},null,null,{"$f":"SUM(K77:K82)","v":0},{"$f":"IF(SUM(L77:L82)=0,\"\",AVERAGE(L77:L82))","v":""},null,null,{"$f":"SUM(O77:O82)","v":0},{"$f":"IF(SUM(P77:P82)=0,\"\",AVERAGE(P77:P82))","v":""},null,null,{"$f":"SUM(S77:S82)","v":0},{"$f":"IF(SUM(T77:T82)=0,\"\",AVERAGE(T77:T82))","v":""},null,null,{"$f":"SUM(W77:W82)","v":0},{"$f":"IF(SUM(X77:X82)=0,\"\",AVERAGE(X77:X82))","v":""},null,null,{"$f":"SUM(AA77:AA82)","v":0},{"$f":"IF(SUM(AB77:AB82)=0,\"\",AVERAGE(AB77:AB82))","v":""},null,null,{"$f":"SUM(AE77:AE82)","v":0},{"$f":"IF(SUM(AF77:AF82)=0,\"\",AVERAGE(AF77:AF82))","v":""},null,null,{"$f":"SUM(AI77:AI82)","v":0},{"$f":"IF(SUM(AJ77:AJ82)=0,\"\",AVERAGE(AJ77:AJ82))","v":""},null,null,{"$f":"SUM(AM77:AM82)","v":0},{"$f":"IF(SUM(AN77:AN82)=0,\"\",AVERAGE(AN77:AN82))","v":""},{"$f":"C83+G83+K83+O83+S83+W83+AA83+AE83+AI83+AM83","v":0}]
[null,null,null,null,null,null,null,null,null,null,null,null,null,null,null,null,null,null,null,null,null,null,null,null,null,null,null,null,null,null,null,null,null,null,null,null,null,null,{"$f":"IF(AJ84<>\"\",VLOOKUP(AJ84,séries,4,FALSE),\"\")","v":""}]
[{"$f":"A76+10","v":91},null,null,null,{"$f":"A85+1","v":92},null,null,null,{"$f":"E85+1","v":93},null,null,null,{"$f":"I85+1","v":94},null,null,null,{"$f":"M85+1","v":95},null,null,null,{"$f":"Q85+1","v":96},null,null,null,{"$f":"U85+1","v":97},null,null,null,{"$f":"Y85+1","v":98},null,null,null,{"$f":"AC85+1","v":99},null,null,null,{"$f":"AG85+1","v":100}]
[]
[]
[]
[]
[]
[]
[null,null,{"$f":"SUM(C86:C91)","v":0},{"$f":"IF(SUM(D86:D91)=0,\"\",AVERAGE(D86:D91))","v":""},null,null,{"$f":"SUM(G86:G91)","v":0},{"$f":"IF(SUM(H86:H91)=0,\"\",AVERAGE(H86:H91))","v":""},null,null,{"$f":"SUM(K86:K91)","v":0},{"$f":"IF(SUM(L86:L91)=0,\"\",AVERAGE(L86:L91))","v":""},null,null,{"$f":"SUM(O86:O91)","v":0},{"$f":"IF(SUM(P86:P91)=0,\"\",AVERAGE(P86:P91))","v":""},null,null,{"$f":"SUM(S86:S91)","v":0},{"$f":"IF(SUM(T86:T91)=0,\"\",AVERAGE(T86:T91))","v":""},null,null,{"$f":"SUM(W86:W91)","v":0},{"$f":"IF(SUM(X86:X91)=0,\"\",AVERAGE(X86:X91))","v":""},null,null,{"$f":"SUM(AA86:AA91)","v":0},{"$f":"IF(SUM(AB86:AB91)=0,\"\",AVERAGE(AB86:AB91))","v":""},null,null,{"$f":"SUM(AE86:AE91)","v":0},{"$f":"IF(SUM(AF86:AF91)=0,\"\",AVERAGE(AF86:AF91))","v":""},null,null,{"$f":"SUM(AI86:AI91)","v":0},{"$f":"IF(SUM(AJ86:AJ91)=0,\"\",AVERAGE(AJ86:AJ91))","v":""},null,null,{"$f":"SUM(AM86:AM91)","v":0},{"$f":"IF(SUM(AN86:AN91)=0,\"\",AVERAGE(AN86:AN91))","v":""},{"$f":"C92+G92+K92+O92+S92+W92+AA92+AE92+AI92+AM92","v":0}]
[null,null,null,null,null,null,null,null,null,null,null,null,null,null,null,null,null,null,null,null,null,null,null,null,null,null,null,null,null,null,null,null,null,null,null,null,null,null,{"$f":"IF(AJ93<>\"\",VLOOKUP(AJ93,séries,4,FALSE),\"\")","v":""}]

{"sheet":"Series Counts","index":11,"n_rows":7,"n_cols":3,"rows_kept":7,"cut":false,"hidden":false,"merged":[]}
[null,"Values"]
["Étiquettes de lignes","Sum of Qtt","Average of Quality"]
["(vide)"]
["(vide)"]
[]
["(vide)"]
["Total général"]